Workbook

Sheet Instructions

Sheet Subwatershed Map

Sheet Jurisdiction Data
C2: User Data - Entry
C3: Column1 | D3: Column2
C4: Jurisdiction
C5: Last Updated (MM/DD/YYYY)
C6: Start of Reporting Period (MM/DD/YYYY) | D6: 2006-01-01
C7: End of Reporting Period (MM/DD/YYYY) | D7: 2017-05-13
C8: Financing Period (Years) | D8: 20
C9: Interest Rate for Financing (%) | D9: 0.05
C10: Credits that are Recorded in Other Files
C11: TN (lb/yr) | D11: 500
C12: TP (lb/yr) | D12: 50
C15: Target Delivered Nutrient Reductions
C16: TN | D16: TP
C17: 1000 | D17: 400 | E17: These are just example targets to test summary tables and get input from reviewers

Sheet JFSATLU-Hidden (hidden)
B9: File Name | C9: Project Name | D9: UniqueID | E9: Latitude | F9: Longitude | G9: County | H9: Subwatershed | I9: TNPRe | J9: TNPostNoBMP | K9: TPPre | L9: TPPostNoBMP | M9: Offset
B10: =OFFSET('Data Collection'!$A$20,LU_Long[[#This Row],[Offset]],0) -> SNAP Version 4.0 Wet Pond.xlsm | C10: =OFFSET('Data Collection'!$A$20,LU_Long[[#This Row],[Offset]],3) -> Test Site 1 Wet Pond | D10: =LU_Long[[#This Row],[Project Name]]&"-Land" -> Test Site 1 Wet Pond-Land | E10: =OFFSET('Data Collection'!$A$20,LU_Long[[#This Row],[Offset]],5) -> 35.8032 | F10: =OFFSET('Data Collection'!$A$20,LU_Long[[#This Row],[Offset]],6) -> 78.5661 | G10: =OFFSET('Data Collection'!$EL$20,LU_Long[[#This Row],[Offset]],0) -> Wake | H10: =OFFSET('Data Collection'!$EL$20,LU_Long[[#This Row],[Offset]],1) -> Falls Zone Direct | I10: =OFFSET('Data Collection'!$EH$20,LU_Long[[#This Row],[Offset]],0) -> 12.58928676 | J10: =OFFSET('Data Collection'!$EH$20,LU_Long[[#This Row],[Offset]],1) -> 12.5612534 | K10: =OFFSET('Data Collection'!$EH$20,LU_Long[[#This Row],[Offset]],2) -> 1.77167115 | L10: =OFFSET('Data Collection'!$EH$20,LU_Long[[#This Row],[Offset]],3) -> 1.761552601 | M10: =IF(OFFSET(LU_Long[[#This Row],[Offset]],-1,0)="Offset",0,M9+1) -> 0
B11: =OFFSET('Data Collection'!$A$20,LU_Long[[#This Row],[Offset]],0) -> JFSNAT Version 2.0 Web Version Wet Pond.xlsm | C11: =OFFSET('Data Collection'!$A$20,LU_Long[[#This Row],[Offset]],3) -> Test Site 2 | D11: =LU_Long[[#This Row],[Project Name]]&"-Land" -> Test Site 2-Land | E11: =OFFSET('Data Collection'!$A$20,LU_Long[[#This Row],[Offset]],5) -> 0 | F11: =OFFSET('Data Collection'!$A$20,LU_Long[[#This Row],[Offset]],6) -> 0 | G11: =OFFSET('Data Collection'!$EL$20,LU_Long[[#This Row],[Offset]],0) -> 0 | H11: =OFFSET('Data Collection'!$EL$20,LU_Long[[#This Row],[Offset]],1) -> 0 | I11: =OFFSET('Data Collection'!$EH$20,LU_Long[[#This Row],[Offset]],0) -> 18.17732027 | J11: =OFFSET('Data Collection'!$EH$20,LU_Long[[#This Row],[Offset]],1) -> 18.17732027 | K11: =OFFSET('Data Collection'!$EH$20,LU_Long[[#This Row],[Offset]],2) -> 2.3622282 | L11: =OFFSET('Data Collection'!$EH$20,LU_Long[[#This Row],[Offset]],3) -> 2.3622282 | M11: =IF(OFFSET(LU_Long[[#This Row],[Offset]],-1,0)="Offset",0,M10+1) -> 1
B12: =OFFSET('Data Collection'!$A$20,LU_Long[[#This Row],[Offset]],0) -> Golden Goose(4-15-2010).xlsm | C12: =OFFSET('Data Collection'!$A$20,LU_Long[[#This Row],[Offset]],3) -> Golden Goose | D12: =LU_Long[[#This Row],[Project Name]]&"-Land" -> Golden Goose-Land | E12: =OFFSET('Data Collection'!$A$20,LU_Long[[#This Row],[Offset]],5) -> 35.652525 | F12: =OFFSET('Data Collection'!$A$20,LU_Long[[#This Row],[Offset]],6) -> 73.256891 | G12: =OFFSET('Data Collection'!$EL$20,LU_Long[[#This Row],[Offset]],0) -> 0 | H12: =OFFSET('Data Collection'!$EL$20,LU_Long[[#This Row],[Offset]],1) -> 0 | I12: =OFFSET('Data Collection'!$EH$20,LU_Long[[#This Row],[Offset]],0) -> 1.964881543 | J12: =OFFSET('Data Collection'!$EH$20,LU_Long[[#This Row],[Offset]],1) -> 11.45104196 | K12: =OFFSET('Data Collection'!$EH$20,LU_Long[[#This Row],[Offset]],2) -> 0.4437036425 | L12: =OFFSET('Data Collection'!$EH$20,LU_Long[[#This Row],[Offset]],3) -> 2.541231384 | M12: =IF(OFFSET(LU_Long[[#This Row],[Offset]],-1,0)="Offset",0,M11+1) -> 2
B13: =OFFSET('Data Collection'!$A$20,LU_Long[[#This Row],[Offset]],0) -> Wake County Example File.xlsx | C13: =OFFSET('Data Collection'!$A$20,LU_Long[[#This Row],[Offset]],3) -> Wake Example | D13: =LU_Long[[#This Row],[Project Name]]&"-Land" -> Wake Example-Land | E13: =OFFSET('Data Collection'!$A$20,LU_Long[[#This Row],[Offset]],5) -> 0 | F13: =OFFSET('Data Collection'!$A$20,LU_Long[[#This Row],[Offset]],6) -> 0 | G13: =OFFSET('Data Collection'!$EL$20,LU_Long[[#This Row],[Offset]],0) -> 0 | H13: =OFFSET('Data Collection'!$EL$20,LU_Long[[#This Row],[Offset]],1) -> 0 | I13: =OFFSET('Data Collection'!$EH$20,LU_Long[[#This Row],[Offset]],0) -> 10.23117573 | J13: =OFFSET('Data Collection'!$EH$20,LU_Long[[#This Row],[Offset]],1) -> 11.17194984 | K13: =OFFSET('Data Collection'!$EH$20,LU_Long[[#This Row],[Offset]],2) -> 3.25153764 | L13: =OFFSET('Data Collection'!$EH$20,LU_Long[[#This Row],[Offset]],3) -> 3.375567487 | M13: =IF(OFFSET(LU_Long[[#This Row],[Offset]],-1,0)="Offset",0,M12+1) -> 3
B14: =OFFSET('Data Collection'!$A$20,LU_Long[[#This Row],[Offset]],0) -> 0 | C14: =OFFSET('Data Collection'!$A$20,LU_Long[[#This Row],[Offset]],3) -> 0 | D14: =LU_Long[[#This Row],[Project Name]]&"-Land" -> 0-Land | E14: =OFFSET('Data Collection'!$A$20,LU_Long[[#This Row],[Offset]],5) -> 0 | F14: =OFFSET('Data Collection'!$A$20,LU_Long[[#This Row],[Offset]],6) -> 0 | G14: =OFFSET('Data Collection'!$EL$20,LU_Long[[#This Row],[Offset]],0) -> 0 | H14: =OFFSET('Data Collection'!$EL$20,LU_Long[[#This Row],[Offset]],1) -> 0 | I14: =OFFSET('Data Collection'!$EH$20,LU_Long[[#This Row],[Offset]],0) -> 0 | J14: =OFFSET('Data Collection'!$EH$20,LU_Long[[#This Row],[Offset]],1) -> 0 | K14: =OFFSET('Data Collection'!$EH$20,LU_Long[[#This Row],[Offset]],2) -> 0 | L14: =OFFSET('Data Collection'!$EH$20,LU_Long[[#This Row],[Offset]],3) -> 0 | M14: =IF(OFFSET(LU_Long[[#This Row],[Offset]],-1,0)="Offset",0,M13+1) -> 4
B15: =OFFSET('Data Collection'!$A$20,LU_Long[[#This Row],[Offset]],0) -> 0 | C15: =OFFSET('Data Collection'!$A$20,LU_Long[[#This Row],[Offset]],3) -> 0 | D15: =LU_Long[[#This Row],[Project Name]]&"-Land" -> 0-Land | E15: =OFFSET('Data Collection'!$A$20,LU_Long[[#This Row],[Offset]],5) -> 0 | F15: =OFFSET('Data Collection'!$A$20,LU_Long[[#This Row],[Offset]],6) -> 0 | G15: =OFFSET('Data Collection'!$EL$20,LU_Long[[#This Row],[Offset]],0) -> 0 | H15: =OFFSET('Data Collection'!$EL$20,LU_Long[[#This Row],[Offset]],1) -> 0 | I15: =OFFSET('Data Collection'!$EH$20,LU_Long[[#This Row],[Offset]],0) -> 0 | J15: =OFFSET('Data Collection'!$EH$20,LU_Long[[#This Row],[Offset]],1) -> 0 | K15: =OFFSET('Data Collection'!$EH$20,LU_Long[[#This Row],[Offset]],2) -> 0 | L15: =OFFSET('Data Collection'!$EH$20,LU_Long[[#This Row],[Offset]],3) -> 0 | M15: =IF(OFFSET(LU_Long[[#This Row],[Offset]],-1,0)="Offset",0,M14+1) -> 5
B16: =OFFSET('Data Collection'!$A$20,LU_Long[[#This Row],[Offset]],0) -> 0 | C16: =OFFSET('Data Collection'!$A$20,LU_Long[[#This Row],[Offset]],3) -> 0 | D16: =LU_Long[[#This Row],[Project Name]]&"-Land" -> 0-Land | E16: =OFFSET('Data Collection'!$A$20,LU_Long[[#This Row],[Offset]],5) -> 0 | F16: =OFFSET('Data Collection'!$A$20,LU_Long[[#This Row],[Offset]],6) -> 0 | G16: =OFFSET('Data Collection'!$EL$20,LU_Long[[#This Row],[Offset]],0) -> 0 | H16: =OFFSET('Data Collection'!$EL$20,LU_Long[[#This Row],[Offset]],1) -> 0 | I16: =OFFSET('Data Collection'!$EH$20,LU_Long[[#This Row],[Offset]],0) -> 0 | J16: =OFFSET('Data Collection'!$EH$20,LU_Long[[#This Row],[Offset]],1) -> 0 | K16: =OFFSET('Data Collection'!$EH$20,LU_Long[[#This Row],[Offset]],2) -> 0 | L16: =OFFSET('Data Collection'!$EH$20,LU_Long[[#This Row],[Offset]],3) -> 0 | M16: =IF(OFFSET(LU_Long[[#This Row],[Offset]],-1,0)="Offset",0,M15+1) -> 6
B17: =OFFSET('Data Collection'!$A$20,LU_Long[[#This Row],[Offset]],0) -> 0 | C17: =OFFSET('Data Collection'!$A$20,LU_Long[[#This Row],[Offset]],3) -> 0 | D17: =LU_Long[[#This Row],[Project Name]]&"-Land" -> 0-Land | E17: =OFFSET('Data Collection'!$A$20,LU_Long[[#This Row],[Offset]],5) -> 0 | F17: =OFFSET('Data Collection'!$A$20,LU_Long[[#This Row],[Offset]],6) -> 0 | G17: =OFFSET('Data Collection'!$EL$20,LU_Long[[#This Row],[Offset]],0) -> 0 | H17: =OFFSET('Data Collection'!$EL$20,LU_Long[[#This Row],[Offset]],1) -> 0 | I17: =OFFSET('Data Collection'!$EH$20,LU_Long[[#This Row],[Offset]],0) -> 0 | J17: =OFFSET('Data Collection'!$EH$20,LU_Long[[#This Row],[Offset]],1) -> 0 | K17: =OFFSET('Data Collection'!$EH$20,LU_Long[[#This Row],[Offset]],2) -> 0 | L17: =OFFSET('Data Collection'!$EH$20,LU_Long[[#This Row],[Offset]],3) -> 0 | M17: =IF(OFFSET(LU_Long[[#This Row],[Offset]],-1,0)="Offset",0,M16+1) -> 7
B18: =OFFSET('Data Collection'!$A$20,LU_Long[[#This Row],[Offset]],0) -> 0 | C18: =OFFSET('Data Collection'!$A$20,LU_Long[[#This Row],[Offset]],3) -> 0 | D18: =LU_Long[[#This Row],[Project Name]]&"-Land" -> 0-Land | E18: =OFFSET('Data Collection'!$A$20,LU_Long[[#This Row],[Offset]],5) -> 0 | F18: =OFFSET('Data Collection'!$A$20,LU_Long[[#This Row],[Offset]],6) -> 0 | G18: =OFFSET('Data Collection'!$EL$20,LU_Long[[#This Row],[Offset]],0) -> 0 | H18: =OFFSET('Data Collection'!$EL$20,LU_Long[[#This Row],[Offset]],1) -> 0 | I18: =OFFSET('Data Collection'!$EH$20,LU_Long[[#This Row],[Offset]],0) -> 0 | J18: =OFFSET('Data Collection'!$EH$20,LU_Long[[#This Row],[Offset]],1) -> 0 | K18: =OFFSET('Data Collection'!$EH$20,LU_Long[[#This Row],[Offset]],2) -> 0 | L18: =OFFSET('Data Collection'!$EH$20,LU_Long[[#This Row],[Offset]],3) -> 0 | M18: =IF(OFFSET(LU_Long[[#This Row],[Offset]],-1,0)="Offset",0,M17+1) -> 8
B19: =OFFSET('Data Collection'!$A$20,LU_Long[[#This Row],[Offset]],0) -> 0 | C19: =OFFSET('Data Collection'!$A$20,LU_Long[[#This Row],[Offset]],3) -> 0 | D19: =LU_Long[[#This Row],[Project Name]]&"-Land" -> 0-Land | E19: =OFFSET('Data Collection'!$A$20,LU_Long[[#This Row],[Offset]],5) -> 0 | F19: =OFFSET('Data Collection'!$A$20,LU_Long[[#This Row],[Offset]],6) -> 0 | G19: =OFFSET('Data Collection'!$EL$20,LU_Long[[#This Row],[Offset]],0) -> 0 | H19: =OFFSET('Data Collection'!$EL$20,LU_Long[[#This Row],[Offset]],1) -> 0 | I19: =OFFSET('Data Collection'!$EH$20,LU_Long[[#This Row],[Offset]],0) -> 0 | J19: =OFFSET('Data Collection'!$EH$20,LU_Long[[#This Row],[Offset]],1) -> 0 | K19: =OFFSET('Data Collection'!$EH$20,LU_Long[[#This Row],[Offset]],2) -> 0 | L19: =OFFSET('Data Collection'!$EH$20,LU_Long[[#This Row],[Offset]],3) -> 0 | M19: =IF(OFFSET(LU_Long[[#This Row],[Offset]],-1,0)="Offset",0,M18+1) -> 9
B20: =OFFSET('Data Collection'!$A$20,LU_Long[[#This Row],[Offset]],0) -> 0 | C20: =OFFSET('Data Collection'!$A$20,LU_Long[[#This Row],[Offset]],3) -> 0 | D20: =LU_Long[[#This Row],[Project Name]]&"-Land" -> 0-Land | E20: =OFFSET('Data Collection'!$A$20,LU_Long[[#This Row],[Offset]],5) -> 0 | F20: =OFFSET('Data Collection'!$A$20,LU_Long[[#This Row],[Offset]],6) -> 0 | G20: =OFFSET('Data Collection'!$EL$20,LU_Long[[#This Row],[Offset]],0) -> 0 | H20: =OFFSET('Data Collection'!$EL$20,LU_Long[[#This Row],[Offset]],1) -> 0 | I20: =OFFSET('Data Collection'!$EH$20,LU_Long[[#This Row],[Offset]],0) -> 0 | J20: =OFFSET('Data Collection'!$EH$20,LU_Long[[#This Row],[Offset]],1) -> 0 | K20: =OFFSET('Data Collection'!$EH$20,LU_Long[[#This Row],[Offset]],2) -> 0 | L20: =OFFSET('Data Collection'!$EH$20,LU_Long[[#This Row],[Offset]],3) -> 0 | M20: =IF(OFFSET(LU_Long[[#This Row],[Offset]],-1,0)="Offset",0,M19+1) -> 10
B21: =OFFSET('Data Collection'!$A$20,LU_Long[[#This Row],[Offset]],0) -> 0 | C21: =OFFSET('Data Collection'!$A$20,LU_Long[[#This Row],[Offset]],3) -> 0 | D21: =LU_Long[[#This Row],[Project Name]]&"-Land" -> 0-Land | E21: =OFFSET('Data Collection'!$A$20,LU_Long[[#This Row],[Offset]],5) -> 0 | F21: =OFFSET('Data Collection'!$A$20,LU_Long[[#This Row],[Offset]],6) -> 0 | G21: =OFFSET('Data Collection'!$EL$20,LU_Long[[#This Row],[Offset]],0) -> 0 | H21: =OFFSET('Data Collection'!$EL$20,LU_Long[[#This Row],[Offset]],1) -> 0 | I21: =OFFSET('Data Collection'!$EH$20,LU_Long[[#This Row],[Offset]],0) -> 0 | J21: =OFFSET('Data Collection'!$EH$20,LU_Long[[#This Row],[Offset]],1) -> 0 | K21: =OFFSET('Data Collection'!$EH$20,LU_Long[[#This Row],[Offset]],2) -> 0 | L21: =OFFSET('Data Collection'!$EH$20,LU_Long[[#This Row],[Offset]],3) -> 0 | M21: =IF(OFFSET(LU_Long[[#This Row],[Offset]],-1,0)="Offset",0,M20+1) -> 11
B22: =OFFSET('Data Collection'!$A$20,LU_Long[[#This Row],[Offset]],0) -> 0 | C22: =OFFSET('Data Collection'!$A$20,LU_Long[[#This Row],[Offset]],3) -> 0 | D22: =LU_Long[[#This Row],[Project Name]]&"-Land" -> 0-Land | E22: =OFFSET('Data Collection'!$A$20,LU_Long[[#This Row],[Offset]],5) -> 0 | F22: =OFFSET('Data Collection'!$A$20,LU_Long[[#This Row],[Offset]],6) -> 0 | G22: =OFFSET('Data Collection'!$EL$20,LU_Long[[#This Row],[Offset]],0) -> 0 | H22: =OFFSET('Data Collection'!$EL$20,LU_Long[[#This Row],[Offset]],1) -> 0 | I22: =OFFSET('Data Collection'!$EH$20,LU_Long[[#This Row],[Offset]],0) -> 0 | J22: =OFFSET('Data Collection'!$EH$20,LU_Long[[#This Row],[Offset]],1) -> 0 | K22: =OFFSET('Data Collection'!$EH$20,LU_Long[[#This Row],[Offset]],2) -> 0 | L22: =OFFSET('Data Collection'!$EH$20,LU_Long[[#This Row],[Offset]],3) -> 0 | M22: =IF(OFFSET(LU_Long[[#This Row],[Offset]],-1,0)="Offset",0,M21+1) -> 12
B23: =OFFSET('Data Collection'!$A$20,LU_Long[[#This Row],[Offset]],0) -> 0 | C23: =OFFSET('Data Collection'!$A$20,LU_Long[[#This Row],[Offset]],3) -> 0 | D23: =LU_Long[[#This Row],[Project Name]]&"-Land" -> 0-Land | E23: =OFFSET('Data Collection'!$A$20,LU_Long[[#This Row],[Offset]],5) -> 0 | F23: =OFFSET('Data Collection'!$A$20,LU_Long[[#This Row],[Offset]],6) -> 0 | G23: =OFFSET('Data Collection'!$EL$20,LU_Long[[#This Row],[Offset]],0) -> 0 | H23: =OFFSET('Data Collection'!$EL$20,LU_Long[[#This Row],[Offset]],1) -> 0 | I23: =OFFSET('Data Collection'!$EH$20,LU_Long[[#This Row],[Offset]],0) -> 0 | J23: =OFFSET('Data Collection'!$EH$20,LU_Long[[#This Row],[Offset]],1) -> 0 | K23: =OFFSET('Data Collection'!$EH$20,LU_Long[[#This Row],[Offset]],2) -> 0 | L23: =OFFSET('Data Collection'!$EH$20,LU_Long[[#This Row],[Offset]],3) -> 0 | M23: =IF(OFFSET(LU_Long[[#This Row],[Offset]],-1,0)="Offset",0,M22+1) -> 13
B24: =OFFSET('Data Collection'!$A$20,LU_Long[[#This Row],[Offset]],0) -> 0 | C24: =OFFSET('Data Collection'!$A$20,LU_Long[[#This Row],[Offset]],3) -> 0 | D24: =LU_Long[[#This Row],[Project Name]]&"-Land" -> 0-Land | E24: =OFFSET('Data Collection'!$A$20,LU_Long[[#This Row],[Offset]],5) -> 0 | F24: =OFFSET('Data Collection'!$A$20,LU_Long[[#This Row],[Offset]],6) -> 0 | G24: =OFFSET('Data Collection'!$EL$20,LU_Long[[#This Row],[Offset]],0) -> 0 | H24: =OFFSET('Data Collection'!$EL$20,LU_Long[[#This Row],[Offset]],1) -> 0 | I24: =OFFSET('Data Collection'!$EH$20,LU_Long[[#This Row],[Offset]],0) -> 0 | J24: =OFFSET('Data Collection'!$EH$20,LU_Long[[#This Row],[Offset]],1) -> 0 | K24: =OFFSET('Data Collection'!$EH$20,LU_Long[[#This Row],[Offset]],2) -> 0 | L24: =OFFSET('Data Collection'!$EH$20,LU_Long[[#This Row],[Offset]],3) -> 0 | M24: =IF(OFFSET(LU_Long[[#This Row],[Offset]],-1,0)="Offset",0,M23+1) -> 14
B25: =OFFSET('Data Collection'!$A$20,LU_Long[[#This Row],[Offset]],0) -> 0 | C25: =OFFSET('Data Collection'!$A$20,LU_Long[[#This Row],[Offset]],3) -> 0 | D25: =LU_Long[[#This Row],[Project Name]]&"-Land" -> 0-Land | E25: =OFFSET('Data Collection'!$A$20,LU_Long[[#This Row],[Offset]],5) -> 0 | F25: =OFFSET('Data Collection'!$A$20,LU_Long[[#This Row],[Offset]],6) -> 0 | G25: =OFFSET('Data Collection'!$EL$20,LU_Long[[#This Row],[Offset]],0) -> 0 | H25: =OFFSET('Data Collection'!$EL$20,LU_Long[[#This Row],[Offset]],1) -> 0 | I25: =OFFSET('Data Collection'!$EH$20,LU_Long[[#This Row],[Offset]],0) -> 0 | J25: =OFFSET('Data Collection'!$EH$20,LU_Long[[#This Row],[Offset]],1) -> 0 | K25: =OFFSET('Data Collection'!$EH$20,LU_Long[[#This Row],[Offset]],2) -> 0 | L25: =OFFSET('Data Collection'!$EH$20,LU_Long[[#This Row],[Offset]],3) -> 0 | M25: =IF(OFFSET(LU_Long[[#This Row],[Offset]],-1,0)="Offset",0,M24+1) -> 15
B26: =OFFSET('Data Collection'!$A$20,LU_Long[[#This Row],[Offset]],0) -> 0 | C26: =OFFSET('Data Collection'!$A$20,LU_Long[[#This Row],[Offset]],3) -> 0 | D26: =LU_Long[[#This Row],[Project Name]]&"-Land" -> 0-Land | E26: =OFFSET('Data Collection'!$A$20,LU_Long[[#This Row],[Offset]],5) -> 0 | F26: =OFFSET('Data Collection'!$A$20,LU_Long[[#This Row],[Offset]],6) -> 0 | G26: =OFFSET('Data Collection'!$EL$20,LU_Long[[#This Row],[Offset]],0) -> 0 | H26: =OFFSET('Data Collection'!$EL$20,LU_Long[[#This Row],[Offset]],1) -> 0 | I26: =OFFSET('Data Collection'!$EH$20,LU_Long[[#This Row],[Offset]],0) -> 0 | J26: =OFFSET('Data Collection'!$EH$20,LU_Long[[#This Row],[Offset]],1) -> 0 | K26: =OFFSET('Data Collection'!$EH$20,LU_Long[[#This Row],[Offset]],2) -> 0 | L26: =OFFSET('Data Collection'!$EH$20,LU_Long[[#This Row],[Offset]],3) -> 0 | M26: =IF(OFFSET(LU_Long[[#This Row],[Offset]],-1,0)="Offset",0,M25+1) -> 16
B27: =OFFSET('Data Collection'!$A$20,LU_Long[[#This Row],[Offset]],0) -> 0 | C27: =OFFSET('Data Collection'!$A$20,LU_Long[[#This Row],[Offset]],3) -> 0 | D27: =LU_Long[[#This Row],[Project Name]]&"-Land" -> 0-Land | E27: =OFFSET('Data Collection'!$A$20,LU_Long[[#This Row],[Offset]],5) -> 0 | F27: =OFFSET('Data Collection'!$A$20,LU_Long[[#This Row],[Offset]],6) -> 0 | G27: =OFFSET('Data Collection'!$EL$20,LU_Long[[#This Row],[Offset]],0) -> 0 | H27: =OFFSET('Data Collection'!$EL$20,LU_Long[[#This Row],[Offset]],1) -> 0 | I27: =OFFSET('Data Collection'!$EH$20,LU_Long[[#This Row],[Offset]],0) -> 0 | J27: =OFFSET('Data Collection'!$EH$20,LU_Long[[#This Row],[Offset]],1) -> 0 | K27: =OFFSET('Data Collection'!$EH$20,LU_Long[[#This Row],[Offset]],2) -> 0 | L27: =OFFSET('Data Collection'!$EH$20,LU_Long[[#This Row],[Offset]],3) -> 0 | M27: =IF(OFFSET(LU_Long[[#This Row],[Offset]],-1,0)="Offset",0,M26+1) -> 17
B28: =OFFSET('Data Collection'!$A$20,LU_Long[[#This Row],[Offset]],0) -> 0 | C28: =OFFSET('Data Collection'!$A$20,LU_Long[[#This Row],[Offset]],3) -> 0 | D28: =LU_Long[[#This Row],[Project Name]]&"-Land" -> 0-Land | E28: =OFFSET('Data Collection'!$A$20,LU_Long[[#This Row],[Offset]],5) -> 0 | F28: =OFFSET('Data Collection'!$A$20,LU_Long[[#This Row],[Offset]],6) -> 0 | G28: =OFFSET('Data Collection'!$EL$20,LU_Long[[#This Row],[Offset]],0) -> 0 | H28: =OFFSET('Data Collection'!$EL$20,LU_Long[[#This Row],[Offset]],1) -> 0 | I28: =OFFSET('Data Collection'!$EH$20,LU_Long[[#This Row],[Offset]],0) -> 0 | J28: =OFFSET('Data Collection'!$EH$20,LU_Long[[#This Row],[Offset]],1) -> 0 | K28: =OFFSET('Data Collection'!$EH$20,LU_Long[[#This Row],[Offset]],2) -> 0 | L28: =OFFSET('Data Collection'!$EH$20,LU_Long[[#This Row],[Offset]],3) -> 0 | M28: =IF(OFFSET(LU_Long[[#This Row],[Offset]],-1,0)="Offset",0,M27+1) -> 18
B29: =OFFSET('Data Collection'!$A$20,LU_Long[[#This Row],[Offset]],0) -> 0 | C29: =OFFSET('Data Collection'!$A$20,LU_Long[[#This Row],[Offset]],3) -> 0 | D29: =LU_Long[[#This Row],[Project Name]]&"-Land" -> 0-Land | E29: =OFFSET('Data Collection'!$A$20,LU_Long[[#This Row],[Offset]],5) -> 0 | F29: =OFFSET('Data Collection'!$A$20,LU_Long[[#This Row],[Offset]],6) -> 0 | G29: =OFFSET('Data Collection'!$EL$20,LU_Long[[#This Row],[Offset]],0) -> 0 | H29: =OFFSET('Data Collection'!$EL$20,LU_Long[[#This Row],[Offset]],1) -> 0 | I29: =OFFSET('Data Collection'!$EH$20,LU_Long[[#This Row],[Offset]],0) -> 0 | J29: =OFFSET('Data Collection'!$EH$20,LU_Long[[#This Row],[Offset]],1) -> 0 | K29: =OFFSET('Data Collection'!$EH$20,LU_Long[[#This Row],[Offset]],2) -> 0 | L29: =OFFSET('Data Collection'!$EH$20,LU_Long[[#This Row],[Offset]],3) -> 0 | M29: =IF(OFFSET(LU_Long[[#This Row],[Offset]],-1,0)="Offset",0,M28+1) -> 19
B30: =OFFSET('Data Collection'!$A$20,LU_Long[[#This Row],[Offset]],0) -> 0 | C30: =OFFSET('Data Collection'!$A$20,LU_Long[[#This Row],[Offset]],3) -> 0 | D30: =LU_Long[[#This Row],[Project Name]]&"-Land" -> 0-Land | E30: =OFFSET('Data Collection'!$A$20,LU_Long[[#This Row],[Offset]],5) -> 0 | F30: =OFFSET('Data Collection'!$A$20,LU_Long[[#This Row],[Offset]],6) -> 0 | G30: =OFFSET('Data Collection'!$EL$20,LU_Long[[#This Row],[Offset]],0) -> 0 | H30: =OFFSET('Data Collection'!$EL$20,LU_Long[[#This Row],[Offset]],1) -> 0 | I30: =OFFSET('Data Collection'!$EH$20,LU_Long[[#This Row],[Offset]],0) -> 0 | J30: =OFFSET('Data Collection'!$EH$20,LU_Long[[#This Row],[Offset]],1) -> 0 | K30: =OFFSET('Data Collection'!$EH$20,LU_Long[[#This Row],[Offset]],2) -> 0 | L30: =OFFSET('Data Collection'!$EH$20,LU_Long[[#This Row],[Offset]],3) -> 0 | M30: =IF(OFFSET(LU_Long[[#This Row],[Offset]],-1,0)="Offset",0,M29+1) -> 20
B31: =OFFSET('Data Collection'!$A$20,LU_Long[[#This Row],[Offset]],0) -> 0 | C31: =OFFSET('Data Collection'!$A$20,LU_Long[[#This Row],[Offset]],3) -> 0 | D31: =LU_Long[[#This Row],[Project Name]]&"-Land" -> 0-Land | E31: =OFFSET('Data Collection'!$A$20,LU_Long[[#This Row],[Offset]],5) -> 0 | F31: =OFFSET('Data Collection'!$A$20,LU_Long[[#This Row],[Offset]],6) -> 0 | G31: =OFFSET('Data Collection'!$EL$20,LU_Long[[#This Row],[Offset]],0) -> 0 | H31: =OFFSET('Data Collection'!$EL$20,LU_Long[[#This Row],[Offset]],1) -> 0 | I31: =OFFSET('Data Collection'!$EH$20,LU_Long[[#This Row],[Offset]],0) -> 0 | J31: =OFFSET('Data Collection'!$EH$20,LU_Long[[#This Row],[Offset]],1) -> 0 | K31: =OFFSET('Data Collection'!$EH$20,LU_Long[[#This Row],[Offset]],2) -> 0 | L31: =OFFSET('Data Collection'!$EH$20,LU_Long[[#This Row],[Offset]],3) -> 0 | M31: =IF(OFFSET(LU_Long[[#This Row],[Offset]],-1,0)="Offset",0,M30+1) -> 21
B32: =OFFSET('Data Collection'!$A$20,LU_Long[[#This Row],[Offset]],0) -> 0 | C32: =OFFSET('Data Collection'!$A$20,LU_Long[[#This Row],[Offset]],3) -> 0 | D32: =LU_Long[[#This Row],[Project Name]]&"-Land" -> 0-Land | E32: =OFFSET('Data Collection'!$A$20,LU_Long[[#This Row],[Offset]],5) -> 0 | F32: =OFFSET('Data Collection'!$A$20,LU_Long[[#This Row],[Offset]],6) -> 0 | G32: =OFFSET('Data Collection'!$EL$20,LU_Long[[#This Row],[Offset]],0) -> 0 | H32: =OFFSET('Data Collection'!$EL$20,LU_Long[[#This Row],[Offset]],1) -> 0 | I32: =OFFSET('Data Collection'!$EH$20,LU_Long[[#This Row],[Offset]],0) -> 0 | J32: =OFFSET('Data Collection'!$EH$20,LU_Long[[#This Row],[Offset]],1) -> 0 | K32: =OFFSET('Data Collection'!$EH$20,LU_Long[[#This Row],[Offset]],2) -> 0 | L32: =OFFSET('Data Collection'!$EH$20,LU_Long[[#This Row],[Offset]],3) -> 0 | M32: =IF(OFFSET(LU_Long[[#This Row],[Offset]],-1,0)="Offset",0,M31+1) -> 22
B33: =OFFSET('Data Collection'!$A$20,LU_Long[[#This Row],[Offset]],0) -> 0 | C33: =OFFSET('Data Collection'!$A$20,LU_Long[[#This Row],[Offset]],3) -> 0 | D33: =LU_Long[[#This Row],[Project Name]]&"-Land" -> 0-Land | E33: =OFFSET('Data Collection'!$A$20,LU_Long[[#This Row],[Offset]],5) -> 0 | F33: =OFFSET('Data Collection'!$A$20,LU_Long[[#This Row],[Offset]],6) -> 0 | G33: =OFFSET('Data Collection'!$EL$20,LU_Long[[#This Row],[Offset]],0) -> 0 | H33: =OFFSET('Data Collection'!$EL$20,LU_Long[[#This Row],[Offset]],1) -> 0 | I33: =OFFSET('Data Collection'!$EH$20,LU_Long[[#This Row],[Offset]],0) -> 0 | J33: =OFFSET('Data Collection'!$EH$20,LU_Long[[#This Row],[Offset]],1) -> 0 | K33: =OFFSET('Data Collection'!$EH$20,LU_Long[[#This Row],[Offset]],2) -> 0 | L33: =OFFSET('Data Collection'!$EH$20,LU_Long[[#This Row],[Offset]],3) -> 0 | M33: =IF(OFFSET(LU_Long[[#This Row],[Offset]],-1,0)="Offset",0,M32+1) -> 23
B34: =OFFSET('Data Collection'!$A$20,LU_Long[[#This Row],[Offset]],0) -> 0 | C34: =OFFSET('Data Collection'!$A$20,LU_Long[[#This Row],[Offset]],3) -> 0 | D34: =LU_Long[[#This Row],[Project Name]]&"-Land" -> 0-Land | E34: =OFFSET('Data Collection'!$A$20,LU_Long[[#This Row],[Offset]],5) -> 0 | F34: =OFFSET('Data Collection'!$A$20,LU_Long[[#This Row],[Offset]],6) -> 0 | G34: =OFFSET('Data Collection'!$EL$20,LU_Long[[#This Row],[Offset]],0) -> 0 | H34: =OFFSET('Data Collection'!$EL$20,LU_Long[[#This Row],[Offset]],1) -> 0 | I34: =OFFSET('Data Collection'!$EH$20,LU_Long[[#This Row],[Offset]],0) -> 0 | J34: =OFFSET('Data Collection'!$EH$20,LU_Long[[#This Row],[Offset]],1) -> 0 | K34: =OFFSET('Data Collection'!$EH$20,LU_Long[[#This Row],[Offset]],2) -> 0 | L34: =OFFSET('Data Collection'!$EH$20,LU_Long[[#This Row],[Offset]],3) -> 0 | M34: =IF(OFFSET(LU_Long[[#This Row],[Offset]],-1,0)="Offset",0,M33+1) -> 24
B35: =OFFSET('Data Collection'!$A$20,LU_Long[[#This Row],[Offset]],0) -> 0 | C35: =OFFSET('Data Collection'!$A$20,LU_Long[[#This Row],[Offset]],3) -> 0 | D35: =LU_Long[[#This Row],[Project Name]]&"-Land" -> 0-Land | E35: =OFFSET('Data Collection'!$A$20,LU_Long[[#This Row],[Offset]],5) -> 0 | F35: =OFFSET('Data Collection'!$A$20,LU_Long[[#This Row],[Offset]],6) -> 0 | G35: =OFFSET('Data Collection'!$EL$20,LU_Long[[#This Row],[Offset]],0) -> 0 | H35: =OFFSET('Data Collection'!$EL$20,LU_Long[[#This Row],[Offset]],1) -> 0 | I35: =OFFSET('Data Collection'!$EH$20,LU_Long[[#This Row],[Offset]],0) -> 0 | J35: =OFFSET('Data Collection'!$EH$20,LU_Long[[#This Row],[Offset]],1) -> 0 | K35: =OFFSET('Data Collection'!$EH$20,LU_Long[[#This Row],[Offset]],2) -> 0 | L35: =OFFSET('Data Collection'!$EH$20,LU_Long[[#This Row],[Offset]],3) -> 0 | M35: =IF(OFFSET(LU_Long[[#This Row],[Offset]],-1,0)="Offset",0,M34+1) -> 25
B36: =OFFSET('Data Collection'!$A$20,LU_Long[[#This Row],[Offset]],0) -> 0 | C36: =OFFSET('Data Collection'!$A$20,LU_Long[[#This Row],[Offset]],3) -> 0 | D36: =LU_Long[[#This Row],[Project Name]]&"-Land" -> 0-Land | E36: =OFFSET('Data Collection'!$A$20,LU_Long[[#This Row],[Offset]],5) -> 0 | F36: =OFFSET('Data Collection'!$A$20,LU_Long[[#This Row],[Offset]],6) -> 0 | G36: =OFFSET('Data Collection'!$EL$20,LU_Long[[#This Row],[Offset]],0) -> 0 | H36: =OFFSET('Data Collection'!$EL$20,LU_Long[[#This Row],[Offset]],1) -> 0 | I36: =OFFSET('Data Collection'!$EH$20,LU_Long[[#This Row],[Offset]],0) -> 0 | J36: =OFFSET('Data Collection'!$EH$20,LU_Long[[#This Row],[Offset]],1) -> 0 | K36: =OFFSET('Data Collection'!$EH$20,LU_Long[[#This Row],[Offset]],2) -> 0 | L36: =OFFSET('Data Collection'!$EH$20,LU_Long[[#This Row],[Offset]],3) -> 0 | M36: =IF(OFFSET(LU_Long[[#This Row],[Offset]],-1,0)="Offset",0,M35+1) -> 26
B37: =OFFSET('Data Collection'!$A$20,LU_Long[[#This Row],[Offset]],0) -> 0 | C37: =OFFSET('Data Collection'!$A$20,LU_Long[[#This Row],[Offset]],3) -> 0 | D37: =LU_Long[[#This Row],[Project Name]]&"-Land" -> 0-Land | E37: =OFFSET('Data Collection'!$A$20,LU_Long[[#This Row],[Offset]],5) -> 0 | F37: =OFFSET('Data Collection'!$A$20,LU_Long[[#This Row],[Offset]],6) -> 0 | G37: =OFFSET('Data Collection'!$EL$20,LU_Long[[#This Row],[Offset]],0) -> 0 | H37: =OFFSET('Data Collection'!$EL$20,LU_Long[[#This Row],[Offset]],1) -> 0 | I37: =OFFSET('Data Collection'!$EH$20,LU_Long[[#This Row],[Offset]],0) -> 0 | J37: =OFFSET('Data Collection'!$EH$20,LU_Long[[#This Row],[Offset]],1) -> 0 | K37: =OFFSET('Data Collection'!$EH$20,LU_Long[[#This Row],[Offset]],2) -> 0 | L37: =OFFSET('Data Collection'!$EH$20,LU_Long[[#This Row],[Offset]],3) -> 0 | M37: =IF(OFFSET(LU_Long[[#This Row],[Offset]],-1,0)="Offset",0,M36+1) -> 27
B38: =OFFSET('Data Collection'!$A$20,LU_Long[[#This Row],[Offset]],0) -> 0 | C38: =OFFSET('Data Collection'!$A$20,LU_Long[[#This Row],[Offset]],3) -> 0 | D38: =LU_Long[[#This Row],[Project Name]]&"-Land" -> 0-Land | E38: =OFFSET('Data Collection'!$A$20,LU_Long[[#This Row],[Offset]],5) -> 0 | F38: =OFFSET('Data Collection'!$A$20,LU_Long[[#This Row],[Offset]],6) -> 0 | G38: =OFFSET('Data Collection'!$EL$20,LU_Long[[#This Row],[Offset]],0) -> 0 | H38: =OFFSET('Data Collection'!$EL$20,LU_Long[[#This Row],[Offset]],1) -> 0 | I38: =OFFSET('Data Collection'!$EH$20,LU_Long[[#This Row],[Offset]],0) -> 0 | J38: =OFFSET('Data Collection'!$EH$20,LU_Long[[#This Row],[Offset]],1) -> 0 | K38: =OFFSET('Data Collection'!$EH$20,LU_Long[[#This Row],[Offset]],2) -> 0 | L38: =OFFSET('Data Collection'!$EH$20,LU_Long[[#This Row],[Offset]],3) -> 0 | M38: =IF(OFFSET(LU_Long[[#This Row],[Offset]],-1,0)="Offset",0,M37+1) -> 28
B39: =OFFSET('Data Collection'!$A$20,LU_Long[[#This Row],[Offset]],0) -> 0 | C39: =OFFSET('Data Collection'!$A$20,LU_Long[[#This Row],[Offset]],3) -> 0 | D39: =LU_Long[[#This Row],[Project Name]]&"-Land" -> 0-Land | E39: =OFFSET('Data Collection'!$A$20,LU_Long[[#This Row],[Offset]],5) -> 0 | F39: =OFFSET('Data Collection'!$A$20,LU_Long[[#This Row],[Offset]],6) -> 0 | G39: =OFFSET('Data Collection'!$EL$20,LU_Long[[#This Row],[Offset]],0) -> 0 | H39: =OFFSET('Data Collection'!$EL$20,LU_Long[[#This Row],[Offset]],1) -> 0 | I39: =OFFSET('Data Collection'!$EH$20,LU_Long[[#This Row],[Offset]],0) -> 0 | J39: =OFFSET('Data Collection'!$EH$20,LU_Long[[#This Row],[Offset]],1) -> 0 | K39: =OFFSET('Data Collection'!$EH$20,LU_Long[[#This Row],[Offset]],2) -> 0 | L39: =OFFSET('Data Collection'!$EH$20,LU_Long[[#This Row],[Offset]],3) -> 0 | M39: =IF(OFFSET(LU_Long[[#This Row],[Offset]],-1,0)="Offset",0,M38+1) -> 29
B40: =OFFSET('Data Collection'!$A$20,LU_Long[[#This Row],[Offset]],0) -> 0 | C40: =OFFSET('Data Collection'!$A$20,LU_Long[[#This Row],[Offset]],3) -> 0 | D40: =LU_Long[[#This Row],[Project Name]]&"-Land" -> 0-Land | E40: =OFFSET('Data Collection'!$A$20,LU_Long[[#This Row],[Offset]],5) -> 0 | F40: =OFFSET('Data Collection'!$A$20,LU_Long[[#This Row],[Offset]],6) -> 0 | G40: =OFFSET('Data Collection'!$EL$20,LU_Long[[#This Row],[Offset]],0) -> 0 | H40: =OFFSET('Data Collection'!$EL$20,LU_Long[[#This Row],[Offset]],1) -> 0 | I40: =OFFSET('Data Collection'!$EH$20,LU_Long[[#This Row],[Offset]],0) -> 0 | J40: =OFFSET('Data Collection'!$EH$20,LU_Long[[#This Row],[Offset]],1) -> 0 | K40: =OFFSET('Data Collection'!$EH$20,LU_Long[[#This Row],[Offset]],2) -> 0 | L40: =OFFSET('Data Collection'!$EH$20,LU_Long[[#This Row],[Offset]],3) -> 0 | M40: =IF(OFFSET(LU_Long[[#This Row],[Offset]],-1,0)="Offset",0,M39+1) -> 30
B41: =OFFSET('Data Collection'!$A$20,LU_Long[[#This Row],[Offset]],0) -> 0 | C41: =OFFSET('Data Collection'!$A$20,LU_Long[[#This Row],[Offset]],3) -> 0 | D41: =LU_Long[[#This Row],[Project Name]]&"-Land" -> 0-Land | E41: =OFFSET('Data Collection'!$A$20,LU_Long[[#This Row],[Offset]],5) -> 0 | F41: =OFFSET('Data Collection'!$A$20,LU_Long[[#This Row],[Offset]],6) -> 0 | G41: =OFFSET('Data Collection'!$EL$20,LU_Long[[#This Row],[Offset]],0) -> 0 | H41: =OFFSET('Data Collection'!$EL$20,LU_Long[[#This Row],[Offset]],1) -> 0 | I41: =OFFSET('Data Collection'!$EH$20,LU_Long[[#This Row],[Offset]],0) -> 0 | J41: =OFFSET('Data Collection'!$EH$20,LU_Long[[#This Row],[Offset]],1) -> 0 | K41: =OFFSET('Data Collection'!$EH$20,LU_Long[[#This Row],[Offset]],2) -> 0 | L41: =OFFSET('Data Collection'!$EH$20,LU_Long[[#This Row],[Offset]],3) -> 0 | M41: =IF(OFFSET(LU_Long[[#This Row],[Offset]],-1,0)="Offset",0,M40+1) -> 31
B42: =OFFSET('Data Collection'!$A$20,LU_Long[[#This Row],[Offset]],0) -> 0 | C42: =OFFSET('Data Collection'!$A$20,LU_Long[[#This Row],[Offset]],3) -> 0 | D42: =LU_Long[[#This Row],[Project Name]]&"-Land" -> 0-Land | E42: =OFFSET('Data Collection'!$A$20,LU_Long[[#This Row],[Offset]],5) -> 0 | F42: =OFFSET('Data Collection'!$A$20,LU_Long[[#This Row],[Offset]],6) -> 0 | G42: =OFFSET('Data Collection'!$EL$20,LU_Long[[#This Row],[Offset]],0) -> 0 | H42: =OFFSET('Data Collection'!$EL$20,LU_Long[[#This Row],[Offset]],1) -> 0 | I42: =OFFSET('Data Collection'!$EH$20,LU_Long[[#This Row],[Offset]],0) -> 0 | J42: =OFFSET('Data Collection'!$EH$20,LU_Long[[#This Row],[Offset]],1) -> 0 | K42: =OFFSET('Data Collection'!$EH$20,LU_Long[[#This Row],[Offset]],2) -> 0 | L42: =OFFSET('Data Collection'!$EH$20,LU_Long[[#This Row],[Offset]],3) -> 0 | M42: =IF(OFFSET(LU_Long[[#This Row],[Offset]],-1,0)="Offset",0,M41+1) -> 32
B43: =OFFSET('Data Collection'!$A$20,LU_Long[[#This Row],[Offset]],0) -> 0 | C43: =OFFSET('Data Collection'!$A$20,LU_Long[[#This Row],[Offset]],3) -> 0 | D43: =LU_Long[[#This Row],[Project Name]]&"-Land" -> 0-Land | E43: =OFFSET('Data Collection'!$A$20,LU_Long[[#This Row],[Offset]],5) -> 0 | F43: =OFFSET('Data Collection'!$A$20,LU_Long[[#This Row],[Offset]],6) -> 0 | G43: =OFFSET('Data Collection'!$EL$20,LU_Long[[#This Row],[Offset]],0) -> 0 | H43: =OFFSET('Data Collection'!$EL$20,LU_Long[[#This Row],[Offset]],1) -> 0 | I43: =OFFSET('Data Collection'!$EH$20,LU_Long[[#This Row],[Offset]],0) -> 0 | J43: =OFFSET('Data Collection'!$EH$20,LU_Long[[#This Row],[Offset]],1) -> 0 | K43: =OFFSET('Data Collection'!$EH$20,LU_Long[[#This Row],[Offset]],2) -> 0 | L43: =OFFSET('Data Collection'!$EH$20,LU_Long[[#This Row],[Offset]],3) -> 0 | M43: =IF(OFFSET(LU_Long[[#This Row],[Offset]],-1,0)="Offset",0,M42+1) -> 33
B44: =OFFSET('Data Collection'!$A$20,LU_Long[[#This Row],[Offset]],0) -> 0 | C44: =OFFSET('Data Collection'!$A$20,LU_Long[[#This Row],[Offset]],3) -> 0 | D44: =LU_Long[[#This Row],[Project Name]]&"-Land" -> 0-Land | E44: =OFFSET('Data Collection'!$A$20,LU_Long[[#This Row],[Offset]],5) -> 0 | F44: =OFFSET('Data Collection'!$A$20,LU_Long[[#This Row],[Offset]],6) -> 0 | G44: =OFFSET('Data Collection'!$EL$20,LU_Long[[#This Row],[Offset]],0) -> 0 | H44: =OFFSET('Data Collection'!$EL$20,LU_Long[[#This Row],[Offset]],1) -> 0 | I44: =OFFSET('Data Collection'!$EH$20,LU_Long[[#This Row],[Offset]],0) -> 0 | J44: =OFFSET('Data Collection'!$EH$20,LU_Long[[#This Row],[Offset]],1) -> 0 | K44: =OFFSET('Data Collection'!$EH$20,LU_Long[[#This Row],[Offset]],2) -> 0 | L44: =OFFSET('Data Collection'!$EH$20,LU_Long[[#This Row],[Offset]],3) -> 0 | M44: =IF(OFFSET(LU_Long[[#This Row],[Offset]],-1,0)="Offset",0,M43+1) -> 34
B45: =OFFSET('Data Collection'!$A$20,LU_Long[[#This Row],[Offset]],0) -> 0 | C45: =OFFSET('Data Collection'!$A$20,LU_Long[[#This Row],[Offset]],3) -> 0 | D45: =LU_Long[[#This Row],[Project Name]]&"-Land" -> 0-Land | E45: =OFFSET('Data Collection'!$A$20,LU_Long[[#This Row],[Offset]],5) -> 0 | F45: =OFFSET('Data Collection'!$A$20,LU_Long[[#This Row],[Offset]],6) -> 0 | G45: =OFFSET('Data Collection'!$EL$20,LU_Long[[#This Row],[Offset]],0) -> 0 | H45: =OFFSET('Data Collection'!$EL$20,LU_Long[[#This Row],[Offset]],1) -> 0 | I45: =OFFSET('Data Collection'!$EH$20,LU_Long[[#This Row],[Offset]],0) -> 0 | J45: =OFFSET('Data Collection'!$EH$20,LU_Long[[#This Row],[Offset]],1) -> 0 | K45: =OFFSET('Data Collection'!$EH$20,LU_Long[[#This Row],[Offset]],2) -> 0 | L45: =OFFSET('Data Collection'!$EH$20,LU_Long[[#This Row],[Offset]],3) -> 0 | M45: =IF(OFFSET(LU_Long[[#This Row],[Offset]],-1,0)="Offset",0,M44+1) -> 35
B46: =OFFSET('Data Collection'!$A$20,LU_Long[[#This Row],[Offset]],0) -> 0 | C46: =OFFSET('Data Collection'!$A$20,LU_Long[[#This Row],[Offset]],3) -> 0 | D46: =LU_Long[[#This Row],[Project Name]]&"-Land" -> 0-Land | E46: =OFFSET('Data Collection'!$A$20,LU_Long[[#This Row],[Offset]],5) -> 0 | F46: =OFFSET('Data Collection'!$A$20,LU_Long[[#This Row],[Offset]],6) -> 0 | G46: =OFFSET('Data Collection'!$EL$20,LU_Long[[#This Row],[Offset]],0) -> 0 | H46: =OFFSET('Data Collection'!$EL$20,LU_Long[[#This Row],[Offset]],1) -> 0 | I46: =OFFSET('Data Collection'!$EH$20,LU_Long[[#This Row],[Offset]],0) -> 0 | J46: =OFFSET('Data Collection'!$EH$20,LU_Long[[#This Row],[Offset]],1) -> 0 | K46: =OFFSET('Data Collection'!$EH$20,LU_Long[[#This Row],[Offset]],2) -> 0 | L46: =OFFSET('Data Collection'!$EH$20,LU_Long[[#This Row],[Offset]],3) -> 0 | M46: =IF(OFFSET(LU_Long[[#This Row],[Offset]],-1,0)="Offset",0,M45+1) -> 36
B47: =OFFSET('Data Collection'!$A$20,LU_Long[[#This Row],[Offset]],0) -> 0 | C47: =OFFSET('Data Collection'!$A$20,LU_Long[[#This Row],[Offset]],3) -> 0 | D47: =LU_Long[[#This Row],[Project Name]]&"-Land" -> 0-Land | E47: =OFFSET('Data Collection'!$A$20,LU_Long[[#This Row],[Offset]],5) -> 0 | F47: =OFFSET('Data Collection'!$A$20,LU_Long[[#This Row],[Offset]],6) -> 0 | G47: =OFFSET('Data Collection'!$EL$20,LU_Long[[#This Row],[Offset]],0) -> 0 | H47: =OFFSET('Data Collection'!$EL$20,LU_Long[[#This Row],[Offset]],1) -> 0 | I47: =OFFSET('Data Collection'!$EH$20,LU_Long[[#This Row],[Offset]],0) -> 0 | J47: =OFFSET('Data Collection'!$EH$20,LU_Long[[#This Row],[Offset]],1) -> 0 | K47: =OFFSET('Data Collection'!$EH$20,LU_Long[[#This Row],[Offset]],2) -> 0 | L47: =OFFSET('Data Collection'!$EH$20,LU_Long[[#This Row],[Offset]],3) -> 0 | M47: =IF(OFFSET(LU_Long[[#This Row],[Offset]],-1,0)="Offset",0,M46+1) -> 37
B48: =OFFSET('Data Collection'!$A$20,LU_Long[[#This Row],[Offset]],0) -> 0 | C48: =OFFSET('Data Collection'!$A$20,LU_Long[[#This Row],[Offset]],3) -> 0 | D48: =LU_Long[[#This Row],[Project Name]]&"-Land" -> 0-Land | E48: =OFFSET('Data Collection'!$A$20,LU_Long[[#This Row],[Offset]],5) -> 0 | F48: =OFFSET('Data Collection'!$A$20,LU_Long[[#This Row],[Offset]],6) -> 0 | G48: =OFFSET('Data Collection'!$EL$20,LU_Long[[#This Row],[Offset]],0) -> 0 | H48: =OFFSET('Data Collection'!$EL$20,LU_Long[[#This Row],[Offset]],1) -> 0 | I48: =OFFSET('Data Collection'!$EH$20,LU_Long[[#This Row],[Offset]],0) -> 0 | J48: =OFFSET('Data Collection'!$EH$20,LU_Long[[#This Row],[Offset]],1) -> 0 | K48: =OFFSET('Data Collection'!$EH$20,LU_Long[[#This Row],[Offset]],2) -> 0 | L48: =OFFSET('Data Collection'!$EH$20,LU_Long[[#This Row],[Offset]],3) -> 0 | M48: =IF(OFFSET(LU_Long[[#This Row],[Offset]],-1,0)="Offset",0,M47+1) -> 38
B49: =OFFSET('Data Collection'!$A$20,LU_Long[[#This Row],[Offset]],0) -> 0 | C49: =OFFSET('Data Collection'!$A$20,LU_Long[[#This Row],[Offset]],3) -> 0 | D49: =LU_Long[[#This Row],[Project Name]]&"-Land" -> 0-Land | E49: =OFFSET('Data Collection'!$A$20,LU_Long[[#This Row],[Offset]],5) -> 0 | F49: =OFFSET('Data Collection'!$A$20,LU_Long[[#This Row],[Offset]],6) -> 0 | G49: =OFFSET('Data Collection'!$EL$20,LU_Long[[#This Row],[Offset]],0) -> 0 | H49: =OFFSET('Data Collection'!$EL$20,LU_Long[[#This Row],[Offset]],1) -> 0 | I49: =OFFSET('Data Collection'!$EH$20,LU_Long[[#This Row],[Offset]],0) -> 0 | J49: =OFFSET('Data Collection'!$EH$20,LU_Long[[#This Row],[Offset]],1) -> 0 | K49: =OFFSET('Data Collection'!$EH$20,LU_Long[[#This Row],[Offset]],2) -> 0 | L49: =OFFSET('Data Collection'!$EH$20,LU_Long[[#This Row],[Offset]],3) -> 0 | M49: =IF(OFFSET(LU_Long[[#This Row],[Offset]],-1,0)="Offset",0,M48+1) -> 39
B50: =OFFSET('Data Collection'!$A$20,LU_Long[[#This Row],[Offset]],0) -> 0 | C50: =OFFSET('Data Collection'!$A$20,LU_Long[[#This Row],[Offset]],3) -> 0 | D50: =LU_Long[[#This Row],[Project Name]]&"-Land" -> 0-Land | E50: =OFFSET('Data Collection'!$A$20,LU_Long[[#This Row],[Offset]],5) -> 0 | F50: =OFFSET('Data Collection'!$A$20,LU_Long[[#This Row],[Offset]],6) -> 0 | G50: =OFFSET('Data Collection'!$EL$20,LU_Long[[#This Row],[Offset]],0) -> 0 | H50: =OFFSET('Data Collection'!$EL$20,LU_Long[[#This Row],[Offset]],1) -> 0 | I50: =OFFSET('Data Collection'!$EH$20,LU_Long[[#This Row],[Offset]],0) -> 0 | J50: =OFFSET('Data Collection'!$EH$20,LU_Long[[#This Row],[Offset]],1) -> 0 | K50: =OFFSET('Data Collection'!$EH$20,LU_Long[[#This Row],[Offset]],2) -> 0 | L50: =OFFSET('Data Collection'!$EH$20,LU_Long[[#This Row],[Offset]],3) -> 0 | M50: =IF(OFFSET(LU_Long[[#This Row],[Offset]],-1,0)="Offset",0,M49+1) -> 40
B51: =OFFSET('Data Collection'!$A$20,LU_Long[[#This Row],[Offset]],0) -> 0 | C51: =OFFSET('Data Collection'!$A$20,LU_Long[[#This Row],[Offset]],3) -> 0 | D51: =LU_Long[[#This Row],[Project Name]]&"-Land" -> 0-Land | E51: =OFFSET('Data Collection'!$A$20,LU_Long[[#This Row],[Offset]],5) -> 0 | F51: =OFFSET('Data Collection'!$A$20,LU_Long[[#This Row],[Offset]],6) -> 0 | G51: =OFFSET('Data Collection'!$EL$20,LU_Long[[#This Row],[Offset]],0) -> 0 | H51: =OFFSET('Data Collection'!$EL$20,LU_Long[[#This Row],[Offset]],1) -> 0 | I51: =OFFSET('Data Collection'!$EH$20,LU_Long[[#This Row],[Offset]],0) -> 0 | J51: =OFFSET('Data Collection'!$EH$20,LU_Long[[#This Row],[Offset]],1) -> 0 | K51: =OFFSET('Data Collection'!$EH$20,LU_Long[[#This Row],[Offset]],2) -> 0 | L51: =OFFSET('Data Collection'!$EH$20,LU_Long[[#This Row],[Offset]],3) -> 0 | M51: =IF(OFFSET(LU_Long[[#This Row],[Offset]],-1,0)="Offset",0,M50+1) -> 41
B52: =OFFSET('Data Collection'!$A$20,LU_Long[[#This Row],[Offset]],0) -> 0 | C52: =OFFSET('Data Collection'!$A$20,LU_Long[[#This Row],[Offset]],3) -> 0 | D52: =LU_Long[[#This Row],[Project Name]]&"-Land" -> 0-Land | E52: =OFFSET('Data Collection'!$A$20,LU_Long[[#This Row],[Offset]],5) -> 0 | F52: =OFFSET('Data Collection'!$A$20,LU_Long[[#This Row],[Offset]],6) -> 0 | G52: =OFFSET('Data Collection'!$EL$20,LU_Long[[#This Row],[Offset]],0) -> 0 | H52: =OFFSET('Data Collection'!$EL$20,LU_Long[[#This Row],[Offset]],1) -> 0 | I52: =OFFSET('Data Collection'!$EH$20,LU_Long[[#This Row],[Offset]],0) -> 0 | J52: =OFFSET('Data Collection'!$EH$20,LU_Long[[#This Row],[Offset]],1) -> 0 | K52: =OFFSET('Data Collection'!$EH$20,LU_Long[[#This Row],[Offset]],2) -> 0 | L52: =OFFSET('Data Collection'!$EH$20,LU_Long[[#This Row],[Offset]],3) -> 0 | M52: =IF(OFFSET(LU_Long[[#This Row],[Offset]],-1,0)="Offset",0,M51+1) -> 42
B53: =OFFSET('Data Collection'!$A$20,LU_Long[[#This Row],[Offset]],0) -> 0 | C53: =OFFSET('Data Collection'!$A$20,LU_Long[[#This Row],[Offset]],3) -> 0 | D53: =LU_Long[[#This Row],[Project Name]]&"-Land" -> 0-Land | E53: =OFFSET('Data Collection'!$A$20,LU_Long[[#This Row],[Offset]],5) -> 0 | F53: =OFFSET('Data Collection'!$A$20,LU_Long[[#This Row],[Offset]],6) -> 0 | G53: =OFFSET('Data Collection'!$EL$20,LU_Long[[#This Row],[Offset]],0) -> 0 | H53: =OFFSET('Data Collection'!$EL$20,LU_Long[[#This Row],[Offset]],1) -> 0 | I53: =OFFSET('Data Collection'!$EH$20,LU_Long[[#This Row],[Offset]],0) -> 0 | J53: =OFFSET('Data Collection'!$EH$20,LU_Long[[#This Row],[Offset]],1) -> 0 | K53: =OFFSET('Data Collection'!$EH$20,LU_Long[[#This Row],[Offset]],2) -> 0 | L53: =OFFSET('Data Collection'!$EH$20,LU_Long[[#This Row],[Offset]],3) -> 0 | M53: =IF(OFFSET(LU_Long[[#This Row],[Offset]],-1,0)="Offset",0,M52+1) -> 43
B54: =OFFSET('Data Collection'!$A$20,LU_Long[[#This Row],[Offset]],0) -> 0 | C54: =OFFSET('Data Collection'!$A$20,LU_Long[[#This Row],[Offset]],3) -> 0 | D54: =LU_Long[[#This Row],[Project Name]]&"-Land" -> 0-Land | E54: =OFFSET('Data Collection'!$A$20,LU_Long[[#This Row],[Offset]],5) -> 0 | F54: =OFFSET('Data Collection'!$A$20,LU_Long[[#This Row],[Offset]],6) -> 0 | G54: =OFFSET('Data Collection'!$EL$20,LU_Long[[#This Row],[Offset]],0) -> 0 | H54: =OFFSET('Data Collection'!$EL$20,LU_Long[[#This Row],[Offset]],1) -> 0 | I54: =OFFSET('Data Collection'!$EH$20,LU_Long[[#This Row],[Offset]],0) -> 0 | J54: =OFFSET('Data Collection'!$EH$20,LU_Long[[#This Row],[Offset]],1) -> 0 | K54: =OFFSET('Data Collection'!$EH$20,LU_Long[[#This Row],[Offset]],2) -> 0 | L54: =OFFSET('Data Collection'!$EH$20,LU_Long[[#This Row],[Offset]],3) -> 0 | M54: =IF(OFFSET(LU_Long[[#This Row],[Offset]],-1,0)="Offset",0,M53+1) -> 44
B55: =OFFSET('Data Collection'!$A$20,LU_Long[[#This Row],[Offset]],0) -> 0 | C55: =OFFSET('Data Collection'!$A$20,LU_Long[[#This Row],[Offset]],3) -> 0 | D55: =LU_Long[[#This Row],[Project Name]]&"-Land" -> 0-Land | E55: =OFFSET('Data Collection'!$A$20,LU_Long[[#This Row],[Offset]],5) -> 0 | F55: =OFFSET('Data Collection'!$A$20,LU_Long[[#This Row],[Offset]],6) -> 0 | G55: =OFFSET('Data Collection'!$EL$20,LU_Long[[#This Row],[Offset]],0) -> 0 | H55: =OFFSET('Data Collection'!$EL$20,LU_Long[[#This Row],[Offset]],1) -> 0 | I55: =OFFSET('Data Collection'!$EH$20,LU_Long[[#This Row],[Offset]],0) -> 0 | J55: =OFFSET('Data Collection'!$EH$20,LU_Long[[#This Row],[Offset]],1) -> 0 | K55: =OFFSET('Data Collection'!$EH$20,LU_Long[[#This Row],[Offset]],2) -> 0 | L55: =OFFSET('Data Collection'!$EH$20,LU_Long[[#This Row],[Offset]],3) -> 0 | M55: =IF(OFFSET(LU_Long[[#This Row],[Offset]],-1,0)="Offset",0,M54+1) -> 45
B56: =OFFSET('Data Collection'!$A$20,LU_Long[[#This Row],[Offset]],0) -> 0 | C56: =OFFSET('Data Collection'!$A$20,LU_Long[[#This Row],[Offset]],3) -> 0 | D56: =LU_Long[[#This Row],[Project Name]]&"-Land" -> 0-Land | E56: =OFFSET('Data Collection'!$A$20,LU_Long[[#This Row],[Offset]],5) -> 0 | F56: =OFFSET('Data Collection'!$A$20,LU_Long[[#This Row],[Offset]],6) -> 0 | G56: =OFFSET('Data Collection'!$EL$20,LU_Long[[#This Row],[Offset]],0) -> 0 | H56: =OFFSET('Data Collection'!$EL$20,LU_Long[[#This Row],[Offset]],1) -> 0 | I56: =OFFSET('Data Collection'!$EH$20,LU_Long[[#This Row],[Offset]],0) -> 0 | J56: =OFFSET('Data Collection'!$EH$20,LU_Long[[#This Row],[Offset]],1) -> 0 | K56: =OFFSET('Data Collection'!$EH$20,LU_Long[[#This Row],[Offset]],2) -> 0 | L56: =OFFSET('Data Collection'!$EH$20,LU_Long[[#This Row],[Offset]],3) -> 0 | M56: =IF(OFFSET(LU_Long[[#This Row],[Offset]],-1,0)="Offset",0,M55+1) -> 46
B57: =OFFSET('Data Collection'!$A$20,LU_Long[[#This Row],[Offset]],0) -> 0 | C57: =OFFSET('Data Collection'!$A$20,LU_Long[[#This Row],[Offset]],3) -> 0 | D57: =LU_Long[[#This Row],[Project Name]]&"-Land" -> 0-Land | E57: =OFFSET('Data Collection'!$A$20,LU_Long[[#This Row],[Offset]],5) -> 0 | F57: =OFFSET('Data Collection'!$A$20,LU_Long[[#This Row],[Offset]],6) -> 0 | G57: =OFFSET('Data Collection'!$EL$20,LU_Long[[#This Row],[Offset]],0) -> 0 | H57: =OFFSET('Data Collection'!$EL$20,LU_Long[[#This Row],[Offset]],1) -> 0 | I57: =OFFSET('Data Collection'!$EH$20,LU_Long[[#This Row],[Offset]],0) -> 0 | J57: =OFFSET('Data Collection'!$EH$20,LU_Long[[#This Row],[Offset]],1) -> 0 | K57: =OFFSET('Data Collection'!$EH$20,LU_Long[[#This Row],[Offset]],2) -> 0 | L57: =OFFSET('Data Collection'!$EH$20,LU_Long[[#This Row],[Offset]],3) -> 0 | M57: =IF(OFFSET(LU_Long[[#This Row],[Offset]],-1,0)="Offset",0,M56+1) -> 47
B58: =OFFSET('Data Collection'!$A$20,LU_Long[[#This Row],[Offset]],0) -> 0 | C58: =OFFSET('Data Collection'!$A$20,LU_Long[[#This Row],[Offset]],3) -> 0 | D58: =LU_Long[[#This Row],[Project Name]]&"-Land" -> 0-Land | E58: =OFFSET('Data Collection'!$A$20,LU_Long[[#This Row],[Offset]],5) -> 0 | F58: =OFFSET('Data Collection'!$A$20,LU_Long[[#This Row],[Offset]],6) -> 0 | G58: =OFFSET('Data Collection'!$EL$20,LU_Long[[#This Row],[Offset]],0) -> 0 | H58: =OFFSET('Data Collection'!$EL$20,LU_Long[[#This Row],[Offset]],1) -> 0 | I58: =OFFSET('Data Collection'!$EH$20,LU_Long[[#This Row],[Offset]],0) -> 0 | J58: =OFFSET('Data Collection'!$EH$20,LU_Long[[#This Row],[Offset]],1) -> 0 | K58: =OFFSET('Data Collection'!$EH$20,LU_Long[[#This Row],[Offset]],2) -> 0 | L58: =OFFSET('Data Collection'!$EH$20,LU_Long[[#This Row],[Offset]],3) -> 0 | M58: =IF(OFFSET(LU_Long[[#This Row],[Offset]],-1,0)="Offset",0,M57+1) -> 48
B59: =OFFSET('Data Collection'!$A$20,LU_Long[[#This Row],[Offset]],0) -> 0 | C59: =OFFSET('Data Collection'!$A$20,LU_Long[[#This Row],[Offset]],3) -> 0 | D59: =LU_Long[[#This Row],[Project Name]]&"-Land" -> 0-Land | E59: =OFFSET('Data Collection'!$A$20,LU_Long[[#This Row],[Offset]],5) -> 0 | F59: =OFFSET('Data Collection'!$A$20,LU_Long[[#This Row],[Offset]],6) -> 0 | G59: =OFFSET('Data Collection'!$EL$20,LU_Long[[#This Row],[Offset]],0) -> 0 | H59: =OFFSET('Data Collection'!$EL$20,LU_Long[[#This Row],[Offset]],1) -> 0 | I59: =OFFSET('Data Collection'!$EH$20,LU_Long[[#This Row],[Offset]],0) -> 0 | J59: =OFFSET('Data Collection'!$EH$20,LU_Long[[#This Row],[Offset]],1) -> 0 | K59: =OFFSET('Data Collection'!$EH$20,LU_Long[[#This Row],[Offset]],2) -> 0 | L59: =OFFSET('Data Collection'!$EH$20,LU_Long[[#This Row],[Offset]],3) -> 0 | M59: =IF(OFFSET(LU_Long[[#This Row],[Offset]],-1,0)="Offset",0,M58+1) -> 49
B60: =OFFSET('Data Collection'!$A$20,LU_Long[[#This Row],[Offset]],0) -> 0 | C60: =OFFSET('Data Collection'!$A$20,LU_Long[[#This Row],[Offset]],3) -> 0 | D60: =LU_Long[[#This Row],[Project Name]]&"-Land" -> 0-Land | E60: =OFFSET('Data Collection'!$A$20,LU_Long[[#This Row],[Offset]],5) -> 0 | F60: =OFFSET('Data Collection'!$A$20,LU_Long[[#This Row],[Offset]],6) -> 0 | G60: =OFFSET('Data Collection'!$EL$20,LU_Long[[#This Row],[Offset]],0) -> 0 | H60: =OFFSET('Data Collection'!$EL$20,LU_Long[[#This Row],[Offset]],1) -> 0 | I60: =OFFSET('Data Collection'!$EH$20,LU_Long[[#This Row],[Offset]],0) -> 0 | J60: =OFFSET('Data Collection'!$EH$20,LU_Long[[#This Row],[Offset]],1) -> 0 | K60: =OFFSET('Data Collection'!$EH$20,LU_Long[[#This Row],[Offset]],2) -> 0 | L60: =OFFSET('Data Collection'!$EH$20,LU_Long[[#This Row],[Offset]],3) -> 0 | M60: =IF(OFFSET(LU_Long[[#This Row],[Offset]],-1,0)="Offset",0,M59+1) -> 50
B61: =OFFSET('Data Collection'!$A$20,LU_Long[[#This Row],[Offset]],0) -> 0 | C61: =OFFSET('Data Collection'!$A$20,LU_Long[[#This Row],[Offset]],3) -> 0 | D61: =LU_Long[[#This Row],[Project Name]]&"-Land" -> 0-Land | E61: =OFFSET('Data Collection'!$A$20,LU_Long[[#This Row],[Offset]],5) -> 0 | F61: =OFFSET('Data Collection'!$A$20,LU_Long[[#This Row],[Offset]],6) -> 0 | G61: =OFFSET('Data Collection'!$EL$20,LU_Long[[#This Row],[Offset]],0) -> 0 | H61: =OFFSET('Data Collection'!$EL$20,LU_Long[[#This Row],[Offset]],1) -> 0 | I61: =OFFSET('Data Collection'!$EH$20,LU_Long[[#This Row],[Offset]],0) -> 0 | J61: =OFFSET('Data Collection'!$EH$20,LU_Long[[#This Row],[Offset]],1) -> 0 | K61: =OFFSET('Data Collection'!$EH$20,LU_Long[[#This Row],[Offset]],2) -> 0 | L61: =OFFSET('Data Collection'!$EH$20,LU_Long[[#This Row],[Offset]],3) -> 0 | M61: =IF(OFFSET(LU_Long[[#This Row],[Offset]],-1,0)="Offset",0,M60+1) -> 51
B62: =OFFSET('Data Collection'!$A$20,LU_Long[[#This Row],[Offset]],0) -> 0 | C62: =OFFSET('Data Collection'!$A$20,LU_Long[[#This Row],[Offset]],3) -> 0 | D62: =LU_Long[[#This Row],[Project Name]]&"-Land" -> 0-Land | E62: =OFFSET('Data Collection'!$A$20,LU_Long[[#This Row],[Offset]],5) -> 0 | F62: =OFFSET('Data Collection'!$A$20,LU_Long[[#This Row],[Offset]],6) -> 0 | G62: =OFFSET('Data Collection'!$EL$20,LU_Long[[#This Row],[Offset]],0) -> 0 | H62: =OFFSET('Data Collection'!$EL$20,LU_Long[[#This Row],[Offset]],1) -> 0 | I62: =OFFSET('Data Collection'!$EH$20,LU_Long[[#This Row],[Offset]],0) -> 0 | J62: =OFFSET('Data Collection'!$EH$20,LU_Long[[#This Row],[Offset]],1) -> 0 | K62: =OFFSET('Data Collection'!$EH$20,LU_Long[[#This Row],[Offset]],2) -> 0 | L62: =OFFSET('Data Collection'!$EH$20,LU_Long[[#This Row],[Offset]],3) -> 0 | M62: =IF(OFFSET(LU_Long[[#This Row],[Offset]],-1,0)="Offset",0,M61+1) -> 52
B63: =OFFSET('Data Collection'!$A$20,LU_Long[[#This Row],[Offset]],0) -> 0 | C63: =OFFSET('Data Collection'!$A$20,LU_Long[[#This Row],[Offset]],3) -> 0 | D63: =LU_Long[[#This Row],[Project Name]]&"-Land" -> 0-Land | E63: =OFFSET('Data Collection'!$A$20,LU_Long[[#This Row],[Offset]],5) -> 0 | F63: =OFFSET('Data Collection'!$A$20,LU_Long[[#This Row],[Offset]],6) -> 0 | G63: =OFFSET('Data Collection'!$EL$20,LU_Long[[#This Row],[Offset]],0) -> 0 | H63: =OFFSET('Data Collection'!$EL$20,LU_Long[[#This Row],[Offset]],1) -> 0 | I63: =OFFSET('Data Collection'!$EH$20,LU_Long[[#This Row],[Offset]],0) -> 0 | J63: =OFFSET('Data Collection'!$EH$20,LU_Long[[#This Row],[Offset]],1) -> 0 | K63: =OFFSET('Data Collection'!$EH$20,LU_Long[[#This Row],[Offset]],2) -> 0 | L63: =OFFSET('Data Collection'!$EH$20,LU_Long[[#This Row],[Offset]],3) -> 0 | M63: =IF(OFFSET(LU_Long[[#This Row],[Offset]],-1,0)="Offset",0,M62+1) -> 53
B64: =OFFSET('Data Collection'!$A$20,LU_Long[[#This Row],[Offset]],0) -> 0 | C64: =OFFSET('Data Collection'!$A$20,LU_Long[[#This Row],[Offset]],3) -> 0 | D64: =LU_Long[[#This Row],[Project Name]]&"-Land" -> 0-Land | E64: =OFFSET('Data Collection'!$A$20,LU_Long[[#This Row],[Offset]],5) -> 0 | F64: =OFFSET('Data Collection'!$A$20,LU_Long[[#This Row],[Offset]],6) -> 0 | G64: =OFFSET('Data Collection'!$EL$20,LU_Long[[#This Row],[Offset]],0) -> 0 | H64: =OFFSET('Data Collection'!$EL$20,LU_Long[[#This Row],[Offset]],1) -> 0 | I64: =OFFSET('Data Collection'!$EH$20,LU_Long[[#This Row],[Offset]],0) -> 0 | J64: =OFFSET('Data Collection'!$EH$20,LU_Long[[#This Row],[Offset]],1) -> 0 | K64: =OFFSET('Data Collection'!$EH$20,LU_Long[[#This Row],[Offset]],2) -> 0 | L64: =OFFSET('Data Collection'!$EH$20,LU_Long[[#This Row],[Offset]],3) -> 0 | M64: =IF(OFFSET(LU_Long[[#This Row],[Offset]],-1,0)="Offset",0,M63+1) -> 54
B65: =OFFSET('Data Collection'!$A$20,LU_Long[[#This Row],[Offset]],0) -> 0 | C65: =OFFSET('Data Collection'!$A$20,LU_Long[[#This Row],[Offset]],3) -> 0 | D65: =LU_Long[[#This Row],[Project Name]]&"-Land" -> 0-Land | E65: =OFFSET('Data Collection'!$A$20,LU_Long[[#This Row],[Offset]],5) -> 0 | F65: =OFFSET('Data Collection'!$A$20,LU_Long[[#This Row],[Offset]],6) -> 0 | G65: =OFFSET('Data Collection'!$EL$20,LU_Long[[#This Row],[Offset]],0) -> 0 | H65: =OFFSET('Data Collection'!$EL$20,LU_Long[[#This Row],[Offset]],1) -> 0 | I65: =OFFSET('Data Collection'!$EH$20,LU_Long[[#This Row],[Offset]],0) -> 0 | J65: =OFFSET('Data Collection'!$EH$20,LU_Long[[#This Row],[Offset]],1) -> 0 | K65: =OFFSET('Data Collection'!$EH$20,LU_Long[[#This Row],[Offset]],2) -> 0 | L65: =OFFSET('Data Collection'!$EH$20,LU_Long[[#This Row],[Offset]],3) -> 0 | M65: =IF(OFFSET(LU_Long[[#This Row],[Offset]],-1,0)="Offset",0,M64+1) -> 55
B66: =OFFSET('Data Collection'!$A$20,LU_Long[[#This Row],[Offset]],0) -> 0 | C66: =OFFSET('Data Collection'!$A$20,LU_Long[[#This Row],[Offset]],3) -> 0 | D66: =LU_Long[[#This Row],[Project Name]]&"-Land" -> 0-Land | E66: =OFFSET('Data Collection'!$A$20,LU_Long[[#This Row],[Offset]],5) -> 0 | F66: =OFFSET('Data Collection'!$A$20,LU_Long[[#This Row],[Offset]],6) -> 0 | G66: =OFFSET('Data Collection'!$EL$20,LU_Long[[#This Row],[Offset]],0) -> 0 | H66: =OFFSET('Data Collection'!$EL$20,LU_Long[[#This Row],[Offset]],1) -> 0 | I66: =OFFSET('Data Collection'!$EH$20,LU_Long[[#This Row],[Offset]],0) -> 0 | J66: =OFFSET('Data Collection'!$EH$20,LU_Long[[#This Row],[Offset]],1) -> 0 | K66: =OFFSET('Data Collection'!$EH$20,LU_Long[[#This Row],[Offset]],2) -> 0 | L66: =OFFSET('Data Collection'!$EH$20,LU_Long[[#This Row],[Offset]],3) -> 0 | M66: =IF(OFFSET(LU_Long[[#This Row],[Offset]],-1,0)="Offset",0,M65+1) -> 56
B67: =OFFSET('Data Collection'!$A$20,LU_Long[[#This Row],[Offset]],0) -> 0 | C67: =OFFSET('Data Collection'!$A$20,LU_Long[[#This Row],[Offset]],3) -> 0 | D67: =LU_Long[[#This Row],[Project Name]]&"-Land" -> 0-Land | E67: =OFFSET('Data Collection'!$A$20,LU_Long[[#This Row],[Offset]],5) -> 0 | F67: =OFFSET('Data Collection'!$A$20,LU_Long[[#This Row],[Offset]],6) -> 0 | G67: =OFFSET('Data Collection'!$EL$20,LU_Long[[#This Row],[Offset]],0) -> 0 | H67: =OFFSET('Data Collection'!$EL$20,LU_Long[[#This Row],[Offset]],1) -> 0 | I67: =OFFSET('Data Collection'!$EH$20,LU_Long[[#This Row],[Offset]],0) -> 0 | J67: =OFFSET('Data Collection'!$EH$20,LU_Long[[#This Row],[Offset]],1) -> 0 | K67: =OFFSET('Data Collection'!$EH$20,LU_Long[[#This Row],[Offset]],2) -> 0 | L67: =OFFSET('Data Collection'!$EH$20,LU_Long[[#This Row],[Offset]],3) -> 0 | M67: =IF(OFFSET(LU_Long[[#This Row],[Offset]],-1,0)="Offset",0,M66+1) -> 57
B68: =OFFSET('Data Collection'!$A$20,LU_Long[[#This Row],[Offset]],0) -> 0 | C68: =OFFSET('Data Collection'!$A$20,LU_Long[[#This Row],[Offset]],3) -> 0 | D68: =LU_Long[[#This Row],[Project Name]]&"-Land" -> 0-Land | E68: =OFFSET('Data Collection'!$A$20,LU_Long[[#This Row],[Offset]],5) -> 0 | F68: =OFFSET('Data Collection'!$A$20,LU_Long[[#This Row],[Offset]],6) -> 0 | G68: =OFFSET('Data Collection'!$EL$20,LU_Long[[#This Row],[Offset]],0) -> 0 | H68: =OFFSET('Data Collection'!$EL$20,LU_Long[[#This Row],[Offset]],1) -> 0 | I68: =OFFSET('Data Collection'!$EH$20,LU_Long[[#This Row],[Offset]],0) -> 0 | J68: =OFFSET('Data Collection'!$EH$20,LU_Long[[#This Row],[Offset]],1) -> 0 | K68: =OFFSET('Data Collection'!$EH$20,LU_Long[[#This Row],[Offset]],2) -> 0 | L68: =OFFSET('Data Collection'!$EH$20,LU_Long[[#This Row],[Offset]],3) -> 0 | M68: =IF(OFFSET(LU_Long[[#This Row],[Offset]],-1,0)="Offset",0,M67+1) -> 58
B69: =OFFSET('Data Collection'!$A$20,LU_Long[[#This Row],[Offset]],0) -> 0 | C69: =OFFSET('Data Collection'!$A$20,LU_Long[[#This Row],[Offset]],3) -> 0 | D69: =LU_Long[[#This Row],[Project Name]]&"-Land" -> 0-Land | E69: =OFFSET('Data Collection'!$A$20,LU_Long[[#This Row],[Offset]],5) -> 0 | F69: =OFFSET('Data Collection'!$A$20,LU_Long[[#This Row],[Offset]],6) -> 0 | G69: =OFFSET('Data Collection'!$EL$20,LU_Long[[#This Row],[Offset]],0) -> 0 | H69: =OFFSET('Data Collection'!$EL$20,LU_Long[[#This Row],[Offset]],1) -> 0 | I69: =OFFSET('Data Collection'!$EH$20,LU_Long[[#This Row],[Offset]],0) -> 0 | J69: =OFFSET('Data Collection'!$EH$20,LU_Long[[#This Row],[Offset]],1) -> 0 | K69: =OFFSET('Data Collection'!$EH$20,LU_Long[[#This Row],[Offset]],2) -> 0 | L69: =OFFSET('Data Collection'!$EH$20,LU_Long[[#This Row],[Offset]],3) -> 0 | M69: =IF(OFFSET(LU_Long[[#This Row],[Offset]],-1,0)="Offset",0,M68+1) -> 59
B70: =OFFSET('Data Collection'!$A$20,LU_Long[[#This Row],[Offset]],0) -> 0 | C70: =OFFSET('Data Collection'!$A$20,LU_Long[[#This Row],[Offset]],3) -> 0 | D70: =LU_Long[[#This Row],[Project Name]]&"-Land" -> 0-Land | E70: =OFFSET('Data Collection'!$A$20,LU_Long[[#This Row],[Offset]],5) -> 0 | F70: =OFFSET('Data Collection'!$A$20,LU_Long[[#This Row],[Offset]],6) -> 0 | G70: =OFFSET('Data Collection'!$EL$20,LU_Long[[#This Row],[Offset]],0) -> 0 | H70: =OFFSET('Data Collection'!$EL$20,LU_Long[[#This Row],[Offset]],1) -> 0 | I70: =OFFSET('Data Collection'!$EH$20,LU_Long[[#This Row],[Offset]],0) -> 0 | J70: =OFFSET('Data Collection'!$EH$20,LU_Long[[#This Row],[Offset]],1) -> 0 | K70: =OFFSET('Data Collection'!$EH$20,LU_Long[[#This Row],[Offset]],2) -> 0 | L70: =OFFSET('Data Collection'!$EH$20,LU_Long[[#This Row],[Offset]],3) -> 0 | M70: =IF(OFFSET(LU_Long[[#This Row],[Offset]],-1,0)="Offset",0,M69+1) -> 60
B71: =OFFSET('Data Collection'!$A$20,LU_Long[[#This Row],[Offset]],0) -> 0 | C71: =OFFSET('Data Collection'!$A$20,LU_Long[[#This Row],[Offset]],3) -> 0 | D71: =LU_Long[[#This Row],[Project Name]]&"-Land" -> 0-Land | E71: =OFFSET('Data Collection'!$A$20,LU_Long[[#This Row],[Offset]],5) -> 0 | F71: =OFFSET('Data Collection'!$A$20,LU_Long[[#This Row],[Offset]],6) -> 0 | G71: =OFFSET('Data Collection'!$EL$20,LU_Long[[#This Row],[Offset]],0) -> 0 | H71: =OFFSET('Data Collection'!$EL$20,LU_Long[[#This Row],[Offset]],1) -> 0 | I71: =OFFSET('Data Collection'!$EH$20,LU_Long[[#This Row],[Offset]],0) -> 0 | J71: =OFFSET('Data Collection'!$EH$20,LU_Long[[#This Row],[Offset]],1) -> 0 | K71: =OFFSET('Data Collection'!$EH$20,LU_Long[[#This Row],[Offset]],2) -> 0 | L71: =OFFSET('Data Collection'!$EH$20,LU_Long[[#This Row],[Offset]],3) -> 0 | M71: =IF(OFFSET(LU_Long[[#This Row],[Offset]],-1,0)="Offset",0,M70+1) -> 61
B72: =OFFSET('Data Collection'!$A$20,LU_Long[[#This Row],[Offset]],0) -> 0 | C72: =OFFSET('Data Collection'!$A$20,LU_Long[[#This Row],[Offset]],3) -> 0 | D72: =LU_Long[[#This Row],[Project Name]]&"-Land" -> 0-Land | E72: =OFFSET('Data Collection'!$A$20,LU_Long[[#This Row],[Offset]],5) -> 0 | F72: =OFFSET('Data Collection'!$A$20,LU_Long[[#This Row],[Offset]],6) -> 0 | G72: =OFFSET('Data Collection'!$EL$20,LU_Long[[#This Row],[Offset]],0) -> 0 | H72: =OFFSET('Data Collection'!$EL$20,LU_Long[[#This Row],[Offset]],1) -> 0 | I72: =OFFSET('Data Collection'!$EH$20,LU_Long[[#This Row],[Offset]],0) -> 0 | J72: =OFFSET('Data Collection'!$EH$20,LU_Long[[#This Row],[Offset]],1) -> 0 | K72: =OFFSET('Data Collection'!$EH$20,LU_Long[[#This Row],[Offset]],2) -> 0 | L72: =OFFSET('Data Collection'!$EH$20,LU_Long[[#This Row],[Offset]],3) -> 0 | M72: =IF(OFFSET(LU_Long[[#This Row],[Offset]],-1,0)="Offset",0,M71+1) -> 62
B73: =OFFSET('Data Collection'!$A$20,LU_Long[[#This Row],[Offset]],0) -> 0 | C73: =OFFSET('Data Collection'!$A$20,LU_Long[[#This Row],[Offset]],3) -> 0 | D73: =LU_Long[[#This Row],[Project Name]]&"-Land" -> 0-Land | E73: =OFFSET('Data Collection'!$A$20,LU_Long[[#This Row],[Offset]],5) -> 0 | F73: =OFFSET('Data Collection'!$A$20,LU_Long[[#This Row],[Offset]],6) -> 0 | G73: =OFFSET('Data Collection'!$EL$20,LU_Long[[#This Row],[Offset]],0) -> 0 | H73: =OFFSET('Data Collection'!$EL$20,LU_Long[[#This Row],[Offset]],1) -> 0 | I73: =OFFSET('Data Collection'!$EH$20,LU_Long[[#This Row],[Offset]],0) -> 0 | J73: =OFFSET('Data Collection'!$EH$20,LU_Long[[#This Row],[Offset]],1) -> 0 | K73: =OFFSET('Data Collection'!$EH$20,LU_Long[[#This Row],[Offset]],2) -> 0 | L73: =OFFSET('Data Collection'!$EH$20,LU_Long[[#This Row],[Offset]],3) -> 0 | M73: =IF(OFFSET(LU_Long[[#This Row],[Offset]],-1,0)="Offset",0,M72+1) -> 63
B74: =OFFSET('Data Collection'!$A$20,LU_Long[[#This Row],[Offset]],0) -> 0 | C74: =OFFSET('Data Collection'!$A$20,LU_Long[[#This Row],[Offset]],3) -> 0 | D74: =LU_Long[[#This Row],[Project Name]]&"-Land" -> 0-Land | E74: =OFFSET('Data Collection'!$A$20,LU_Long[[#This Row],[Offset]],5) -> 0 | F74: =OFFSET('Data Collection'!$A$20,LU_Long[[#This Row],[Offset]],6) -> 0 | G74: =OFFSET('Data Collection'!$EL$20,LU_Long[[#This Row],[Offset]],0) -> 0 | H74: =OFFSET('Data Collection'!$EL$20,LU_Long[[#This Row],[Offset]],1) -> 0 | I74: =OFFSET('Data Collection'!$EH$20,LU_Long[[#This Row],[Offset]],0) -> 0 | J74: =OFFSET('Data Collection'!$EH$20,LU_Long[[#This Row],[Offset]],1) -> 0 | K74: =OFFSET('Data Collection'!$EH$20,LU_Long[[#This Row],[Offset]],2) -> 0 | L74: =OFFSET('Data Collection'!$EH$20,LU_Long[[#This Row],[Offset]],3) -> 0 | M74: =IF(OFFSET(LU_Long[[#This Row],[Offset]],-1,0)="Offset",0,M73+1) -> 64
B75: =OFFSET('Data Collection'!$A$20,LU_Long[[#This Row],[Offset]],0) -> 0 | C75: =OFFSET('Data Collection'!$A$20,LU_Long[[#This Row],[Offset]],3) -> 0 | D75: =LU_Long[[#This Row],[Project Name]]&"-Land" -> 0-Land | E75: =OFFSET('Data Collection'!$A$20,LU_Long[[#This Row],[Offset]],5) -> 0 | F75: =OFFSET('Data Collection'!$A$20,LU_Long[[#This Row],[Offset]],6) -> 0 | G75: =OFFSET('Data Collection'!$EL$20,LU_Long[[#This Row],[Offset]],0) -> 0 | H75: =OFFSET('Data Collection'!$EL$20,LU_Long[[#This Row],[Offset]],1) -> 0 | I75: =OFFSET('Data Collection'!$EH$20,LU_Long[[#This Row],[Offset]],0) -> 0 | J75: =OFFSET('Data Collection'!$EH$20,LU_Long[[#This Row],[Offset]],1) -> 0 | K75: =OFFSET('Data Collection'!$EH$20,LU_Long[[#This Row],[Offset]],2) -> 0 | L75: =OFFSET('Data Collection'!$EH$20,LU_Long[[#This Row],[Offset]],3) -> 0 | M75: =IF(OFFSET(LU_Long[[#This Row],[Offset]],-1,0)="Offset",0,M74+1) -> 65
B76: =OFFSET('Data Collection'!$A$20,LU_Long[[#This Row],[Offset]],0) -> 0 | C76: =OFFSET('Data Collection'!$A$20,LU_Long[[#This Row],[Offset]],3) -> 0 | D76: =LU_Long[[#This Row],[Project Name]]&"-Land" -> 0-Land | E76: =OFFSET('Data Collection'!$A$20,LU_Long[[#This Row],[Offset]],5) -> 0 | F76: =OFFSET('Data Collection'!$A$20,LU_Long[[#This Row],[Offset]],6) -> 0 | G76: =OFFSET('Data Collection'!$EL$20,LU_Long[[#This Row],[Offset]],0) -> 0 | H76: =OFFSET('Data Collection'!$EL$20,LU_Long[[#This Row],[Offset]],1) -> 0 | I76: =OFFSET('Data Collection'!$EH$20,LU_Long[[#This Row],[Offset]],0) -> 0 | J76: =OFFSET('Data Collection'!$EH$20,LU_Long[[#This Row],[Offset]],1) -> 0 | K76: =OFFSET('Data Collection'!$EH$20,LU_Long[[#This Row],[Offset]],2) -> 0 | L76: =OFFSET('Data Collection'!$EH$20,LU_Long[[#This Row],[Offset]],3) -> 0 | M76: =IF(OFFSET(LU_Long[[#This Row],[Offset]],-1,0)="Offset",0,M75+1) -> 66
B77: =OFFSET('Data Collection'!$A$20,LU_Long[[#This Row],[Offset]],0) -> 0 | C77: =OFFSET('Data Collection'!$A$20,LU_Long[[#This Row],[Offset]],3) -> 0 | D77: =LU_Long[[#This Row],[Project Name]]&"-Land" -> 0-Land | E77: =OFFSET('Data Collection'!$A$20,LU_Long[[#This Row],[Offset]],5) -> 0 | F77: =OFFSET('Data Collection'!$A$20,LU_Long[[#This Row],[Offset]],6) -> 0 | G77: =OFFSET('Data Collection'!$EL$20,LU_Long[[#This Row],[Offset]],0) -> 0 | H77: =OFFSET('Data Collection'!$EL$20,LU_Long[[#This Row],[Offset]],1) -> 0 | I77: =OFFSET('Data Collection'!$EH$20,LU_Long[[#This Row],[Offset]],0) -> 0 | J77: =OFFSET('Data Collection'!$EH$20,LU_Long[[#This Row],[Offset]],1) -> 0 | K77: =OFFSET('Data Collection'!$EH$20,LU_Long[[#This Row],[Offset]],2) -> 0 | L77: =OFFSET('Data Collection'!$EH$20,LU_Long[[#This Row],[Offset]],3) -> 0 | M77: =IF(OFFSET(LU_Long[[#This Row],[Offset]],-1,0)="Offset",0,M76+1) -> 67
B78: =OFFSET('Data Collection'!$A$20,LU_Long[[#This Row],[Offset]],0) -> 0 | C78: =OFFSET('Data Collection'!$A$20,LU_Long[[#This Row],[Offset]],3) -> 0 | D78: =LU_Long[[#This Row],[Project Name]]&"-Land" -> 0-Land | E78: =OFFSET('Data Collection'!$A$20,LU_Long[[#This Row],[Offset]],5) -> 0 | F78: =OFFSET('Data Collection'!$A$20,LU_Long[[#This Row],[Offset]],6) -> 0 | G78: =OFFSET('Data Collection'!$EL$20,LU_Long[[#This Row],[Offset]],0) -> 0 | H78: =OFFSET('Data Collection'!$EL$20,LU_Long[[#This Row],[Offset]],1) -> 0 | I78: =OFFSET('Data Collection'!$EH$20,LU_Long[[#This Row],[Offset]],0) -> 0 | J78: =OFFSET('Data Collection'!$EH$20,LU_Long[[#This Row],[Offset]],1) -> 0 | K78: =OFFSET('Data Collection'!$EH$20,LU_Long[[#This Row],[Offset]],2) -> 0 | L78: =OFFSET('Data Collection'!$EH$20,LU_Long[[#This Row],[Offset]],3) -> 0 | M78: =IF(OFFSET(LU_Long[[#This Row],[Offset]],-1,0)="Offset",0,M77+1) -> 68
B79: =OFFSET('Data Collection'!$A$20,LU_Long[[#This Row],[Offset]],0) -> 0 | C79: =OFFSET('Data Collection'!$A$20,LU_Long[[#This Row],[Offset]],3) -> 0 | D79: =LU_Long[[#This Row],[Project Name]]&"-Land" -> 0-Land | E79: =OFFSET('Data Collection'!$A$20,LU_Long[[#This Row],[Offset]],5) -> 0 | F79: =OFFSET('Data Collection'!$A$20,LU_Long[[#This Row],[Offset]],6) -> 0 | G79: =OFFSET('Data Collection'!$EL$20,LU_Long[[#This Row],[Offset]],0) -> 0 | H79: =OFFSET('Data Collection'!$EL$20,LU_Long[[#This Row],[Offset]],1) -> 0 | I79: =OFFSET('Data Collection'!$EH$20,LU_Long[[#This Row],[Offset]],0) -> 0 | J79: =OFFSET('Data Collection'!$EH$20,LU_Long[[#This Row],[Offset]],1) -> 0 | K79: =OFFSET('Data Collection'!$EH$20,LU_Long[[#This Row],[Offset]],2) -> 0 | L79: =OFFSET('Data Collection'!$EH$20,LU_Long[[#This Row],[Offset]],3) -> 0 | M79: =IF(OFFSET(LU_Long[[#This Row],[Offset]],-1,0)="Offset",0,M78+1) -> 69
B80: =OFFSET('Data Collection'!$A$20,LU_Long[[#This Row],[Offset]],0) -> 0 | C80: =OFFSET('Data Collection'!$A$20,LU_Long[[#This Row],[Offset]],3) -> 0 | D80: =LU_Long[[#This Row],[Project Name]]&"-Land" -> 0-Land | E80: =OFFSET('Data Collection'!$A$20,LU_Long[[#This Row],[Offset]],5) -> 0 | F80: =OFFSET('Data Collection'!$A$20,LU_Long[[#This Row],[Offset]],6) -> 0 | G80: =OFFSET('Data Collection'!$EL$20,LU_Long[[#This Row],[Offset]],0) -> 0 | H80: =OFFSET('Data Collection'!$EL$20,LU_Long[[#This Row],[Offset]],1) -> 0 | I80: =OFFSET('Data Collection'!$EH$20,LU_Long[[#This Row],[Offset]],0) -> 0 | J80: =OFFSET('Data Collection'!$EH$20,LU_Long[[#This Row],[Offset]],1) -> 0 | K80: =OFFSET('Data Collection'!$EH$20,LU_Long[[#This Row],[Offset]],2) -> 0 | L80: =OFFSET('Data Collection'!$EH$20,LU_Long[[#This Row],[Offset]],3) -> 0 | M80: =IF(OFFSET(LU_Long[[#This Row],[Offset]],-1,0)="Offset",0,M79+1) -> 70
B81: =OFFSET('Data Collection'!$A$20,LU_Long[[#This Row],[Offset]],0) -> 0 | C81: =OFFSET('Data Collection'!$A$20,LU_Long[[#This Row],[Offset]],3) -> 0 | D81: =LU_Long[[#This Row],[Project Name]]&"-Land" -> 0-Land | E81: =OFFSET('Data Collection'!$A$20,LU_Long[[#This Row],[Offset]],5) -> 0 | F81: =OFFSET('Data Collection'!$A$20,LU_Long[[#This Row],[Offset]],6) -> 0 | G81: =OFFSET('Data Collection'!$EL$20,LU_Long[[#This Row],[Offset]],0) -> 0 | H81: =OFFSET('Data Collection'!$EL$20,LU_Long[[#This Row],[Offset]],1) -> 0 | I81: =OFFSET('Data Collection'!$EH$20,LU_Long[[#This Row],[Offset]],0) -> 0 | J81: =OFFSET('Data Collection'!$EH$20,LU_Long[[#This Row],[Offset]],1) -> 0 | K81: =OFFSET('Data Collection'!$EH$20,LU_Long[[#This Row],[Offset]],2) -> 0 | L81: =OFFSET('Data Collection'!$EH$20,LU_Long[[#This Row],[Offset]],3) -> 0 | M81: =IF(OFFSET(LU_Long[[#This Row],[Offset]],-1,0)="Offset",0,M80+1) -> 71
B82: =OFFSET('Data Collection'!$A$20,LU_Long[[#This Row],[Offset]],0) -> 0 | C82: =OFFSET('Data Collection'!$A$20,LU_Long[[#This Row],[Offset]],3) -> 0 | D82: =LU_Long[[#This Row],[Project Name]]&"-Land" -> 0-Land | E82: =OFFSET('Data Collection'!$A$20,LU_Long[[#This Row],[Offset]],5) -> 0 | F82: =OFFSET('Data Collection'!$A$20,LU_Long[[#This Row],[Offset]],6) -> 0 | G82: =OFFSET('Data Collection'!$EL$20,LU_Long[[#This Row],[Offset]],0) -> 0 | H82: =OFFSET('Data Collection'!$EL$20,LU_Long[[#This Row],[Offset]],1) -> 0 | I82: =OFFSET('Data Collection'!$EH$20,LU_Long[[#This Row],[Offset]],0) -> 0 | J82: =OFFSET('Data Collection'!$EH$20,LU_Long[[#This Row],[Offset]],1) -> 0 | K82: =OFFSET('Data Collection'!$EH$20,LU_Long[[#This Row],[Offset]],2) -> 0 | L82: =OFFSET('Data Collection'!$EH$20,LU_Long[[#This Row],[Offset]],3) -> 0 | M82: =IF(OFFSET(LU_Long[[#This Row],[Offset]],-1,0)="Offset",0,M81+1) -> 72
B83: =OFFSET('Data Collection'!$A$20,LU_Long[[#This Row],[Offset]],0) -> 0 | C83: =OFFSET('Data Collection'!$A$20,LU_Long[[#This Row],[Offset]],3) -> 0 | D83: =LU_Long[[#This Row],[Project Name]]&"-Land" -> 0-Land | E83: =OFFSET('Data Collection'!$A$20,LU_Long[[#This Row],[Offset]],5) -> 0 | F83: =OFFSET('Data Collection'!$A$20,LU_Long[[#This Row],[Offset]],6) -> 0 | G83: =OFFSET('Data Collection'!$EL$20,LU_Long[[#This Row],[Offset]],0) -> 0 | H83: =OFFSET('Data Collection'!$EL$20,LU_Long[[#This Row],[Offset]],1) -> 0 | I83: =OFFSET('Data Collection'!$EH$20,LU_Long[[#This Row],[Offset]],0) -> 0 | J83: =OFFSET('Data Collection'!$EH$20,LU_Long[[#This Row],[Offset]],1) -> 0 | K83: =OFFSET('Data Collection'!$EH$20,LU_Long[[#This Row],[Offset]],2) -> 0 | L83: =OFFSET('Data Collection'!$EH$20,LU_Long[[#This Row],[Offset]],3) -> 0 | M83: =IF(OFFSET(LU_Long[[#This Row],[Offset]],-1,0)="Offset",0,M82+1) -> 73
B84: =OFFSET('Data Collection'!$A$20,LU_Long[[#This Row],[Offset]],0) -> 0 | C84: =OFFSET('Data Collection'!$A$20,LU_Long[[#This Row],[Offset]],3) -> 0 | D84: =LU_Long[[#This Row],[Project Name]]&"-Land" -> 0-Land | E84: =OFFSET('Data Collection'!$A$20,LU_Long[[#This Row],[Offset]],5) -> 0 | F84: =OFFSET('Data Collection'!$A$20,LU_Long[[#This Row],[Offset]],6) -> 0 | G84: =OFFSET('Data Collection'!$EL$20,LU_Long[[#This Row],[Offset]],0) -> 0 | H84: =OFFSET('Data Collection'!$EL$20,LU_Long[[#This Row],[Offset]],1) -> 0 | I84: =OFFSET('Data Collection'!$EH$20,LU_Long[[#This Row],[Offset]],0) -> 0 | J84: =OFFSET('Data Collection'!$EH$20,LU_Long[[#This Row],[Offset]],1) -> 0 | K84: =OFFSET('Data Collection'!$EH$20,LU_Long[[#This Row],[Offset]],2) -> 0 | L84: =OFFSET('Data Collection'!$EH$20,LU_Long[[#This Row],[Offset]],3) -> 0 | M84: =IF(OFFSET(LU_Long[[#This Row],[Offset]],-1,0)="Offset",0,M83+1) -> 74
B85: =OFFSET('Data Collection'!$A$20,LU_Long[[#This Row],[Offset]],0) -> 0 | C85: =OFFSET('Data Collection'!$A$20,LU_Long[[#This Row],[Offset]],3) -> 0 | D85: =LU_Long[[#This Row],[Project Name]]&"-Land" -> 0-Land | E85: =OFFSET('Data Collection'!$A$20,LU_Long[[#This Row],[Offset]],5) -> 0 | F85: =OFFSET('Data Collection'!$A$20,LU_Long[[#This Row],[Offset]],6) -> 0 | G85: =OFFSET('Data Collection'!$EL$20,LU_Long[[#This Row],[Offset]],0) -> 0 | H85: =OFFSET('Data Collection'!$EL$20,LU_Long[[#This Row],[Offset]],1) -> 0 | I85: =OFFSET('Data Collection'!$EH$20,LU_Long[[#This Row],[Offset]],0) -> 0 | J85: =OFFSET('Data Collection'!$EH$20,LU_Long[[#This Row],[Offset]],1) -> 0 | K85: =OFFSET('Data Collection'!$EH$20,LU_Long[[#This Row],[Offset]],2) -> 0 | L85: =OFFSET('Data Collection'!$EH$20,LU_Long[[#This Row],[Offset]],3) -> 0 | M85: =IF(OFFSET(LU_Long[[#This Row],[Offset]],-1,0)="Offset",0,M84+1) -> 75
B86: =OFFSET('Data Collection'!$A$20,LU_Long[[#This Row],[Offset]],0) -> 0 | C86: =OFFSET('Data Collection'!$A$20,LU_Long[[#This Row],[Offset]],3) -> 0 | D86: =LU_Long[[#This Row],[Project Name]]&"-Land" -> 0-Land | E86: =OFFSET('Data Collection'!$A$20,LU_Long[[#This Row],[Offset]],5) -> 0 | F86: =OFFSET('Data Collection'!$A$20,LU_Long[[#This Row],[Offset]],6) -> 0 | G86: =OFFSET('Data Collection'!$EL$20,LU_Long[[#This Row],[Offset]],0) -> 0 | H86: =OFFSET('Data Collection'!$EL$20,LU_Long[[#This Row],[Offset]],1) -> 0 | I86: =OFFSET('Data Collection'!$EH$20,LU_Long[[#This Row],[Offset]],0) -> 0 | J86: =OFFSET('Data Collection'!$EH$20,LU_Long[[#This Row],[Offset]],1) -> 0 | K86: =OFFSET('Data Collection'!$EH$20,LU_Long[[#This Row],[Offset]],2) -> 0 | L86: =OFFSET('Data Collection'!$EH$20,LU_Long[[#This Row],[Offset]],3) -> 0 | M86: =IF(OFFSET(LU_Long[[#This Row],[Offset]],-1,0)="Offset",0,M85+1) -> 76
B87: =OFFSET('Data Collection'!$A$20,LU_Long[[#This Row],[Offset]],0) -> 0 | C87: =OFFSET('Data Collection'!$A$20,LU_Long[[#This Row],[Offset]],3) -> 0 | D87: =LU_Long[[#This Row],[Project Name]]&"-Land" -> 0-Land | E87: =OFFSET('Data Collection'!$A$20,LU_Long[[#This Row],[Offset]],5) -> 0 | F87: =OFFSET('Data Collection'!$A$20,LU_Long[[#This Row],[Offset]],6) -> 0 | G87: =OFFSET('Data Collection'!$EL$20,LU_Long[[#This Row],[Offset]],0) -> 0 | H87: =OFFSET('Data Collection'!$EL$20,LU_Long[[#This Row],[Offset]],1) -> 0 | I87: =OFFSET('Data Collection'!$EH$20,LU_Long[[#This Row],[Offset]],0) -> 0 | J87: =OFFSET('Data Collection'!$EH$20,LU_Long[[#This Row],[Offset]],1) -> 0 | K87: =OFFSET('Data Collection'!$EH$20,LU_Long[[#This Row],[Offset]],2) -> 0 | L87: =OFFSET('Data Collection'!$EH$20,LU_Long[[#This Row],[Offset]],3) -> 0 | M87: =IF(OFFSET(LU_Long[[#This Row],[Offset]],-1,0)="Offset",0,M86+1) -> 77
B88: =OFFSET('Data Collection'!$A$20,LU_Long[[#This Row],[Offset]],0) -> 0 | C88: =OFFSET('Data Collection'!$A$20,LU_Long[[#This Row],[Offset]],3) -> 0 | D88: =LU_Long[[#This Row],[Project Name]]&"-Land" -> 0-Land | E88: =OFFSET('Data Collection'!$A$20,LU_Long[[#This Row],[Offset]],5) -> 0 | F88: =OFFSET('Data Collection'!$A$20,LU_Long[[#This Row],[Offset]],6) -> 0 | G88: =OFFSET('Data Collection'!$EL$20,LU_Long[[#This Row],[Offset]],0) -> 0 | H88: =OFFSET('Data Collection'!$EL$20,LU_Long[[#This Row],[Offset]],1) -> 0 | I88: =OFFSET('Data Collection'!$EH$20,LU_Long[[#This Row],[Offset]],0) -> 0 | J88: =OFFSET('Data Collection'!$EH$20,LU_Long[[#This Row],[Offset]],1) -> 0 | K88: =OFFSET('Data Collection'!$EH$20,LU_Long[[#This Row],[Offset]],2) -> 0 | L88: =OFFSET('Data Collection'!$EH$20,LU_Long[[#This Row],[Offset]],3) -> 0 | M88: =IF(OFFSET(LU_Long[[#This Row],[Offset]],-1,0)="Offset",0,M87+1) -> 78
B89: =OFFSET('Data Collection'!$A$20,LU_Long[[#This Row],[Offset]],0) -> 0 | C89: =OFFSET('Data Collection'!$A$20,LU_Long[[#This Row],[Offset]],3) -> 0 | D89: =LU_Long[[#This Row],[Project Name]]&"-Land" -> 0-Land | E89: =OFFSET('Data Collection'!$A$20,LU_Long[[#This Row],[Offset]],5) -> 0 | F89: =OFFSET('Data Collection'!$A$20,LU_Long[[#This Row],[Offset]],6) -> 0 | G89: =OFFSET('Data Collection'!$EL$20,LU_Long[[#This Row],[Offset]],0) -> 0 | H89: =OFFSET('Data Collection'!$EL$20,LU_Long[[#This Row],[Offset]],1) -> 0 | I89: =OFFSET('Data Collection'!$EH$20,LU_Long[[#This Row],[Offset]],0) -> 0 | J89: =OFFSET('Data Collection'!$EH$20,LU_Long[[#This Row],[Offset]],1) -> 0 | K89: =OFFSET('Data Collection'!$EH$20,LU_Long[[#This Row],[Offset]],2) -> 0 | L89: =OFFSET('Data Collection'!$EH$20,LU_Long[[#This Row],[Offset]],3) -> 0 | M89: =IF(OFFSET(LU_Long[[#This Row],[Offset]],-1,0)="Offset",0,M88+1) -> 79
B90: =OFFSET('Data Collection'!$A$20,LU_Long[[#This Row],[Offset]],0) -> 0 | C90: =OFFSET('Data Collection'!$A$20,LU_Long[[#This Row],[Offset]],3) -> 0 | D90: =LU_Long[[#This Row],[Project Name]]&"-Land" -> 0-Land | E90: =OFFSET('Data Collection'!$A$20,LU_Long[[#This Row],[Offset]],5) -> 0 | F90: =OFFSET('Data Collection'!$A$20,LU_Long[[#This Row],[Offset]],6) -> 0 | G90: =OFFSET('Data Collection'!$EL$20,LU_Long[[#This Row],[Offset]],0) -> 0 | H90: =OFFSET('Data Collection'!$EL$20,LU_Long[[#This Row],[Offset]],1) -> 0 | I90: =OFFSET('Data Collection'!$EH$20,LU_Long[[#This Row],[Offset]],0) -> 0 | J90: =OFFSET('Data Collection'!$EH$20,LU_Long[[#This Row],[Offset]],1) -> 0 | K90: =OFFSET('Data Collection'!$EH$20,LU_Long[[#This Row],[Offset]],2) -> 0 | L90: =OFFSET('Data Collection'!$EH$20,LU_Long[[#This Row],[Offset]],3) -> 0 | M90: =IF(OFFSET(LU_Long[[#This Row],[Offset]],-1,0)="Offset",0,M89+1) -> 80
B91: =OFFSET('Data Collection'!$A$20,LU_Long[[#This Row],[Offset]],0) -> 0 | C91: =OFFSET('Data Collection'!$A$20,LU_Long[[#This Row],[Offset]],3) -> 0 | D91: =LU_Long[[#This Row],[Project Name]]&"-Land" -> 0-Land | E91: =OFFSET('Data Collection'!$A$20,LU_Long[[#This Row],[Offset]],5) -> 0 | F91: =OFFSET('Data Collection'!$A$20,LU_Long[[#This Row],[Offset]],6) -> 0 | G91: =OFFSET('Data Collection'!$EL$20,LU_Long[[#This Row],[Offset]],0) -> 0 | H91: =OFFSET('Data Collection'!$EL$20,LU_Long[[#This Row],[Offset]],1) -> 0 | I91: =OFFSET('Data Collection'!$EH$20,LU_Long[[#This Row],[Offset]],0) -> 0 | J91: =OFFSET('Data Collection'!$EH$20,LU_Long[[#This Row],[Offset]],1) -> 0 | K91: =OFFSET('Data Collection'!$EH$20,LU_Long[[#This Row],[Offset]],2) -> 0 | L91: =OFFSET('Data Collection'!$EH$20,LU_Long[[#This Row],[Offset]],3) -> 0 | M91: =IF(OFFSET(LU_Long[[#This Row],[Offset]],-1,0)="Offset",0,M90+1) -> 81
B92: =OFFSET('Data Collection'!$A$20,LU_Long[[#This Row],[Offset]],0) -> 0 | C92: =OFFSET('Data Collection'!$A$20,LU_Long[[#This Row],[Offset]],3) -> 0 | D92: =LU_Long[[#This Row],[Project Name]]&"-Land" -> 0-Land | E92: =OFFSET('Data Collection'!$A$20,LU_Long[[#This Row],[Offset]],5) -> 0 | F92: =OFFSET('Data Collection'!$A$20,LU_Long[[#This Row],[Offset]],6) -> 0 | G92: =OFFSET('Data Collection'!$EL$20,LU_Long[[#This Row],[Offset]],0) -> 0 | H92: =OFFSET('Data Collection'!$EL$20,LU_Long[[#This Row],[Offset]],1) -> 0 | I92: =OFFSET('Data Collection'!$EH$20,LU_Long[[#This Row],[Offset]],0) -> 0 | J92: =OFFSET('Data Collection'!$EH$20,LU_Long[[#This Row],[Offset]],1) -> 0 | K92: =OFFSET('Data Collection'!$EH$20,LU_Long[[#This Row],[Offset]],2) -> 0 | L92: =OFFSET('Data Collection'!$EH$20,LU_Long[[#This Row],[Offset]],3) -> 0 | M92: =IF(OFFSET(LU_Long[[#This Row],[Offset]],-1,0)="Offset",0,M91+1) -> 82
B93: =OFFSET('Data Collection'!$A$20,LU_Long[[#This Row],[Offset]],0) -> 0 | C93: =OFFSET('Data Collection'!$A$20,LU_Long[[#This Row],[Offset]],3) -> 0 | D93: =LU_Long[[#This Row],[Project Name]]&"-Land" -> 0-Land | E93: =OFFSET('Data Collection'!$A$20,LU_Long[[#This Row],[Offset]],5) -> 0 | F93: =OFFSET('Data Collection'!$A$20,LU_Long[[#This Row],[Offset]],6) -> 0 | G93: =OFFSET('Data Collection'!$EL$20,LU_Long[[#This Row],[Offset]],0) -> 0 | H93: =OFFSET('Data Collection'!$EL$20,LU_Long[[#This Row],[Offset]],1) -> 0 | I93: =OFFSET('Data Collection'!$EH$20,LU_Long[[#This Row],[Offset]],0) -> 0 | J93: =OFFSET('Data Collection'!$EH$20,LU_Long[[#This Row],[Offset]],1) -> 0 | K93: =OFFSET('Data Collection'!$EH$20,LU_Long[[#This Row],[Offset]],2) -> 0 | L93: =OFFSET('Data Collection'!$EH$20,LU_Long[[#This Row],[Offset]],3) -> 0 | M93: =IF(OFFSET(LU_Long[[#This Row],[Offset]],-1,0)="Offset",0,M92+1) -> 83
B94: =OFFSET('Data Collection'!$A$20,LU_Long[[#This Row],[Offset]],0) -> 0 | C94: =OFFSET('Data Collection'!$A$20,LU_Long[[#This Row],[Offset]],3) -> 0 | D94: =LU_Long[[#This Row],[Project Name]]&"-Land" -> 0-Land | E94: =OFFSET('Data Collection'!$A$20,LU_Long[[#This Row],[Offset]],5) -> 0 | F94: =OFFSET('Data Collection'!$A$20,LU_Long[[#This Row],[Offset]],6) -> 0 | G94: =OFFSET('Data Collection'!$EL$20,LU_Long[[#This Row],[Offset]],0) -> 0 | H94: =OFFSET('Data Collection'!$EL$20,LU_Long[[#This Row],[Offset]],1) -> 0 | I94: =OFFSET('Data Collection'!$EH$20,LU_Long[[#This Row],[Offset]],0) -> 0 | J94: =OFFSET('Data Collection'!$EH$20,LU_Long[[#This Row],[Offset]],1) -> 0 | K94: =OFFSET('Data Collection'!$EH$20,LU_Long[[#This Row],[Offset]],2) -> 0 | L94: =OFFSET('Data Collection'!$EH$20,LU_Long[[#This Row],[Offset]],3) -> 0 | M94: =IF(OFFSET(LU_Long[[#This Row],[Offset]],-1,0)="Offset",0,M93+1) -> 84
B95: =OFFSET('Data Collection'!$A$20,LU_Long[[#This Row],[Offset]],0) -> 0 | C95: =OFFSET('Data Collection'!$A$20,LU_Long[[#This Row],[Offset]],3) -> 0 | D95: =LU_Long[[#This Row],[Project Name]]&"-Land" -> 0-Land | E95: =OFFSET('Data Collection'!$A$20,LU_Long[[#This Row],[Offset]],5) -> 0 | F95: =OFFSET('Data Collection'!$A$20,LU_Long[[#This Row],[Offset]],6) -> 0 | G95: =OFFSET('Data Collection'!$EL$20,LU_Long[[#This Row],[Offset]],0) -> 0 | H95: =OFFSET('Data Collection'!$EL$20,LU_Long[[#This Row],[Offset]],1) -> 0 | I95: =OFFSET('Data Collection'!$EH$20,LU_Long[[#This Row],[Offset]],0) -> 0 | J95: =OFFSET('Data Collection'!$EH$20,LU_Long[[#This Row],[Offset]],1) -> 0 | K95: =OFFSET('Data Collection'!$EH$20,LU_Long[[#This Row],[Offset]],2) -> 0 | L95: =OFFSET('Data Collection'!$EH$20,LU_Long[[#This Row],[Offset]],3) -> 0 | M95: =IF(OFFSET(LU_Long[[#This Row],[Offset]],-1,0)="Offset",0,M94+1) -> 85
B96: =OFFSET('Data Collection'!$A$20,LU_Long[[#This Row],[Offset]],0) -> 0 | C96: =OFFSET('Data Collection'!$A$20,LU_Long[[#This Row],[Offset]],3) -> 0 | D96: =LU_Long[[#This Row],[Project Name]]&"-Land" -> 0-Land | E96: =OFFSET('Data Collection'!$A$20,LU_Long[[#This Row],[Offset]],5) -> 0 | F96: =OFFSET('Data Collection'!$A$20,LU_Long[[#This Row],[Offset]],6) -> 0 | G96: =OFFSET('Data Collection'!$EL$20,LU_Long[[#This Row],[Offset]],0) -> 0 | H96: =OFFSET('Data Collection'!$EL$20,LU_Long[[#This Row],[Offset]],1) -> 0 | I96: =OFFSET('Data Collection'!$EH$20,LU_Long[[#This Row],[Offset]],0) -> 0 | J96: =OFFSET('Data Collection'!$EH$20,LU_Long[[#This Row],[Offset]],1) -> 0 | K96: =OFFSET('Data Collection'!$EH$20,LU_Long[[#This Row],[Offset]],2) -> 0 | L96: =OFFSET('Data Collection'!$EH$20,LU_Long[[#This Row],[Offset]],3) -> 0 | M96: =IF(OFFSET(LU_Long[[#This Row],[Offset]],-1,0)="Offset",0,M95+1) -> 86
B97: =OFFSET('Data Collection'!$A$20,LU_Long[[#This Row],[Offset]],0) -> 0 | C97: =OFFSET('Data Collection'!$A$20,LU_Long[[#This Row],[Offset]],3) -> 0 | D97: =LU_Long[[#This Row],[Project Name]]&"-Land" -> 0-Land | E97: =OFFSET('Data Collection'!$A$20,LU_Long[[#This Row],[Offset]],5) -> 0 | F97: =OFFSET('Data Collection'!$A$20,LU_Long[[#This Row],[Offset]],6) -> 0 | G97: =OFFSET('Data Collection'!$EL$20,LU_Long[[#This Row],[Offset]],0) -> 0 | H97: =OFFSET('Data Collection'!$EL$20,LU_Long[[#This Row],[Offset]],1) -> 0 | I97: =OFFSET('Data Collection'!$EH$20,LU_Long[[#This Row],[Offset]],0) -> 0 | J97: =OFFSET('Data Collection'!$EH$20,LU_Long[[#This Row],[Offset]],1) -> 0 | K97: =OFFSET('Data Collection'!$EH$20,LU_Long[[#This Row],[Offset]],2) -> 0 | L97: =OFFSET('Data Collection'!$EH$20,LU_Long[[#This Row],[Offset]],3) -> 0 | M97: =IF(OFFSET(LU_Long[[#This Row],[Offset]],-1,0)="Offset",0,M96+1) -> 87
B98: =OFFSET('Data Collection'!$A$20,LU_Long[[#This Row],[Offset]],0) -> 0 | C98: =OFFSET('Data Collection'!$A$20,LU_Long[[#This Row],[Offset]],3) -> 0 | D98: =LU_Long[[#This Row],[Project Name]]&"-Land" -> 0-Land | E98: =OFFSET('Data Collection'!$A$20,LU_Long[[#This Row],[Offset]],5) -> 0 | F98: =OFFSET('Data Collection'!$A$20,LU_Long[[#This Row],[Offset]],6) -> 0 | G98: =OFFSET('Data Collection'!$EL$20,LU_Long[[#This Row],[Offset]],0) -> 0 | H98: =OFFSET('Data Collection'!$EL$20,LU_Long[[#This Row],[Offset]],1) -> 0 | I98: =OFFSET('Data Collection'!$EH$20,LU_Long[[#This Row],[Offset]],0) -> 0 | J98: =OFFSET('Data Collection'!$EH$20,LU_Long[[#This Row],[Offset]],1) -> 0 | K98: =OFFSET('Data Collection'!$EH$20,LU_Long[[#This Row],[Offset]],2) -> 0 | L98: =OFFSET('Data Collection'!$EH$20,LU_Long[[#This Row],[Offset]],3) -> 0 | M98: =IF(OFFSET(LU_Long[[#This Row],[Offset]],-1,0)="Offset",0,M97+1) -> 88
B99: =OFFSET('Data Collection'!$A$20,LU_Long[[#This Row],[Offset]],0) -> 0 | C99: =OFFSET('Data Collection'!$A$20,LU_Long[[#This Row],[Offset]],3) -> 0 | D99: =LU_Long[[#This Row],[Project Name]]&"-Land" -> 0-Land | E99: =OFFSET('Data Collection'!$A$20,LU_Long[[#This Row],[Offset]],5) -> 0 | F99: =OFFSET('Data Collection'!$A$20,LU_Long[[#This Row],[Offset]],6) -> 0 | G99: =OFFSET('Data Collection'!$EL$20,LU_Long[[#This Row],[Offset]],0) -> 0 | H99: =OFFSET('Data Collection'!$EL$20,LU_Long[[#This Row],[Offset]],1) -> 0 | I99: =OFFSET('Data Collection'!$EH$20,LU_Long[[#This Row],[Offset]],0) -> 0 | J99: =OFFSET('Data Collection'!$EH$20,LU_Long[[#This Row],[Offset]],1) -> 0 | K99: =OFFSET('Data Collection'!$EH$20,LU_Long[[#This Row],[Offset]],2) -> 0 | L99: =OFFSET('Data Collection'!$EH$20,LU_Long[[#This Row],[Offset]],3) -> 0 | M99: =IF(OFFSET(LU_Long[[#This Row],[Offset]],-1,0)="Offset",0,M98+1) -> 89
B100: =OFFSET('Data Collection'!$A$20,LU_Long[[#This Row],[Offset]],0) -> 0 | C100: =OFFSET('Data Collection'!$A$20,LU_Long[[#This Row],[Offset]],3) -> 0 | D100: =LU_Long[[#This Row],[Project Name]]&"-Land" -> 0-Land | E100: =OFFSET('Data Collection'!$A$20,LU_Long[[#This Row],[Offset]],5) -> 0 | F100: =OFFSET('Data Collection'!$A$20,LU_Long[[#This Row],[Offset]],6) -> 0 | G100: =OFFSET('Data Collection'!$EL$20,LU_Long[[#This Row],[Offset]],0) -> 0 | H100: =OFFSET('Data Collection'!$EL$20,LU_Long[[#This Row],[Offset]],1) -> 0 | I100: =OFFSET('Data Collection'!$EH$20,LU_Long[[#This Row],[Offset]],0) -> 0 | J100: =OFFSET('Data Collection'!$EH$20,LU_Long[[#This Row],[Offset]],1) -> 0 | K100: =OFFSET('Data Collection'!$EH$20,LU_Long[[#This Row],[Offset]],2) -> 0 | L100: =OFFSET('Data Collection'!$EH$20,LU_Long[[#This Row],[Offset]],3) -> 0 | M100: =IF(OFFSET(LU_Long[[#This Row],[Offset]],-1,0)="Offset",0,M99+1) -> 90
B101: =OFFSET('Data Collection'!$A$20,LU_Long[[#This Row],[Offset]],0) -> 0 | C101: =OFFSET('Data Collection'!$A$20,LU_Long[[#This Row],[Offset]],3) -> 0 | D101: =LU_Long[[#This Row],[Project Name]]&"-Land" -> 0-Land | E101: =OFFSET('Data Collection'!$A$20,LU_Long[[#This Row],[Offset]],5) -> 0 | F101: =OFFSET('Data Collection'!$A$20,LU_Long[[#This Row],[Offset]],6) -> 0 | G101: =OFFSET('Data Collection'!$EL$20,LU_Long[[#This Row],[Offset]],0) -> 0 | H101: =OFFSET('Data Collection'!$EL$20,LU_Long[[#This Row],[Offset]],1) -> 0 | I101: =OFFSET('Data Collection'!$EH$20,LU_Long[[#This Row],[Offset]],0) -> 0 | J101: =OFFSET('Data Collection'!$EH$20,LU_Long[[#This Row],[Offset]],1) -> 0 | K101: =OFFSET('Data Collection'!$EH$20,LU_Long[[#This Row],[Offset]],2) -> 0 | L101: =OFFSET('Data Collection'!$EH$20,LU_Long[[#This Row],[Offset]],3) -> 0 | M101: =IF(OFFSET(LU_Long[[#This Row],[Offset]],-1,0)="Offset",0,M100+1) -> 91
B102: =OFFSET('Data Collection'!$A$20,LU_Long[[#This Row],[Offset]],0) -> 0 | C102: =OFFSET('Data Collection'!$A$20,LU_Long[[#This Row],[Offset]],3) -> 0 | D102: =LU_Long[[#This Row],[Project Name]]&"-Land" -> 0-Land | E102: =OFFSET('Data Collection'!$A$20,LU_Long[[#This Row],[Offset]],5) -> 0 | F102: =OFFSET('Data Collection'!$A$20,LU_Long[[#This Row],[Offset]],6) -> 0 | G102: =OFFSET('Data Collection'!$EL$20,LU_Long[[#This Row],[Offset]],0) -> 0 | H102: =OFFSET('Data Collection'!$EL$20,LU_Long[[#This Row],[Offset]],1) -> 0 | I102: =OFFSET('Data Collection'!$EH$20,LU_Long[[#This Row],[Offset]],0) -> 0 | J102: =OFFSET('Data Collection'!$EH$20,LU_Long[[#This Row],[Offset]],1) -> 0 | K102: =OFFSET('Data Collection'!$EH$20,LU_Long[[#This Row],[Offset]],2) -> 0 | L102: =OFFSET('Data Collection'!$EH$20,LU_Long[[#This Row],[Offset]],3) -> 0 | M102: =IF(OFFSET(LU_Long[[#This Row],[Offset]],-1,0)="Offset",0,M101+1) -> 92
B103: =OFFSET('Data Collection'!$A$20,LU_Long[[#This Row],[Offset]],0) -> 0 | C103: =OFFSET('Data Collection'!$A$20,LU_Long[[#This Row],[Offset]],3) -> 0 | D103: =LU_Long[[#This Row],[Project Name]]&"-Land" -> 0-Land | E103: =OFFSET('Data Collection'!$A$20,LU_Long[[#This Row],[Offset]],5) -> 0 | F103: =OFFSET('Data Collection'!$A$20,LU_Long[[#This Row],[Offset]],6) -> 0 | G103: =OFFSET('Data Collection'!$EL$20,LU_Long[[#This Row],[Offset]],0) -> 0 | H103: =OFFSET('Data Collection'!$EL$20,LU_Long[[#This Row],[Offset]],1) -> 0 | I103: =OFFSET('Data Collection'!$EH$20,LU_Long[[#This Row],[Offset]],0) -> 0 | J103: =OFFSET('Data Collection'!$EH$20,LU_Long[[#This Row],[Offset]],1) -> 0 | K103: =OFFSET('Data Collection'!$EH$20,LU_Long[[#This Row],[Offset]],2) -> 0 | L103: =OFFSET('Data Collection'!$EH$20,LU_Long[[#This Row],[Offset]],3) -> 0 | M103: =IF(OFFSET(LU_Long[[#This Row],[Offset]],-1,0)="Offset",0,M102+1) -> 93
B104: =OFFSET('Data Collection'!$A$20,LU_Long[[#This Row],[Offset]],0) -> 0 | C104: =OFFSET('Data Collection'!$A$20,LU_Long[[#This Row],[Offset]],3) -> 0 | D104: =LU_Long[[#This Row],[Project Name]]&"-Land" -> 0-Land | E104: =OFFSET('Data Collection'!$A$20,LU_Long[[#This Row],[Offset]],5) -> 0 | F104: =OFFSET('Data Collection'!$A$20,LU_Long[[#This Row],[Offset]],6) -> 0 | G104: =OFFSET('Data Collection'!$EL$20,LU_Long[[#This Row],[Offset]],0) -> 0 | H104: =OFFSET('Data Collection'!$EL$20,LU_Long[[#This Row],[Offset]],1) -> 0 | I104: =OFFSET('Data Collection'!$EH$20,LU_Long[[#This Row],[Offset]],0) -> 0 | J104: =OFFSET('Data Collection'!$EH$20,LU_Long[[#This Row],[Offset]],1) -> 0 | K104: =OFFSET('Data Collection'!$EH$20,LU_Long[[#This Row],[Offset]],2) -> 0 | L104: =OFFSET('Data Collection'!$EH$20,LU_Long[[#This Row],[Offset]],3) -> 0 | M104: =IF(OFFSET(LU_Long[[#This Row],[Offset]],-1,0)="Offset",0,M103+1) -> 94
B105: =OFFSET('Data Collection'!$A$20,LU_Long[[#This Row],[Offset]],0) -> 0 | C105: =OFFSET('Data Collection'!$A$20,LU_Long[[#This Row],[Offset]],3) -> 0 | D105: =LU_Long[[#This Row],[Project Name]]&"-Land" -> 0-Land | E105: =OFFSET('Data Collection'!$A$20,LU_Long[[#This Row],[Offset]],5) -> 0 | F105: =OFFSET('Data Collection'!$A$20,LU_Long[[#This Row],[Offset]],6) -> 0 | G105: =OFFSET('Data Collection'!$EL$20,LU_Long[[#This Row],[Offset]],0) -> 0 | H105: =OFFSET('Data Collection'!$EL$20,LU_Long[[#This Row],[Offset]],1) -> 0 | I105: =OFFSET('Data Collection'!$EH$20,LU_Long[[#This Row],[Offset]],0) -> 0 | J105: =OFFSET('Data Collection'!$EH$20,LU_Long[[#This Row],[Offset]],1) -> 0 | K105: =OFFSET('Data Collection'!$EH$20,LU_Long[[#This Row],[Offset]],2) -> 0 | L105: =OFFSET('Data Collection'!$EH$20,LU_Long[[#This Row],[Offset]],3) -> 0 | M105: =IF(OFFSET(LU_Long[[#This Row],[Offset]],-1,0)="Offset",0,M104+1) -> 95
B106: =OFFSET('Data Collection'!$A$20,LU_Long[[#This Row],[Offset]],0) -> 0 | C106: =OFFSET('Data Collection'!$A$20,LU_Long[[#This Row],[Offset]],3) -> 0 | D106: =LU_Long[[#This Row],[Project Name]]&"-Land" -> 0-Land | E106: =OFFSET('Data Collection'!$A$20,LU_Long[[#This Row],[Offset]],5) -> 0 | F106: =OFFSET('Data Collection'!$A$20,LU_Long[[#This Row],[Offset]],6) -> 0 | G106: =OFFSET('Data Collection'!$EL$20,LU_Long[[#This Row],[Offset]],0) -> 0 | H106: =OFFSET('Data Collection'!$EL$20,LU_Long[[#This Row],[Offset]],1) -> 0 | I106: =OFFSET('Data Collection'!$EH$20,LU_Long[[#This Row],[Offset]],0) -> 0 | J106: =OFFSET('Data Collection'!$EH$20,LU_Long[[#This Row],[Offset]],1) -> 0 | K106: =OFFSET('Data Collection'!$EH$20,LU_Long[[#This Row],[Offset]],2) -> 0 | L106: =OFFSET('Data Collection'!$EH$20,LU_Long[[#This Row],[Offset]],3) -> 0 | M106: =IF(OFFSET(LU_Long[[#This Row],[Offset]],-1,0)="Offset",0,M105+1) -> 96
B107: =OFFSET('Data Collection'!$A$20,LU_Long[[#This Row],[Offset]],0) -> 0 | C107: =OFFSET('Data Collection'!$A$20,LU_Long[[#This Row],[Offset]],3) -> 0 | D107: =LU_Long[[#This Row],[Project Name]]&"-Land" -> 0-Land | E107: =OFFSET('Data Collection'!$A$20,LU_Long[[#This Row],[Offset]],5) -> 0 | F107: =OFFSET('Data Collection'!$A$20,LU_Long[[#This Row],[Offset]],6) -> 0 | G107: =OFFSET('Data Collection'!$EL$20,LU_Long[[#This Row],[Offset]],0) -> 0 | H107: =OFFSET('Data Collection'!$EL$20,LU_Long[[#This Row],[Offset]],1) -> 0 | I107: =OFFSET('Data Collection'!$EH$20,LU_Long[[#This Row],[Offset]],0) -> 0 | J107: =OFFSET('Data Collection'!$EH$20,LU_Long[[#This Row],[Offset]],1) -> 0 | K107: =OFFSET('Data Collection'!$EH$20,LU_Long[[#This Row],[Offset]],2) -> 0 | L107: =OFFSET('Data Collection'!$EH$20,LU_Long[[#This Row],[Offset]],3) -> 0 | M107: =IF(OFFSET(LU_Long[[#This Row],[Offset]],-1,0)="Offset",0,M106+1) -> 97
B108: =OFFSET('Data Collection'!$A$20,LU_Long[[#This Row],[Offset]],0) -> 0 | C108: =OFFSET('Data Collection'!$A$20,LU_Long[[#This Row],[Offset]],3) -> 0 | D108: =LU_Long[[#This Row],[Project Name]]&"-Land" -> 0-Land | E108: =OFFSET('Data Collection'!$A$20,LU_Long[[#This Row],[Offset]],5) -> 0 | F108: =OFFSET('Data Collection'!$A$20,LU_Long[[#This Row],[Offset]],6) -> 0 | G108: =OFFSET('Data Collection'!$EL$20,LU_Long[[#This Row],[Offset]],0) -> 0 | H108: =OFFSET('Data Collection'!$EL$20,LU_Long[[#This Row],[Offset]],1) -> 0 | I108: =OFFSET('Data Collection'!$EH$20,LU_Long[[#This Row],[Offset]],0) -> 0 | J108: =OFFSET('Data Collection'!$EH$20,LU_Long[[#This Row],[Offset]],1) -> 0 | K108: =OFFSET('Data Collection'!$EH$20,LU_Long[[#This Row],[Offset]],2) -> 0 | L108: =OFFSET('Data Collection'!$EH$20,LU_Long[[#This Row],[Offset]],3) -> 0 | M108: =IF(OFFSET(LU_Long[[#This Row],[Offset]],-1,0)="Offset",0,M107+1) -> 98
B109: =OFFSET('Data Collection'!$A$20,LU_Long[[#This Row],[Offset]],0) -> 0 | C109: =OFFSET('Data Collection'!$A$20,LU_Long[[#This Row],[Offset]],3) -> 0 | D109: =LU_Long[[#This Row],[Project Name]]&"-Land" -> 0-Land | E109: =OFFSET('Data Collection'!$A$20,LU_Long[[#This Row],[Offset]],5) -> 0 | F109: =OFFSET('Data Collection'!$A$20,LU_Long[[#This Row],[Offset]],6) -> 0 | G109: =OFFSET('Data Collection'!$EL$20,LU_Long[[#This Row],[Offset]],0) -> 0 | H109: =OFFSET('Data Collection'!$EL$20,LU_Long[[#This Row],[Offset]],1) -> 0 | I109: =OFFSET('Data Collection'!$EH$20,LU_Long[[#This Row],[Offset]],0) -> 0 | J109: =OFFSET('Data Collection'!$EH$20,LU_Long[[#This Row],[Offset]],1) -> 0 | K109: =OFFSET('Data Collection'!$EH$20,LU_Long[[#This Row],[Offset]],2) -> 0 | L109: =OFFSET('Data Collection'!$EH$20,LU_Long[[#This Row],[Offset]],3) -> 0 | M109: =IF(OFFSET(LU_Long[[#This Row],[Offset]],-1,0)="Offset",0,M108+1) -> 99
B110: =OFFSET('Data Collection'!$A$20,LU_Long[[#This Row],[Offset]],0) -> 0 | C110: =OFFSET('Data Collection'!$A$20,LU_Long[[#This Row],[Offset]],3) -> 0 | D110: =LU_Long[[#This Row],[Project Name]]&"-Land" -> 0-Land | E110: =OFFSET('Data Collection'!$A$20,LU_Long[[#This Row],[Offset]],5) -> 0 | F110: =OFFSET('Data Collection'!$A$20,LU_Long[[#This Row],[Offset]],6) -> 0 | G110: =OFFSET('Data Collection'!$EL$20,LU_Long[[#This Row],[Offset]],0) -> 0 | H110: =OFFSET('Data Collection'!$EL$20,LU_Long[[#This Row],[Offset]],1) -> 0 | I110: =OFFSET('Data Collection'!$EH$20,LU_Long[[#This Row],[Offset]],0) -> 0 | J110: =OFFSET('Data Collection'!$EH$20,LU_Long[[#This Row],[Offset]],1) -> 0 | K110: =OFFSET('Data Collection'!$EH$20,LU_Long[[#This Row],[Offset]],2) -> 0 | L110: =OFFSET('Data Collection'!$EH$20,LU_Long[[#This Row],[Offset]],3) -> 0 | M110: =IF(OFFSET(LU_Long[[#This Row],[Offset]],-1,0)="Offset",0,M109+1) -> 100
B111: =OFFSET('Data Collection'!$A$20,LU_Long[[#This Row],[Offset]],0) -> 0 | C111: =OFFSET('Data Collection'!$A$20,LU_Long[[#This Row],[Offset]],3) -> 0 | D111: =LU_Long[[#This Row],[Project Name]]&"-Land" -> 0-Land | E111: =OFFSET('Data Collection'!$A$20,LU_Long[[#This Row],[Offset]],5) -> 0 | F111: =OFFSET('Data Collection'!$A$20,LU_Long[[#This Row],[Offset]],6) -> 0 | G111: =OFFSET('Data Collection'!$EL$20,LU_Long[[#This Row],[Offset]],0) -> 0 | H111: =OFFSET('Data Collection'!$EL$20,LU_Long[[#This Row],[Offset]],1) -> 0 | I111: =OFFSET('Data Collection'!$EH$20,LU_Long[[#This Row],[Offset]],0) -> 0 | J111: =OFFSET('Data Collection'!$EH$20,LU_Long[[#This Row],[Offset]],1) -> 0 | K111: =OFFSET('Data Collection'!$EH$20,LU_Long[[#This Row],[Offset]],2) -> 0 | L111: =OFFSET('Data Collection'!$EH$20,LU_Long[[#This Row],[Offset]],3) -> 0 | M111: =IF(OFFSET(LU_Long[[#This Row],[Offset]],-1,0)="Offset",0,M110+1) -> 101
B112: =OFFSET('Data Collection'!$A$20,LU_Long[[#This Row],[Offset]],0) -> 0 | C112: =OFFSET('Data Collection'!$A$20,LU_Long[[#This Row],[Offset]],3) -> 0 | D112: =LU_Long[[#This Row],[Project Name]]&"-Land" -> 0-Land | E112: =OFFSET('Data Collection'!$A$20,LU_Long[[#This Row],[Offset]],5) -> 0 | F112: =OFFSET('Data Collection'!$A$20,LU_Long[[#This Row],[Offset]],6) -> 0 | G112: =OFFSET('Data Collection'!$EL$20,LU_Long[[#This Row],[Offset]],0) -> 0 | H112: =OFFSET('Data Collection'!$EL$20,LU_Long[[#This Row],[Offset]],1) -> 0 | I112: =OFFSET('Data Collection'!$EH$20,LU_Long[[#This Row],[Offset]],0) -> 0 | J112: =OFFSET('Data Collection'!$EH$20,LU_Long[[#This Row],[Offset]],1) -> 0 | K112: =OFFSET('Data Collection'!$EH$20,LU_Long[[#This Row],[Offset]],2) -> 0 | L112: =OFFSET('Data Collection'!$EH$20,LU_Long[[#This Row],[Offset]],3) -> 0 | M112: =IF(OFFSET(LU_Long[[#This Row],[Offset]],-1,0)="Offset",0,M111+1) -> 102
B113: =OFFSET('Data Collection'!$A$20,LU_Long[[#This Row],[Offset]],0) -> 0 | C113: =OFFSET('Data Collection'!$A$20,LU_Long[[#This Row],[Offset]],3) -> 0 | D113: =LU_Long[[#This Row],[Project Name]]&"-Land" -> 0-Land | E113: =OFFSET('Data Collection'!$A$20,LU_Long[[#This Row],[Offset]],5) -> 0 | F113: =OFFSET('Data Collection'!$A$20,LU_Long[[#This Row],[Offset]],6) -> 0 | G113: =OFFSET('Data Collection'!$EL$20,LU_Long[[#This Row],[Offset]],0) -> 0 | H113: =OFFSET('Data Collection'!$EL$20,LU_Long[[#This Row],[Offset]],1) -> 0 | I113: =OFFSET('Data Collection'!$EH$20,LU_Long[[#This Row],[Offset]],0) -> 0 | J113: =OFFSET('Data Collection'!$EH$20,LU_Long[[#This Row],[Offset]],1) -> 0 | K113: =OFFSET('Data Collection'!$EH$20,LU_Long[[#This Row],[Offset]],2) -> 0 | L113: =OFFSET('Data Collection'!$EH$20,LU_Long[[#This Row],[Offset]],3) -> 0 | M113: =IF(OFFSET(LU_Long[[#This Row],[Offset]],-1,0)="Offset",0,M112+1) -> 103
B114: =OFFSET('Data Collection'!$A$20,LU_Long[[#This Row],[Offset]],0) -> 0 | C114: =OFFSET('Data Collection'!$A$20,LU_Long[[#This Row],[Offset]],3) -> 0 | D114: =LU_Long[[#This Row],[Project Name]]&"-Land" -> 0-Land | E114: =OFFSET('Data Collection'!$A$20,LU_Long[[#This Row],[Offset]],5) -> 0 | F114: =OFFSET('Data Collection'!$A$20,LU_Long[[#This Row],[Offset]],6) -> 0 | G114: =OFFSET('Data Collection'!$EL$20,LU_Long[[#This Row],[Offset]],0) -> 0 | H114: =OFFSET('Data Collection'!$EL$20,LU_Long[[#This Row],[Offset]],1) -> 0 | I114: =OFFSET('Data Collection'!$EH$20,LU_Long[[#This Row],[Offset]],0) -> 0 | J114: =OFFSET('Data Collection'!$EH$20,LU_Long[[#This Row],[Offset]],1) -> 0 | K114: =OFFSET('Data Collection'!$EH$20,LU_Long[[#This Row],[Offset]],2) -> 0 | L114: =OFFSET('Data Collection'!$EH$20,LU_Long[[#This Row],[Offset]],3) -> 0 | M114: =IF(OFFSET(LU_Long[[#This Row],[Offset]],-1,0)="Offset",0,M113+1) -> 104
B115: =OFFSET('Data Collection'!$A$20,LU_Long[[#This Row],[Offset]],0) -> 0 | C115: =OFFSET('Data Collection'!$A$20,LU_Long[[#This Row],[Offset]],3) -> 0 | D115: =LU_Long[[#This Row],[Project Name]]&"-Land" -> 0-Land | E115: =OFFSET('Data Collection'!$A$20,LU_Long[[#This Row],[Offset]],5) -> 0 | F115: =OFFSET('Data Collection'!$A$20,LU_Long[[#This Row],[Offset]],6) -> 0 | G115: =OFFSET('Data Collection'!$EL$20,LU_Long[[#This Row],[Offset]],0) -> 0 | H115: =OFFSET('Data Collection'!$EL$20,LU_Long[[#This Row],[Offset]],1) -> 0 | I115: =OFFSET('Data Collection'!$EH$20,LU_Long[[#This Row],[Offset]],0) -> 0 | J115: =OFFSET('Data Collection'!$EH$20,LU_Long[[#This Row],[Offset]],1) -> 0 | K115: =OFFSET('Data Collection'!$EH$20,LU_Long[[#This Row],[Offset]],2) -> 0 | L115: =OFFSET('Data Collection'!$EH$20,LU_Long[[#This Row],[Offset]],3) -> 0 | M115: =IF(OFFSET(LU_Long[[#This Row],[Offset]],-1,0)="Offset",0,M114+1) -> 105
B116: =OFFSET('Data Collection'!$A$20,LU_Long[[#This Row],[Offset]],0) -> 0 | C116: =OFFSET('Data Collection'!$A$20,LU_Long[[#This Row],[Offset]],3) -> 0 | D116: =LU_Long[[#This Row],[Project Name]]&"-Land" -> 0-Land | E116: =OFFSET('Data Collection'!$A$20,LU_Long[[#This Row],[Offset]],5) -> 0 | F116: =OFFSET('Data Collection'!$A$20,LU_Long[[#This Row],[Offset]],6) -> 0 | G116: =OFFSET('Data Collection'!$EL$20,LU_Long[[#This Row],[Offset]],0) -> 0 | H116: =OFFSET('Data Collection'!$EL$20,LU_Long[[#This Row],[Offset]],1) -> 0 | I116: =OFFSET('Data Collection'!$EH$20,LU_Long[[#This Row],[Offset]],0) -> 0 | J116: =OFFSET('Data Collection'!$EH$20,LU_Long[[#This Row],[Offset]],1) -> 0 | K116: =OFFSET('Data Collection'!$EH$20,LU_Long[[#This Row],[Offset]],2) -> 0 | L116: =OFFSET('Data Collection'!$EH$20,LU_Long[[#This Row],[Offset]],3) -> 0 | M116: =IF(OFFSET(LU_Long[[#This Row],[Offset]],-1,0)="Offset",0,M115+1) -> 106
B117: =OFFSET('Data Collection'!$A$20,LU_Long[[#This Row],[Offset]],0) -> 0 | C117: =OFFSET('Data Collection'!$A$20,LU_Long[[#This Row],[Offset]],3) -> 0 | D117: =LU_Long[[#This Row],[Project Name]]&"-Land" -> 0-Land | E117: =OFFSET('Data Collection'!$A$20,LU_Long[[#This Row],[Offset]],5) -> 0 | F117: =OFFSET('Data Collection'!$A$20,LU_Long[[#This Row],[Offset]],6) -> 0 | G117: =OFFSET('Data Collection'!$EL$20,LU_Long[[#This Row],[Offset]],0) -> 0 | H117: =OFFSET('Data Collection'!$EL$20,LU_Long[[#This Row],[Offset]],1) -> 0 | I117: =OFFSET('Data Collection'!$EH$20,LU_Long[[#This Row],[Offset]],0) -> 0 | J117: =OFFSET('Data Collection'!$EH$20,LU_Long[[#This Row],[Offset]],1) -> 0 | K117: =OFFSET('Data Collection'!$EH$20,LU_Long[[#This Row],[Offset]],2) -> 0 | L117: =OFFSET('Data Collection'!$EH$20,LU_Long[[#This Row],[Offset]],3) -> 0 | M117: =IF(OFFSET(LU_Long[[#This Row],[Offset]],-1,0)="Offset",0,M116+1) -> 107
B118: =OFFSET('Data Collection'!$A$20,LU_Long[[#This Row],[Offset]],0) -> 0 | C118: =OFFSET('Data Collection'!$A$20,LU_Long[[#This Row],[Offset]],3) -> 0 | D118: =LU_Long[[#This Row],[Project Name]]&"-Land" -> 0-Land | E118: =OFFSET('Data Collection'!$A$20,LU_Long[[#This Row],[Offset]],5) -> 0 | F118: =OFFSET('Data Collection'!$A$20,LU_Long[[#This Row],[Offset]],6) -> 0 | G118: =OFFSET('Data Collection'!$EL$20,LU_Long[[#This Row],[Offset]],0) -> 0 | H118: =OFFSET('Data Collection'!$EL$20,LU_Long[[#This Row],[Offset]],1) -> 0 | I118: =OFFSET('Data Collection'!$EH$20,LU_Long[[#This Row],[Offset]],0) -> 0 | J118: =OFFSET('Data Collection'!$EH$20,LU_Long[[#This Row],[Offset]],1) -> 0 | K118: =OFFSET('Data Collection'!$EH$20,LU_Long[[#This Row],[Offset]],2) -> 0 | L118: =OFFSET('Data Collection'!$EH$20,LU_Long[[#This Row],[Offset]],3) -> 0 | M118: =IF(OFFSET(LU_Long[[#This Row],[Offset]],-1,0)="Offset",0,M117+1) -> 108
B119: =OFFSET('Data Collection'!$A$20,LU_Long[[#This Row],[Offset]],0) -> 0 | C119: =OFFSET('Data Collection'!$A$20,LU_Long[[#This Row],[Offset]],3) -> 0 | D119: =LU_Long[[#This Row],[Project Name]]&"-Land" -> 0-Land | E119: =OFFSET('Data Collection'!$A$20,LU_Long[[#This Row],[Offset]],5) -> 0 | F119: =OFFSET('Data Collection'!$A$20,LU_Long[[#This Row],[Offset]],6) -> 0 | G119: =OFFSET('Data Collection'!$EL$20,LU_Long[[#This Row],[Offset]],0) -> 0 | H119: =OFFSET('Data Collection'!$EL$20,LU_Long[[#This Row],[Offset]],1) -> 0 | I119: =OFFSET('Data Collection'!$EH$20,LU_Long[[#This Row],[Offset]],0) -> 0 | J119: =OFFSET('Data Collection'!$EH$20,LU_Long[[#This Row],[Offset]],1) -> 0 | K119: =OFFSET('Data Collection'!$EH$20,LU_Long[[#This Row],[Offset]],2) -> 0 | L119: =OFFSET('Data Collection'!$EH$20,LU_Long[[#This Row],[Offset]],3) -> 0 | M119: =IF(OFFSET(LU_Long[[#This Row],[Offset]],-1,0)="Offset",0,M118+1) -> 109
B120: =OFFSET('Data Collection'!$A$20,LU_Long[[#This Row],[Offset]],0) -> 0 | C120: =OFFSET('Data Collection'!$A$20,LU_Long[[#This Row],[Offset]],3) -> 0 | D120: =LU_Long[[#This Row],[Project Name]]&"-Land" -> 0-Land | E120: =OFFSET('Data Collection'!$A$20,LU_Long[[#This Row],[Offset]],5) -> 0 | F120: =OFFSET('Data Collection'!$A$20,LU_Long[[#This Row],[Offset]],6) -> 0 | G120: =OFFSET('Data Collection'!$EL$20,LU_Long[[#This Row],[Offset]],0) -> 0 | H120: =OFFSET('Data Collection'!$EL$20,LU_Long[[#This Row],[Offset]],1) -> 0 | I120: =OFFSET('Data Collection'!$EH$20,LU_Long[[#This Row],[Offset]],0) -> 0 | J120: =OFFSET('Data Collection'!$EH$20,LU_Long[[#This Row],[Offset]],1) -> 0 | K120: =OFFSET('Data Collection'!$EH$20,LU_Long[[#This Row],[Offset]],2) -> 0 | L120: =OFFSET('Data Collection'!$EH$20,LU_Long[[#This Row],[Offset]],3) -> 0 | M120: =IF(OFFSET(LU_Long[[#This Row],[Offset]],-1,0)="Offset",0,M119+1) -> 110
B121: =OFFSET('Data Collection'!$A$20,LU_Long[[#This Row],[Offset]],0) -> 0 | C121: =OFFSET('Data Collection'!$A$20,LU_Long[[#This Row],[Offset]],3) -> 0 | D121: =LU_Long[[#This Row],[Project Name]]&"-Land" -> 0-Land | E121: =OFFSET('Data Collection'!$A$20,LU_Long[[#This Row],[Offset]],5) -> 0 | F121: =OFFSET('Data Collection'!$A$20,LU_Long[[#This Row],[Offset]],6) -> 0 | G121: =OFFSET('Data Collection'!$EL$20,LU_Long[[#This Row],[Offset]],0) -> 0 | H121: =OFFSET('Data Collection'!$EL$20,LU_Long[[#This Row],[Offset]],1) -> 0 | I121: =OFFSET('Data Collection'!$EH$20,LU_Long[[#This Row],[Offset]],0) -> 0 | J121: =OFFSET('Data Collection'!$EH$20,LU_Long[[#This Row],[Offset]],1) -> 0 | K121: =OFFSET('Data Collection'!$EH$20,LU_Long[[#This Row],[Offset]],2) -> 0 | L121: =OFFSET('Data Collection'!$EH$20,LU_Long[[#This Row],[Offset]],3) -> 0 | M121: =IF(OFFSET(LU_Long[[#This Row],[Offset]],-1,0)="Offset",0,M120+1) -> 111
B122: =OFFSET('Data Collection'!$A$20,LU_Long[[#This Row],[Offset]],0) -> 0 | C122: =OFFSET('Data Collection'!$A$20,LU_Long[[#This Row],[Offset]],3) -> 0 | D122: =LU_Long[[#This Row],[Project Name]]&"-Land" -> 0-Land | E122: =OFFSET('Data Collection'!$A$20,LU_Long[[#This Row],[Offset]],5) -> 0 | F122: =OFFSET('Data Collection'!$A$20,LU_Long[[#This Row],[Offset]],6) -> 0 | G122: =OFFSET('Data Collection'!$EL$20,LU_Long[[#This Row],[Offset]],0) -> 0 | H122: =OFFSET('Data Collection'!$EL$20,LU_Long[[#This Row],[Offset]],1) -> 0 | I122: =OFFSET('Data Collection'!$EH$20,LU_Long[[#This Row],[Offset]],0) -> 0 | J122: =OFFSET('Data Collection'!$EH$20,LU_Long[[#This Row],[Offset]],1) -> 0 | K122: =OFFSET('Data Collection'!$EH$20,LU_Long[[#This Row],[Offset]],2) -> 0 | L122: =OFFSET('Data Collection'!$EH$20,LU_Long[[#This Row],[Offset]],3) -> 0 | M122: =IF(OFFSET(LU_Long[[#This Row],[Offset]],-1,0)="Offset",0,M121+1) -> 112
B123: =OFFSET('Data Collection'!$A$20,LU_Long[[#This Row],[Offset]],0) -> 0 | C123: =OFFSET('Data Collection'!$A$20,LU_Long[[#This Row],[Offset]],3) -> 0 | D123: =LU_Long[[#This Row],[Project Name]]&"-Land" -> 0-Land | E123: =OFFSET('Data Collection'!$A$20,LU_Long[[#This Row],[Offset]],5) -> 0 | F123: =OFFSET('Data Collection'!$A$20,LU_Long[[#This Row],[Offset]],6) -> 0 | G123: =OFFSET('Data Collection'!$EL$20,LU_Long[[#This Row],[Offset]],0) -> 0 | H123: =OFFSET('Data Collection'!$EL$20,LU_Long[[#This Row],[Offset]],1) -> 0 | I123: =OFFSET('Data Collection'!$EH$20,LU_Long[[#This Row],[Offset]],0) -> 0 | J123: =OFFSET('Data Collection'!$EH$20,LU_Long[[#This Row],[Offset]],1) -> 0 | K123: =OFFSET('Data Collection'!$EH$20,LU_Long[[#This Row],[Offset]],2) -> 0 | L123: =OFFSET('Data Collection'!$EH$20,LU_Long[[#This Row],[Offset]],3) -> 0 | M123: =IF(OFFSET(LU_Long[[#This Row],[Offset]],-1,0)="Offset",0,M122+1) -> 113
B124: =OFFSET('Data Collection'!$A$20,LU_Long[[#This Row],[Offset]],0) -> 0 | C124: =OFFSET('Data Collection'!$A$20,LU_Long[[#This Row],[Offset]],3) -> 0 | D124: =LU_Long[[#This Row],[Project Name]]&"-Land" -> 0-Land | E124: =OFFSET('Data Collection'!$A$20,LU_Long[[#This Row],[Offset]],5) -> 0 | F124: =OFFSET('Data Collection'!$A$20,LU_Long[[#This Row],[Offset]],6) -> 0 | G124: =OFFSET('Data Collection'!$EL$20,LU_Long[[#This Row],[Offset]],0) -> 0 | H124: =OFFSET('Data Collection'!$EL$20,LU_Long[[#This Row],[Offset]],1) -> 0 | I124: =OFFSET('Data Collection'!$EH$20,LU_Long[[#This Row],[Offset]],0) -> 0 | J124: =OFFSET('Data Collection'!$EH$20,LU_Long[[#This Row],[Offset]],1) -> 0 | K124: =OFFSET('Data Collection'!$EH$20,LU_Long[[#This Row],[Offset]],2) -> 0 | L124: =OFFSET('Data Collection'!$EH$20,LU_Long[[#This Row],[Offset]],3) -> 0 | M124: =IF(OFFSET(LU_Long[[#This Row],[Offset]],-1,0)="Offset",0,M123+1) -> 114
B125: =OFFSET('Data Collection'!$A$20,LU_Long[[#This Row],[Offset]],0) -> 0 | C125: =OFFSET('Data Collection'!$A$20,LU_Long[[#This Row],[Offset]],3) -> 0 | D125: =LU_Long[[#This Row],[Project Name]]&"-Land" -> 0-Land | E125: =OFFSET('Data Collection'!$A$20,LU_Long[[#This Row],[Offset]],5) -> 0 | F125: =OFFSET('Data Collection'!$A$20,LU_Long[[#This Row],[Offset]],6) -> 0 | G125: =OFFSET('Data Collection'!$EL$20,LU_Long[[#This Row],[Offset]],0) -> 0 | H125: =OFFSET('Data Collection'!$EL$20,LU_Long[[#This Row],[Offset]],1) -> 0 | I125: =OFFSET('Data Collection'!$EH$20,LU_Long[[#This Row],[Offset]],0) -> 0 | J125: =OFFSET('Data Collection'!$EH$20,LU_Long[[#This Row],[Offset]],1) -> 0 | K125: =OFFSET('Data Collection'!$EH$20,LU_Long[[#This Row],[Offset]],2) -> 0 | L125: =OFFSET('Data Collection'!$EH$20,LU_Long[[#This Row],[Offset]],3) -> 0 | M125: =IF(OFFSET(LU_Long[[#This Row],[Offset]],-1,0)="Offset",0,M124+1) -> 115
B126: =OFFSET('Data Collection'!$A$20,LU_Long[[#This Row],[Offset]],0) -> 0 | C126: =OFFSET('Data Collection'!$A$20,LU_Long[[#This Row],[Offset]],3) -> 0 | D126: =LU_Long[[#This Row],[Project Name]]&"-Land" -> 0-Land | E126: =OFFSET('Data Collection'!$A$20,LU_Long[[#This Row],[Offset]],5) -> 0 | F126: =OFFSET('Data Collection'!$A$20,LU_Long[[#This Row],[Offset]],6) -> 0 | G126: =OFFSET('Data Collection'!$EL$20,LU_Long[[#This Row],[Offset]],0) -> 0 | H126: =OFFSET('Data Collection'!$EL$20,LU_Long[[#This Row],[Offset]],1) -> 0 | I126: =OFFSET('Data Collection'!$EH$20,LU_Long[[#This Row],[Offset]],0) -> 0 | J126: =OFFSET('Data Collection'!$EH$20,LU_Long[[#This Row],[Offset]],1) -> 0 | K126: =OFFSET('Data Collection'!$EH$20,LU_Long[[#This Row],[Offset]],2) -> 0 | L126: =OFFSET('Data Collection'!$EH$20,LU_Long[[#This Row],[Offset]],3) -> 0 | M126: =IF(OFFSET(LU_Long[[#This Row],[Offset]],-1,0)="Offset",0,M125+1) -> 116
B127: =OFFSET('Data Collection'!$A$20,LU_Long[[#This Row],[Offset]],0) -> 0 | C127: =OFFSET('Data Collection'!$A$20,LU_Long[[#This Row],[Offset]],3) -> 0 | D127: =LU_Long[[#This Row],[Project Name]]&"-Land" -> 0-Land | E127: =OFFSET('Data Collection'!$A$20,LU_Long[[#This Row],[Offset]],5) -> 0 | F127: =OFFSET('Data Collection'!$A$20,LU_Long[[#This Row],[Offset]],6) -> 0 | G127: =OFFSET('Data Collection'!$EL$20,LU_Long[[#This Row],[Offset]],0) -> 0 | H127: =OFFSET('Data Collection'!$EL$20,LU_Long[[#This Row],[Offset]],1) -> 0 | I127: =OFFSET('Data Collection'!$EH$20,LU_Long[[#This Row],[Offset]],0) -> 0 | J127: =OFFSET('Data Collection'!$EH$20,LU_Long[[#This Row],[Offset]],1) -> 0 | K127: =OFFSET('Data Collection'!$EH$20,LU_Long[[#This Row],[Offset]],2) -> 0 | L127: =OFFSET('Data Collection'!$EH$20,LU_Long[[#This Row],[Offset]],3) -> 0 | M127: =IF(OFFSET(LU_Long[[#This Row],[Offset]],-1,0)="Offset",0,M126+1) -> 117
B128: =OFFSET('Data Collection'!$A$20,LU_Long[[#This Row],[Offset]],0) -> 0 | C128: =OFFSET('Data Collection'!$A$20,LU_Long[[#This Row],[Offset]],3) -> 0 | D128: =LU_Long[[#This Row],[Project Name]]&"-Land" -> 0-Land | E128: =OFFSET('Data Collection'!$A$20,LU_Long[[#This Row],[Offset]],5) -> 0 | F128: =OFFSET('Data Collection'!$A$20,LU_Long[[#This Row],[Offset]],6) -> 0 | G128: =OFFSET('Data Collection'!$EL$20,LU_Long[[#This Row],[Offset]],0) -> 0 | H128: =OFFSET('Data Collection'!$EL$20,LU_Long[[#This Row],[Offset]],1) -> 0 | I128: =OFFSET('Data Collection'!$EH$20,LU_Long[[#This Row],[Offset]],0) -> 0 | J128: =OFFSET('Data Collection'!$EH$20,LU_Long[[#This Row],[Offset]],1) -> 0 | K128: =OFFSET('Data Collection'!$EH$20,LU_Long[[#This Row],[Offset]],2) -> 0 | L128: =OFFSET('Data Collection'!$EH$20,LU_Long[[#This Row],[Offset]],3) -> 0 | M128: =IF(OFFSET(LU_Long[[#This Row],[Offset]],-1,0)="Offset",0,M127+1) -> 118
B129: =OFFSET('Data Collection'!$A$20,LU_Long[[#This Row],[Offset]],0) -> 0 | C129: =OFFSET('Data Collection'!$A$20,LU_Long[[#This Row],[Offset]],3) -> 0 | D129: =LU_Long[[#This Row],[Project Name]]&"-Land" -> 0-Land | E129: =OFFSET('Data Collection'!$A$20,LU_Long[[#This Row],[Offset]],5) -> 0 | F129: =OFFSET('Data Collection'!$A$20,LU_Long[[#This Row],[Offset]],6) -> 0 | G129: =OFFSET('Data Collection'!$EL$20,LU_Long[[#This Row],[Offset]],0) -> 0 | H129: =OFFSET('Data Collection'!$EL$20,LU_Long[[#This Row],[Offset]],1) -> 0 | I129: =OFFSET('Data Collection'!$EH$20,LU_Long[[#This Row],[Offset]],0) -> 0 | J129: =OFFSET('Data Collection'!$EH$20,LU_Long[[#This Row],[Offset]],1) -> 0 | K129: =OFFSET('Data Collection'!$EH$20,LU_Long[[#This Row],[Offset]],2) -> 0 | L129: =OFFSET('Data Collection'!$EH$20,LU_Long[[#This Row],[Offset]],3) -> 0 | M129: =IF(OFFSET(LU_Long[[#This Row],[Offset]],-1,0)="Offset",0,M128+1) -> 119
B130: =OFFSET('Data Collection'!$A$20,LU_Long[[#This Row],[Offset]],0) -> 0 | C130: =OFFSET('Data Collection'!$A$20,LU_Long[[#This Row],[Offset]],3) -> 0 | D130: =LU_Long[[#This Row],[Project Name]]&"-Land" -> 0-Land | E130: =OFFSET('Data Collection'!$A$20,LU_Long[[#This Row],[Offset]],5) -> 0 | F130: =OFFSET('Data Collection'!$A$20,LU_Long[[#This Row],[Offset]],6) -> 0 | G130: =OFFSET('Data Collection'!$EL$20,LU_Long[[#This Row],[Offset]],0) -> 0 | H130: =OFFSET('Data Collection'!$EL$20,LU_Long[[#This Row],[Offset]],1) -> 0 | I130: =OFFSET('Data Collection'!$EH$20,LU_Long[[#This Row],[Offset]],0) -> 0 | J130: =OFFSET('Data Collection'!$EH$20,LU_Long[[#This Row],[Offset]],1) -> 0 | K130: =OFFSET('Data Collection'!$EH$20,LU_Long[[#This Row],[Offset]],2) -> 0 | L130: =OFFSET('Data Collection'!$EH$20,LU_Long[[#This Row],[Offset]],3) -> 0 | M130: =IF(OFFSET(LU_Long[[#This Row],[Offset]],-1,0)="Offset",0,M129+1) -> 120
B131: =OFFSET('Data Collection'!$A$20,LU_Long[[#This Row],[Offset]],0) -> 0 | C131: =OFFSET('Data Collection'!$A$20,LU_Long[[#This Row],[Offset]],3) -> 0 | D131: =LU_Long[[#This Row],[Project Name]]&"-Land" -> 0-Land | E131: =OFFSET('Data Collection'!$A$20,LU_Long[[#This Row],[Offset]],5) -> 0 | F131: =OFFSET('Data Collection'!$A$20,LU_Long[[#This Row],[Offset]],6) -> 0 | G131: =OFFSET('Data Collection'!$EL$20,LU_Long[[#This Row],[Offset]],0) -> 0 | H131: =OFFSET('Data Collection'!$EL$20,LU_Long[[#This Row],[Offset]],1) -> 0 | I131: =OFFSET('Data Collection'!$EH$20,LU_Long[[#This Row],[Offset]],0) -> 0 | J131: =OFFSET('Data Collection'!$EH$20,LU_Long[[#This Row],[Offset]],1) -> 0 | K131: =OFFSET('Data Collection'!$EH$20,LU_Long[[#This Row],[Offset]],2) -> 0 | L131: =OFFSET('Data Collection'!$EH$20,LU_Long[[#This Row],[Offset]],3) -> 0 | M131: =IF(OFFSET(LU_Long[[#This Row],[Offset]],-1,0)="Offset",0,M130+1) -> 121
B132: =OFFSET('Data Collection'!$A$20,LU_Long[[#This Row],[Offset]],0) -> 0 | C132: =OFFSET('Data Collection'!$A$20,LU_Long[[#This Row],[Offset]],3) -> 0 | D132: =LU_Long[[#This Row],[Project Name]]&"-Land" -> 0-Land | E132: =OFFSET('Data Collection'!$A$20,LU_Long[[#This Row],[Offset]],5) -> 0 | F132: =OFFSET('Data Collection'!$A$20,LU_Long[[#This Row],[Offset]],6) -> 0 | G132: =OFFSET('Data Collection'!$EL$20,LU_Long[[#This Row],[Offset]],0) -> 0 | H132: =OFFSET('Data Collection'!$EL$20,LU_Long[[#This Row],[Offset]],1) -> 0 | I132: =OFFSET('Data Collection'!$EH$20,LU_Long[[#This Row],[Offset]],0) -> 0 | J132: =OFFSET('Data Collection'!$EH$20,LU_Long[[#This Row],[Offset]],1) -> 0 | K132: =OFFSET('Data Collection'!$EH$20,LU_Long[[#This Row],[Offset]],2) -> 0 | L132: =OFFSET('Data Collection'!$EH$20,LU_Long[[#This Row],[Offset]],3) -> 0 | M132: =IF(OFFSET(LU_Long[[#This Row],[Offset]],-1,0)="Offset",0,M131+1) -> 122
B133: =OFFSET('Data Collection'!$A$20,LU_Long[[#This Row],[Offset]],0) -> 0 | C133: =OFFSET('Data Collection'!$A$20,LU_Long[[#This Row],[Offset]],3) -> 0 | D133: =LU_Long[[#This Row],[Project Name]]&"-Land" -> 0-Land | E133: =OFFSET('Data Collection'!$A$20,LU_Long[[#This Row],[Offset]],5) -> 0 | F133: =OFFSET('Data Collection'!$A$20,LU_Long[[#This Row],[Offset]],6) -> 0 | G133: =OFFSET('Data Collection'!$EL$20,LU_Long[[#This Row],[Offset]],0) -> 0 | H133: =OFFSET('Data Collection'!$EL$20,LU_Long[[#This Row],[Offset]],1) -> 0 | I133: =OFFSET('Data Collection'!$EH$20,LU_Long[[#This Row],[Offset]],0) -> 0 | J133: =OFFSET('Data Collection'!$EH$20,LU_Long[[#This Row],[Offset]],1) -> 0 | K133: =OFFSET('Data Collection'!$EH$20,LU_Long[[#This Row],[Offset]],2) -> 0 | L133: =OFFSET('Data Collection'!$EH$20,LU_Long[[#This Row],[Offset]],3) -> 0 | M133: =IF(OFFSET(LU_Long[[#This Row],[Offset]],-1,0)="Offset",0,M132+1) -> 123
B134: =OFFSET('Data Collection'!$A$20,LU_Long[[#This Row],[Offset]],0) -> 0 | C134: =OFFSET('Data Collection'!$A$20,LU_Long[[#This Row],[Offset]],3) -> 0 | D134: =LU_Long[[#This Row],[Project Name]]&"-Land" -> 0-Land | E134: =OFFSET('Data Collection'!$A$20,LU_Long[[#This Row],[Offset]],5) -> 0 | F134: =OFFSET('Data Collection'!$A$20,LU_Long[[#This Row],[Offset]],6) -> 0 | G134: =OFFSET('Data Collection'!$EL$20,LU_Long[[#This Row],[Offset]],0) -> 0 | H134: =OFFSET('Data Collection'!$EL$20,LU_Long[[#This Row],[Offset]],1) -> 0 | I134: =OFFSET('Data Collection'!$EH$20,LU_Long[[#This Row],[Offset]],0) -> 0 | J134: =OFFSET('Data Collection'!$EH$20,LU_Long[[#This Row],[Offset]],1) -> 0 | K134: =OFFSET('Data Collection'!$EH$20,LU_Long[[#This Row],[Offset]],2) -> 0 | L134: =OFFSET('Data Collection'!$EH$20,LU_Long[[#This Row],[Offset]],3) -> 0 | M134: =IF(OFFSET(LU_Long[[#This Row],[Offset]],-1,0)="Offset",0,M133+1) -> 124
B135: =OFFSET('Data Collection'!$A$20,LU_Long[[#This Row],[Offset]],0) -> 0 | C135: =OFFSET('Data Collection'!$A$20,LU_Long[[#This Row],[Offset]],3) -> 0 | D135: =LU_Long[[#This Row],[Project Name]]&"-Land" -> 0-Land | E135: =OFFSET('Data Collection'!$A$20,LU_Long[[#This Row],[Offset]],5) -> 0 | F135: =OFFSET('Data Collection'!$A$20,LU_Long[[#This Row],[Offset]],6) -> 0 | G135: =OFFSET('Data Collection'!$EL$20,LU_Long[[#This Row],[Offset]],0) -> 0 | H135: =OFFSET('Data Collection'!$EL$20,LU_Long[[#This Row],[Offset]],1) -> 0 | I135: =OFFSET('Data Collection'!$EH$20,LU_Long[[#This Row],[Offset]],0) -> 0 | J135: =OFFSET('Data Collection'!$EH$20,LU_Long[[#This Row],[Offset]],1) -> 0 | K135: =OFFSET('Data Collection'!$EH$20,LU_Long[[#This Row],[Offset]],2) -> 0 | L135: =OFFSET('Data Collection'!$EH$20,LU_Long[[#This Row],[Offset]],3) -> 0 | M135: =IF(OFFSET(LU_Long[[#This Row],[Offset]],-1,0)="Offset",0,M134+1) -> 125
B136: =OFFSET('Data Collection'!$A$20,LU_Long[[#This Row],[Offset]],0) -> 0 | C136: =OFFSET('Data Collection'!$A$20,LU_Long[[#This Row],[Offset]],3) -> 0 | D136: =LU_Long[[#This Row],[Project Name]]&"-Land" -> 0-Land | E136: =OFFSET('Data Collection'!$A$20,LU_Long[[#This Row],[Offset]],5) -> 0 | F136: =OFFSET('Data Collection'!$A$20,LU_Long[[#This Row],[Offset]],6) -> 0 | G136: =OFFSET('Data Collection'!$EL$20,LU_Long[[#This Row],[Offset]],0) -> 0 | H136: =OFFSET('Data Collection'!$EL$20,LU_Long[[#This Row],[Offset]],1) -> 0 | I136: =OFFSET('Data Collection'!$EH$20,LU_Long[[#This Row],[Offset]],0) -> 0 | J136: =OFFSET('Data Collection'!$EH$20,LU_Long[[#This Row],[Offset]],1) -> 0 | K136: =OFFSET('Data Collection'!$EH$20,LU_Long[[#This Row],[Offset]],2) -> 0 | L136: =OFFSET('Data Collection'!$EH$20,LU_Long[[#This Row],[Offset]],3) -> 0 | M136: =IF(OFFSET(LU_Long[[#This Row],[Offset]],-1,0)="Offset",0,M135+1) -> 126
B137: =OFFSET('Data Collection'!$A$20,LU_Long[[#This Row],[Offset]],0) -> 0 | C137: =OFFSET('Data Collection'!$A$20,LU_Long[[#This Row],[Offset]],3) -> 0 | D137: =LU_Long[[#This Row],[Project Name]]&"-Land" -> 0-Land | E137: =OFFSET('Data Collection'!$A$20,LU_Long[[#This Row],[Offset]],5) -> 0 | F137: =OFFSET('Data Collection'!$A$20,LU_Long[[#This Row],[Offset]],6) -> 0 | G137: =OFFSET('Data Collection'!$EL$20,LU_Long[[#This Row],[Offset]],0) -> 0 | H137: =OFFSET('Data Collection'!$EL$20,LU_Long[[#This Row],[Offset]],1) -> 0 | I137: =OFFSET('Data Collection'!$EH$20,LU_Long[[#This Row],[Offset]],0) -> 0 | J137: =OFFSET('Data Collection'!$EH$20,LU_Long[[#This Row],[Offset]],1) -> 0 | K137: =OFFSET('Data Collection'!$EH$20,LU_Long[[#This Row],[Offset]],2) -> 0 | L137: =OFFSET('Data Collection'!$EH$20,LU_Long[[#This Row],[Offset]],3) -> 0 | M137: =IF(OFFSET(LU_Long[[#This Row],[Offset]],-1,0)="Offset",0,M136+1) -> 127
B138: =OFFSET('Data Collection'!$A$20,LU_Long[[#This Row],[Offset]],0) -> 0 | C138: =OFFSET('Data Collection'!$A$20,LU_Long[[#This Row],[Offset]],3) -> 0 | D138: =LU_Long[[#This Row],[Project Name]]&"-Land" -> 0-Land | E138: =OFFSET('Data Collection'!$A$20,LU_Long[[#This Row],[Offset]],5) -> 0 | F138: =OFFSET('Data Collection'!$A$20,LU_Long[[#This Row],[Offset]],6) -> 0 | G138: =OFFSET('Data Collection'!$EL$20,LU_Long[[#This Row],[Offset]],0) -> 0 | H138: =OFFSET('Data Collection'!$EL$20,LU_Long[[#This Row],[Offset]],1) -> 0 | I138: =OFFSET('Data Collection'!$EH$20,LU_Long[[#This Row],[Offset]],0) -> 0 | J138: =OFFSET('Data Collection'!$EH$20,LU_Long[[#This Row],[Offset]],1) -> 0 | K138: =OFFSET('Data Collection'!$EH$20,LU_Long[[#This Row],[Offset]],2) -> 0 | L138: =OFFSET('Data Collection'!$EH$20,LU_Long[[#This Row],[Offset]],3) -> 0 | M138: =IF(OFFSET(LU_Long[[#This Row],[Offset]],-1,0)="Offset",0,M137+1) -> 128
B139: =OFFSET('Data Collection'!$A$20,LU_Long[[#This Row],[Offset]],0) -> 0 | C139: =OFFSET('Data Collection'!$A$20,LU_Long[[#This Row],[Offset]],3) -> 0 | D139: =LU_Long[[#This Row],[Project Name]]&"-Land" -> 0-Land | E139: =OFFSET('Data Collection'!$A$20,LU_Long[[#This Row],[Offset]],5) -> 0 | F139: =OFFSET('Data Collection'!$A$20,LU_Long[[#This Row],[Offset]],6) -> 0 | G139: =OFFSET('Data Collection'!$EL$20,LU_Long[[#This Row],[Offset]],0) -> 0 | H139: =OFFSET('Data Collection'!$EL$20,LU_Long[[#This Row],[Offset]],1) -> 0 | I139: =OFFSET('Data Collection'!$EH$20,LU_Long[[#This Row],[Offset]],0) -> 0 | J139: =OFFSET('Data Collection'!$EH$20,LU_Long[[#This Row],[Offset]],1) -> 0 | K139: =OFFSET('Data Collection'!$EH$20,LU_Long[[#This Row],[Offset]],2) -> 0 | L139: =OFFSET('Data Collection'!$EH$20,LU_Long[[#This Row],[Offset]],3) -> 0 | M139: =IF(OFFSET(LU_Long[[#This Row],[Offset]],-1,0)="Offset",0,M138+1) -> 129
B140: =OFFSET('Data Collection'!$A$20,LU_Long[[#This Row],[Offset]],0) -> 0 | C140: =OFFSET('Data Collection'!$A$20,LU_Long[[#This Row],[Offset]],3) -> 0 | D140: =LU_Long[[#This Row],[Project Name]]&"-Land" -> 0-Land | E140: =OFFSET('Data Collection'!$A$20,LU_Long[[#This Row],[Offset]],5) -> 0 | F140: =OFFSET('Data Collection'!$A$20,LU_Long[[#This Row],[Offset]],6) -> 0 | G140: =OFFSET('Data Collection'!$EL$20,LU_Long[[#This Row],[Offset]],0) -> 0 | H140: =OFFSET('Data Collection'!$EL$20,LU_Long[[#This Row],[Offset]],1) -> 0 | I140: =OFFSET('Data Collection'!$EH$20,LU_Long[[#This Row],[Offset]],0) -> 0 | J140: =OFFSET('Data Collection'!$EH$20,LU_Long[[#This Row],[Offset]],1) -> 0 | K140: =OFFSET('Data Collection'!$EH$20,LU_Long[[#This Row],[Offset]],2) -> 0 | L140: =OFFSET('Data Collection'!$EH$20,LU_Long[[#This Row],[Offset]],3) -> 0 | M140: =IF(OFFSET(LU_Long[[#This Row],[Offset]],-1,0)="Offset",0,M139+1) -> 130
B141: =OFFSET('Data Collection'!$A$20,LU_Long[[#This Row],[Offset]],0) -> 0 | C141: =OFFSET('Data Collection'!$A$20,LU_Long[[#This Row],[Offset]],3) -> 0 | D141: =LU_Long[[#This Row],[Project Name]]&"-Land" -> 0-Land | E141: =OFFSET('Data Collection'!$A$20,LU_Long[[#This Row],[Offset]],5) -> 0 | F141: =OFFSET('Data Collection'!$A$20,LU_Long[[#This Row],[Offset]],6) -> 0 | G141: =OFFSET('Data Collection'!$EL$20,LU_Long[[#This Row],[Offset]],0) -> 0 | H141: =OFFSET('Data Collection'!$EL$20,LU_Long[[#This Row],[Offset]],1) -> 0 | I141: =OFFSET('Data Collection'!$EH$20,LU_Long[[#This Row],[Offset]],0) -> 0 | J141: =OFFSET('Data Collection'!$EH$20,LU_Long[[#This Row],[Offset]],1) -> 0 | K141: =OFFSET('Data Collection'!$EH$20,LU_Long[[#This Row],[Offset]],2) -> 0 | L141: =OFFSET('Data Collection'!$EH$20,LU_Long[[#This Row],[Offset]],3) -> 0 | M141: =IF(OFFSET(LU_Long[[#This Row],[Offset]],-1,0)="Offset",0,M140+1) -> 131
B142: =OFFSET('Data Collection'!$A$20,LU_Long[[#This Row],[Offset]],0) -> 0 | C142: =OFFSET('Data Collection'!$A$20,LU_Long[[#This Row],[Offset]],3) -> 0 | D142: =LU_Long[[#This Row],[Project Name]]&"-Land" -> 0-Land | E142: =OFFSET('Data Collection'!$A$20,LU_Long[[#This Row],[Offset]],5) -> 0 | F142: =OFFSET('Data Collection'!$A$20,LU_Long[[#This Row],[Offset]],6) -> 0 | G142: =OFFSET('Data Collection'!$EL$20,LU_Long[[#This Row],[Offset]],0) -> 0 | H142: =OFFSET('Data Collection'!$EL$20,LU_Long[[#This Row],[Offset]],1) -> 0 | I142: =OFFSET('Data Collection'!$EH$20,LU_Long[[#This Row],[Offset]],0) -> 0 | J142: =OFFSET('Data Collection'!$EH$20,LU_Long[[#This Row],[Offset]],1) -> 0 | K142: =OFFSET('Data Collection'!$EH$20,LU_Long[[#This Row],[Offset]],2) -> 0 | L142: =OFFSET('Data Collection'!$EH$20,LU_Long[[#This Row],[Offset]],3) -> 0 | M142: =IF(OFFSET(LU_Long[[#This Row],[Offset]],-1,0)="Offset",0,M141+1) -> 132
B143: =OFFSET('Data Collection'!$A$20,LU_Long[[#This Row],[Offset]],0) -> 0 | C143: =OFFSET('Data Collection'!$A$20,LU_Long[[#This Row],[Offset]],3) -> 0 | D143: =LU_Long[[#This Row],[Project Name]]&"-Land" -> 0-Land | E143: =OFFSET('Data Collection'!$A$20,LU_Long[[#This Row],[Offset]],5) -> 0 | F143: =OFFSET('Data Collection'!$A$20,LU_Long[[#This Row],[Offset]],6) -> 0 | G143: =OFFSET('Data Collection'!$EL$20,LU_Long[[#This Row],[Offset]],0) -> 0 | H143: =OFFSET('Data Collection'!$EL$20,LU_Long[[#This Row],[Offset]],1) -> 0 | I143: =OFFSET('Data Collection'!$EH$20,LU_Long[[#This Row],[Offset]],0) -> 0 | J143: =OFFSET('Data Collection'!$EH$20,LU_Long[[#This Row],[Offset]],1) -> 0 | K143: =OFFSET('Data Collection'!$EH$20,LU_Long[[#This Row],[Offset]],2) -> 0 | L143: =OFFSET('Data Collection'!$EH$20,LU_Long[[#This Row],[Offset]],3) -> 0 | M143: =IF(OFFSET(LU_Long[[#This Row],[Offset]],-1,0)="Offset",0,M142+1) -> 133
B144: =OFFSET('Data Collection'!$A$20,LU_Long[[#This Row],[Offset]],0) -> 0 | C144: =OFFSET('Data Collection'!$A$20,LU_Long[[#This Row],[Offset]],3) -> 0 | D144: =LU_Long[[#This Row],[Project Name]]&"-Land" -> 0-Land | E144: =OFFSET('Data Collection'!$A$20,LU_Long[[#This Row],[Offset]],5) -> 0 | F144: =OFFSET('Data Collection'!$A$20,LU_Long[[#This Row],[Offset]],6) -> 0 | G144: =OFFSET('Data Collection'!$EL$20,LU_Long[[#This Row],[Offset]],0) -> 0 | H144: =OFFSET('Data Collection'!$EL$20,LU_Long[[#This Row],[Offset]],1) -> 0 | I144: =OFFSET('Data Collection'!$EH$20,LU_Long[[#This Row],[Offset]],0) -> 0 | J144: =OFFSET('Data Collection'!$EH$20,LU_Long[[#This Row],[Offset]],1) -> 0 | K144: =OFFSET('Data Collection'!$EH$20,LU_Long[[#This Row],[Offset]],2) -> 0 | L144: =OFFSET('Data Collection'!$EH$20,LU_Long[[#This Row],[Offset]],3) -> 0 | M144: =IF(OFFSET(LU_Long[[#This Row],[Offset]],-1,0)="Offset",0,M143+1) -> 134
B145: =OFFSET('Data Collection'!$A$20,LU_Long[[#This Row],[Offset]],0) -> 0 | C145: =OFFSET('Data Collection'!$A$20,LU_Long[[#This Row],[Offset]],3) -> 0 | D145: =LU_Long[[#This Row],[Project Name]]&"-Land" -> 0-Land | E145: =OFFSET('Data Collection'!$A$20,LU_Long[[#This Row],[Offset]],5) -> 0 | F145: =OFFSET('Data Collection'!$A$20,LU_Long[[#This Row],[Offset]],6) -> 0 | G145: =OFFSET('Data Collection'!$EL$20,LU_Long[[#This Row],[Offset]],0) -> 0 | H145: =OFFSET('Data Collection'!$EL$20,LU_Long[[#This Row],[Offset]],1) -> 0 | I145: =OFFSET('Data Collection'!$EH$20,LU_Long[[#This Row],[Offset]],0) -> 0 | J145: =OFFSET('Data Collection'!$EH$20,LU_Long[[#This Row],[Offset]],1) -> 0 | K145: =OFFSET('Data Collection'!$EH$20,LU_Long[[#This Row],[Offset]],2) -> 0 | L145: =OFFSET('Data Collection'!$EH$20,LU_Long[[#This Row],[Offset]],3) -> 0 | M145: =IF(OFFSET(LU_Long[[#This Row],[Offset]],-1,0)="Offset",0,M144+1) -> 135
B146: =OFFSET('Data Collection'!$A$20,LU_Long[[#This Row],[Offset]],0) -> 0 | C146: =OFFSET('Data Collection'!$A$20,LU_Long[[#This Row],[Offset]],3) -> 0 | D146: =LU_Long[[#This Row],[Project Name]]&"-Land" -> 0-Land | E146: =OFFSET('Data Collection'!$A$20,LU_Long[[#This Row],[Offset]],5) -> 0 | F146: =OFFSET('Data Collection'!$A$20,LU_Long[[#This Row],[Offset]],6) -> 0 | G146: =OFFSET('Data Collection'!$EL$20,LU_Long[[#This Row],[Offset]],0) -> 0 | H146: =OFFSET('Data Collection'!$EL$20,LU_Long[[#This Row],[Offset]],1) -> 0 | I146: =OFFSET('Data Collection'!$EH$20,LU_Long[[#This Row],[Offset]],0) -> 0 | J146: =OFFSET('Data Collection'!$EH$20,LU_Long[[#This Row],[Offset]],1) -> 0 | K146: =OFFSET('Data Collection'!$EH$20,LU_Long[[#This Row],[Offset]],2) -> 0 | L146: =OFFSET('Data Collection'!$EH$20,LU_Long[[#This Row],[Offset]],3) -> 0 | M146: =IF(OFFSET(LU_Long[[#This Row],[Offset]],-1,0)="Offset",0,M145+1) -> 136
B147: =OFFSET('Data Collection'!$A$20,LU_Long[[#This Row],[Offset]],0) -> 0 | C147: =OFFSET('Data Collection'!$A$20,LU_Long[[#This Row],[Offset]],3) -> 0 | D147: =LU_Long[[#This Row],[Project Name]]&"-Land" -> 0-Land | E147: =OFFSET('Data Collection'!$A$20,LU_Long[[#This Row],[Offset]],5) -> 0 | F147: =OFFSET('Data Collection'!$A$20,LU_Long[[#This Row],[Offset]],6) -> 0 | G147: =OFFSET('Data Collection'!$EL$20,LU_Long[[#This Row],[Offset]],0) -> 0 | H147: =OFFSET('Data Collection'!$EL$20,LU_Long[[#This Row],[Offset]],1) -> 0 | I147: =OFFSET('Data Collection'!$EH$20,LU_Long[[#This Row],[Offset]],0) -> 0 | J147: =OFFSET('Data Collection'!$EH$20,LU_Long[[#This Row],[Offset]],1) -> 0 | K147: =OFFSET('Data Collection'!$EH$20,LU_Long[[#This Row],[Offset]],2) -> 0 | L147: =OFFSET('Data Collection'!$EH$20,LU_Long[[#This Row],[Offset]],3) -> 0 | M147: =IF(OFFSET(LU_Long[[#This Row],[Offset]],-1,0)="Offset",0,M146+1) -> 137
B148: =OFFSET('Data Collection'!$A$20,LU_Long[[#This Row],[Offset]],0) -> 0 | C148: =OFFSET('Data Collection'!$A$20,LU_Long[[#This Row],[Offset]],3) -> 0 | D148: =LU_Long[[#This Row],[Project Name]]&"-Land" -> 0-Land | E148: =OFFSET('Data Collection'!$A$20,LU_Long[[#This Row],[Offset]],5) -> 0 | F148: =OFFSET('Data Collection'!$A$20,LU_Long[[#This Row],[Offset]],6) -> 0 | G148: =OFFSET('Data Collection'!$EL$20,LU_Long[[#This Row],[Offset]],0) -> 0 | H148: =OFFSET('Data Collection'!$EL$20,LU_Long[[#This Row],[Offset]],1) -> 0 | I148: =OFFSET('Data Collection'!$EH$20,LU_Long[[#This Row],[Offset]],0) -> 0 | J148: =OFFSET('Data Collection'!$EH$20,LU_Long[[#This Row],[Offset]],1) -> 0 | K148: =OFFSET('Data Collection'!$EH$20,LU_Long[[#This Row],[Offset]],2) -> 0 | L148: =OFFSET('Data Collection'!$EH$20,LU_Long[[#This Row],[Offset]],3) -> 0 | M148: =IF(OFFSET(LU_Long[[#This Row],[Offset]],-1,0)="Offset",0,M147+1) -> 138
B149: =OFFSET('Data Collection'!$A$20,LU_Long[[#This Row],[Offset]],0) -> 0 | C149: =OFFSET('Data Collection'!$A$20,LU_Long[[#This Row],[Offset]],3) -> 0 | D149: =LU_Long[[#This Row],[Project Name]]&"-Land" -> 0-Land | E149: =OFFSET('Data Collection'!$A$20,LU_Long[[#This Row],[Offset]],5) -> 0 | F149: =OFFSET('Data Collection'!$A$20,LU_Long[[#This Row],[Offset]],6) -> 0 | G149: =OFFSET('Data Collection'!$EL$20,LU_Long[[#This Row],[Offset]],0) -> 0 | H149: =OFFSET('Data Collection'!$EL$20,LU_Long[[#This Row],[Offset]],1) -> 0 | I149: =OFFSET('Data Collection'!$EH$20,LU_Long[[#This Row],[Offset]],0) -> 0 | J149: =OFFSET('Data Collection'!$EH$20,LU_Long[[#This Row],[Offset]],1) -> 0 | K149: =OFFSET('Data Collection'!$EH$20,LU_Long[[#This Row],[Offset]],2) -> 0 | L149: =OFFSET('Data Collection'!$EH$20,LU_Long[[#This Row],[Offset]],3) -> 0 | M149: =IF(OFFSET(LU_Long[[#This Row],[Offset]],-1,0)="Offset",0,M148+1) -> 139
B150: =OFFSET('Data Collection'!$A$20,LU_Long[[#This Row],[Offset]],0) -> 0 | C150: =OFFSET('Data Collection'!$A$20,LU_Long[[#This Row],[Offset]],3) -> 0 | D150: =LU_Long[[#This Row],[Project Name]]&"-Land" -> 0-Land | E150: =OFFSET('Data Collection'!$A$20,LU_Long[[#This Row],[Offset]],5) -> 0 | F150: =OFFSET('Data Collection'!$A$20,LU_Long[[#This Row],[Offset]],6) -> 0 | G150: =OFFSET('Data Collection'!$EL$20,LU_Long[[#This Row],[Offset]],0) -> 0 | H150: =OFFSET('Data Collection'!$EL$20,LU_Long[[#This Row],[Offset]],1) -> 0 | I150: =OFFSET('Data Collection'!$EH$20,LU_Long[[#This Row],[Offset]],0) -> 0 | J150: =OFFSET('Data Collection'!$EH$20,LU_Long[[#This Row],[Offset]],1) -> 0 | K150: =OFFSET('Data Collection'!$EH$20,LU_Long[[#This Row],[Offset]],2) -> 0 | L150: =OFFSET('Data Collection'!$EH$20,LU_Long[[#This Row],[Offset]],3) -> 0 | M150: =IF(OFFSET(LU_Long[[#This Row],[Offset]],-1,0)="Offset",0,M149+1) -> 140
B151: =OFFSET('Data Collection'!$A$20,LU_Long[[#This Row],[Offset]],0) -> 0 | C151: =OFFSET('Data Collection'!$A$20,LU_Long[[#This Row],[Offset]],3) -> 0 | D151: =LU_Long[[#This Row],[Project Name]]&"-Land" -> 0-Land | E151: =OFFSET('Data Collection'!$A$20,LU_Long[[#This Row],[Offset]],5) -> 0 | F151: =OFFSET('Data Collection'!$A$20,LU_Long[[#This Row],[Offset]],6) -> 0 | G151: =OFFSET('Data Collection'!$EL$20,LU_Long[[#This Row],[Offset]],0) -> 0 | H151: =OFFSET('Data Collection'!$EL$20,LU_Long[[#This Row],[Offset]],1) -> 0 | I151: =OFFSET('Data Collection'!$EH$20,LU_Long[[#This Row],[Offset]],0) -> 0 | J151: =OFFSET('Data Collection'!$EH$20,LU_Long[[#This Row],[Offset]],1) -> 0 | K151: =OFFSET('Data Collection'!$EH$20,LU_Long[[#This Row],[Offset]],2) -> 0 | L151: =OFFSET('Data Collection'!$EH$20,LU_Long[[#This Row],[Offset]],3) -> 0 | M151: =IF(OFFSET(LU_Long[[#This Row],[Offset]],-1,0)="Offset",0,M150+1) -> 141
B152: =OFFSET('Data Collection'!$A$20,LU_Long[[#This Row],[Offset]],0) -> 0 | C152: =OFFSET('Data Collection'!$A$20,LU_Long[[#This Row],[Offset]],3) -> 0 | D152: =LU_Long[[#This Row],[Project Name]]&"-Land" -> 0-Land | E152: =OFFSET('Data Collection'!$A$20,LU_Long[[#This Row],[Offset]],5) -> 0 | F152: =OFFSET('Data Collection'!$A$20,LU_Long[[#This Row],[Offset]],6) -> 0 | G152: =OFFSET('Data Collection'!$EL$20,LU_Long[[#This Row],[Offset]],0) -> 0 | H152: =OFFSET('Data Collection'!$EL$20,LU_Long[[#This Row],[Offset]],1) -> 0 | I152: =OFFSET('Data Collection'!$EH$20,LU_Long[[#This Row],[Offset]],0) -> 0 | J152: =OFFSET('Data Collection'!$EH$20,LU_Long[[#This Row],[Offset]],1) -> 0 | K152: =OFFSET('Data Collection'!$EH$20,LU_Long[[#This Row],[Offset]],2) -> 0 | L152: =OFFSET('Data Collection'!$EH$20,LU_Long[[#This Row],[Offset]],3) -> 0 | M152: =IF(OFFSET(LU_Long[[#This Row],[Offset]],-1,0)="Offset",0,M151+1) -> 142
B153: =OFFSET('Data Collection'!$A$20,LU_Long[[#This Row],[Offset]],0) -> 0 | C153: =OFFSET('Data Collection'!$A$20,LU_Long[[#This Row],[Offset]],3) -> 0 | D153: =LU_Long[[#This Row],[Project Name]]&"-Land" -> 0-Land | E153: =OFFSET('Data Collection'!$A$20,LU_Long[[#This Row],[Offset]],5) -> 0 | F153: =OFFSET('Data Collection'!$A$20,LU_Long[[#This Row],[Offset]],6) -> 0 | G153: =OFFSET('Data Collection'!$EL$20,LU_Long[[#This Row],[Offset]],0) -> 0 | H153: =OFFSET('Data Collection'!$EL$20,LU_Long[[#This Row],[Offset]],1) -> 0 | I153: =OFFSET('Data Collection'!$EH$20,LU_Long[[#This Row],[Offset]],0) -> 0 | J153: =OFFSET('Data Collection'!$EH$20,LU_Long[[#This Row],[Offset]],1) -> 0 | K153: =OFFSET('Data Collection'!$EH$20,LU_Long[[#This Row],[Offset]],2) -> 0 | L153: =OFFSET('Data Collection'!$EH$20,LU_Long[[#This Row],[Offset]],3) -> 0 | M153: =IF(OFFSET(LU_Long[[#This Row],[Offset]],-1,0)="Offset",0,M152+1) -> 143
B154: =OFFSET('Data Collection'!$A$20,LU_Long[[#This Row],[Offset]],0) -> 0 | C154: =OFFSET('Data Collection'!$A$20,LU_Long[[#This Row],[Offset]],3) -> 0 | D154: =LU_Long[[#This Row],[Project Name]]&"-Land" -> 0-Land | E154: =OFFSET('Data Collection'!$A$20,LU_Long[[#This Row],[Offset]],5) -> 0 | F154: =OFFSET('Data Collection'!$A$20,LU_Long[[#This Row],[Offset]],6) -> 0 | G154: =OFFSET('Data Collection'!$EL$20,LU_Long[[#This Row],[Offset]],0) -> 0 | H154: =OFFSET('Data Collection'!$EL$20,LU_Long[[#This Row],[Offset]],1) -> 0 | I154: =OFFSET('Data Collection'!$EH$20,LU_Long[[#This Row],[Offset]],0) -> 0 | J154: =OFFSET('Data Collection'!$EH$20,LU_Long[[#This Row],[Offset]],1) -> 0 | K154: =OFFSET('Data Collection'!$EH$20,LU_Long[[#This Row],[Offset]],2) -> 0 | L154: =OFFSET('Data Collection'!$EH$20,LU_Long[[#This Row],[Offset]],3) -> 0 | M154: =IF(OFFSET(LU_Long[[#This Row],[Offset]],-1,0)="Offset",0,M153+1) -> 144
B155: =OFFSET('Data Collection'!$A$20,LU_Long[[#This Row],[Offset]],0) -> 0 | C155: =OFFSET('Data Collection'!$A$20,LU_Long[[#This Row],[Offset]],3) -> 0 | D155: =LU_Long[[#This Row],[Project Name]]&"-Land" -> 0-Land | E155: =OFFSET('Data Collection'!$A$20,LU_Long[[#This Row],[Offset]],5) -> 0 | F155: =OFFSET('Data Collection'!$A$20,LU_Long[[#This Row],[Offset]],6) -> 0 | G155: =OFFSET('Data Collection'!$EL$20,LU_Long[[#This Row],[Offset]],0) -> 0 | H155: =OFFSET('Data Collection'!$EL$20,LU_Long[[#This Row],[Offset]],1) -> 0 | I155: =OFFSET('Data Collection'!$EH$20,LU_Long[[#This Row],[Offset]],0) -> 0 | J155: =OFFSET('Data Collection'!$EH$20,LU_Long[[#This Row],[Offset]],1) -> 0 | K155: =OFFSET('Data Collection'!$EH$20,LU_Long[[#This Row],[Offset]],2) -> 0 | L155: =OFFSET('Data Collection'!$EH$20,LU_Long[[#This Row],[Offset]],3) -> 0 | M155: =IF(OFFSET(LU_Long[[#This Row],[Offset]],-1,0)="Offset",0,M154+1) -> 145
B156: =OFFSET('Data Collection'!$A$20,LU_Long[[#This Row],[Offset]],0) -> 0 | C156: =OFFSET('Data Collection'!$A$20,LU_Long[[#This Row],[Offset]],3) -> 0 | D156: =LU_Long[[#This Row],[Project Name]]&"-Land" -> 0-Land | E156: =OFFSET('Data Collection'!$A$20,LU_Long[[#This Row],[Offset]],5) -> 0 | F156: =OFFSET('Data Collection'!$A$20,LU_Long[[#This Row],[Offset]],6) -> 0 | G156: =OFFSET('Data Collection'!$EL$20,LU_Long[[#This Row],[Offset]],0) -> 0 | H156: =OFFSET('Data Collection'!$EL$20,LU_Long[[#This Row],[Offset]],1) -> 0 | I156: =OFFSET('Data Collection'!$EH$20,LU_Long[[#This Row],[Offset]],0) -> 0 | J156: =OFFSET('Data Collection'!$EH$20,LU_Long[[#This Row],[Offset]],1) -> 0 | K156: =OFFSET('Data Collection'!$EH$20,LU_Long[[#This Row],[Offset]],2) -> 0 | L156: =OFFSET('Data Collection'!$EH$20,LU_Long[[#This Row],[Offset]],3) -> 0 | M156: =IF(OFFSET(LU_Long[[#This Row],[Offset]],-1,0)="Offset",0,M155+1) -> 146
B157: =OFFSET('Data Collection'!$A$20,LU_Long[[#This Row],[Offset]],0) -> 0 | C157: =OFFSET('Data Collection'!$A$20,LU_Long[[#This Row],[Offset]],3) -> 0 | D157: =LU_Long[[#This Row],[Project Name]]&"-Land" -> 0-Land | E157: =OFFSET('Data Collection'!$A$20,LU_Long[[#This Row],[Offset]],5) -> 0 | F157: =OFFSET('Data Collection'!$A$20,LU_Long[[#This Row],[Offset]],6) -> 0 | G157: =OFFSET('Data Collection'!$EL$20,LU_Long[[#This Row],[Offset]],0) -> 0 | H157: =OFFSET('Data Collection'!$EL$20,LU_Long[[#This Row],[Offset]],1) -> 0 | I157: =OFFSET('Data Collection'!$EH$20,LU_Long[[#This Row],[Offset]],0) -> 0 | J157: =OFFSET('Data Collection'!$EH$20,LU_Long[[#This Row],[Offset]],1) -> 0 | K157: =OFFSET('Data Collection'!$EH$20,LU_Long[[#This Row],[Offset]],2) -> 0 | L157: =OFFSET('Data Collection'!$EH$20,LU_Long[[#This Row],[Offset]],3) -> 0 | M157: =IF(OFFSET(LU_Long[[#This Row],[Offset]],-1,0)="Offset",0,M156+1) -> 147
B158: =OFFSET('Data Collection'!$A$20,LU_Long[[#This Row],[Offset]],0) -> 0 | C158: =OFFSET('Data Collection'!$A$20,LU_Long[[#This Row],[Offset]],3) -> 0 | D158: =LU_Long[[#This Row],[Project Name]]&"-Land" -> 0-Land | E158: =OFFSET('Data Collection'!$A$20,LU_Long[[#This Row],[Offset]],5) -> 0 | F158: =OFFSET('Data Collection'!$A$20,LU_Long[[#This Row],[Offset]],6) -> 0 | G158: =OFFSET('Data Collection'!$EL$20,LU_Long[[#This Row],[Offset]],0) -> 0 | H158: =OFFSET('Data Collection'!$EL$20,LU_Long[[#This Row],[Offset]],1) -> 0 | I158: =OFFSET('Data Collection'!$EH$20,LU_Long[[#This Row],[Offset]],0) -> 0 | J158: =OFFSET('Data Collection'!$EH$20,LU_Long[[#This Row],[Offset]],1) -> 0 | K158: =OFFSET('Data Collection'!$EH$20,LU_Long[[#This Row],[Offset]],2) -> 0 | L158: =OFFSET('Data Collection'!$EH$20,LU_Long[[#This Row],[Offset]],3) -> 0 | M158: =IF(OFFSET(LU_Long[[#This Row],[Offset]],-1,0)="Offset",0,M157+1) -> 148
B159: =OFFSET('Data Collection'!$A$20,LU_Long[[#This Row],[Offset]],0) -> 0 | C159: =OFFSET('Data Collection'!$A$20,LU_Long[[#This Row],[Offset]],3) -> 0 | D159: =LU_Long[[#This Row],[Project Name]]&"-Land" -> 0-Land | E159: =OFFSET('Data Collection'!$A$20,LU_Long[[#This Row],[Offset]],5) -> 0 | F159: =OFFSET('Data Collection'!$A$20,LU_Long[[#This Row],[Offset]],6) -> 0 | G159: =OFFSET('Data Collection'!$EL$20,LU_Long[[#This Row],[Offset]],0) -> 0 | H159: =OFFSET('Data Collection'!$EL$20,LU_Long[[#This Row],[Offset]],1) -> 0 | I159: =OFFSET('Data Collection'!$EH$20,LU_Long[[#This Row],[Offset]],0) -> 0 | J159: =OFFSET('Data Collection'!$EH$20,LU_Long[[#This Row],[Offset]],1) -> 0 | K159: =OFFSET('Data Collection'!$EH$20,LU_Long[[#This Row],[Offset]],2) -> 0 | L159: =OFFSET('Data Collection'!$EH$20,LU_Long[[#This Row],[Offset]],3) -> 0 | M159: =IF(OFFSET(LU_Long[[#This Row],[Offset]],-1,0)="Offset",0,M158+1) -> 149
B160: =OFFSET('Data Collection'!$A$20,LU_Long[[#This Row],[Offset]],0) -> 0 | C160: =OFFSET('Data Collection'!$A$20,LU_Long[[#This Row],[Offset]],3) -> 0 | D160: =LU_Long[[#This Row],[Project Name]]&"-Land" -> 0-Land | E160: =OFFSET('Data Collection'!$A$20,LU_Long[[#This Row],[Offset]],5) -> 0 | F160: =OFFSET('Data Collection'!$A$20,LU_Long[[#This Row],[Offset]],6) -> 0 | G160: =OFFSET('Data Collection'!$EL$20,LU_Long[[#This Row],[Offset]],0) -> 0 | H160: =OFFSET('Data Collection'!$EL$20,LU_Long[[#This Row],[Offset]],1) -> 0 | I160: =OFFSET('Data Collection'!$EH$20,LU_Long[[#This Row],[Offset]],0) -> 0 | J160: =OFFSET('Data Collection'!$EH$20,LU_Long[[#This Row],[Offset]],1) -> 0 | K160: =OFFSET('Data Collection'!$EH$20,LU_Long[[#This Row],[Offset]],2) -> 0 | L160: =OFFSET('Data Collection'!$EH$20,LU_Long[[#This Row],[Offset]],3) -> 0 | M160: =IF(OFFSET(LU_Long[[#This Row],[Offset]],-1,0)="Offset",0,M159+1) -> 150
B161: =OFFSET('Data Collection'!$A$20,LU_Long[[#This Row],[Offset]],0) -> 0 | C161: =OFFSET('Data Collection'!$A$20,LU_Long[[#This Row],[Offset]],3) -> 0 | D161: =LU_Long[[#This Row],[Project Name]]&"-Land" -> 0-Land | E161: =OFFSET('Data Collection'!$A$20,LU_Long[[#This Row],[Offset]],5) -> 0 | F161: =OFFSET('Data Collection'!$A$20,LU_Long[[#This Row],[Offset]],6) -> 0 | G161: =OFFSET('Data Collection'!$EL$20,LU_Long[[#This Row],[Offset]],0) -> 0 | H161: =OFFSET('Data Collection'!$EL$20,LU_Long[[#This Row],[Offset]],1) -> 0 | I161: =OFFSET('Data Collection'!$EH$20,LU_Long[[#This Row],[Offset]],0) -> 0 | J161: =OFFSET('Data Collection'!$EH$20,LU_Long[[#This Row],[Offset]],1) -> 0 | K161: =OFFSET('Data Collection'!$EH$20,LU_Long[[#This Row],[Offset]],2) -> 0 | L161: =OFFSET('Data Collection'!$EH$20,LU_Long[[#This Row],[Offset]],3) -> 0 | M161: =IF(OFFSET(LU_Long[[#This Row],[Offset]],-1,0)="Offset",0,M160+1) -> 151
B162: =OFFSET('Data Collection'!$A$20,LU_Long[[#This Row],[Offset]],0) -> 0 | C162: =OFFSET('Data Collection'!$A$20,LU_Long[[#This Row],[Offset]],3) -> 0 | D162: =LU_Long[[#This Row],[Project Name]]&"-Land" -> 0-Land | E162: =OFFSET('Data Collection'!$A$20,LU_Long[[#This Row],[Offset]],5) -> 0 | F162: =OFFSET('Data Collection'!$A$20,LU_Long[[#This Row],[Offset]],6) -> 0 | G162: =OFFSET('Data Collection'!$EL$20,LU_Long[[#This Row],[Offset]],0) -> 0 | H162: =OFFSET('Data Collection'!$EL$20,LU_Long[[#This Row],[Offset]],1) -> 0 | I162: =OFFSET('Data Collection'!$EH$20,LU_Long[[#This Row],[Offset]],0) -> 0 | J162: =OFFSET('Data Collection'!$EH$20,LU_Long[[#This Row],[Offset]],1) -> 0 | K162: =OFFSET('Data Collection'!$EH$20,LU_Long[[#This Row],[Offset]],2) -> 0 | L162: =OFFSET('Data Collection'!$EH$20,LU_Long[[#This Row],[Offset]],3) -> 0 | M162: =IF(OFFSET(LU_Long[[#This Row],[Offset]],-1,0)="Offset",0,M161+1) -> 152
B163: =OFFSET('Data Collection'!$A$20,LU_Long[[#This Row],[Offset]],0) -> 0 | C163: =OFFSET('Data Collection'!$A$20,LU_Long[[#This Row],[Offset]],3) -> 0 | D163: =LU_Long[[#This Row],[Project Name]]&"-Land" -> 0-Land | E163: =OFFSET('Data Collection'!$A$20,LU_Long[[#This Row],[Offset]],5) -> 0 | F163: =OFFSET('Data Collection'!$A$20,LU_Long[[#This Row],[Offset]],6) -> 0 | G163: =OFFSET('Data Collection'!$EL$20,LU_Long[[#This Row],[Offset]],0) -> 0 | H163: =OFFSET('Data Collection'!$EL$20,LU_Long[[#This Row],[Offset]],1) -> 0 | I163: =OFFSET('Data Collection'!$EH$20,LU_Long[[#This Row],[Offset]],0) -> 0 | J163: =OFFSET('Data Collection'!$EH$20,LU_Long[[#This Row],[Offset]],1) -> 0 | K163: =OFFSET('Data Collection'!$EH$20,LU_Long[[#This Row],[Offset]],2) -> 0 | L163: =OFFSET('Data Collection'!$EH$20,LU_Long[[#This Row],[Offset]],3) -> 0 | M163: =IF(OFFSET(LU_Long[[#This Row],[Offset]],-1,0)="Offset",0,M162+1) -> 153
B164: =OFFSET('Data Collection'!$A$20,LU_Long[[#This Row],[Offset]],0) -> 0 | C164: =OFFSET('Data Collection'!$A$20,LU_Long[[#This Row],[Offset]],3) -> 0 | D164: =LU_Long[[#This Row],[Project Name]]&"-Land" -> 0-Land | E164: =OFFSET('Data Collection'!$A$20,LU_Long[[#This Row],[Offset]],5) -> 0 | F164: =OFFSET('Data Collection'!$A$20,LU_Long[[#This Row],[Offset]],6) -> 0 | G164: =OFFSET('Data Collection'!$EL$20,LU_Long[[#This Row],[Offset]],0) -> 0 | H164: =OFFSET('Data Collection'!$EL$20,LU_Long[[#This Row],[Offset]],1) -> 0 | I164: =OFFSET('Data Collection'!$EH$20,LU_Long[[#This Row],[Offset]],0) -> 0 | J164: =OFFSET('Data Collection'!$EH$20,LU_Long[[#This Row],[Offset]],1) -> 0 | K164: =OFFSET('Data Collection'!$EH$20,LU_Long[[#This Row],[Offset]],2) -> 0 | L164: =OFFSET('Data Collection'!$EH$20,LU_Long[[#This Row],[Offset]],3) -> 0 | M164: =IF(OFFSET(LU_Long[[#This Row],[Offset]],-1,0)="Offset",0,M163+1) -> 154
B165: =OFFSET('Data Collection'!$A$20,LU_Long[[#This Row],[Offset]],0) -> 0 | C165: =OFFSET('Data Collection'!$A$20,LU_Long[[#This Row],[Offset]],3) -> 0 | D165: =LU_Long[[#This Row],[Project Name]]&"-Land" -> 0-Land | E165: =OFFSET('Data Collection'!$A$20,LU_Long[[#This Row],[Offset]],5) -> 0 | F165: =OFFSET('Data Collection'!$A$20,LU_Long[[#This Row],[Offset]],6) -> 0 | G165: =OFFSET('Data Collection'!$EL$20,LU_Long[[#This Row],[Offset]],0) -> 0 | H165: =OFFSET('Data Collection'!$EL$20,LU_Long[[#This Row],[Offset]],1) -> 0 | I165: =OFFSET('Data Collection'!$EH$20,LU_Long[[#This Row],[Offset]],0) -> 0 | J165: =OFFSET('Data Collection'!$EH$20,LU_Long[[#This Row],[Offset]],1) -> 0 | K165: =OFFSET('Data Collection'!$EH$20,LU_Long[[#This Row],[Offset]],2) -> 0 | L165: =OFFSET('Data Collection'!$EH$20,LU_Long[[#This Row],[Offset]],3) -> 0 | M165: =IF(OFFSET(LU_Long[[#This Row],[Offset]],-1,0)="Offset",0,M164+1) -> 155
B166: =OFFSET('Data Collection'!$A$20,LU_Long[[#This Row],[Offset]],0) -> 0 | C166: =OFFSET('Data Collection'!$A$20,LU_Long[[#This Row],[Offset]],3) -> 0 | D166: =LU_Long[[#This Row],[Project Name]]&"-Land" -> 0-Land | E166: =OFFSET('Data Collection'!$A$20,LU_Long[[#This Row],[Offset]],5) -> 0 | F166: =OFFSET('Data Collection'!$A$20,LU_Long[[#This Row],[Offset]],6) -> 0 | G166: =OFFSET('Data Collection'!$EL$20,LU_Long[[#This Row],[Offset]],0) -> 0 | H166: =OFFSET('Data Collection'!$EL$20,LU_Long[[#This Row],[Offset]],1) -> 0 | I166: =OFFSET('Data Collection'!$EH$20,LU_Long[[#This Row],[Offset]],0) -> 0 | J166: =OFFSET('Data Collection'!$EH$20,LU_Long[[#This Row],[Offset]],1) -> 0 | K166: =OFFSET('Data Collection'!$EH$20,LU_Long[[#This Row],[Offset]],2) -> 0 | L166: =OFFSET('Data Collection'!$EH$20,LU_Long[[#This Row],[Offset]],3) -> 0 | M166: =IF(OFFSET(LU_Long[[#This Row],[Offset]],-1,0)="Offset",0,M165+1) -> 156
B167: =OFFSET('Data Collection'!$A$20,LU_Long[[#This Row],[Offset]],0) -> 0 | C167: =OFFSET('Data Collection'!$A$20,LU_Long[[#This Row],[Offset]],3) -> 0 | D167: =LU_Long[[#This Row],[Project Name]]&"-Land" -> 0-Land | E167: =OFFSET('Data Collection'!$A$20,LU_Long[[#This Row],[Offset]],5) -> 0 | F167: =OFFSET('Data Collection'!$A$20,LU_Long[[#This Row],[Offset]],6) -> 0 | G167: =OFFSET('Data Collection'!$EL$20,LU_Long[[#This Row],[Offset]],0) -> 0 | H167: =OFFSET('Data Collection'!$EL$20,LU_Long[[#This Row],[Offset]],1) -> 0 | I167: =OFFSET('Data Collection'!$EH$20,LU_Long[[#This Row],[Offset]],0) -> 0 | J167: =OFFSET('Data Collection'!$EH$20,LU_Long[[#This Row],[Offset]],1) -> 0 | K167: =OFFSET('Data Collection'!$EH$20,LU_Long[[#This Row],[Offset]],2) -> 0 | L167: =OFFSET('Data Collection'!$EH$20,LU_Long[[#This Row],[Offset]],3) -> 0 | M167: =IF(OFFSET(LU_Long[[#This Row],[Offset]],-1,0)="Offset",0,M166+1) -> 157
B168: =OFFSET('Data Collection'!$A$20,LU_Long[[#This Row],[Offset]],0) -> 0 | C168: =OFFSET('Data Collection'!$A$20,LU_Long[[#This Row],[Offset]],3) -> 0 | D168: =LU_Long[[#This Row],[Project Name]]&"-Land" -> 0-Land | E168: =OFFSET('Data Collection'!$A$20,LU_Long[[#This Row],[Offset]],5) -> 0 | F168: =OFFSET('Data Collection'!$A$20,LU_Long[[#This Row],[Offset]],6) -> 0 | G168: =OFFSET('Data Collection'!$EL$20,LU_Long[[#This Row],[Offset]],0) -> 0 | H168: =OFFSET('Data Collection'!$EL$20,LU_Long[[#This Row],[Offset]],1) -> 0 | I168: =OFFSET('Data Collection'!$EH$20,LU_Long[[#This Row],[Offset]],0) -> 0 | J168: =OFFSET('Data Collection'!$EH$20,LU_Long[[#This Row],[Offset]],1) -> 0 | K168: =OFFSET('Data Collection'!$EH$20,LU_Long[[#This Row],[Offset]],2) -> 0 | L168: =OFFSET('Data Collection'!$EH$20,LU_Long[[#This Row],[Offset]],3) -> 0 | M168: =IF(OFFSET(LU_Long[[#This Row],[Offset]],-1,0)="Offset",0,M167+1) -> 158
B169: =OFFSET('Data Collection'!$A$20,LU_Long[[#This Row],[Offset]],0) -> 0 | C169: =OFFSET('Data Collection'!$A$20,LU_Long[[#This Row],[Offset]],3) -> 0 | D169: =LU_Long[[#This Row],[Project Name]]&"-Land" -> 0-Land | E169: =OFFSET('Data Collection'!$A$20,LU_Long[[#This Row],[Offset]],5) -> 0 | F169: =OFFSET('Data Collection'!$A$20,LU_Long[[#This Row],[Offset]],6) -> 0 | G169: =OFFSET('Data Collection'!$EL$20,LU_Long[[#This Row],[Offset]],0) -> 0 | H169: =OFFSET('Data Collection'!$EL$20,LU_Long[[#This Row],[Offset]],1) -> 0 | I169: =OFFSET('Data Collection'!$EH$20,LU_Long[[#This Row],[Offset]],0) -> 0 | J169: =OFFSET('Data Collection'!$EH$20,LU_Long[[#This Row],[Offset]],1) -> 0 | K169: =OFFSET('Data Collection'!$EH$20,LU_Long[[#This Row],[Offset]],2) -> 0 | L169: =OFFSET('Data Collection'!$EH$20,LU_Long[[#This Row],[Offset]],3) -> 0 | M169: =IF(OFFSET(LU_Long[[#This Row],[Offset]],-1,0)="Offset",0,M168+1) -> 159
B170: =OFFSET('Data Collection'!$A$20,LU_Long[[#This Row],[Offset]],0) -> 0 | C170: =OFFSET('Data Collection'!$A$20,LU_Long[[#This Row],[Offset]],3) -> 0 | D170: =LU_Long[[#This Row],[Project Name]]&"-Land" -> 0-Land | E170: =OFFSET('Data Collection'!$A$20,LU_Long[[#This Row],[Offset]],5) -> 0 | F170: =OFFSET('Data Collection'!$A$20,LU_Long[[#This Row],[Offset]],6) -> 0 | G170: =OFFSET('Data Collection'!$EL$20,LU_Long[[#This Row],[Offset]],0) -> 0 | H170: =OFFSET('Data Collection'!$EL$20,LU_Long[[#This Row],[Offset]],1) -> 0 | I170: =OFFSET('Data Collection'!$EH$20,LU_Long[[#This Row],[Offset]],0) -> 0 | J170: =OFFSET('Data Collection'!$EH$20,LU_Long[[#This Row],[Offset]],1) -> 0 | K170: =OFFSET('Data Collection'!$EH$20,LU_Long[[#This Row],[Offset]],2) -> 0 | L170: =OFFSET('Data Collection'!$EH$20,LU_Long[[#This Row],[Offset]],3) -> 0 | M170: =IF(OFFSET(LU_Long[[#This Row],[Offset]],-1,0)="Offset",0,M169+1) -> 160
B171: =OFFSET('Data Collection'!$A$20,LU_Long[[#This Row],[Offset]],0) -> 0 | C171: =OFFSET('Data Collection'!$A$20,LU_Long[[#This Row],[Offset]],3) -> 0 | D171: =LU_Long[[#This Row],[Project Name]]&"-Land" -> 0-Land | E171: =OFFSET('Data Collection'!$A$20,LU_Long[[#This Row],[Offset]],5) -> 0 | F171: =OFFSET('Data Collection'!$A$20,LU_Long[[#This Row],[Offset]],6) -> 0 | G171: =OFFSET('Data Collection'!$EL$20,LU_Long[[#This Row],[Offset]],0) -> 0 | H171: =OFFSET('Data Collection'!$EL$20,LU_Long[[#This Row],[Offset]],1) -> 0 | I171: =OFFSET('Data Collection'!$EH$20,LU_Long[[#This Row],[Offset]],0) -> 0 | J171: =OFFSET('Data Collection'!$EH$20,LU_Long[[#This Row],[Offset]],1) -> 0 | K171: =OFFSET('Data Collection'!$EH$20,LU_Long[[#This Row],[Offset]],2) -> 0 | L171: =OFFSET('Data Collection'!$EH$20,LU_Long[[#This Row],[Offset]],3) -> 0 | M171: =IF(OFFSET(LU_Long[[#This Row],[Offset]],-1,0)="Offset",0,M170+1) -> 161
B172: =OFFSET('Data Collection'!$A$20,LU_Long[[#This Row],[Offset]],0) -> 0 | C172: =OFFSET('Data Collection'!$A$20,LU_Long[[#This Row],[Offset]],3) -> 0 | D172: =LU_Long[[#This Row],[Project Name]]&"-Land" -> 0-Land | E172: =OFFSET('Data Collection'!$A$20,LU_Long[[#This Row],[Offset]],5) -> 0 | F172: =OFFSET('Data Collection'!$A$20,LU_Long[[#This Row],[Offset]],6) -> 0 | G172: =OFFSET('Data Collection'!$EL$20,LU_Long[[#This Row],[Offset]],0) -> 0 | H172: =OFFSET('Data Collection'!$EL$20,LU_Long[[#This Row],[Offset]],1) -> 0 | I172: =OFFSET('Data Collection'!$EH$20,LU_Long[[#This Row],[Offset]],0) -> 0 | J172: =OFFSET('Data Collection'!$EH$20,LU_Long[[#This Row],[Offset]],1) -> 0 | K172: =OFFSET('Data Collection'!$EH$20,LU_Long[[#This Row],[Offset]],2) -> 0 | L172: =OFFSET('Data Collection'!$EH$20,LU_Long[[#This Row],[Offset]],3) -> 0 | M172: =IF(OFFSET(LU_Long[[#This Row],[Offset]],-1,0)="Offset",0,M171+1) -> 162
B173: =OFFSET('Data Collection'!$A$20,LU_Long[[#This Row],[Offset]],0) -> 0 | C173: =OFFSET('Data Collection'!$A$20,LU_Long[[#This Row],[Offset]],3) -> 0 | D173: =LU_Long[[#This Row],[Project Name]]&"-Land" -> 0-Land | E173: =OFFSET('Data Collection'!$A$20,LU_Long[[#This Row],[Offset]],5) -> 0 | F173: =OFFSET('Data Collection'!$A$20,LU_Long[[#This Row],[Offset]],6) -> 0 | G173: =OFFSET('Data Collection'!$EL$20,LU_Long[[#This Row],[Offset]],0) -> 0 | H173: =OFFSET('Data Collection'!$EL$20,LU_Long[[#This Row],[Offset]],1) -> 0 | I173: =OFFSET('Data Collection'!$EH$20,LU_Long[[#This Row],[Offset]],0) -> 0 | J173: =OFFSET('Data Collection'!$EH$20,LU_Long[[#This Row],[Offset]],1) -> 0 | K173: =OFFSET('Data Collection'!$EH$20,LU_Long[[#This Row],[Offset]],2) -> 0 | L173: =OFFSET('Data Collection'!$EH$20,LU_Long[[#This Row],[Offset]],3) -> 0 | M173: =IF(OFFSET(LU_Long[[#This Row],[Offset]],-1,0)="Offset",0,M172+1) -> 163
B174: =OFFSET('Data Collection'!$A$20,LU_Long[[#This Row],[Offset]],0) -> 0 | C174: =OFFSET('Data Collection'!$A$20,LU_Long[[#This Row],[Offset]],3) -> 0 | D174: =LU_Long[[#This Row],[Project Name]]&"-Land" -> 0-Land | E174: =OFFSET('Data Collection'!$A$20,LU_Long[[#This Row],[Offset]],5) -> 0 | F174: =OFFSET('Data Collection'!$A$20,LU_Long[[#This Row],[Offset]],6) -> 0 | G174: =OFFSET('Data Collection'!$EL$20,LU_Long[[#This Row],[Offset]],0) -> 0 | H174: =OFFSET('Data Collection'!$EL$20,LU_Long[[#This Row],[Offset]],1) -> 0 | I174: =OFFSET('Data Collection'!$EH$20,LU_Long[[#This Row],[Offset]],0) -> 0 | J174: =OFFSET('Data Collection'!$EH$20,LU_Long[[#This Row],[Offset]],1) -> 0 | K174: =OFFSET('Data Collection'!$EH$20,LU_Long[[#This Row],[Offset]],2) -> 0 | L174: =OFFSET('Data Collection'!$EH$20,LU_Long[[#This Row],[Offset]],3) -> 0 | M174: =IF(OFFSET(LU_Long[[#This Row],[Offset]],-1,0)="Offset",0,M173+1) -> 164
B175: =OFFSET('Data Collection'!$A$20,LU_Long[[#This Row],[Offset]],0) -> 0 | C175: =OFFSET('Data Collection'!$A$20,LU_Long[[#This Row],[Offset]],3) -> 0 | D175: =LU_Long[[#This Row],[Project Name]]&"-Land" -> 0-Land | E175: =OFFSET('Data Collection'!$A$20,LU_Long[[#This Row],[Offset]],5) -> 0 | F175: =OFFSET('Data Collection'!$A$20,LU_Long[[#This Row],[Offset]],6) -> 0 | G175: =OFFSET('Data Collection'!$EL$20,LU_Long[[#This Row],[Offset]],0) -> 0 | H175: =OFFSET('Data Collection'!$EL$20,LU_Long[[#This Row],[Offset]],1) -> 0 | I175: =OFFSET('Data Collection'!$EH$20,LU_Long[[#This Row],[Offset]],0) -> 0 | J175: =OFFSET('Data Collection'!$EH$20,LU_Long[[#This Row],[Offset]],1) -> 0 | K175: =OFFSET('Data Collection'!$EH$20,LU_Long[[#This Row],[Offset]],2) -> 0 | L175: =OFFSET('Data Collection'!$EH$20,LU_Long[[#This Row],[Offset]],3) -> 0 | M175: =IF(OFFSET(LU_Long[[#This Row],[Offset]],-1,0)="Offset",0,M174+1) -> 165
B176: =OFFSET('Data Collection'!$A$20,LU_Long[[#This Row],[Offset]],0) -> 0 | C176: =OFFSET('Data Collection'!$A$20,LU_Long[[#This Row],[Offset]],3) -> 0 | D176: =LU_Long[[#This Row],[Project Name]]&"-Land" -> 0-Land | E176: =OFFSET('Data Collection'!$A$20,LU_Long[[#This Row],[Offset]],5) -> 0 | F176: =OFFSET('Data Collection'!$A$20,LU_Long[[#This Row],[Offset]],6) -> 0 | G176: =OFFSET('Data Collection'!$EL$20,LU_Long[[#This Row],[Offset]],0) -> 0 | H176: =OFFSET('Data Collection'!$EL$20,LU_Long[[#This Row],[Offset]],1) -> 0 | I176: =OFFSET('Data Collection'!$EH$20,LU_Long[[#This Row],[Offset]],0) -> 0 | J176: =OFFSET('Data Collection'!$EH$20,LU_Long[[#This Row],[Offset]],1) -> 0 | K176: =OFFSET('Data Collection'!$EH$20,LU_Long[[#This Row],[Offset]],2) -> 0 | L176: =OFFSET('Data Collection'!$EH$20,LU_Long[[#This Row],[Offset]],3) -> 0 | M176: =IF(OFFSET(LU_Long[[#This Row],[Offset]],-1,0)="Offset",0,M175+1) -> 166
B177: =OFFSET('Data Collection'!$A$20,LU_Long[[#This Row],[Offset]],0) -> 0 | C177: =OFFSET('Data Collection'!$A$20,LU_Long[[#This Row],[Offset]],3) -> 0 | D177: =LU_Long[[#This Row],[Project Name]]&"-Land" -> 0-Land | E177: =OFFSET('Data Collection'!$A$20,LU_Long[[#This Row],[Offset]],5) -> 0 | F177: =OFFSET('Data Collection'!$A$20,LU_Long[[#This Row],[Offset]],6) -> 0 | G177: =OFFSET('Data Collection'!$EL$20,LU_Long[[#This Row],[Offset]],0) -> 0 | H177: =OFFSET('Data Collection'!$EL$20,LU_Long[[#This Row],[Offset]],1) -> 0 | I177: =OFFSET('Data Collection'!$EH$20,LU_Long[[#This Row],[Offset]],0) -> 0 | J177: =OFFSET('Data Collection'!$EH$20,LU_Long[[#This Row],[Offset]],1) -> 0 | K177: =OFFSET('Data Collection'!$EH$20,LU_Long[[#This Row],[Offset]],2) -> 0 | L177: =OFFSET('Data Collection'!$EH$20,LU_Long[[#This Row],[Offset]],3) -> 0 | M177: =IF(OFFSET(LU_Long[[#This Row],[Offset]],-1,0)="Offset",0,M176+1) -> 167
B178: =OFFSET('Data Collection'!$A$20,LU_Long[[#This Row],[Offset]],0) -> 0 | C178: =OFFSET('Data Collection'!$A$20,LU_Long[[#This Row],[Offset]],3) -> 0 | D178: =LU_Long[[#This Row],[Project Name]]&"-Land" -> 0-Land | E178: =OFFSET('Data Collection'!$A$20,LU_Long[[#This Row],[Offset]],5) -> 0 | F178: =OFFSET('Data Collection'!$A$20,LU_Long[[#This Row],[Offset]],6) -> 0 | G178: =OFFSET('Data Collection'!$EL$20,LU_Long[[#This Row],[Offset]],0) -> 0 | H178: =OFFSET('Data Collection'!$EL$20,LU_Long[[#This Row],[Offset]],1) -> 0 | I178: =OFFSET('Data Collection'!$EH$20,LU_Long[[#This Row],[Offset]],0) -> 0 | J178: =OFFSET('Data Collection'!$EH$20,LU_Long[[#This Row],[Offset]],1) -> 0 | K178: =OFFSET('Data Collection'!$EH$20,LU_Long[[#This Row],[Offset]],2) -> 0 | L178: =OFFSET('Data Collection'!$EH$20,LU_Long[[#This Row],[Offset]],3) -> 0 | M178: =IF(OFFSET(LU_Long[[#This Row],[Offset]],-1,0)="Offset",0,M177+1) -> 168
B179: =OFFSET('Data Collection'!$A$20,LU_Long[[#This Row],[Offset]],0) -> 0 | C179: =OFFSET('Data Collection'!$A$20,LU_Long[[#This Row],[Offset]],3) -> 0 | D179: =LU_Long[[#This Row],[Project Name]]&"-Land" -> 0-Land | E179: =OFFSET('Data Collection'!$A$20,LU_Long[[#This Row],[Offset]],5) -> 0 | F179: =OFFSET('Data Collection'!$A$20,LU_Long[[#This Row],[Offset]],6) -> 0 | G179: =OFFSET('Data Collection'!$EL$20,LU_Long[[#This Row],[Offset]],0) -> 0 | H179: =OFFSET('Data Collection'!$EL$20,LU_Long[[#This Row],[Offset]],1) -> 0 | I179: =OFFSET('Data Collection'!$EH$20,LU_Long[[#This Row],[Offset]],0) -> 0 | J179: =OFFSET('Data Collection'!$EH$20,LU_Long[[#This Row],[Offset]],1) -> 0 | K179: =OFFSET('Data Collection'!$EH$20,LU_Long[[#This Row],[Offset]],2) -> 0 | L179: =OFFSET('Data Collection'!$EH$20,LU_Long[[#This Row],[Offset]],3) -> 0 | M179: =IF(OFFSET(LU_Long[[#This Row],[Offset]],-1,0)="Offset",0,M178+1) -> 169
B180: =OFFSET('Data Collection'!$A$20,LU_Long[[#This Row],[Offset]],0) -> 0 | C180: =OFFSET('Data Collection'!$A$20,LU_Long[[#This Row],[Offset]],3) -> 0 | D180: =LU_Long[[#This Row],[Project Name]]&"-Land" -> 0-Land | E180: =OFFSET('Data Collection'!$A$20,LU_Long[[#This Row],[Offset]],5) -> 0 | F180: =OFFSET('Data Collection'!$A$20,LU_Long[[#This Row],[Offset]],6) -> 0 | G180: =OFFSET('Data Collection'!$EL$20,LU_Long[[#This Row],[Offset]],0) -> 0 | H180: =OFFSET('Data Collection'!$EL$20,LU_Long[[#This Row],[Offset]],1) -> 0 | I180: =OFFSET('Data Collection'!$EH$20,LU_Long[[#This Row],[Offset]],0) -> 0 | J180: =OFFSET('Data Collection'!$EH$20,LU_Long[[#This Row],[Offset]],1) -> 0 | K180: =OFFSET('Data Collection'!$EH$20,LU_Long[[#This Row],[Offset]],2) -> 0 | L180: =OFFSET('Data Collection'!$EH$20,LU_Long[[#This Row],[Offset]],3) -> 0 | M180: =IF(OFFSET(LU_Long[[#This Row],[Offset]],-1,0)="Offset",0,M179+1) -> 170
B181: =OFFSET('Data Collection'!$A$20,LU_Long[[#This Row],[Offset]],0) -> 0 | C181: =OFFSET('Data Collection'!$A$20,LU_Long[[#This Row],[Offset]],3) -> 0 | D181: =LU_Long[[#This Row],[Project Name]]&"-Land" -> 0-Land | E181: =OFFSET('Data Collection'!$A$20,LU_Long[[#This Row],[Offset]],5) -> 0 | F181: =OFFSET('Data Collection'!$A$20,LU_Long[[#This Row],[Offset]],6) -> 0 | G181: =OFFSET('Data Collection'!$EL$20,LU_Long[[#This Row],[Offset]],0) -> 0 | H181: =OFFSET('Data Collection'!$EL$20,LU_Long[[#This Row],[Offset]],1) -> 0 | I181: =OFFSET('Data Collection'!$EH$20,LU_Long[[#This Row],[Offset]],0) -> 0 | J181: =OFFSET('Data Collection'!$EH$20,LU_Long[[#This Row],[Offset]],1) -> 0 | K181: =OFFSET('Data Collection'!$EH$20,LU_Long[[#This Row],[Offset]],2) -> 0 | L181: =OFFSET('Data Collection'!$EH$20,LU_Long[[#This Row],[Offset]],3) -> 0 | M181: =IF(OFFSET(LU_Long[[#This Row],[Offset]],-1,0)="Offset",0,M180+1) -> 171
B182: =OFFSET('Data Collection'!$A$20,LU_Long[[#This Row],[Offset]],0) -> 0 | C182: =OFFSET('Data Collection'!$A$20,LU_Long[[#This Row],[Offset]],3) -> 0 | D182: =LU_Long[[#This Row],[Project Name]]&"-Land" -> 0-Land | E182: =OFFSET('Data Collection'!$A$20,LU_Long[[#This Row],[Offset]],5) -> 0 | F182: =OFFSET('Data Collection'!$A$20,LU_Long[[#This Row],[Offset]],6) -> 0 | G182: =OFFSET('Data Collection'!$EL$20,LU_Long[[#This Row],[Offset]],0) -> 0 | H182: =OFFSET('Data Collection'!$EL$20,LU_Long[[#This Row],[Offset]],1) -> 0 | I182: =OFFSET('Data Collection'!$EH$20,LU_Long[[#This Row],[Offset]],0) -> 0 | J182: =OFFSET('Data Collection'!$EH$20,LU_Long[[#This Row],[Offset]],1) -> 0 | K182: =OFFSET('Data Collection'!$EH$20,LU_Long[[#This Row],[Offset]],2) -> 0 | L182: =OFFSET('Data Collection'!$EH$20,LU_Long[[#This Row],[Offset]],3) -> 0 | M182: =IF(OFFSET(LU_Long[[#This Row],[Offset]],-1,0)="Offset",0,M181+1) -> 172
B183: =OFFSET('Data Collection'!$A$20,LU_Long[[#This Row],[Offset]],0) -> 0 | C183: =OFFSET('Data Collection'!$A$20,LU_Long[[#This Row],[Offset]],3) -> 0 | D183: =LU_Long[[#This Row],[Project Name]]&"-Land" -> 0-Land | E183: =OFFSET('Data Collection'!$A$20,LU_Long[[#This Row],[Offset]],5) -> 0 | F183: =OFFSET('Data Collection'!$A$20,LU_Long[[#This Row],[Offset]],6) -> 0 | G183: =OFFSET('Data Collection'!$EL$20,LU_Long[[#This Row],[Offset]],0) -> 0 | H183: =OFFSET('Data Collection'!$EL$20,LU_Long[[#This Row],[Offset]],1) -> 0 | I183: =OFFSET('Data Collection'!$EH$20,LU_Long[[#This Row],[Offset]],0) -> 0 | J183: =OFFSET('Data Collection'!$EH$20,LU_Long[[#This Row],[Offset]],1) -> 0 | K183: =OFFSET('Data Collection'!$EH$20,LU_Long[[#This Row],[Offset]],2) -> 0 | L183: =OFFSET('Data Collection'!$EH$20,LU_Long[[#This Row],[Offset]],3) -> 0 | M183: =IF(OFFSET(LU_Long[[#This Row],[Offset]],-1,0)="Offset",0,M182+1) -> 173
B184: =OFFSET('Data Collection'!$A$20,LU_Long[[#This Row],[Offset]],0) -> 0 | C184: =OFFSET('Data Collection'!$A$20,LU_Long[[#This Row],[Offset]],3) -> 0 | D184: =LU_Long[[#This Row],[Project Name]]&"-Land" -> 0-Land | E184: =OFFSET('Data Collection'!$A$20,LU_Long[[#This Row],[Offset]],5) -> 0 | F184: =OFFSET('Data Collection'!$A$20,LU_Long[[#This Row],[Offset]],6) -> 0 | G184: =OFFSET('Data Collection'!$EL$20,LU_Long[[#This Row],[Offset]],0) -> 0 | H184: =OFFSET('Data Collection'!$EL$20,LU_Long[[#This Row],[Offset]],1) -> 0 | I184: =OFFSET('Data Collection'!$EH$20,LU_Long[[#This Row],[Offset]],0) -> 0 | J184: =OFFSET('Data Collection'!$EH$20,LU_Long[[#This Row],[Offset]],1) -> 0 | K184: =OFFSET('Data Collection'!$EH$20,LU_Long[[#This Row],[Offset]],2) -> 0 | L184: =OFFSET('Data Collection'!$EH$20,LU_Long[[#This Row],[Offset]],3) -> 0 | M184: =IF(OFFSET(LU_Long[[#This Row],[Offset]],-1,0)="Offset",0,M183+1) -> 174
B185: =OFFSET('Data Collection'!$A$20,LU_Long[[#This Row],[Offset]],0) -> 0 | C185: =OFFSET('Data Collection'!$A$20,LU_Long[[#This Row],[Offset]],3) -> 0 | D185: =LU_Long[[#This Row],[Project Name]]&"-Land" -> 0-Land | E185: =OFFSET('Data Collection'!$A$20,LU_Long[[#This Row],[Offset]],5) -> 0 | F185: =OFFSET('Data Collection'!$A$20,LU_Long[[#This Row],[Offset]],6) -> 0 | G185: =OFFSET('Data Collection'!$EL$20,LU_Long[[#This Row],[Offset]],0) -> 0 | H185: =OFFSET('Data Collection'!$EL$20,LU_Long[[#This Row],[Offset]],1) -> 0 | I185: =OFFSET('Data Collection'!$EH$20,LU_Long[[#This Row],[Offset]],0) -> 0 | J185: =OFFSET('Data Collection'!$EH$20,LU_Long[[#This Row],[Offset]],1) -> 0 | K185: =OFFSET('Data Collection'!$EH$20,LU_Long[[#This Row],[Offset]],2) -> 0 | L185: =OFFSET('Data Collection'!$EH$20,LU_Long[[#This Row],[Offset]],3) -> 0 | M185: =IF(OFFSET(LU_Long[[#This Row],[Offset]],-1,0)="Offset",0,M184+1) -> 175
B186: =OFFSET('Data Collection'!$A$20,LU_Long[[#This Row],[Offset]],0) -> 0 | C186: =OFFSET('Data Collection'!$A$20,LU_Long[[#This Row],[Offset]],3) -> 0 | D186: =LU_Long[[#This Row],[Project Name]]&"-Land" -> 0-Land | E186: =OFFSET('Data Collection'!$A$20,LU_Long[[#This Row],[Offset]],5) -> 0 | F186: =OFFSET('Data Collection'!$A$20,LU_Long[[#This Row],[Offset]],6) -> 0 | G186: =OFFSET('Data Collection'!$EL$20,LU_Long[[#This Row],[Offset]],0) -> 0 | H186: =OFFSET('Data Collection'!$EL$20,LU_Long[[#This Row],[Offset]],1) -> 0 | I186: =OFFSET('Data Collection'!$EH$20,LU_Long[[#This Row],[Offset]],0) -> 0 | J186: =OFFSET('Data Collection'!$EH$20,LU_Long[[#This Row],[Offset]],1) -> 0 | K186: =OFFSET('Data Collection'!$EH$20,LU_Long[[#This Row],[Offset]],2) -> 0 | L186: =OFFSET('Data Collection'!$EH$20,LU_Long[[#This Row],[Offset]],3) -> 0 | M186: =IF(OFFSET(LU_Long[[#This Row],[Offset]],-1,0)="Offset",0,M185+1) -> 176
B187: =OFFSET('Data Collection'!$A$20,LU_Long[[#This Row],[Offset]],0) -> 0 | C187: =OFFSET('Data Collection'!$A$20,LU_Long[[#This Row],[Offset]],3) -> 0 | D187: =LU_Long[[#This Row],[Project Name]]&"-Land" -> 0-Land | E187: =OFFSET('Data Collection'!$A$20,LU_Long[[#This Row],[Offset]],5) -> 0 | F187: =OFFSET('Data Collection'!$A$20,LU_Long[[#This Row],[Offset]],6) -> 0 | G187: =OFFSET('Data Collection'!$EL$20,LU_Long[[#This Row],[Offset]],0) -> 0 | H187: =OFFSET('Data Collection'!$EL$20,LU_Long[[#This Row],[Offset]],1) -> 0 | I187: =OFFSET('Data Collection'!$EH$20,LU_Long[[#This Row],[Offset]],0) -> 0 | J187: =OFFSET('Data Collection'!$EH$20,LU_Long[[#This Row],[Offset]],1) -> 0 | K187: =OFFSET('Data Collection'!$EH$20,LU_Long[[#This Row],[Offset]],2) -> 0 | L187: =OFFSET('Data Collection'!$EH$20,LU_Long[[#This Row],[Offset]],3) -> 0 | M187: =IF(OFFSET(LU_Long[[#This Row],[Offset]],-1,0)="Offset",0,M186+1) -> 177
B188: =OFFSET('Data Collection'!$A$20,LU_Long[[#This Row],[Offset]],0) -> 0 | C188: =OFFSET('Data Collection'!$A$20,LU_Long[[#This Row],[Offset]],3) -> 0 | D188: =LU_Long[[#This Row],[Project Name]]&"-Land" -> 0-Land | E188: =OFFSET('Data Collection'!$A$20,LU_Long[[#This Row],[Offset]],5) -> 0 | F188: =OFFSET('Data Collection'!$A$20,LU_Long[[#This Row],[Offset]],6) -> 0 | G188: =OFFSET('Data Collection'!$EL$20,LU_Long[[#This Row],[Offset]],0) -> 0 | H188: =OFFSET('Data Collection'!$EL$20,LU_Long[[#This Row],[Offset]],1) -> 0 | I188: =OFFSET('Data Collection'!$EH$20,LU_Long[[#This Row],[Offset]],0) -> 0 | J188: =OFFSET('Data Collection'!$EH$20,LU_Long[[#This Row],[Offset]],1) -> 0 | K188: =OFFSET('Data Collection'!$EH$20,LU_Long[[#This Row],[Offset]],2) -> 0 | L188: =OFFSET('Data Collection'!$EH$20,LU_Long[[#This Row],[Offset]],3) -> 0 | M188: =IF(OFFSET(LU_Long[[#This Row],[Offset]],-1,0)="Offset",0,M187+1) -> 178
B189: =OFFSET('Data Collection'!$A$20,LU_Long[[#This Row],[Offset]],0) -> 0 | C189: =OFFSET('Data Collection'!$A$20,LU_Long[[#This Row],[Offset]],3) -> 0 | D189: =LU_Long[[#This Row],[Project Name]]&"-Land" -> 0-Land | E189: =OFFSET('Data Collection'!$A$20,LU_Long[[#This Row],[Offset]],5) -> 0 | F189: =OFFSET('Data Collection'!$A$20,LU_Long[[#This Row],[Offset]],6) -> 0 | G189: =OFFSET('Data Collection'!$EL$20,LU_Long[[#This Row],[Offset]],0) -> 0 | H189: =OFFSET('Data Collection'!$EL$20,LU_Long[[#This Row],[Offset]],1) -> 0 | I189: =OFFSET('Data Collection'!$EH$20,LU_Long[[#This Row],[Offset]],0) -> 0 | J189: =OFFSET('Data Collection'!$EH$20,LU_Long[[#This Row],[Offset]],1) -> 0 | K189: =OFFSET('Data Collection'!$EH$20,LU_Long[[#This Row],[Offset]],2) -> 0 | L189: =OFFSET('Data Collection'!$EH$20,LU_Long[[#This Row],[Offset]],3) -> 0 | M189: =IF(OFFSET(LU_Long[[#This Row],[Offset]],-1,0)="Offset",0,M188+1) -> 179
B190: =OFFSET('Data Collection'!$A$20,LU_Long[[#This Row],[Offset]],0) -> 0 | C190: =OFFSET('Data Collection'!$A$20,LU_Long[[#This Row],[Offset]],3) -> 0 | D190: =LU_Long[[#This Row],[Project Name]]&"-Land" -> 0-Land | E190: =OFFSET('Data Collection'!$A$20,LU_Long[[#This Row],[Offset]],5) -> 0 | F190: =OFFSET('Data Collection'!$A$20,LU_Long[[#This Row],[Offset]],6) -> 0 | G190: =OFFSET('Data Collection'!$EL$20,LU_Long[[#This Row],[Offset]],0) -> 0 | H190: =OFFSET('Data Collection'!$EL$20,LU_Long[[#This Row],[Offset]],1) -> 0 | I190: =OFFSET('Data Collection'!$EH$20,LU_Long[[#This Row],[Offset]],0) -> 0 | J190: =OFFSET('Data Collection'!$EH$20,LU_Long[[#This Row],[Offset]],1) -> 0 | K190: =OFFSET('Data Collection'!$EH$20,LU_Long[[#This Row],[Offset]],2) -> 0 | L190: =OFFSET('Data Collection'!$EH$20,LU_Long[[#This Row],[Offset]],3) -> 0 | M190: =IF(OFFSET(LU_Long[[#This Row],[Offset]],-1,0)="Offset",0,M189+1) -> 180
B191: =OFFSET('Data Collection'!$A$20,LU_Long[[#This Row],[Offset]],0) -> 0 | C191: =OFFSET('Data Collection'!$A$20,LU_Long[[#This Row],[Offset]],3) -> 0 | D191: =LU_Long[[#This Row],[Project Name]]&"-Land" -> 0-Land | E191: =OFFSET('Data Collection'!$A$20,LU_Long[[#This Row],[Offset]],5) -> 0 | F191: =OFFSET('Data Collection'!$A$20,LU_Long[[#This Row],[Offset]],6) -> 0 | G191: =OFFSET('Data Collection'!$EL$20,LU_Long[[#This Row],[Offset]],0) -> 0 | H191: =OFFSET('Data Collection'!$EL$20,LU_Long[[#This Row],[Offset]],1) -> 0 | I191: =OFFSET('Data Collection'!$EH$20,LU_Long[[#This Row],[Offset]],0) -> 0 | J191: =OFFSET('Data Collection'!$EH$20,LU_Long[[#This Row],[Offset]],1) -> 0 | K191: =OFFSET('Data Collection'!$EH$20,LU_Long[[#This Row],[Offset]],2) -> 0 | L191: =OFFSET('Data Collection'!$EH$20,LU_Long[[#This Row],[Offset]],3) -> 0 | M191: =IF(OFFSET(LU_Long[[#This Row],[Offset]],-1,0)="Offset",0,M190+1) -> 181
B192: =OFFSET('Data Collection'!$A$20,LU_Long[[#This Row],[Offset]],0) -> 0 | C192: =OFFSET('Data Collection'!$A$20,LU_Long[[#This Row],[Offset]],3) -> 0 | D192: =LU_Long[[#This Row],[Project Name]]&"-Land" -> 0-Land | E192: =OFFSET('Data Collection'!$A$20,LU_Long[[#This Row],[Offset]],5) -> 0 | F192: =OFFSET('Data Collection'!$A$20,LU_Long[[#This Row],[Offset]],6) -> 0 | G192: =OFFSET('Data Collection'!$EL$20,LU_Long[[#This Row],[Offset]],0) -> 0 | H192: =OFFSET('Data Collection'!$EL$20,LU_Long[[#This Row],[Offset]],1) -> 0 | I192: =OFFSET('Data Collection'!$EH$20,LU_Long[[#This Row],[Offset]],0) -> 0 | J192: =OFFSET('Data Collection'!$EH$20,LU_Long[[#This Row],[Offset]],1) -> 0 | K192: =OFFSET('Data Collection'!$EH$20,LU_Long[[#This Row],[Offset]],2) -> 0 | L192: =OFFSET('Data Collection'!$EH$20,LU_Long[[#This Row],[Offset]],3) -> 0 | M192: =IF(OFFSET(LU_Long[[#This Row],[Offset]],-1,0)="Offset",0,M191+1) -> 182
B193: =OFFSET('Data Collection'!$A$20,LU_Long[[#This Row],[Offset]],0) -> 0 | C193: =OFFSET('Data Collection'!$A$20,LU_Long[[#This Row],[Offset]],3) -> 0 | D193: =LU_Long[[#This Row],[Project Name]]&"-Land" -> 0-Land | E193: =OFFSET('Data Collection'!$A$20,LU_Long[[#This Row],[Offset]],5) -> 0 | F193: =OFFSET('Data Collection'!$A$20,LU_Long[[#This Row],[Offset]],6) -> 0 | G193: =OFFSET('Data Collection'!$EL$20,LU_Long[[#This Row],[Offset]],0) -> 0 | H193: =OFFSET('Data Collection'!$EL$20,LU_Long[[#This Row],[Offset]],1) -> 0 | I193: =OFFSET('Data Collection'!$EH$20,LU_Long[[#This Row],[Offset]],0) -> 0 | J193: =OFFSET('Data Collection'!$EH$20,LU_Long[[#This Row],[Offset]],1) -> 0 | K193: =OFFSET('Data Collection'!$EH$20,LU_Long[[#This Row],[Offset]],2) -> 0 | L193: =OFFSET('Data Collection'!$EH$20,LU_Long[[#This Row],[Offset]],3) -> 0 | M193: =IF(OFFSET(LU_Long[[#This Row],[Offset]],-1,0)="Offset",0,M192+1) -> 183
B194: =OFFSET('Data Collection'!$A$20,LU_Long[[#This Row],[Offset]],0) -> 0 | C194: =OFFSET('Data Collection'!$A$20,LU_Long[[#This Row],[Offset]],3) -> 0 | D194: =LU_Long[[#This Row],[Project Name]]&"-Land" -> 0-Land | E194: =OFFSET('Data Collection'!$A$20,LU_Long[[#This Row],[Offset]],5) -> 0 | F194: =OFFSET('Data Collection'!$A$20,LU_Long[[#This Row],[Offset]],6) -> 0 | G194: =OFFSET('Data Collection'!$EL$20,LU_Long[[#This Row],[Offset]],0) -> 0 | H194: =OFFSET('Data Collection'!$EL$20,LU_Long[[#This Row],[Offset]],1) -> 0 | I194: =OFFSET('Data Collection'!$EH$20,LU_Long[[#This Row],[Offset]],0) -> 0 | J194: =OFFSET('Data Collection'!$EH$20,LU_Long[[#This Row],[Offset]],1) -> 0 | K194: =OFFSET('Data Collection'!$EH$20,LU_Long[[#This Row],[Offset]],2) -> 0 | L194: =OFFSET('Data Collection'!$EH$20,LU_Long[[#This Row],[Offset]],3) -> 0 | M194: =IF(OFFSET(LU_Long[[#This Row],[Offset]],-1,0)="Offset",0,M193+1) -> 184
B195: =OFFSET('Data Collection'!$A$20,LU_Long[[#This Row],[Offset]],0) -> 0 | C195: =OFFSET('Data Collection'!$A$20,LU_Long[[#This Row],[Offset]],3) -> 0 | D195: =LU_Long[[#This Row],[Project Name]]&"-Land" -> 0-Land | E195: =OFFSET('Data Collection'!$A$20,LU_Long[[#This Row],[Offset]],5) -> 0 | F195: =OFFSET('Data Collection'!$A$20,LU_Long[[#This Row],[Offset]],6) -> 0 | G195: =OFFSET('Data Collection'!$EL$20,LU_Long[[#This Row],[Offset]],0) -> 0 | H195: =OFFSET('Data Collection'!$EL$20,LU_Long[[#This Row],[Offset]],1) -> 0 | I195: =OFFSET('Data Collection'!$EH$20,LU_Long[[#This Row],[Offset]],0) -> 0 | J195: =OFFSET('Data Collection'!$EH$20,LU_Long[[#This Row],[Offset]],1) -> 0 | K195: =OFFSET('Data Collection'!$EH$20,LU_Long[[#This Row],[Offset]],2) -> 0 | L195: =OFFSET('Data Collection'!$EH$20,LU_Long[[#This Row],[Offset]],3) -> 0 | M195: =IF(OFFSET(LU_Long[[#This Row],[Offset]],-1,0)="Offset",0,M194+1) -> 185
B196: =OFFSET('Data Collection'!$A$20,LU_Long[[#This Row],[Offset]],0) -> 0 | C196: =OFFSET('Data Collection'!$A$20,LU_Long[[#This Row],[Offset]],3) -> 0 | D196: =LU_Long[[#This Row],[Project Name]]&"-Land" -> 0-Land | E196: =OFFSET('Data Collection'!$A$20,LU_Long[[#This Row],[Offset]],5) -> 0 | F196: =OFFSET('Data Collection'!$A$20,LU_Long[[#This Row],[Offset]],6) -> 0 | G196: =OFFSET('Data Collection'!$EL$20,LU_Long[[#This Row],[Offset]],0) -> 0 | H196: =OFFSET('Data Collection'!$EL$20,LU_Long[[#This Row],[Offset]],1) -> 0 | I196: =OFFSET('Data Collection'!$EH$20,LU_Long[[#This Row],[Offset]],0) -> 0 | J196: =OFFSET('Data Collection'!$EH$20,LU_Long[[#This Row],[Offset]],1) -> 0 | K196: =OFFSET('Data Collection'!$EH$20,LU_Long[[#This Row],[Offset]],2) -> 0 | L196: =OFFSET('Data Collection'!$EH$20,LU_Long[[#This Row],[Offset]],3) -> 0 | M196: =IF(OFFSET(LU_Long[[#This Row],[Offset]],-1,0)="Offset",0,M195+1) -> 186
B197: =OFFSET('Data Collection'!$A$20,LU_Long[[#This Row],[Offset]],0) -> 0 | C197: =OFFSET('Data Collection'!$A$20,LU_Long[[#This Row],[Offset]],3) -> 0 | D197: =LU_Long[[#This Row],[Project Name]]&"-Land" -> 0-Land | E197: =OFFSET('Data Collection'!$A$20,LU_Long[[#This Row],[Offset]],5) -> 0 | F197: =OFFSET('Data Collection'!$A$20,LU_Long[[#This Row],[Offset]],6) -> 0 | G197: =OFFSET('Data Collection'!$EL$20,LU_Long[[#This Row],[Offset]],0) -> 0 | H197: =OFFSET('Data Collection'!$EL$20,LU_Long[[#This Row],[Offset]],1) -> 0 | I197: =OFFSET('Data Collection'!$EH$20,LU_Long[[#This Row],[Offset]],0) -> 0 | J197: =OFFSET('Data Collection'!$EH$20,LU_Long[[#This Row],[Offset]],1) -> 0 | K197: =OFFSET('Data Collection'!$EH$20,LU_Long[[#This Row],[Offset]],2) -> 0 | L197: =OFFSET('Data Collection'!$EH$20,LU_Long[[#This Row],[Offset]],3) -> 0 | M197: =IF(OFFSET(LU_Long[[#This Row],[Offset]],-1,0)="Offset",0,M196+1) -> 187
B198: =OFFSET('Data Collection'!$A$20,LU_Long[[#This Row],[Offset]],0) -> 0 | C198: =OFFSET('Data Collection'!$A$20,LU_Long[[#This Row],[Offset]],3) -> 0 | D198: =LU_Long[[#This Row],[Project Name]]&"-Land" -> 0-Land | E198: =OFFSET('Data Collection'!$A$20,LU_Long[[#This Row],[Offset]],5) -> 0 | F198: =OFFSET('Data Collection'!$A$20,LU_Long[[#This Row],[Offset]],6) -> 0 | G198: =OFFSET('Data Collection'!$EL$20,LU_Long[[#This Row],[Offset]],0) -> 0 | H198: =OFFSET('Data Collection'!$EL$20,LU_Long[[#This Row],[Offset]],1) -> 0 | I198: =OFFSET('Data Collection'!$EH$20,LU_Long[[#This Row],[Offset]],0) -> 0 | J198: =OFFSET('Data Collection'!$EH$20,LU_Long[[#This Row],[Offset]],1) -> 0 | K198: =OFFSET('Data Collection'!$EH$20,LU_Long[[#This Row],[Offset]],2) -> 0 | L198: =OFFSET('Data Collection'!$EH$20,LU_Long[[#This Row],[Offset]],3) -> 0 | M198: =IF(OFFSET(LU_Long[[#This Row],[Offset]],-1,0)="Offset",0,M197+1) -> 188
B199: =OFFSET('Data Collection'!$A$20,LU_Long[[#This Row],[Offset]],0) -> 0 | C199: =OFFSET('Data Collection'!$A$20,LU_Long[[#This Row],[Offset]],3) -> 0 | D199: =LU_Long[[#This Row],[Project Name]]&"-Land" -> 0-Land | E199: =OFFSET('Data Collection'!$A$20,LU_Long[[#This Row],[Offset]],5) -> 0 | F199: =OFFSET('Data Collection'!$A$20,LU_Long[[#This Row],[Offset]],6) -> 0 | G199: =OFFSET('Data Collection'!$EL$20,LU_Long[[#This Row],[Offset]],0) -> 0 | H199: =OFFSET('Data Collection'!$EL$20,LU_Long[[#This Row],[Offset]],1) -> 0 | I199: =OFFSET('Data Collection'!$EH$20,LU_Long[[#This Row],[Offset]],0) -> 0 | J199: =OFFSET('Data Collection'!$EH$20,LU_Long[[#This Row],[Offset]],1) -> 0 | K199: =OFFSET('Data Collection'!$EH$20,LU_Long[[#This Row],[Offset]],2) -> 0 | L199: =OFFSET('Data Collection'!$EH$20,LU_Long[[#This Row],[Offset]],3) -> 0 | M199: =IF(OFFSET(LU_Long[[#This Row],[Offset]],-1,0)="Offset",0,M198+1) -> 189
B200: =OFFSET('Data Collection'!$A$20,LU_Long[[#This Row],[Offset]],0) -> 0 | C200: =OFFSET('Data Collection'!$A$20,LU_Long[[#This Row],[Offset]],3) -> 0 | D200: =LU_Long[[#This Row],[Project Name]]&"-Land" -> 0-Land | E200: =OFFSET('Data Collection'!$A$20,LU_Long[[#This Row],[Offset]],5) -> 0 | F200: =OFFSET('Data Collection'!$A$20,LU_Long[[#This Row],[Offset]],6) -> 0 | G200: =OFFSET('Data Collection'!$EL$20,LU_Long[[#This Row],[Offset]],0) -> 0 | H200: =OFFSET('Data Collection'!$EL$20,LU_Long[[#This Row],[Offset]],1) -> 0 | I200: =OFFSET('Data Collection'!$EH$20,LU_Long[[#This Row],[Offset]],0) -> 0 | J200: =OFFSET('Data Collection'!$EH$20,LU_Long[[#This Row],[Offset]],1) -> 0 | K200: =OFFSET('Data Collection'!$EH$20,LU_Long[[#This Row],[Offset]],2) -> 0 | L200: =OFFSET('Data Collection'!$EH$20,LU_Long[[#This Row],[Offset]],3) -> 0 | M200: =IF(OFFSET(LU_Long[[#This Row],[Offset]],-1,0)="Offset",0,M199+1) -> 190
B201: =OFFSET('Data Collection'!$A$20,LU_Long[[#This Row],[Offset]],0) -> 0 | C201: =OFFSET('Data Collection'!$A$20,LU_Long[[#This Row],[Offset]],3) -> 0 | D201: =LU_Long[[#This Row],[Project Name]]&"-Land" -> 0-Land | E201: =OFFSET('Data Collection'!$A$20,LU_Long[[#This Row],[Offset]],5) -> 0 | F201: =OFFSET('Data Collection'!$A$20,LU_Long[[#This Row],[Offset]],6) -> 0 | G201: =OFFSET('Data Collection'!$EL$20,LU_Long[[#This Row],[Offset]],0) -> 0 | H201: =OFFSET('Data Collection'!$EL$20,LU_Long[[#This Row],[Offset]],1) -> 0 | I201: =OFFSET('Data Collection'!$EH$20,LU_Long[[#This Row],[Offset]],0) -> 0 | J201: =OFFSET('Data Collection'!$EH$20,LU_Long[[#This Row],[Offset]],1) -> 0 | K201: =OFFSET('Data Collection'!$EH$20,LU_Long[[#This Row],[Offset]],2) -> 0 | L201: =OFFSET('Data Collection'!$EH$20,LU_Long[[#This Row],[Offset]],3) -> 0 | M201: =IF(OFFSET(LU_Long[[#This Row],[Offset]],-1,0)="Offset",0,M200+1) -> 191
B202: =OFFSET('Data Collection'!$A$20,LU_Long[[#This Row],[Offset]],0) -> 0 | C202: =OFFSET('Data Collection'!$A$20,LU_Long[[#This Row],[Offset]],3) -> 0 | D202: =LU_Long[[#This Row],[Project Name]]&"-Land" -> 0-Land | E202: =OFFSET('Data Collection'!$A$20,LU_Long[[#This Row],[Offset]],5) -> 0 | F202: =OFFSET('Data Collection'!$A$20,LU_Long[[#This Row],[Offset]],6) -> 0 | G202: =OFFSET('Data Collection'!$EL$20,LU_Long[[#This Row],[Offset]],0) -> 0 | H202: =OFFSET('Data Collection'!$EL$20,LU_Long[[#This Row],[Offset]],1) -> 0 | I202: =OFFSET('Data Collection'!$EH$20,LU_Long[[#This Row],[Offset]],0) -> 0 | J202: =OFFSET('Data Collection'!$EH$20,LU_Long[[#This Row],[Offset]],1) -> 0 | K202: =OFFSET('Data Collection'!$EH$20,LU_Long[[#This Row],[Offset]],2) -> 0 | L202: =OFFSET('Data Collection'!$EH$20,LU_Long[[#This Row],[Offset]],3) -> 0 | M202: =IF(OFFSET(LU_Long[[#This Row],[Offset]],-1,0)="Offset",0,M201+1) -> 192
B203: =OFFSET('Data Collection'!$A$20,LU_Long[[#This Row],[Offset]],0) -> 0 | C203: =OFFSET('Data Collection'!$A$20,LU_Long[[#This Row],[Offset]],3) -> 0 | D203: =LU_Long[[#This Row],[Project Name]]&"-Land" -> 0-Land | E203: =OFFSET('Data Collection'!$A$20,LU_Long[[#This Row],[Offset]],5) -> 0 | F203: =OFFSET('Data Collection'!$A$20,LU_Long[[#This Row],[Offset]],6) -> 0 | G203: =OFFSET('Data Collection'!$EL$20,LU_Long[[#This Row],[Offset]],0) -> 0 | H203: =OFFSET('Data Collection'!$EL$20,LU_Long[[#This Row],[Offset]],1) -> 0 | I203: =OFFSET('Data Collection'!$EH$20,LU_Long[[#This Row],[Offset]],0) -> 0 | J203: =OFFSET('Data Collection'!$EH$20,LU_Long[[#This Row],[Offset]],1) -> 0 | K203: =OFFSET('Data Collection'!$EH$20,LU_Long[[#This Row],[Offset]],2) -> 0 | L203: =OFFSET('Data Collection'!$EH$20,LU_Long[[#This Row],[Offset]],3) -> 0 | M203: =IF(OFFSET(LU_Long[[#This Row],[Offset]],-1,0)="Offset",0,M202+1) -> 193
B204: =OFFSET('Data Collection'!$A$20,LU_Long[[#This Row],[Offset]],0) -> 0 | C204: =OFFSET('Data Collection'!$A$20,LU_Long[[#This Row],[Offset]],3) -> 0 | D204: =LU_Long[[#This Row],[Project Name]]&"-Land" -> 0-Land | E204: =OFFSET('Data Collection'!$A$20,LU_Long[[#This Row],[Offset]],5) -> 0 | F204: =OFFSET('Data Collection'!$A$20,LU_Long[[#This Row],[Offset]],6) -> 0 | G204: =OFFSET('Data Collection'!$EL$20,LU_Long[[#This Row],[Offset]],0) -> 0 | H204: =OFFSET('Data Collection'!$EL$20,LU_Long[[#This Row],[Offset]],1) -> 0 | I204: =OFFSET('Data Collection'!$EH$20,LU_Long[[#This Row],[Offset]],0) -> 0 | J204: =OFFSET('Data Collection'!$EH$20,LU_Long[[#This Row],[Offset]],1) -> 0 | K204: =OFFSET('Data Collection'!$EH$20,LU_Long[[#This Row],[Offset]],2) -> 0 | L204: =OFFSET('Data Collection'!$EH$20,LU_Long[[#This Row],[Offset]],3) -> 0 | M204: =IF(OFFSET(LU_Long[[#This Row],[Offset]],-1,0)="Offset",0,M203+1) -> 194
B205: =OFFSET('Data Collection'!$A$20,LU_Long[[#This Row],[Offset]],0) -> 0 | C205: =OFFSET('Data Collection'!$A$20,LU_Long[[#This Row],[Offset]],3) -> 0 | D205: =LU_Long[[#This Row],[Project Name]]&"-Land" -> 0-Land | E205: =OFFSET('Data Collection'!$A$20,LU_Long[[#This Row],[Offset]],5) -> 0 | F205: =OFFSET('Data Collection'!$A$20,LU_Long[[#This Row],[Offset]],6) -> 0 | G205: =OFFSET('Data Collection'!$EL$20,LU_Long[[#This Row],[Offset]],0) -> 0 | H205: =OFFSET('Data Collection'!$EL$20,LU_Long[[#This Row],[Offset]],1) -> 0 | I205: =OFFSET('Data Collection'!$EH$20,LU_Long[[#This Row],[Offset]],0) -> 0 | J205: =OFFSET('Data Collection'!$EH$20,LU_Long[[#This Row],[Offset]],1) -> 0 | K205: =OFFSET('Data Collection'!$EH$20,LU_Long[[#This Row],[Offset]],2) -> 0 | L205: =OFFSET('Data Collection'!$EH$20,LU_Long[[#This Row],[Offset]],3) -> 0 | M205: =IF(OFFSET(LU_Long[[#This Row],[Offset]],-1,0)="Offset",0,M204+1) -> 195
B206: =OFFSET('Data Collection'!$A$20,LU_Long[[#This Row],[Offset]],0) -> 0 | C206: =OFFSET('Data Collection'!$A$20,LU_Long[[#This Row],[Offset]],3) -> 0 | D206: =LU_Long[[#This Row],[Project Name]]&"-Land" -> 0-Land | E206: =OFFSET('Data Collection'!$A$20,LU_Long[[#This Row],[Offset]],5) -> 0 | F206: =OFFSET('Data Collection'!$A$20,LU_Long[[#This Row],[Offset]],6) -> 0 | G206: =OFFSET('Data Collection'!$EL$20,LU_Long[[#This Row],[Offset]],0) -> 0 | H206: =OFFSET('Data Collection'!$EL$20,LU_Long[[#This Row],[Offset]],1) -> 0 | I206: =OFFSET('Data Collection'!$EH$20,LU_Long[[#This Row],[Offset]],0) -> 0 | J206: =OFFSET('Data Collection'!$EH$20,LU_Long[[#This Row],[Offset]],1) -> 0 | K206: =OFFSET('Data Collection'!$EH$20,LU_Long[[#This Row],[Offset]],2) -> 0 | L206: =OFFSET('Data Collection'!$EH$20,LU_Long[[#This Row],[Offset]],3) -> 0 | M206: =IF(OFFSET(LU_Long[[#This Row],[Offset]],-1,0)="Offset",0,M205+1) -> 196
B207: =OFFSET('Data Collection'!$A$20,LU_Long[[#This Row],[Offset]],0) -> 0 | C207: =OFFSET('Data Collection'!$A$20,LU_Long[[#This Row],[Offset]],3) -> 0 | D207: =LU_Long[[#This Row],[Project Name]]&"-Land" -> 0-Land | E207: =OFFSET('Data Collection'!$A$20,LU_Long[[#This Row],[Offset]],5) -> 0 | F207: =OFFSET('Data Collection'!$A$20,LU_Long[[#This Row],[Offset]],6) -> 0 | G207: =OFFSET('Data Collection'!$EL$20,LU_Long[[#This Row],[Offset]],0) -> 0 | H207: =OFFSET('Data Collection'!$EL$20,LU_Long[[#This Row],[Offset]],1) -> 0 | I207: =OFFSET('Data Collection'!$EH$20,LU_Long[[#This Row],[Offset]],0) -> 0 | J207: =OFFSET('Data Collection'!$EH$20,LU_Long[[#This Row],[Offset]],1) -> 0 | K207: =OFFSET('Data Collection'!$EH$20,LU_Long[[#This Row],[Offset]],2) -> 0 | L207: =OFFSET('Data Collection'!$EH$20,LU_Long[[#This Row],[Offset]],3) -> 0 | M207: =IF(OFFSET(LU_Long[[#This Row],[Offset]],-1,0)="Offset",0,M206+1) -> 197
B208: =OFFSET('Data Collection'!$A$20,LU_Long[[#This Row],[Offset]],0) -> 0 | C208: =OFFSET('Data Collection'!$A$20,LU_Long[[#This Row],[Offset]],3) -> 0 | D208: =LU_Long[[#This Row],[Project Name]]&"-Land" -> 0-Land | E208: =OFFSET('Data Collection'!$A$20,LU_Long[[#This Row],[Offset]],5) -> 0 | F208: =OFFSET('Data Collection'!$A$20,LU_Long[[#This Row],[Offset]],6) -> 0 | G208: =OFFSET('Data Collection'!$EL$20,LU_Long[[#This Row],[Offset]],0) -> 0 | H208: =OFFSET('Data Collection'!$EL$20,LU_Long[[#This Row],[Offset]],1) -> 0 | I208: =OFFSET('Data Collection'!$EH$20,LU_Long[[#This Row],[Offset]],0) -> 0 | J208: =OFFSET('Data Collection'!$EH$20,LU_Long[[#This Row],[Offset]],1) -> 0 | K208: =OFFSET('Data Collection'!$EH$20,LU_Long[[#This Row],[Offset]],2) -> 0 | L208: =OFFSET('Data Collection'!$EH$20,LU_Long[[#This Row],[Offset]],3) -> 0 | M208: =IF(OFFSET(LU_Long[[#This Row],[Offset]],-1,0)="Offset",0,M207+1) -> 198
... 792 more rows

Sheet JFSNAT Data-Hidden (hidden)
B2: JFSAT Version of files to add? | C2: =VLOOKUP('Imported SCMs'!C2,'Tab Lists'!$B$13:$C$16,2,FALSE) -> 5
B7: JFSNAT ID | C7: Practice Type | D7: Total Area Captured (acres) | E7: Impervious Area Captured (acres) | F7: BMP Inflow Load (lb/ac/yr) | G7: BMP N Outflow Load (lb/ac/yr) | H7: TN Reduction (lbs/yr) | I7: BMP P Inflow Load (lb/ac/yr) | J7: BMP P Outflow Load (lb/ac/yr)2 | K7: TP Reduction (lbs/yr) | L7: Latitude | M7: Longitude | N7: Project Name | O7: File Name | P7: County | Q7: Subwatershed | R7: Show | S7: Count | T7: Offset | U7: Column1
B8: =INDEX('Tab Lists'!$J$3:$K$92,MATCH(Practices_Long[[#This Row],[Count]],'Tab Lists'!$K$3:$K$92,0),1) -> Catchment 1 BMP 1 | C8: =IFERROR(INDEX(CollectionRange,MATCH(Practices_Long[[#This Row],[File Name]],CollectionA,0),MATCH(Practices_Long[[#This Row],[JFSNAT ID]]&" Type",Collection19,0)),NA()) -> Wet Pond per MDC | D8: =IFERROR(INDEX(CollectionRange,MATCH(Practices_Long[[#This Row],[File Name]],CollectionA,0),MATCH(Practices_Long[[#This Row],[JFSNAT ID]]&" Area Treated (ft^2)",Collection19,0))/43560,NA()) -> 1 | E8: =INDEX(CollectionRange,MATCH(Practices_Long[[#This Row],[File Name]],CollectionA,0),MATCH(Practices_Long[[#This Row],[JFSNAT ID]]&" Impervious (%)",Collection19,0))*Practices_Long[[#This Row],[Total Area Captured (acres)]] -> 1 | F8: =IFERROR(INDEX(CollectionRange,MATCH(Practices_Long[[#This Row],[File Name]],CollectionA,0),MATCH(Practices_Long[[#This Row],[JFSNAT ID]]&" Inflow TN (lbs/ac/yr)",Collection19,0)),0) -> 11.40988381 | G8: =IFERROR(INDEX(CollectionRange,MATCH(Practices_Long[[#This Row],[File Name]],CollectionA,0),MATCH(Practices_Long[[#This Row],[JFSNAT ID]]&" Outflow TN (lbs/ac/yr)",Collection19,0)),0) -> 9.467441981 | H8: =(Practices_Long[[#This Row],[BMP Inflow Load (lb/ac/yr)]]-Practices_Long[[#This Row],[BMP N Outflow Load (lb/ac/yr)]])*Practices_Long[[#This Row],[Total Area Captured (acres)]] -> 1.942441831 | I8: =IFERROR(INDEX(CollectionRange,MATCH(Practices_Long[[#This Row],[File Name]],CollectionA,0),MATCH(Practices_Long[[#This Row],[JFSNAT ID]]&" Inflow TP (lbs/ac/yr)",Collection19,0)),0) -> 1.265650776 | J8: =IFERROR(INDEX(CollectionRange,MATCH(Practices_Long[[#This Row],[File Name]],CollectionA,0),MATCH(Practices_Long[[#This Row],[JFSNAT ID]]&" Outflow TP (lbs/ac/yr)",Collection19,0)),0) -> 1.142698242 | K8: =(Practices_Long[[#This Row],[BMP P Inflow Load (lb/ac/yr)]]-Practices_Long[[#This Row],[BMP P Outflow Load (lb/ac/yr)2]])*Practices_Long[[#This Row],[Total Area Captured (acres)]] -> 0.122952534 | L8: =INDEX(CollectionRange,MATCH(Practices_Long[[#This Row],[File Name]],CollectionA,0),MATCH("Latitude",Collection19,0)) -> 35.8032 | M8: =INDEX(CollectionRange,MATCH(Practices_Long[[#This Row],[File Name]],CollectionA,0),MATCH("Longitude",Collection19,0)) -> 78.5661 | N8: =OFFSET('Data Collection'!$A$20,Practices_Long[[#This Row],[Offset]],3) -> Test Site 1 Wet Pond | O8: =OFFSET('Data Collection'!$A$20,Practices_Long[[#This Row],[Offset]],0) -> SNAP Version 4.0 Wet Pond.xlsm | P8: =OFFSET('Data Collection'!$EL$20,Practices_Long[[#This Row],[Offset]],0) -> Wake | Q8: =OFFSET('Data Collection'!$EL$20,Practices_Long[[#This Row],[Offset]],1) -> Falls Zone Direct | R8: =IF(Practices_Long[[#This Row],[Practice Type]]=0,0,IF(Practices_Long[[#This Row],[Practice Type]]="--",0,1)) -> 1 | S8: =IF(OFFSET(Practices_Long[[#This Row],[Count]],-1,0)="Count",1,IF(S7=90,1,S7+1)) -> 1 | T8: =IF(OFFSET(Practices_Long[[#This Row],[Offset]],-1,0)="Offset",0,IF(S7=90,T7+1,T7)) -> 0
B9: =INDEX('Tab Lists'!$J$3:$K$92,MATCH(Practices_Long[[#This Row],[Count]],'Tab Lists'!$K$3:$K$92,0),1) -> Catchment 1 BMP 2 | C9: =IFERROR(INDEX(CollectionRange,MATCH(Practices_Long[[#This Row],[File Name]],CollectionA,0),MATCH(Practices_Long[[#This Row],[JFSNAT ID]]&" Type",Collection19,0)),NA()) -> 0 | D9: =IFERROR(INDEX(CollectionRange,MATCH(Practices_Long[[#This Row],[File Name]],CollectionA,0),MATCH(Practices_Long[[#This Row],[JFSNAT ID]]&" Area Treated (ft^2)",Collection19,0))/43560,NA()) -> 0 | E9: =INDEX(CollectionRange,MATCH(Practices_Long[[#This Row],[File Name]],CollectionA,0),MATCH(Practices_Long[[#This Row],[JFSNAT ID]]&" Impervious (%)",Collection19,0))*Practices_Long[[#This Row],[Total Area Captured (acres)]] -> 0 | F9: =IFERROR(INDEX(CollectionRange,MATCH(Practices_Long[[#This Row],[File Name]],CollectionA,0),MATCH(Practices_Long[[#This Row],[JFSNAT ID]]&" Inflow TN (lbs/ac/yr)",Collection19,0)),0) -> 0 | G9: =IFERROR(INDEX(CollectionRange,MATCH(Practices_Long[[#This Row],[File Name]],CollectionA,0),MATCH(Practices_Long[[#This Row],[JFSNAT ID]]&" Outflow TN (lbs/ac/yr)",Collection19,0)),0) -> 0 | H9: =(Practices_Long[[#This Row],[BMP Inflow Load (lb/ac/yr)]]-Practices_Long[[#This Row],[BMP N Outflow Load (lb/ac/yr)]])*Practices_Long[[#This Row],[Total Area Captured (acres)]] -> 0 | I9: =IFERROR(INDEX(CollectionRange,MATCH(Practices_Long[[#This Row],[File Name]],CollectionA,0),MATCH(Practices_Long[[#This Row],[JFSNAT ID]]&" Inflow TP (lbs/ac/yr)",Collection19,0)),0) -> 0 | J9: =IFERROR(INDEX(CollectionRange,MATCH(Practices_Long[[#This Row],[File Name]],CollectionA,0),MATCH(Practices_Long[[#This Row],[JFSNAT ID]]&" Outflow TP (lbs/ac/yr)",Collection19,0)),0) -> 0 | K9: =(Practices_Long[[#This Row],[BMP P Inflow Load (lb/ac/yr)]]-Practices_Long[[#This Row],[BMP P Outflow Load (lb/ac/yr)2]])*Practices_Long[[#This Row],[Total Area Captured (acres)]] -> 0 | L9: =INDEX(CollectionRange,MATCH(Practices_Long[[#This Row],[File Name]],CollectionA,0),MATCH("Latitude",Collection19,0)) -> 35.8032 | M9: =INDEX(CollectionRange,MATCH(Practices_Long[[#This Row],[File Name]],CollectionA,0),MATCH("Longitude",Collection19,0)) -> 78.5661 | N9: =OFFSET('Data Collection'!$A$20,Practices_Long[[#This Row],[Offset]],3) -> Test Site 1 Wet Pond | O9: =OFFSET('Data Collection'!$A$20,Practices_Long[[#This Row],[Offset]],0) -> SNAP Version 4.0 Wet Pond.xlsm | P9: =OFFSET('Data Collection'!$EL$20,Practices_Long[[#This Row],[Offset]],0) -> Wake | Q9: =OFFSET('Data Collection'!$EL$20,Practices_Long[[#This Row],[Offset]],1) -> Falls Zone Direct | R9: =IF(Practices_Long[[#This Row],[Practice Type]]=0,0,IF(Practices_Long[[#This Row],[Practice Type]]="--",0,1)) -> 0 | S9: =IF(OFFSET(Practices_Long[[#This Row],[Count]],-1,0)="Count",1,IF(S8=90,1,S8+1)) -> 2 | T9: =IF(OFFSET(Practices_Long[[#This Row],[Offset]],-1,0)="Offset",0,IF(S8=90,T8+1,T8)) -> 0
B10: =INDEX('Tab Lists'!$J$3:$K$92,MATCH(Practices_Long[[#This Row],[Count]],'Tab Lists'!$K$3:$K$92,0),1) -> Catchment 1 BMP 3 | C10: =IFERROR(INDEX(CollectionRange,MATCH(Practices_Long[[#This Row],[File Name]],CollectionA,0),MATCH(Practices_Long[[#This Row],[JFSNAT ID]]&" Type",Collection19,0)),NA()) -> 0 | D10: =IFERROR(INDEX(CollectionRange,MATCH(Practices_Long[[#This Row],[File Name]],CollectionA,0),MATCH(Practices_Long[[#This Row],[JFSNAT ID]]&" Area Treated (ft^2)",Collection19,0))/43560,NA()) -> 0 | E10: =INDEX(CollectionRange,MATCH(Practices_Long[[#This Row],[File Name]],CollectionA,0),MATCH(Practices_Long[[#This Row],[JFSNAT ID]]&" Impervious (%)",Collection19,0))*Practices_Long[[#This Row],[Total Area Captured (acres)]] -> 0 | F10: =IFERROR(INDEX(CollectionRange,MATCH(Practices_Long[[#This Row],[File Name]],CollectionA,0),MATCH(Practices_Long[[#This Row],[JFSNAT ID]]&" Inflow TN (lbs/ac/yr)",Collection19,0)),0) -> 0 | G10: =IFERROR(INDEX(CollectionRange,MATCH(Practices_Long[[#This Row],[File Name]],CollectionA,0),MATCH(Practices_Long[[#This Row],[JFSNAT ID]]&" Outflow TN (lbs/ac/yr)",Collection19,0)),0) -> 0 | H10: =(Practices_Long[[#This Row],[BMP Inflow Load (lb/ac/yr)]]-Practices_Long[[#This Row],[BMP N Outflow Load (lb/ac/yr)]])*Practices_Long[[#This Row],[Total Area Captured (acres)]] -> 0 | I10: =IFERROR(INDEX(CollectionRange,MATCH(Practices_Long[[#This Row],[File Name]],CollectionA,0),MATCH(Practices_Long[[#This Row],[JFSNAT ID]]&" Inflow TP (lbs/ac/yr)",Collection19,0)),0) -> 0 | J10: =IFERROR(INDEX(CollectionRange,MATCH(Practices_Long[[#This Row],[File Name]],CollectionA,0),MATCH(Practices_Long[[#This Row],[JFSNAT ID]]&" Outflow TP (lbs/ac/yr)",Collection19,0)),0) -> 0 | K10: =(Practices_Long[[#This Row],[BMP P Inflow Load (lb/ac/yr)]]-Practices_Long[[#This Row],[BMP P Outflow Load (lb/ac/yr)2]])*Practices_Long[[#This Row],[Total Area Captured (acres)]] -> 0 | L10: =INDEX(CollectionRange,MATCH(Practices_Long[[#This Row],[File Name]],CollectionA,0),MATCH("Latitude",Collection19,0)) -> 35.8032 | M10: =INDEX(CollectionRange,MATCH(Practices_Long[[#This Row],[File Name]],CollectionA,0),MATCH("Longitude",Collection19,0)) -> 78.5661 | N10: =OFFSET('Data Collection'!$A$20,Practices_Long[[#This Row],[Offset]],3) -> Test Site 1 Wet Pond | O10: =OFFSET('Data Collection'!$A$20,Practices_Long[[#This Row],[Offset]],0) -> SNAP Version 4.0 Wet Pond.xlsm | P10: =OFFSET('Data Collection'!$EL$20,Practices_Long[[#This Row],[Offset]],0) -> Wake | Q10: =OFFSET('Data Collection'!$EL$20,Practices_Long[[#This Row],[Offset]],1) -> Falls Zone Direct | R10: =IF(Practices_Long[[#This Row],[Practice Type]]=0,0,IF(Practices_Long[[#This Row],[Practice Type]]="--",0,1)) -> 0 | S10: =IF(OFFSET(Practices_Long[[#This Row],[Count]],-1,0)="Count",1,IF(S9=90,1,S9+1)) -> 3 | T10: =IF(OFFSET(Practices_Long[[#This Row],[Offset]],-1,0)="Offset",0,IF(S9=90,T9+1,T9)) -> 0
B11: =INDEX('Tab Lists'!$J$3:$K$92,MATCH(Practices_Long[[#This Row],[Count]],'Tab Lists'!$K$3:$K$92,0),1) -> Catchment 1 BMP 4 | C11: =IFERROR(INDEX(CollectionRange,MATCH(Practices_Long[[#This Row],[File Name]],CollectionA,0),MATCH(Practices_Long[[#This Row],[JFSNAT ID]]&" Type",Collection19,0)),NA()) -> 0 | D11: =IFERROR(INDEX(CollectionRange,MATCH(Practices_Long[[#This Row],[File Name]],CollectionA,0),MATCH(Practices_Long[[#This Row],[JFSNAT ID]]&" Area Treated (ft^2)",Collection19,0))/43560,NA()) -> 0 | E11: =INDEX(CollectionRange,MATCH(Practices_Long[[#This Row],[File Name]],CollectionA,0),MATCH(Practices_Long[[#This Row],[JFSNAT ID]]&" Impervious (%)",Collection19,0))*Practices_Long[[#This Row],[Total Area Captured (acres)]] -> 0 | F11: =IFERROR(INDEX(CollectionRange,MATCH(Practices_Long[[#This Row],[File Name]],CollectionA,0),MATCH(Practices_Long[[#This Row],[JFSNAT ID]]&" Inflow TN (lbs/ac/yr)",Collection19,0)),0) -> 0 | G11: =IFERROR(INDEX(CollectionRange,MATCH(Practices_Long[[#This Row],[File Name]],CollectionA,0),MATCH(Practices_Long[[#This Row],[JFSNAT ID]]&" Outflow TN (lbs/ac/yr)",Collection19,0)),0) -> 0 | H11: =(Practices_Long[[#This Row],[BMP Inflow Load (lb/ac/yr)]]-Practices_Long[[#This Row],[BMP N Outflow Load (lb/ac/yr)]])*Practices_Long[[#This Row],[Total Area Captured (acres)]] -> 0 | I11: =IFERROR(INDEX(CollectionRange,MATCH(Practices_Long[[#This Row],[File Name]],CollectionA,0),MATCH(Practices_Long[[#This Row],[JFSNAT ID]]&" Inflow TP (lbs/ac/yr)",Collection19,0)),0) -> 0 | J11: =IFERROR(INDEX(CollectionRange,MATCH(Practices_Long[[#This Row],[File Name]],CollectionA,0),MATCH(Practices_Long[[#This Row],[JFSNAT ID]]&" Outflow TP (lbs/ac/yr)",Collection19,0)),0) -> 0 | K11: =(Practices_Long[[#This Row],[BMP P Inflow Load (lb/ac/yr)]]-Practices_Long[[#This Row],[BMP P Outflow Load (lb/ac/yr)2]])*Practices_Long[[#This Row],[Total Area Captured (acres)]] -> 0 | L11: =INDEX(CollectionRange,MATCH(Practices_Long[[#This Row],[File Name]],CollectionA,0),MATCH("Latitude",Collection19,0)) -> 35.8032 | M11: =INDEX(CollectionRange,MATCH(Practices_Long[[#This Row],[File Name]],CollectionA,0),MATCH("Longitude",Collection19,0)) -> 78.5661 | N11: =OFFSET('Data Collection'!$A$20,Practices_Long[[#This Row],[Offset]],3) -> Test Site 1 Wet Pond | O11: =OFFSET('Data Collection'!$A$20,Practices_Long[[#This Row],[Offset]],0) -> SNAP Version 4.0 Wet Pond.xlsm | P11: =OFFSET('Data Collection'!$EL$20,Practices_Long[[#This Row],[Offset]],0) -> Wake | Q11: =OFFSET('Data Collection'!$EL$20,Practices_Long[[#This Row],[Offset]],1) -> Falls Zone Direct | R11: =IF(Practices_Long[[#This Row],[Practice Type]]=0,0,IF(Practices_Long[[#This Row],[Practice Type]]="--",0,1)) -> 0 | S11: =IF(OFFSET(Practices_Long[[#This Row],[Count]],-1,0)="Count",1,IF(S10=90,1,S10+1)) -> 4 | T11: =IF(OFFSET(Practices_Long[[#This Row],[Offset]],-1,0)="Offset",0,IF(S10=90,T10+1,T10)) -> 0
B12: =INDEX('Tab Lists'!$J$3:$K$92,MATCH(Practices_Long[[#This Row],[Count]],'Tab Lists'!$K$3:$K$92,0),1) -> Catchment 1 BMP 5 | C12: =IFERROR(INDEX(CollectionRange,MATCH(Practices_Long[[#This Row],[File Name]],CollectionA,0),MATCH(Practices_Long[[#This Row],[JFSNAT ID]]&" Type",Collection19,0)),NA()) -> 0 | D12: =IFERROR(INDEX(CollectionRange,MATCH(Practices_Long[[#This Row],[File Name]],CollectionA,0),MATCH(Practices_Long[[#This Row],[JFSNAT ID]]&" Area Treated (ft^2)",Collection19,0))/43560,NA()) -> 0 | E12: =INDEX(CollectionRange,MATCH(Practices_Long[[#This Row],[File Name]],CollectionA,0),MATCH(Practices_Long[[#This Row],[JFSNAT ID]]&" Impervious (%)",Collection19,0))*Practices_Long[[#This Row],[Total Area Captured (acres)]] -> 0 | F12: =IFERROR(INDEX(CollectionRange,MATCH(Practices_Long[[#This Row],[File Name]],CollectionA,0),MATCH(Practices_Long[[#This Row],[JFSNAT ID]]&" Inflow TN (lbs/ac/yr)",Collection19,0)),0) -> 0 | G12: =IFERROR(INDEX(CollectionRange,MATCH(Practices_Long[[#This Row],[File Name]],CollectionA,0),MATCH(Practices_Long[[#This Row],[JFSNAT ID]]&" Outflow TN (lbs/ac/yr)",Collection19,0)),0) -> 0 | H12: =(Practices_Long[[#This Row],[BMP Inflow Load (lb/ac/yr)]]-Practices_Long[[#This Row],[BMP N Outflow Load (lb/ac/yr)]])*Practices_Long[[#This Row],[Total Area Captured (acres)]] -> 0 | I12: =IFERROR(INDEX(CollectionRange,MATCH(Practices_Long[[#This Row],[File Name]],CollectionA,0),MATCH(Practices_Long[[#This Row],[JFSNAT ID]]&" Inflow TP (lbs/ac/yr)",Collection19,0)),0) -> 0 | J12: =IFERROR(INDEX(CollectionRange,MATCH(Practices_Long[[#This Row],[File Name]],CollectionA,0),MATCH(Practices_Long[[#This Row],[JFSNAT ID]]&" Outflow TP (lbs/ac/yr)",Collection19,0)),0) -> 0 | K12: =(Practices_Long[[#This Row],[BMP P Inflow Load (lb/ac/yr)]]-Practices_Long[[#This Row],[BMP P Outflow Load (lb/ac/yr)2]])*Practices_Long[[#This Row],[Total Area Captured (acres)]] -> 0 | L12: =INDEX(CollectionRange,MATCH(Practices_Long[[#This Row],[File Name]],CollectionA,0),MATCH("Latitude",Collection19,0)) -> 35.8032 | M12: =INDEX(CollectionRange,MATCH(Practices_Long[[#This Row],[File Name]],CollectionA,0),MATCH("Longitude",Collection19,0)) -> 78.5661 | N12: =OFFSET('Data Collection'!$A$20,Practices_Long[[#This Row],[Offset]],3) -> Test Site 1 Wet Pond | O12: =OFFSET('Data Collection'!$A$20,Practices_Long[[#This Row],[Offset]],0) -> SNAP Version 4.0 Wet Pond.xlsm | P12: =OFFSET('Data Collection'!$EL$20,Practices_Long[[#This Row],[Offset]],0) -> Wake | Q12: =OFFSET('Data Collection'!$EL$20,Practices_Long[[#This Row],[Offset]],1) -> Falls Zone Direct | R12: =IF(Practices_Long[[#This Row],[Practice Type]]=0,0,IF(Practices_Long[[#This Row],[Practice Type]]="--",0,1)) -> 0 | S12: =IF(OFFSET(Practices_Long[[#This Row],[Count]],-1,0)="Count",1,IF(S11=90,1,S11+1)) -> 5 | T12: =IF(OFFSET(Practices_Long[[#This Row],[Offset]],-1,0)="Offset",0,IF(S11=90,T11+1,T11)) -> 0
B13: =INDEX('Tab Lists'!$J$3:$K$92,MATCH(Practices_Long[[#This Row],[Count]],'Tab Lists'!$K$3:$K$92,0),1) -> Catchment 1 BMP 6 | C13: =IFERROR(INDEX(CollectionRange,MATCH(Practices_Long[[#This Row],[File Name]],CollectionA,0),MATCH(Practices_Long[[#This Row],[JFSNAT ID]]&" Type",Collection19,0)),NA()) -> 0 | D13: =IFERROR(INDEX(CollectionRange,MATCH(Practices_Long[[#This Row],[File Name]],CollectionA,0),MATCH(Practices_Long[[#This Row],[JFSNAT ID]]&" Area Treated (ft^2)",Collection19,0))/43560,NA()) -> 0 | E13: =INDEX(CollectionRange,MATCH(Practices_Long[[#This Row],[File Name]],CollectionA,0),MATCH(Practices_Long[[#This Row],[JFSNAT ID]]&" Impervious (%)",Collection19,0))*Practices_Long[[#This Row],[Total Area Captured (acres)]] -> 0 | F13: =IFERROR(INDEX(CollectionRange,MATCH(Practices_Long[[#This Row],[File Name]],CollectionA,0),MATCH(Practices_Long[[#This Row],[JFSNAT ID]]&" Inflow TN (lbs/ac/yr)",Collection19,0)),0) -> 0 | G13: =IFERROR(INDEX(CollectionRange,MATCH(Practices_Long[[#This Row],[File Name]],CollectionA,0),MATCH(Practices_Long[[#This Row],[JFSNAT ID]]&" Outflow TN (lbs/ac/yr)",Collection19,0)),0) -> 0 | H13: =(Practices_Long[[#This Row],[BMP Inflow Load (lb/ac/yr)]]-Practices_Long[[#This Row],[BMP N Outflow Load (lb/ac/yr)]])*Practices_Long[[#This Row],[Total Area Captured (acres)]] -> 0 | I13: =IFERROR(INDEX(CollectionRange,MATCH(Practices_Long[[#This Row],[File Name]],CollectionA,0),MATCH(Practices_Long[[#This Row],[JFSNAT ID]]&" Inflow TP (lbs/ac/yr)",Collection19,0)),0) -> 0 | J13: =IFERROR(INDEX(CollectionRange,MATCH(Practices_Long[[#This Row],[File Name]],CollectionA,0),MATCH(Practices_Long[[#This Row],[JFSNAT ID]]&" Outflow TP (lbs/ac/yr)",Collection19,0)),0) -> 0 | K13: =(Practices_Long[[#This Row],[BMP P Inflow Load (lb/ac/yr)]]-Practices_Long[[#This Row],[BMP P Outflow Load (lb/ac/yr)2]])*Practices_Long[[#This Row],[Total Area Captured (acres)]] -> 0 | L13: =INDEX(CollectionRange,MATCH(Practices_Long[[#This Row],[File Name]],CollectionA,0),MATCH("Latitude",Collection19,0)) -> 35.8032 | M13: =INDEX(CollectionRange,MATCH(Practices_Long[[#This Row],[File Name]],CollectionA,0),MATCH("Longitude",Collection19,0)) -> 78.5661 | N13: =OFFSET('Data Collection'!$A$20,Practices_Long[[#This Row],[Offset]],3) -> Test Site 1 Wet Pond | O13: =OFFSET('Data Collection'!$A$20,Practices_Long[[#This Row],[Offset]],0) -> SNAP Version 4.0 Wet Pond.xlsm | P13: =OFFSET('Data Collection'!$EL$20,Practices_Long[[#This Row],[Offset]],0) -> Wake | Q13: =OFFSET('Data Collection'!$EL$20,Practices_Long[[#This Row],[Offset]],1) -> Falls Zone Direct | R13: =IF(Practices_Long[[#This Row],[Practice Type]]=0,0,IF(Practices_Long[[#This Row],[Practice Type]]="--",0,1)) -> 0 | S13: =IF(OFFSET(Practices_Long[[#This Row],[Count]],-1,0)="Count",1,IF(S12=90,1,S12+1)) -> 6 | T13: =IF(OFFSET(Practices_Long[[#This Row],[Offset]],-1,0)="Offset",0,IF(S12=90,T12+1,T12)) -> 0
B14: =INDEX('Tab Lists'!$J$3:$K$92,MATCH(Practices_Long[[#This Row],[Count]],'Tab Lists'!$K$3:$K$92,0),1) -> Catchment 1 BMP 7 | C14: =IFERROR(INDEX(CollectionRange,MATCH(Practices_Long[[#This Row],[File Name]],CollectionA,0),MATCH(Practices_Long[[#This Row],[JFSNAT ID]]&" Type",Collection19,0)),NA()) -> 0 | D14: =IFERROR(INDEX(CollectionRange,MATCH(Practices_Long[[#This Row],[File Name]],CollectionA,0),MATCH(Practices_Long[[#This Row],[JFSNAT ID]]&" Area Treated (ft^2)",Collection19,0))/43560,NA()) -> 0 | E14: =INDEX(CollectionRange,MATCH(Practices_Long[[#This Row],[File Name]],CollectionA,0),MATCH(Practices_Long[[#This Row],[JFSNAT ID]]&" Impervious (%)",Collection19,0))*Practices_Long[[#This Row],[Total Area Captured (acres)]] -> 0 | F14: =IFERROR(INDEX(CollectionRange,MATCH(Practices_Long[[#This Row],[File Name]],CollectionA,0),MATCH(Practices_Long[[#This Row],[JFSNAT ID]]&" Inflow TN (lbs/ac/yr)",Collection19,0)),0) -> 0 | G14: =IFERROR(INDEX(CollectionRange,MATCH(Practices_Long[[#This Row],[File Name]],CollectionA,0),MATCH(Practices_Long[[#This Row],[JFSNAT ID]]&" Outflow TN (lbs/ac/yr)",Collection19,0)),0) -> 0 | H14: =(Practices_Long[[#This Row],[BMP Inflow Load (lb/ac/yr)]]-Practices_Long[[#This Row],[BMP N Outflow Load (lb/ac/yr)]])*Practices_Long[[#This Row],[Total Area Captured (acres)]] -> 0 | I14: =IFERROR(INDEX(CollectionRange,MATCH(Practices_Long[[#This Row],[File Name]],CollectionA,0),MATCH(Practices_Long[[#This Row],[JFSNAT ID]]&" Inflow TP (lbs/ac/yr)",Collection19,0)),0) -> 0 | J14: =IFERROR(INDEX(CollectionRange,MATCH(Practices_Long[[#This Row],[File Name]],CollectionA,0),MATCH(Practices_Long[[#This Row],[JFSNAT ID]]&" Outflow TP (lbs/ac/yr)",Collection19,0)),0) -> 0 | K14: =(Practices_Long[[#This Row],[BMP P Inflow Load (lb/ac/yr)]]-Practices_Long[[#This Row],[BMP P Outflow Load (lb/ac/yr)2]])*Practices_Long[[#This Row],[Total Area Captured (acres)]] -> 0 | L14: =INDEX(CollectionRange,MATCH(Practices_Long[[#This Row],[File Name]],CollectionA,0),MATCH("Latitude",Collection19,0)) -> 35.8032 | M14: =INDEX(CollectionRange,MATCH(Practices_Long[[#This Row],[File Name]],CollectionA,0),MATCH("Longitude",Collection19,0)) -> 78.5661 | N14: =OFFSET('Data Collection'!$A$20,Practices_Long[[#This Row],[Offset]],3) -> Test Site 1 Wet Pond | O14: =OFFSET('Data Collection'!$A$20,Practices_Long[[#This Row],[Offset]],0) -> SNAP Version 4.0 Wet Pond.xlsm | P14: =OFFSET('Data Collection'!$EL$20,Practices_Long[[#This Row],[Offset]],0) -> Wake | Q14: =OFFSET('Data Collection'!$EL$20,Practices_Long[[#This Row],[Offset]],1) -> Falls Zone Direct | R14: =IF(Practices_Long[[#This Row],[Practice Type]]=0,0,IF(Practices_Long[[#This Row],[Practice Type]]="--",0,1)) -> 0 | S14: =IF(OFFSET(Practices_Long[[#This Row],[Count]],-1,0)="Count",1,IF(S13=90,1,S13+1)) -> 7 | T14: =IF(OFFSET(Practices_Long[[#This Row],[Offset]],-1,0)="Offset",0,IF(S13=90,T13+1,T13)) -> 0
B15: =INDEX('Tab Lists'!$J$3:$K$92,MATCH(Practices_Long[[#This Row],[Count]],'Tab Lists'!$K$3:$K$92,0),1) -> Catchment 1 BMP 8 | C15: =IFERROR(INDEX(CollectionRange,MATCH(Practices_Long[[#This Row],[File Name]],CollectionA,0),MATCH(Practices_Long[[#This Row],[JFSNAT ID]]&" Type",Collection19,0)),NA()) -> 0 | D15: =IFERROR(INDEX(CollectionRange,MATCH(Practices_Long[[#This Row],[File Name]],CollectionA,0),MATCH(Practices_Long[[#This Row],[JFSNAT ID]]&" Area Treated (ft^2)",Collection19,0))/43560,NA()) -> 0 | E15: =INDEX(CollectionRange,MATCH(Practices_Long[[#This Row],[File Name]],CollectionA,0),MATCH(Practices_Long[[#This Row],[JFSNAT ID]]&" Impervious (%)",Collection19,0))*Practices_Long[[#This Row],[Total Area Captured (acres)]] -> 0 | F15: =IFERROR(INDEX(CollectionRange,MATCH(Practices_Long[[#This Row],[File Name]],CollectionA,0),MATCH(Practices_Long[[#This Row],[JFSNAT ID]]&" Inflow TN (lbs/ac/yr)",Collection19,0)),0) -> 0 | G15: =IFERROR(INDEX(CollectionRange,MATCH(Practices_Long[[#This Row],[File Name]],CollectionA,0),MATCH(Practices_Long[[#This Row],[JFSNAT ID]]&" Outflow TN (lbs/ac/yr)",Collection19,0)),0) -> 0 | H15: =(Practices_Long[[#This Row],[BMP Inflow Load (lb/ac/yr)]]-Practices_Long[[#This Row],[BMP N Outflow Load (lb/ac/yr)]])*Practices_Long[[#This Row],[Total Area Captured (acres)]] -> 0 | I15: =IFERROR(INDEX(CollectionRange,MATCH(Practices_Long[[#This Row],[File Name]],CollectionA,0),MATCH(Practices_Long[[#This Row],[JFSNAT ID]]&" Inflow TP (lbs/ac/yr)",Collection19,0)),0) -> 0 | J15: =IFERROR(INDEX(CollectionRange,MATCH(Practices_Long[[#This Row],[File Name]],CollectionA,0),MATCH(Practices_Long[[#This Row],[JFSNAT ID]]&" Outflow TP (lbs/ac/yr)",Collection19,0)),0) -> 0 | K15: =(Practices_Long[[#This Row],[BMP P Inflow Load (lb/ac/yr)]]-Practices_Long[[#This Row],[BMP P Outflow Load (lb/ac/yr)2]])*Practices_Long[[#This Row],[Total Area Captured (acres)]] -> 0 | L15: =INDEX(CollectionRange,MATCH(Practices_Long[[#This Row],[File Name]],CollectionA,0),MATCH("Latitude",Collection19,0)) -> 35.8032 | M15: =INDEX(CollectionRange,MATCH(Practices_Long[[#This Row],[File Name]],CollectionA,0),MATCH("Longitude",Collection19,0)) -> 78.5661 | N15: =OFFSET('Data Collection'!$A$20,Practices_Long[[#This Row],[Offset]],3) -> Test Site 1 Wet Pond | O15: =OFFSET('Data Collection'!$A$20,Practices_Long[[#This Row],[Offset]],0) -> SNAP Version 4.0 Wet Pond.xlsm | P15: =OFFSET('Data Collection'!$EL$20,Practices_Long[[#This Row],[Offset]],0) -> Wake | Q15: =OFFSET('Data Collection'!$EL$20,Practices_Long[[#This Row],[Offset]],1) -> Falls Zone Direct | R15: =IF(Practices_Long[[#This Row],[Practice Type]]=0,0,IF(Practices_Long[[#This Row],[Practice Type]]="--",0,1)) -> 0 | S15: =IF(OFFSET(Practices_Long[[#This Row],[Count]],-1,0)="Count",1,IF(S14=90,1,S14+1)) -> 8 | T15: =IF(OFFSET(Practices_Long[[#This Row],[Offset]],-1,0)="Offset",0,IF(S14=90,T14+1,T14)) -> 0
B16: =INDEX('Tab Lists'!$J$3:$K$92,MATCH(Practices_Long[[#This Row],[Count]],'Tab Lists'!$K$3:$K$92,0),1) -> Catchment 1 BMP 9 | C16: =IFERROR(INDEX(CollectionRange,MATCH(Practices_Long[[#This Row],[File Name]],CollectionA,0),MATCH(Practices_Long[[#This Row],[JFSNAT ID]]&" Type",Collection19,0)),NA()) -> 0 | D16: =IFERROR(INDEX(CollectionRange,MATCH(Practices_Long[[#This Row],[File Name]],CollectionA,0),MATCH(Practices_Long[[#This Row],[JFSNAT ID]]&" Area Treated (ft^2)",Collection19,0))/43560,NA()) -> 0 | E16: =INDEX(CollectionRange,MATCH(Practices_Long[[#This Row],[File Name]],CollectionA,0),MATCH(Practices_Long[[#This Row],[JFSNAT ID]]&" Impervious (%)",Collection19,0))*Practices_Long[[#This Row],[Total Area Captured (acres)]] -> 0 | F16: =IFERROR(INDEX(CollectionRange,MATCH(Practices_Long[[#This Row],[File Name]],CollectionA,0),MATCH(Practices_Long[[#This Row],[JFSNAT ID]]&" Inflow TN (lbs/ac/yr)",Collection19,0)),0) -> 0 | G16: =IFERROR(INDEX(CollectionRange,MATCH(Practices_Long[[#This Row],[File Name]],CollectionA,0),MATCH(Practices_Long[[#This Row],[JFSNAT ID]]&" Outflow TN (lbs/ac/yr)",Collection19,0)),0) -> 0 | H16: =(Practices_Long[[#This Row],[BMP Inflow Load (lb/ac/yr)]]-Practices_Long[[#This Row],[BMP N Outflow Load (lb/ac/yr)]])*Practices_Long[[#This Row],[Total Area Captured (acres)]] -> 0 | I16: =IFERROR(INDEX(CollectionRange,MATCH(Practices_Long[[#This Row],[File Name]],CollectionA,0),MATCH(Practices_Long[[#This Row],[JFSNAT ID]]&" Inflow TP (lbs/ac/yr)",Collection19,0)),0) -> 0 | J16: =IFERROR(INDEX(CollectionRange,MATCH(Practices_Long[[#This Row],[File Name]],CollectionA,0),MATCH(Practices_Long[[#This Row],[JFSNAT ID]]&" Outflow TP (lbs/ac/yr)",Collection19,0)),0) -> 0 | K16: =(Practices_Long[[#This Row],[BMP P Inflow Load (lb/ac/yr)]]-Practices_Long[[#This Row],[BMP P Outflow Load (lb/ac/yr)2]])*Practices_Long[[#This Row],[Total Area Captured (acres)]] -> 0 | L16: =INDEX(CollectionRange,MATCH(Practices_Long[[#This Row],[File Name]],CollectionA,0),MATCH("Latitude",Collection19,0)) -> 35.8032 | M16: =INDEX(CollectionRange,MATCH(Practices_Long[[#This Row],[File Name]],CollectionA,0),MATCH("Longitude",Collection19,0)) -> 78.5661 | N16: =OFFSET('Data Collection'!$A$20,Practices_Long[[#This Row],[Offset]],3) -> Test Site 1 Wet Pond | O16: =OFFSET('Data Collection'!$A$20,Practices_Long[[#This Row],[Offset]],0) -> SNAP Version 4.0 Wet Pond.xlsm | P16: =OFFSET('Data Collection'!$EL$20,Practices_Long[[#This Row],[Offset]],0) -> Wake | Q16: =OFFSET('Data Collection'!$EL$20,Practices_Long[[#This Row],[Offset]],1) -> Falls Zone Direct | R16: =IF(Practices_Long[[#This Row],[Practice Type]]=0,0,IF(Practices_Long[[#This Row],[Practice Type]]="--",0,1)) -> 0 | S16: =IF(OFFSET(Practices_Long[[#This Row],[Count]],-1,0)="Count",1,IF(S15=90,1,S15+1)) -> 9 | T16: =IF(OFFSET(Practices_Long[[#This Row],[Offset]],-1,0)="Offset",0,IF(S15=90,T15+1,T15)) -> 0
B17: =INDEX('Tab Lists'!$J$3:$K$92,MATCH(Practices_Long[[#This Row],[Count]],'Tab Lists'!$K$3:$K$92,0),1) -> Catchment 1 BMP 10 | C17: =IFERROR(INDEX(CollectionRange,MATCH(Practices_Long[[#This Row],[File Name]],CollectionA,0),MATCH(Practices_Long[[#This Row],[JFSNAT ID]]&" Type",Collection19,0)),NA()) -> 0 | D17: =IFERROR(INDEX(CollectionRange,MATCH(Practices_Long[[#This Row],[File Name]],CollectionA,0),MATCH(Practices_Long[[#This Row],[JFSNAT ID]]&" Area Treated (ft^2)",Collection19,0))/43560,NA()) -> 0 | E17: =INDEX(CollectionRange,MATCH(Practices_Long[[#This Row],[File Name]],CollectionA,0),MATCH(Practices_Long[[#This Row],[JFSNAT ID]]&" Impervious (%)",Collection19,0))*Practices_Long[[#This Row],[Total Area Captured (acres)]] -> 0 | F17: =IFERROR(INDEX(CollectionRange,MATCH(Practices_Long[[#This Row],[File Name]],CollectionA,0),MATCH(Practices_Long[[#This Row],[JFSNAT ID]]&" Inflow TN (lbs/ac/yr)",Collection19,0)),0) -> 0 | G17: =IFERROR(INDEX(CollectionRange,MATCH(Practices_Long[[#This Row],[File Name]],CollectionA,0),MATCH(Practices_Long[[#This Row],[JFSNAT ID]]&" Outflow TN (lbs/ac/yr)",Collection19,0)),0) -> 0 | H17: =(Practices_Long[[#This Row],[BMP Inflow Load (lb/ac/yr)]]-Practices_Long[[#This Row],[BMP N Outflow Load (lb/ac/yr)]])*Practices_Long[[#This Row],[Total Area Captured (acres)]] -> 0 | I17: =IFERROR(INDEX(CollectionRange,MATCH(Practices_Long[[#This Row],[File Name]],CollectionA,0),MATCH(Practices_Long[[#This Row],[JFSNAT ID]]&" Inflow TP (lbs/ac/yr)",Collection19,0)),0) -> 0 | J17: =IFERROR(INDEX(CollectionRange,MATCH(Practices_Long[[#This Row],[File Name]],CollectionA,0),MATCH(Practices_Long[[#This Row],[JFSNAT ID]]&" Outflow TP (lbs/ac/yr)",Collection19,0)),0) -> 0 | K17: =(Practices_Long[[#This Row],[BMP P Inflow Load (lb/ac/yr)]]-Practices_Long[[#This Row],[BMP P Outflow Load (lb/ac/yr)2]])*Practices_Long[[#This Row],[Total Area Captured (acres)]] -> 0 | L17: =INDEX(CollectionRange,MATCH(Practices_Long[[#This Row],[File Name]],CollectionA,0),MATCH("Latitude",Collection19,0)) -> 35.8032 | M17: =INDEX(CollectionRange,MATCH(Practices_Long[[#This Row],[File Name]],CollectionA,0),MATCH("Longitude",Collection19,0)) -> 78.5661 | N17: =OFFSET('Data Collection'!$A$20,Practices_Long[[#This Row],[Offset]],3) -> Test Site 1 Wet Pond | O17: =OFFSET('Data Collection'!$A$20,Practices_Long[[#This Row],[Offset]],0) -> SNAP Version 4.0 Wet Pond.xlsm | P17: =OFFSET('Data Collection'!$EL$20,Practices_Long[[#This Row],[Offset]],0) -> Wake | Q17: =OFFSET('Data Collection'!$EL$20,Practices_Long[[#This Row],[Offset]],1) -> Falls Zone Direct | R17: =IF(Practices_Long[[#This Row],[Practice Type]]=0,0,IF(Practices_Long[[#This Row],[Practice Type]]="--",0,1)) -> 0 | S17: =IF(OFFSET(Practices_Long[[#This Row],[Count]],-1,0)="Count",1,IF(S16=90,1,S16+1)) -> 10 | T17: =IF(OFFSET(Practices_Long[[#This Row],[Offset]],-1,0)="Offset",0,IF(S16=90,T16+1,T16)) -> 0
B18: =INDEX('Tab Lists'!$J$3:$K$92,MATCH(Practices_Long[[#This Row],[Count]],'Tab Lists'!$K$3:$K$92,0),1) -> Catchment 1 BMP 11 | C18: =IFERROR(INDEX(CollectionRange,MATCH(Practices_Long[[#This Row],[File Name]],CollectionA,0),MATCH(Practices_Long[[#This Row],[JFSNAT ID]]&" Type",Collection19,0)),NA()) -> 0 | D18: =IFERROR(INDEX(CollectionRange,MATCH(Practices_Long[[#This Row],[File Name]],CollectionA,0),MATCH(Practices_Long[[#This Row],[JFSNAT ID]]&" Area Treated (ft^2)",Collection19,0))/43560,NA()) -> 0 | E18: =INDEX(CollectionRange,MATCH(Practices_Long[[#This Row],[File Name]],CollectionA,0),MATCH(Practices_Long[[#This Row],[JFSNAT ID]]&" Impervious (%)",Collection19,0))*Practices_Long[[#This Row],[Total Area Captured (acres)]] -> 0 | F18: =IFERROR(INDEX(CollectionRange,MATCH(Practices_Long[[#This Row],[File Name]],CollectionA,0),MATCH(Practices_Long[[#This Row],[JFSNAT ID]]&" Inflow TN (lbs/ac/yr)",Collection19,0)),0) -> 0 | G18: =IFERROR(INDEX(CollectionRange,MATCH(Practices_Long[[#This Row],[File Name]],CollectionA,0),MATCH(Practices_Long[[#This Row],[JFSNAT ID]]&" Outflow TN (lbs/ac/yr)",Collection19,0)),0) -> 0 | H18: =(Practices_Long[[#This Row],[BMP Inflow Load (lb/ac/yr)]]-Practices_Long[[#This Row],[BMP N Outflow Load (lb/ac/yr)]])*Practices_Long[[#This Row],[Total Area Captured (acres)]] -> 0 | I18: =IFERROR(INDEX(CollectionRange,MATCH(Practices_Long[[#This Row],[File Name]],CollectionA,0),MATCH(Practices_Long[[#This Row],[JFSNAT ID]]&" Inflow TP (lbs/ac/yr)",Collection19,0)),0) -> 0 | J18: =IFERROR(INDEX(CollectionRange,MATCH(Practices_Long[[#This Row],[File Name]],CollectionA,0),MATCH(Practices_Long[[#This Row],[JFSNAT ID]]&" Outflow TP (lbs/ac/yr)",Collection19,0)),0) -> 0 | K18: =(Practices_Long[[#This Row],[BMP P Inflow Load (lb/ac/yr)]]-Practices_Long[[#This Row],[BMP P Outflow Load (lb/ac/yr)2]])*Practices_Long[[#This Row],[Total Area Captured (acres)]] -> 0 | L18: =INDEX(CollectionRange,MATCH(Practices_Long[[#This Row],[File Name]],CollectionA,0),MATCH("Latitude",Collection19,0)) -> 35.8032 | M18: =INDEX(CollectionRange,MATCH(Practices_Long[[#This Row],[File Name]],CollectionA,0),MATCH("Longitude",Collection19,0)) -> 78.5661 | N18: =OFFSET('Data Collection'!$A$20,Practices_Long[[#This Row],[Offset]],3) -> Test Site 1 Wet Pond | O18: =OFFSET('Data Collection'!$A$20,Practices_Long[[#This Row],[Offset]],0) -> SNAP Version 4.0 Wet Pond.xlsm | P18: =OFFSET('Data Collection'!$EL$20,Practices_Long[[#This Row],[Offset]],0) -> Wake | Q18: =OFFSET('Data Collection'!$EL$20,Practices_Long[[#This Row],[Offset]],1) -> Falls Zone Direct | R18: =IF(Practices_Long[[#This Row],[Practice Type]]=0,0,IF(Practices_Long[[#This Row],[Practice Type]]="--",0,1)) -> 0 | S18: =IF(OFFSET(Practices_Long[[#This Row],[Count]],-1,0)="Count",1,IF(S17=90,1,S17+1)) -> 11 | T18: =IF(OFFSET(Practices_Long[[#This Row],[Offset]],-1,0)="Offset",0,IF(S17=90,T17+1,T17)) -> 0
B19: =INDEX('Tab Lists'!$J$3:$K$92,MATCH(Practices_Long[[#This Row],[Count]],'Tab Lists'!$K$3:$K$92,0),1) -> Catchment 1 BMP 12 | C19: =IFERROR(INDEX(CollectionRange,MATCH(Practices_Long[[#This Row],[File Name]],CollectionA,0),MATCH(Practices_Long[[#This Row],[JFSNAT ID]]&" Type",Collection19,0)),NA()) -> 0 | D19: =IFERROR(INDEX(CollectionRange,MATCH(Practices_Long[[#This Row],[File Name]],CollectionA,0),MATCH(Practices_Long[[#This Row],[JFSNAT ID]]&" Area Treated (ft^2)",Collection19,0))/43560,NA()) -> 0 | E19: =INDEX(CollectionRange,MATCH(Practices_Long[[#This Row],[File Name]],CollectionA,0),MATCH(Practices_Long[[#This Row],[JFSNAT ID]]&" Impervious (%)",Collection19,0))*Practices_Long[[#This Row],[Total Area Captured (acres)]] -> 0 | F19: =IFERROR(INDEX(CollectionRange,MATCH(Practices_Long[[#This Row],[File Name]],CollectionA,0),MATCH(Practices_Long[[#This Row],[JFSNAT ID]]&" Inflow TN (lbs/ac/yr)",Collection19,0)),0) -> 0 | G19: =IFERROR(INDEX(CollectionRange,MATCH(Practices_Long[[#This Row],[File Name]],CollectionA,0),MATCH(Practices_Long[[#This Row],[JFSNAT ID]]&" Outflow TN (lbs/ac/yr)",Collection19,0)),0) -> 0 | H19: =(Practices_Long[[#This Row],[BMP Inflow Load (lb/ac/yr)]]-Practices_Long[[#This Row],[BMP N Outflow Load (lb/ac/yr)]])*Practices_Long[[#This Row],[Total Area Captured (acres)]] -> 0 | I19: =IFERROR(INDEX(CollectionRange,MATCH(Practices_Long[[#This Row],[File Name]],CollectionA,0),MATCH(Practices_Long[[#This Row],[JFSNAT ID]]&" Inflow TP (lbs/ac/yr)",Collection19,0)),0) -> 0 | J19: =IFERROR(INDEX(CollectionRange,MATCH(Practices_Long[[#This Row],[File Name]],CollectionA,0),MATCH(Practices_Long[[#This Row],[JFSNAT ID]]&" Outflow TP (lbs/ac/yr)",Collection19,0)),0) -> 0 | K19: =(Practices_Long[[#This Row],[BMP P Inflow Load (lb/ac/yr)]]-Practices_Long[[#This Row],[BMP P Outflow Load (lb/ac/yr)2]])*Practices_Long[[#This Row],[Total Area Captured (acres)]] -> 0 | L19: =INDEX(CollectionRange,MATCH(Practices_Long[[#This Row],[File Name]],CollectionA,0),MATCH("Latitude",Collection19,0)) -> 35.8032 | M19: =INDEX(CollectionRange,MATCH(Practices_Long[[#This Row],[File Name]],CollectionA,0),MATCH("Longitude",Collection19,0)) -> 78.5661 | N19: =OFFSET('Data Collection'!$A$20,Practices_Long[[#This Row],[Offset]],3) -> Test Site 1 Wet Pond | O19: =OFFSET('Data Collection'!$A$20,Practices_Long[[#This Row],[Offset]],0) -> SNAP Version 4.0 Wet Pond.xlsm | P19: =OFFSET('Data Collection'!$EL$20,Practices_Long[[#This Row],[Offset]],0) -> Wake | Q19: =OFFSET('Data Collection'!$EL$20,Practices_Long[[#This Row],[Offset]],1) -> Falls Zone Direct | R19: =IF(Practices_Long[[#This Row],[Practice Type]]=0,0,IF(Practices_Long[[#This Row],[Practice Type]]="--",0,1)) -> 0 | S19: =IF(OFFSET(Practices_Long[[#This Row],[Count]],-1,0)="Count",1,IF(S18=90,1,S18+1)) -> 12 | T19: =IF(OFFSET(Practices_Long[[#This Row],[Offset]],-1,0)="Offset",0,IF(S18=90,T18+1,T18)) -> 0
B20: =INDEX('Tab Lists'!$J$3:$K$92,MATCH(Practices_Long[[#This Row],[Count]],'Tab Lists'!$K$3:$K$92,0),1) -> Catchment 1 BMP 13 | C20: =IFERROR(INDEX(CollectionRange,MATCH(Practices_Long[[#This Row],[File Name]],CollectionA,0),MATCH(Practices_Long[[#This Row],[JFSNAT ID]]&" Type",Collection19,0)),NA()) -> 0 | D20: =IFERROR(INDEX(CollectionRange,MATCH(Practices_Long[[#This Row],[File Name]],CollectionA,0),MATCH(Practices_Long[[#This Row],[JFSNAT ID]]&" Area Treated (ft^2)",Collection19,0))/43560,NA()) -> 0 | E20: =INDEX(CollectionRange,MATCH(Practices_Long[[#This Row],[File Name]],CollectionA,0),MATCH(Practices_Long[[#This Row],[JFSNAT ID]]&" Impervious (%)",Collection19,0))*Practices_Long[[#This Row],[Total Area Captured (acres)]] -> 0 | F20: =IFERROR(INDEX(CollectionRange,MATCH(Practices_Long[[#This Row],[File Name]],CollectionA,0),MATCH(Practices_Long[[#This Row],[JFSNAT ID]]&" Inflow TN (lbs/ac/yr)",Collection19,0)),0) -> 0 | G20: =IFERROR(INDEX(CollectionRange,MATCH(Practices_Long[[#This Row],[File Name]],CollectionA,0),MATCH(Practices_Long[[#This Row],[JFSNAT ID]]&" Outflow TN (lbs/ac/yr)",Collection19,0)),0) -> 0 | H20: =(Practices_Long[[#This Row],[BMP Inflow Load (lb/ac/yr)]]-Practices_Long[[#This Row],[BMP N Outflow Load (lb/ac/yr)]])*Practices_Long[[#This Row],[Total Area Captured (acres)]] -> 0 | I20: =IFERROR(INDEX(CollectionRange,MATCH(Practices_Long[[#This Row],[File Name]],CollectionA,0),MATCH(Practices_Long[[#This Row],[JFSNAT ID]]&" Inflow TP (lbs/ac/yr)",Collection19,0)),0) -> 0 | J20: =IFERROR(INDEX(CollectionRange,MATCH(Practices_Long[[#This Row],[File Name]],CollectionA,0),MATCH(Practices_Long[[#This Row],[JFSNAT ID]]&" Outflow TP (lbs/ac/yr)",Collection19,0)),0) -> 0 | K20: =(Practices_Long[[#This Row],[BMP P Inflow Load (lb/ac/yr)]]-Practices_Long[[#This Row],[BMP P Outflow Load (lb/ac/yr)2]])*Practices_Long[[#This Row],[Total Area Captured (acres)]] -> 0 | L20: =INDEX(CollectionRange,MATCH(Practices_Long[[#This Row],[File Name]],CollectionA,0),MATCH("Latitude",Collection19,0)) -> 35.8032 | M20: =INDEX(CollectionRange,MATCH(Practices_Long[[#This Row],[File Name]],CollectionA,0),MATCH("Longitude",Collection19,0)) -> 78.5661 | N20: =OFFSET('Data Collection'!$A$20,Practices_Long[[#This Row],[Offset]],3) -> Test Site 1 Wet Pond | O20: =OFFSET('Data Collection'!$A$20,Practices_Long[[#This Row],[Offset]],0) -> SNAP Version 4.0 Wet Pond.xlsm | P20: =OFFSET('Data Collection'!$EL$20,Practices_Long[[#This Row],[Offset]],0) -> Wake | Q20: =OFFSET('Data Collection'!$EL$20,Practices_Long[[#This Row],[Offset]],1) -> Falls Zone Direct | R20: =IF(Practices_Long[[#This Row],[Practice Type]]=0,0,IF(Practices_Long[[#This Row],[Practice Type]]="--",0,1)) -> 0 | S20: =IF(OFFSET(Practices_Long[[#This Row],[Count]],-1,0)="Count",1,IF(S19=90,1,S19+1)) -> 13 | T20: =IF(OFFSET(Practices_Long[[#This Row],[Offset]],-1,0)="Offset",0,IF(S19=90,T19+1,T19)) -> 0
B21: =INDEX('Tab Lists'!$J$3:$K$92,MATCH(Practices_Long[[#This Row],[Count]],'Tab Lists'!$K$3:$K$92,0),1) -> Catchment 1 BMP 14 | C21: =IFERROR(INDEX(CollectionRange,MATCH(Practices_Long[[#This Row],[File Name]],CollectionA,0),MATCH(Practices_Long[[#This Row],[JFSNAT ID]]&" Type",Collection19,0)),NA()) -> 0 | D21: =IFERROR(INDEX(CollectionRange,MATCH(Practices_Long[[#This Row],[File Name]],CollectionA,0),MATCH(Practices_Long[[#This Row],[JFSNAT ID]]&" Area Treated (ft^2)",Collection19,0))/43560,NA()) -> 0 | E21: =INDEX(CollectionRange,MATCH(Practices_Long[[#This Row],[File Name]],CollectionA,0),MATCH(Practices_Long[[#This Row],[JFSNAT ID]]&" Impervious (%)",Collection19,0))*Practices_Long[[#This Row],[Total Area Captured (acres)]] -> 0 | F21: =IFERROR(INDEX(CollectionRange,MATCH(Practices_Long[[#This Row],[File Name]],CollectionA,0),MATCH(Practices_Long[[#This Row],[JFSNAT ID]]&" Inflow TN (lbs/ac/yr)",Collection19,0)),0) -> 0 | G21: =IFERROR(INDEX(CollectionRange,MATCH(Practices_Long[[#This Row],[File Name]],CollectionA,0),MATCH(Practices_Long[[#This Row],[JFSNAT ID]]&" Outflow TN (lbs/ac/yr)",Collection19,0)),0) -> 0 | H21: =(Practices_Long[[#This Row],[BMP Inflow Load (lb/ac/yr)]]-Practices_Long[[#This Row],[BMP N Outflow Load (lb/ac/yr)]])*Practices_Long[[#This Row],[Total Area Captured (acres)]] -> 0 | I21: =IFERROR(INDEX(CollectionRange,MATCH(Practices_Long[[#This Row],[File Name]],CollectionA,0),MATCH(Practices_Long[[#This Row],[JFSNAT ID]]&" Inflow TP (lbs/ac/yr)",Collection19,0)),0) -> 0 | J21: =IFERROR(INDEX(CollectionRange,MATCH(Practices_Long[[#This Row],[File Name]],CollectionA,0),MATCH(Practices_Long[[#This Row],[JFSNAT ID]]&" Outflow TP (lbs/ac/yr)",Collection19,0)),0) -> 0 | K21: =(Practices_Long[[#This Row],[BMP P Inflow Load (lb/ac/yr)]]-Practices_Long[[#This Row],[BMP P Outflow Load (lb/ac/yr)2]])*Practices_Long[[#This Row],[Total Area Captured (acres)]] -> 0 | L21: =INDEX(CollectionRange,MATCH(Practices_Long[[#This Row],[File Name]],CollectionA,0),MATCH("Latitude",Collection19,0)) -> 35.8032 | M21: =INDEX(CollectionRange,MATCH(Practices_Long[[#This Row],[File Name]],CollectionA,0),MATCH("Longitude",Collection19,0)) -> 78.5661 | N21: =OFFSET('Data Collection'!$A$20,Practices_Long[[#This Row],[Offset]],3) -> Test Site 1 Wet Pond | O21: =OFFSET('Data Collection'!$A$20,Practices_Long[[#This Row],[Offset]],0) -> SNAP Version 4.0 Wet Pond.xlsm | P21: =OFFSET('Data Collection'!$EL$20,Practices_Long[[#This Row],[Offset]],0) -> Wake | Q21: =OFFSET('Data Collection'!$EL$20,Practices_Long[[#This Row],[Offset]],1) -> Falls Zone Direct | R21: =IF(Practices_Long[[#This Row],[Practice Type]]=0,0,IF(Practices_Long[[#This Row],[Practice Type]]="--",0,1)) -> 0 | S21: =IF(OFFSET(Practices_Long[[#This Row],[Count]],-1,0)="Count",1,IF(S20=90,1,S20+1)) -> 14 | T21: =IF(OFFSET(Practices_Long[[#This Row],[Offset]],-1,0)="Offset",0,IF(S20=90,T20+1,T20)) -> 0
B22: =INDEX('Tab Lists'!$J$3:$K$92,MATCH(Practices_Long[[#This Row],[Count]],'Tab Lists'!$K$3:$K$92,0),1) -> Catchment 1 BMP 15 | C22: =IFERROR(INDEX(CollectionRange,MATCH(Practices_Long[[#This Row],[File Name]],CollectionA,0),MATCH(Practices_Long[[#This Row],[JFSNAT ID]]&" Type",Collection19,0)),NA()) -> 0 | D22: =IFERROR(INDEX(CollectionRange,MATCH(Practices_Long[[#This Row],[File Name]],CollectionA,0),MATCH(Practices_Long[[#This Row],[JFSNAT ID]]&" Area Treated (ft^2)",Collection19,0))/43560,NA()) -> 0 | E22: =INDEX(CollectionRange,MATCH(Practices_Long[[#This Row],[File Name]],CollectionA,0),MATCH(Practices_Long[[#This Row],[JFSNAT ID]]&" Impervious (%)",Collection19,0))*Practices_Long[[#This Row],[Total Area Captured (acres)]] -> 0 | F22: =IFERROR(INDEX(CollectionRange,MATCH(Practices_Long[[#This Row],[File Name]],CollectionA,0),MATCH(Practices_Long[[#This Row],[JFSNAT ID]]&" Inflow TN (lbs/ac/yr)",Collection19,0)),0) -> 0 | G22: =IFERROR(INDEX(CollectionRange,MATCH(Practices_Long[[#This Row],[File Name]],CollectionA,0),MATCH(Practices_Long[[#This Row],[JFSNAT ID]]&" Outflow TN (lbs/ac/yr)",Collection19,0)),0) -> 0 | H22: =(Practices_Long[[#This Row],[BMP Inflow Load (lb/ac/yr)]]-Practices_Long[[#This Row],[BMP N Outflow Load (lb/ac/yr)]])*Practices_Long[[#This Row],[Total Area Captured (acres)]] -> 0 | I22: =IFERROR(INDEX(CollectionRange,MATCH(Practices_Long[[#This Row],[File Name]],CollectionA,0),MATCH(Practices_Long[[#This Row],[JFSNAT ID]]&" Inflow TP (lbs/ac/yr)",Collection19,0)),0) -> 0 | J22: =IFERROR(INDEX(CollectionRange,MATCH(Practices_Long[[#This Row],[File Name]],CollectionA,0),MATCH(Practices_Long[[#This Row],[JFSNAT ID]]&" Outflow TP (lbs/ac/yr)",Collection19,0)),0) -> 0 | K22: =(Practices_Long[[#This Row],[BMP P Inflow Load (lb/ac/yr)]]-Practices_Long[[#This Row],[BMP P Outflow Load (lb/ac/yr)2]])*Practices_Long[[#This Row],[Total Area Captured (acres)]] -> 0 | L22: =INDEX(CollectionRange,MATCH(Practices_Long[[#This Row],[File Name]],CollectionA,0),MATCH("Latitude",Collection19,0)) -> 35.8032 | M22: =INDEX(CollectionRange,MATCH(Practices_Long[[#This Row],[File Name]],CollectionA,0),MATCH("Longitude",Collection19,0)) -> 78.5661 | N22: =OFFSET('Data Collection'!$A$20,Practices_Long[[#This Row],[Offset]],3) -> Test Site 1 Wet Pond | O22: =OFFSET('Data Collection'!$A$20,Practices_Long[[#This Row],[Offset]],0) -> SNAP Version 4.0 Wet Pond.xlsm | P22: =OFFSET('Data Collection'!$EL$20,Practices_Long[[#This Row],[Offset]],0) -> Wake | Q22: =OFFSET('Data Collection'!$EL$20,Practices_Long[[#This Row],[Offset]],1) -> Falls Zone Direct | R22: =IF(Practices_Long[[#This Row],[Practice Type]]=0,0,IF(Practices_Long[[#This Row],[Practice Type]]="--",0,1)) -> 0 | S22: =IF(OFFSET(Practices_Long[[#This Row],[Count]],-1,0)="Count",1,IF(S21=90,1,S21+1)) -> 15 | T22: =IF(OFFSET(Practices_Long[[#This Row],[Offset]],-1,0)="Offset",0,IF(S21=90,T21+1,T21)) -> 0
B23: =INDEX('Tab Lists'!$J$3:$K$92,MATCH(Practices_Long[[#This Row],[Count]],'Tab Lists'!$K$3:$K$92,0),1) -> Catchment 2 BMP 1 | C23: =IFERROR(INDEX(CollectionRange,MATCH(Practices_Long[[#This Row],[File Name]],CollectionA,0),MATCH(Practices_Long[[#This Row],[JFSNAT ID]]&" Type",Collection19,0)),NA()) -> 0 | D23: =IFERROR(INDEX(CollectionRange,MATCH(Practices_Long[[#This Row],[File Name]],CollectionA,0),MATCH(Practices_Long[[#This Row],[JFSNAT ID]]&" Area Treated (ft^2)",Collection19,0))/43560,NA()) -> 0 | E23: =INDEX(CollectionRange,MATCH(Practices_Long[[#This Row],[File Name]],CollectionA,0),MATCH(Practices_Long[[#This Row],[JFSNAT ID]]&" Impervious (%)",Collection19,0))*Practices_Long[[#This Row],[Total Area Captured (acres)]] -> 0 | F23: =IFERROR(INDEX(CollectionRange,MATCH(Practices_Long[[#This Row],[File Name]],CollectionA,0),MATCH(Practices_Long[[#This Row],[JFSNAT ID]]&" Inflow TN (lbs/ac/yr)",Collection19,0)),0) -> 0 | G23: =IFERROR(INDEX(CollectionRange,MATCH(Practices_Long[[#This Row],[File Name]],CollectionA,0),MATCH(Practices_Long[[#This Row],[JFSNAT ID]]&" Outflow TN (lbs/ac/yr)",Collection19,0)),0) -> 0 | H23: =(Practices_Long[[#This Row],[BMP Inflow Load (lb/ac/yr)]]-Practices_Long[[#This Row],[BMP N Outflow Load (lb/ac/yr)]])*Practices_Long[[#This Row],[Total Area Captured (acres)]] -> 0 | I23: =IFERROR(INDEX(CollectionRange,MATCH(Practices_Long[[#This Row],[File Name]],CollectionA,0),MATCH(Practices_Long[[#This Row],[JFSNAT ID]]&" Inflow TP (lbs/ac/yr)",Collection19,0)),0) -> 0 | J23: =IFERROR(INDEX(CollectionRange,MATCH(Practices_Long[[#This Row],[File Name]],CollectionA,0),MATCH(Practices_Long[[#This Row],[JFSNAT ID]]&" Outflow TP (lbs/ac/yr)",Collection19,0)),0) -> 0 | K23: =(Practices_Long[[#This Row],[BMP P Inflow Load (lb/ac/yr)]]-Practices_Long[[#This Row],[BMP P Outflow Load (lb/ac/yr)2]])*Practices_Long[[#This Row],[Total Area Captured (acres)]] -> 0 | L23: =INDEX(CollectionRange,MATCH(Practices_Long[[#This Row],[File Name]],CollectionA,0),MATCH("Latitude",Collection19,0)) -> 35.8032 | M23: =INDEX(CollectionRange,MATCH(Practices_Long[[#This Row],[File Name]],CollectionA,0),MATCH("Longitude",Collection19,0)) -> 78.5661 | N23: =OFFSET('Data Collection'!$A$20,Practices_Long[[#This Row],[Offset]],3) -> Test Site 1 Wet Pond | O23: =OFFSET('Data Collection'!$A$20,Practices_Long[[#This Row],[Offset]],0) -> SNAP Version 4.0 Wet Pond.xlsm | P23: =OFFSET('Data Collection'!$EL$20,Practices_Long[[#This Row],[Offset]],0) -> Wake | Q23: =OFFSET('Data Collection'!$EL$20,Practices_Long[[#This Row],[Offset]],1) -> Falls Zone Direct | R23: =IF(Practices_Long[[#This Row],[Practice Type]]=0,0,IF(Practices_Long[[#This Row],[Practice Type]]="--",0,1)) -> 0 | S23: =IF(OFFSET(Practices_Long[[#This Row],[Count]],-1,0)="Count",1,IF(S22=90,1,S22+1)) -> 16 | T23: =IF(OFFSET(Practices_Long[[#This Row],[Offset]],-1,0)="Offset",0,IF(S22=90,T22+1,T22)) -> 0
B24: =INDEX('Tab Lists'!$J$3:$K$92,MATCH(Practices_Long[[#This Row],[Count]],'Tab Lists'!$K$3:$K$92,0),1) -> Catchment 2 BMP 2 | C24: =IFERROR(INDEX(CollectionRange,MATCH(Practices_Long[[#This Row],[File Name]],CollectionA,0),MATCH(Practices_Long[[#This Row],[JFSNAT ID]]&" Type",Collection19,0)),NA()) -> 0 | D24: =IFERROR(INDEX(CollectionRange,MATCH(Practices_Long[[#This Row],[File Name]],CollectionA,0),MATCH(Practices_Long[[#This Row],[JFSNAT ID]]&" Area Treated (ft^2)",Collection19,0))/43560,NA()) -> 0 | E24: =INDEX(CollectionRange,MATCH(Practices_Long[[#This Row],[File Name]],CollectionA,0),MATCH(Practices_Long[[#This Row],[JFSNAT ID]]&" Impervious (%)",Collection19,0))*Practices_Long[[#This Row],[Total Area Captured (acres)]] -> 0 | F24: =IFERROR(INDEX(CollectionRange,MATCH(Practices_Long[[#This Row],[File Name]],CollectionA,0),MATCH(Practices_Long[[#This Row],[JFSNAT ID]]&" Inflow TN (lbs/ac/yr)",Collection19,0)),0) -> 0 | G24: =IFERROR(INDEX(CollectionRange,MATCH(Practices_Long[[#This Row],[File Name]],CollectionA,0),MATCH(Practices_Long[[#This Row],[JFSNAT ID]]&" Outflow TN (lbs/ac/yr)",Collection19,0)),0) -> 0 | H24: =(Practices_Long[[#This Row],[BMP Inflow Load (lb/ac/yr)]]-Practices_Long[[#This Row],[BMP N Outflow Load (lb/ac/yr)]])*Practices_Long[[#This Row],[Total Area Captured (acres)]] -> 0 | I24: =IFERROR(INDEX(CollectionRange,MATCH(Practices_Long[[#This Row],[File Name]],CollectionA,0),MATCH(Practices_Long[[#This Row],[JFSNAT ID]]&" Inflow TP (lbs/ac/yr)",Collection19,0)),0) -> 0 | J24: =IFERROR(INDEX(CollectionRange,MATCH(Practices_Long[[#This Row],[File Name]],CollectionA,0),MATCH(Practices_Long[[#This Row],[JFSNAT ID]]&" Outflow TP (lbs/ac/yr)",Collection19,0)),0) -> 0 | K24: =(Practices_Long[[#This Row],[BMP P Inflow Load (lb/ac/yr)]]-Practices_Long[[#This Row],[BMP P Outflow Load (lb/ac/yr)2]])*Practices_Long[[#This Row],[Total Area Captured (acres)]] -> 0 | L24: =INDEX(CollectionRange,MATCH(Practices_Long[[#This Row],[File Name]],CollectionA,0),MATCH("Latitude",Collection19,0)) -> 35.8032 | M24: =INDEX(CollectionRange,MATCH(Practices_Long[[#This Row],[File Name]],CollectionA,0),MATCH("Longitude",Collection19,0)) -> 78.5661 | N24: =OFFSET('Data Collection'!$A$20,Practices_Long[[#This Row],[Offset]],3) -> Test Site 1 Wet Pond | O24: =OFFSET('Data Collection'!$A$20,Practices_Long[[#This Row],[Offset]],0) -> SNAP Version 4.0 Wet Pond.xlsm | P24: =OFFSET('Data Collection'!$EL$20,Practices_Long[[#This Row],[Offset]],0) -> Wake | Q24: =OFFSET('Data Collection'!$EL$20,Practices_Long[[#This Row],[Offset]],1) -> Falls Zone Direct | R24: =IF(Practices_Long[[#This Row],[Practice Type]]=0,0,IF(Practices_Long[[#This Row],[Practice Type]]="--",0,1)) -> 0 | S24: =IF(OFFSET(Practices_Long[[#This Row],[Count]],-1,0)="Count",1,IF(S23=90,1,S23+1)) -> 17 | T24: =IF(OFFSET(Practices_Long[[#This Row],[Offset]],-1,0)="Offset",0,IF(S23=90,T23+1,T23)) -> 0
B25: =INDEX('Tab Lists'!$J$3:$K$92,MATCH(Practices_Long[[#This Row],[Count]],'Tab Lists'!$K$3:$K$92,0),1) -> Catchment 2 BMP 3 | C25: =IFERROR(INDEX(CollectionRange,MATCH(Practices_Long[[#This Row],[File Name]],CollectionA,0),MATCH(Practices_Long[[#This Row],[JFSNAT ID]]&" Type",Collection19,0)),NA()) -> 0 | D25: =IFERROR(INDEX(CollectionRange,MATCH(Practices_Long[[#This Row],[File Name]],CollectionA,0),MATCH(Practices_Long[[#This Row],[JFSNAT ID]]&" Area Treated (ft^2)",Collection19,0))/43560,NA()) -> 0 | E25: =INDEX(CollectionRange,MATCH(Practices_Long[[#This Row],[File Name]],CollectionA,0),MATCH(Practices_Long[[#This Row],[JFSNAT ID]]&" Impervious (%)",Collection19,0))*Practices_Long[[#This Row],[Total Area Captured (acres)]] -> 0 | F25: =IFERROR(INDEX(CollectionRange,MATCH(Practices_Long[[#This Row],[File Name]],CollectionA,0),MATCH(Practices_Long[[#This Row],[JFSNAT ID]]&" Inflow TN (lbs/ac/yr)",Collection19,0)),0) -> 0 | G25: =IFERROR(INDEX(CollectionRange,MATCH(Practices_Long[[#This Row],[File Name]],CollectionA,0),MATCH(Practices_Long[[#This Row],[JFSNAT ID]]&" Outflow TN (lbs/ac/yr)",Collection19,0)),0) -> 0 | H25: =(Practices_Long[[#This Row],[BMP Inflow Load (lb/ac/yr)]]-Practices_Long[[#This Row],[BMP N Outflow Load (lb/ac/yr)]])*Practices_Long[[#This Row],[Total Area Captured (acres)]] -> 0 | I25: =IFERROR(INDEX(CollectionRange,MATCH(Practices_Long[[#This Row],[File Name]],CollectionA,0),MATCH(Practices_Long[[#This Row],[JFSNAT ID]]&" Inflow TP (lbs/ac/yr)",Collection19,0)),0) -> 0 | J25: =IFERROR(INDEX(CollectionRange,MATCH(Practices_Long[[#This Row],[File Name]],CollectionA,0),MATCH(Practices_Long[[#This Row],[JFSNAT ID]]&" Outflow TP (lbs/ac/yr)",Collection19,0)),0) -> 0 | K25: =(Practices_Long[[#This Row],[BMP P Inflow Load (lb/ac/yr)]]-Practices_Long[[#This Row],[BMP P Outflow Load (lb/ac/yr)2]])*Practices_Long[[#This Row],[Total Area Captured (acres)]] -> 0 | L25: =INDEX(CollectionRange,MATCH(Practices_Long[[#This Row],[File Name]],CollectionA,0),MATCH("Latitude",Collection19,0)) -> 35.8032 | M25: =INDEX(CollectionRange,MATCH(Practices_Long[[#This Row],[File Name]],CollectionA,0),MATCH("Longitude",Collection19,0)) -> 78.5661 | N25: =OFFSET('Data Collection'!$A$20,Practices_Long[[#This Row],[Offset]],3) -> Test Site 1 Wet Pond | O25: =OFFSET('Data Collection'!$A$20,Practices_Long[[#This Row],[Offset]],0) -> SNAP Version 4.0 Wet Pond.xlsm | P25: =OFFSET('Data Collection'!$EL$20,Practices_Long[[#This Row],[Offset]],0) -> Wake | Q25: =OFFSET('Data Collection'!$EL$20,Practices_Long[[#This Row],[Offset]],1) -> Falls Zone Direct | R25: =IF(Practices_Long[[#This Row],[Practice Type]]=0,0,IF(Practices_Long[[#This Row],[Practice Type]]="--",0,1)) -> 0 | S25: =IF(OFFSET(Practices_Long[[#This Row],[Count]],-1,0)="Count",1,IF(S24=90,1,S24+1)) -> 18 | T25: =IF(OFFSET(Practices_Long[[#This Row],[Offset]],-1,0)="Offset",0,IF(S24=90,T24+1,T24)) -> 0
B26: =INDEX('Tab Lists'!$J$3:$K$92,MATCH(Practices_Long[[#This Row],[Count]],'Tab Lists'!$K$3:$K$92,0),1) -> Catchment 2 BMP 4 | C26: =IFERROR(INDEX(CollectionRange,MATCH(Practices_Long[[#This Row],[File Name]],CollectionA,0),MATCH(Practices_Long[[#This Row],[JFSNAT ID]]&" Type",Collection19,0)),NA()) -> 0 | D26: =IFERROR(INDEX(CollectionRange,MATCH(Practices_Long[[#This Row],[File Name]],CollectionA,0),MATCH(Practices_Long[[#This Row],[JFSNAT ID]]&" Area Treated (ft^2)",Collection19,0))/43560,NA()) -> 0 | E26: =INDEX(CollectionRange,MATCH(Practices_Long[[#This Row],[File Name]],CollectionA,0),MATCH(Practices_Long[[#This Row],[JFSNAT ID]]&" Impervious (%)",Collection19,0))*Practices_Long[[#This Row],[Total Area Captured (acres)]] -> 0 | F26: =IFERROR(INDEX(CollectionRange,MATCH(Practices_Long[[#This Row],[File Name]],CollectionA,0),MATCH(Practices_Long[[#This Row],[JFSNAT ID]]&" Inflow TN (lbs/ac/yr)",Collection19,0)),0) -> 0 | G26: =IFERROR(INDEX(CollectionRange,MATCH(Practices_Long[[#This Row],[File Name]],CollectionA,0),MATCH(Practices_Long[[#This Row],[JFSNAT ID]]&" Outflow TN (lbs/ac/yr)",Collection19,0)),0) -> 0 | H26: =(Practices_Long[[#This Row],[BMP Inflow Load (lb/ac/yr)]]-Practices_Long[[#This Row],[BMP N Outflow Load (lb/ac/yr)]])*Practices_Long[[#This Row],[Total Area Captured (acres)]] -> 0 | I26: =IFERROR(INDEX(CollectionRange,MATCH(Practices_Long[[#This Row],[File Name]],CollectionA,0),MATCH(Practices_Long[[#This Row],[JFSNAT ID]]&" Inflow TP (lbs/ac/yr)",Collection19,0)),0) -> 0 | J26: =IFERROR(INDEX(CollectionRange,MATCH(Practices_Long[[#This Row],[File Name]],CollectionA,0),MATCH(Practices_Long[[#This Row],[JFSNAT ID]]&" Outflow TP (lbs/ac/yr)",Collection19,0)),0) -> 0 | K26: =(Practices_Long[[#This Row],[BMP P Inflow Load (lb/ac/yr)]]-Practices_Long[[#This Row],[BMP P Outflow Load (lb/ac/yr)2]])*Practices_Long[[#This Row],[Total Area Captured (acres)]] -> 0 | L26: =INDEX(CollectionRange,MATCH(Practices_Long[[#This Row],[File Name]],CollectionA,0),MATCH("Latitude",Collection19,0)) -> 35.8032 | M26: =INDEX(CollectionRange,MATCH(Practices_Long[[#This Row],[File Name]],CollectionA,0),MATCH("Longitude",Collection19,0)) -> 78.5661 | N26: =OFFSET('Data Collection'!$A$20,Practices_Long[[#This Row],[Offset]],3) -> Test Site 1 Wet Pond | O26: =OFFSET('Data Collection'!$A$20,Practices_Long[[#This Row],[Offset]],0) -> SNAP Version 4.0 Wet Pond.xlsm | P26: =OFFSET('Data Collection'!$EL$20,Practices_Long[[#This Row],[Offset]],0) -> Wake | Q26: =OFFSET('Data Collection'!$EL$20,Practices_Long[[#This Row],[Offset]],1) -> Falls Zone Direct | R26: =IF(Practices_Long[[#This Row],[Practice Type]]=0,0,IF(Practices_Long[[#This Row],[Practice Type]]="--",0,1)) -> 0 | S26: =IF(OFFSET(Practices_Long[[#This Row],[Count]],-1,0)="Count",1,IF(S25=90,1,S25+1)) -> 19 | T26: =IF(OFFSET(Practices_Long[[#This Row],[Offset]],-1,0)="Offset",0,IF(S25=90,T25+1,T25)) -> 0
B27: =INDEX('Tab Lists'!$J$3:$K$92,MATCH(Practices_Long[[#This Row],[Count]],'Tab Lists'!$K$3:$K$92,0),1) -> Catchment 2 BMP 5 | C27: =IFERROR(INDEX(CollectionRange,MATCH(Practices_Long[[#This Row],[File Name]],CollectionA,0),MATCH(Practices_Long[[#This Row],[JFSNAT ID]]&" Type",Collection19,0)),NA()) -> 0 | D27: =IFERROR(INDEX(CollectionRange,MATCH(Practices_Long[[#This Row],[File Name]],CollectionA,0),MATCH(Practices_Long[[#This Row],[JFSNAT ID]]&" Area Treated (ft^2)",Collection19,0))/43560,NA()) -> 0 | E27: =INDEX(CollectionRange,MATCH(Practices_Long[[#This Row],[File Name]],CollectionA,0),MATCH(Practices_Long[[#This Row],[JFSNAT ID]]&" Impervious (%)",Collection19,0))*Practices_Long[[#This Row],[Total Area Captured (acres)]] -> 0 | F27: =IFERROR(INDEX(CollectionRange,MATCH(Practices_Long[[#This Row],[File Name]],CollectionA,0),MATCH(Practices_Long[[#This Row],[JFSNAT ID]]&" Inflow TN (lbs/ac/yr)",Collection19,0)),0) -> 0 | G27: =IFERROR(INDEX(CollectionRange,MATCH(Practices_Long[[#This Row],[File Name]],CollectionA,0),MATCH(Practices_Long[[#This Row],[JFSNAT ID]]&" Outflow TN (lbs/ac/yr)",Collection19,0)),0) -> 0 | H27: =(Practices_Long[[#This Row],[BMP Inflow Load (lb/ac/yr)]]-Practices_Long[[#This Row],[BMP N Outflow Load (lb/ac/yr)]])*Practices_Long[[#This Row],[Total Area Captured (acres)]] -> 0 | I27: =IFERROR(INDEX(CollectionRange,MATCH(Practices_Long[[#This Row],[File Name]],CollectionA,0),MATCH(Practices_Long[[#This Row],[JFSNAT ID]]&" Inflow TP (lbs/ac/yr)",Collection19,0)),0) -> 0 | J27: =IFERROR(INDEX(CollectionRange,MATCH(Practices_Long[[#This Row],[File Name]],CollectionA,0),MATCH(Practices_Long[[#This Row],[JFSNAT ID]]&" Outflow TP (lbs/ac/yr)",Collection19,0)),0) -> 0 | K27: =(Practices_Long[[#This Row],[BMP P Inflow Load (lb/ac/yr)]]-Practices_Long[[#This Row],[BMP P Outflow Load (lb/ac/yr)2]])*Practices_Long[[#This Row],[Total Area Captured (acres)]] -> 0 | L27: =INDEX(CollectionRange,MATCH(Practices_Long[[#This Row],[File Name]],CollectionA,0),MATCH("Latitude",Collection19,0)) -> 35.8032 | M27: =INDEX(CollectionRange,MATCH(Practices_Long[[#This Row],[File Name]],CollectionA,0),MATCH("Longitude",Collection19,0)) -> 78.5661 | N27: =OFFSET('Data Collection'!$A$20,Practices_Long[[#This Row],[Offset]],3) -> Test Site 1 Wet Pond | O27: =OFFSET('Data Collection'!$A$20,Practices_Long[[#This Row],[Offset]],0) -> SNAP Version 4.0 Wet Pond.xlsm | P27: =OFFSET('Data Collection'!$EL$20,Practices_Long[[#This Row],[Offset]],0) -> Wake | Q27: =OFFSET('Data Collection'!$EL$20,Practices_Long[[#This Row],[Offset]],1) -> Falls Zone Direct | R27: =IF(Practices_Long[[#This Row],[Practice Type]]=0,0,IF(Practices_Long[[#This Row],[Practice Type]]="--",0,1)) -> 0 | S27: =IF(OFFSET(Practices_Long[[#This Row],[Count]],-1,0)="Count",1,IF(S26=90,1,S26+1)) -> 20 | T27: =IF(OFFSET(Practices_Long[[#This Row],[Offset]],-1,0)="Offset",0,IF(S26=90,T26+1,T26)) -> 0
B28: =INDEX('Tab Lists'!$J$3:$K$92,MATCH(Practices_Long[[#This Row],[Count]],'Tab Lists'!$K$3:$K$92,0),1) -> Catchment 2 BMP 6 | C28: =IFERROR(INDEX(CollectionRange,MATCH(Practices_Long[[#This Row],[File Name]],CollectionA,0),MATCH(Practices_Long[[#This Row],[JFSNAT ID]]&" Type",Collection19,0)),NA()) -> 0 | D28: =IFERROR(INDEX(CollectionRange,MATCH(Practices_Long[[#This Row],[File Name]],CollectionA,0),MATCH(Practices_Long[[#This Row],[JFSNAT ID]]&" Area Treated (ft^2)",Collection19,0))/43560,NA()) -> 0 | E28: =INDEX(CollectionRange,MATCH(Practices_Long[[#This Row],[File Name]],CollectionA,0),MATCH(Practices_Long[[#This Row],[JFSNAT ID]]&" Impervious (%)",Collection19,0))*Practices_Long[[#This Row],[Total Area Captured (acres)]] -> 0 | F28: =IFERROR(INDEX(CollectionRange,MATCH(Practices_Long[[#This Row],[File Name]],CollectionA,0),MATCH(Practices_Long[[#This Row],[JFSNAT ID]]&" Inflow TN (lbs/ac/yr)",Collection19,0)),0) -> 0 | G28: =IFERROR(INDEX(CollectionRange,MATCH(Practices_Long[[#This Row],[File Name]],CollectionA,0),MATCH(Practices_Long[[#This Row],[JFSNAT ID]]&" Outflow TN (lbs/ac/yr)",Collection19,0)),0) -> 0 | H28: =(Practices_Long[[#This Row],[BMP Inflow Load (lb/ac/yr)]]-Practices_Long[[#This Row],[BMP N Outflow Load (lb/ac/yr)]])*Practices_Long[[#This Row],[Total Area Captured (acres)]] -> 0 | I28: =IFERROR(INDEX(CollectionRange,MATCH(Practices_Long[[#This Row],[File Name]],CollectionA,0),MATCH(Practices_Long[[#This Row],[JFSNAT ID]]&" Inflow TP (lbs/ac/yr)",Collection19,0)),0) -> 0 | J28: =IFERROR(INDEX(CollectionRange,MATCH(Practices_Long[[#This Row],[File Name]],CollectionA,0),MATCH(Practices_Long[[#This Row],[JFSNAT ID]]&" Outflow TP (lbs/ac/yr)",Collection19,0)),0) -> 0 | K28: =(Practices_Long[[#This Row],[BMP P Inflow Load (lb/ac/yr)]]-Practices_Long[[#This Row],[BMP P Outflow Load (lb/ac/yr)2]])*Practices_Long[[#This Row],[Total Area Captured (acres)]] -> 0 | L28: =INDEX(CollectionRange,MATCH(Practices_Long[[#This Row],[File Name]],CollectionA,0),MATCH("Latitude",Collection19,0)) -> 35.8032 | M28: =INDEX(CollectionRange,MATCH(Practices_Long[[#This Row],[File Name]],CollectionA,0),MATCH("Longitude",Collection19,0)) -> 78.5661 | N28: =OFFSET('Data Collection'!$A$20,Practices_Long[[#This Row],[Offset]],3) -> Test Site 1 Wet Pond | O28: =OFFSET('Data Collection'!$A$20,Practices_Long[[#This Row],[Offset]],0) -> SNAP Version 4.0 Wet Pond.xlsm | P28: =OFFSET('Data Collection'!$EL$20,Practices_Long[[#This Row],[Offset]],0) -> Wake | Q28: =OFFSET('Data Collection'!$EL$20,Practices_Long[[#This Row],[Offset]],1) -> Falls Zone Direct | R28: =IF(Practices_Long[[#This Row],[Practice Type]]=0,0,IF(Practices_Long[[#This Row],[Practice Type]]="--",0,1)) -> 0 | S28: =IF(OFFSET(Practices_Long[[#This Row],[Count]],-1,0)="Count",1,IF(S27=90,1,S27+1)) -> 21 | T28: =IF(OFFSET(Practices_Long[[#This Row],[Offset]],-1,0)="Offset",0,IF(S27=90,T27+1,T27)) -> 0
B29: =INDEX('Tab Lists'!$J$3:$K$92,MATCH(Practices_Long[[#This Row],[Count]],'Tab Lists'!$K$3:$K$92,0),1) -> Catchment 2 BMP 7 | C29: =IFERROR(INDEX(CollectionRange,MATCH(Practices_Long[[#This Row],[File Name]],CollectionA,0),MATCH(Practices_Long[[#This Row],[JFSNAT ID]]&" Type",Collection19,0)),NA()) -> 0 | D29: =IFERROR(INDEX(CollectionRange,MATCH(Practices_Long[[#This Row],[File Name]],CollectionA,0),MATCH(Practices_Long[[#This Row],[JFSNAT ID]]&" Area Treated (ft^2)",Collection19,0))/43560,NA()) -> 0 | E29: =INDEX(CollectionRange,MATCH(Practices_Long[[#This Row],[File Name]],CollectionA,0),MATCH(Practices_Long[[#This Row],[JFSNAT ID]]&" Impervious (%)",Collection19,0))*Practices_Long[[#This Row],[Total Area Captured (acres)]] -> 0 | F29: =IFERROR(INDEX(CollectionRange,MATCH(Practices_Long[[#This Row],[File Name]],CollectionA,0),MATCH(Practices_Long[[#This Row],[JFSNAT ID]]&" Inflow TN (lbs/ac/yr)",Collection19,0)),0) -> 0 | G29: =IFERROR(INDEX(CollectionRange,MATCH(Practices_Long[[#This Row],[File Name]],CollectionA,0),MATCH(Practices_Long[[#This Row],[JFSNAT ID]]&" Outflow TN (lbs/ac/yr)",Collection19,0)),0) -> 0 | H29: =(Practices_Long[[#This Row],[BMP Inflow Load (lb/ac/yr)]]-Practices_Long[[#This Row],[BMP N Outflow Load (lb/ac/yr)]])*Practices_Long[[#This Row],[Total Area Captured (acres)]] -> 0 | I29: =IFERROR(INDEX(CollectionRange,MATCH(Practices_Long[[#This Row],[File Name]],CollectionA,0),MATCH(Practices_Long[[#This Row],[JFSNAT ID]]&" Inflow TP (lbs/ac/yr)",Collection19,0)),0) -> 0 | J29: =IFERROR(INDEX(CollectionRange,MATCH(Practices_Long[[#This Row],[File Name]],CollectionA,0),MATCH(Practices_Long[[#This Row],[JFSNAT ID]]&" Outflow TP (lbs/ac/yr)",Collection19,0)),0) -> 0 | K29: =(Practices_Long[[#This Row],[BMP P Inflow Load (lb/ac/yr)]]-Practices_Long[[#This Row],[BMP P Outflow Load (lb/ac/yr)2]])*Practices_Long[[#This Row],[Total Area Captured (acres)]] -> 0 | L29: =INDEX(CollectionRange,MATCH(Practices_Long[[#This Row],[File Name]],CollectionA,0),MATCH("Latitude",Collection19,0)) -> 35.8032 | M29: =INDEX(CollectionRange,MATCH(Practices_Long[[#This Row],[File Name]],CollectionA,0),MATCH("Longitude",Collection19,0)) -> 78.5661 | N29: =OFFSET('Data Collection'!$A$20,Practices_Long[[#This Row],[Offset]],3) -> Test Site 1 Wet Pond | O29: =OFFSET('Data Collection'!$A$20,Practices_Long[[#This Row],[Offset]],0) -> SNAP Version 4.0 Wet Pond.xlsm | P29: =OFFSET('Data Collection'!$EL$20,Practices_Long[[#This Row],[Offset]],0) -> Wake | Q29: =OFFSET('Data Collection'!$EL$20,Practices_Long[[#This Row],[Offset]],1) -> Falls Zone Direct | R29: =IF(Practices_Long[[#This Row],[Practice Type]]=0,0,IF(Practices_Long[[#This Row],[Practice Type]]="--",0,1)) -> 0 | S29: =IF(OFFSET(Practices_Long[[#This Row],[Count]],-1,0)="Count",1,IF(S28=90,1,S28+1)) -> 22 | T29: =IF(OFFSET(Practices_Long[[#This Row],[Offset]],-1,0)="Offset",0,IF(S28=90,T28+1,T28)) -> 0
B30: =INDEX('Tab Lists'!$J$3:$K$92,MATCH(Practices_Long[[#This Row],[Count]],'Tab Lists'!$K$3:$K$92,0),1) -> Catchment 2 BMP 8 | C30: =IFERROR(INDEX(CollectionRange,MATCH(Practices_Long[[#This Row],[File Name]],CollectionA,0),MATCH(Practices_Long[[#This Row],[JFSNAT ID]]&" Type",Collection19,0)),NA()) -> 0 | D30: =IFERROR(INDEX(CollectionRange,MATCH(Practices_Long[[#This Row],[File Name]],CollectionA,0),MATCH(Practices_Long[[#This Row],[JFSNAT ID]]&" Area Treated (ft^2)",Collection19,0))/43560,NA()) -> 0 | E30: =INDEX(CollectionRange,MATCH(Practices_Long[[#This Row],[File Name]],CollectionA,0),MATCH(Practices_Long[[#This Row],[JFSNAT ID]]&" Impervious (%)",Collection19,0))*Practices_Long[[#This Row],[Total Area Captured (acres)]] -> 0 | F30: =IFERROR(INDEX(CollectionRange,MATCH(Practices_Long[[#This Row],[File Name]],CollectionA,0),MATCH(Practices_Long[[#This Row],[JFSNAT ID]]&" Inflow TN (lbs/ac/yr)",Collection19,0)),0) -> 0 | G30: =IFERROR(INDEX(CollectionRange,MATCH(Practices_Long[[#This Row],[File Name]],CollectionA,0),MATCH(Practices_Long[[#This Row],[JFSNAT ID]]&" Outflow TN (lbs/ac/yr)",Collection19,0)),0) -> 0 | H30: =(Practices_Long[[#This Row],[BMP Inflow Load (lb/ac/yr)]]-Practices_Long[[#This Row],[BMP N Outflow Load (lb/ac/yr)]])*Practices_Long[[#This Row],[Total Area Captured (acres)]] -> 0 | I30: =IFERROR(INDEX(CollectionRange,MATCH(Practices_Long[[#This Row],[File Name]],CollectionA,0),MATCH(Practices_Long[[#This Row],[JFSNAT ID]]&" Inflow TP (lbs/ac/yr)",Collection19,0)),0) -> 0 | J30: =IFERROR(INDEX(CollectionRange,MATCH(Practices_Long[[#This Row],[File Name]],CollectionA,0),MATCH(Practices_Long[[#This Row],[JFSNAT ID]]&" Outflow TP (lbs/ac/yr)",Collection19,0)),0) -> 0 | K30: =(Practices_Long[[#This Row],[BMP P Inflow Load (lb/ac/yr)]]-Practices_Long[[#This Row],[BMP P Outflow Load (lb/ac/yr)2]])*Practices_Long[[#This Row],[Total Area Captured (acres)]] -> 0 | L30: =INDEX(CollectionRange,MATCH(Practices_Long[[#This Row],[File Name]],CollectionA,0),MATCH("Latitude",Collection19,0)) -> 35.8032 | M30: =INDEX(CollectionRange,MATCH(Practices_Long[[#This Row],[File Name]],CollectionA,0),MATCH("Longitude",Collection19,0)) -> 78.5661 | N30: =OFFSET('Data Collection'!$A$20,Practices_Long[[#This Row],[Offset]],3) -> Test Site 1 Wet Pond | O30: =OFFSET('Data Collection'!$A$20,Practices_Long[[#This Row],[Offset]],0) -> SNAP Version 4.0 Wet Pond.xlsm | P30: =OFFSET('Data Collection'!$EL$20,Practices_Long[[#This Row],[Offset]],0) -> Wake | Q30: =OFFSET('Data Collection'!$EL$20,Practices_Long[[#This Row],[Offset]],1) -> Falls Zone Direct | R30: =IF(Practices_Long[[#This Row],[Practice Type]]=0,0,IF(Practices_Long[[#This Row],[Practice Type]]="--",0,1)) -> 0 | S30: =IF(OFFSET(Practices_Long[[#This Row],[Count]],-1,0)="Count",1,IF(S29=90,1,S29+1)) -> 23 | T30: =IF(OFFSET(Practices_Long[[#This Row],[Offset]],-1,0)="Offset",0,IF(S29=90,T29+1,T29)) -> 0
B31: =INDEX('Tab Lists'!$J$3:$K$92,MATCH(Practices_Long[[#This Row],[Count]],'Tab Lists'!$K$3:$K$92,0),1) -> Catchment 2 BMP 9 | C31: =IFERROR(INDEX(CollectionRange,MATCH(Practices_Long[[#This Row],[File Name]],CollectionA,0),MATCH(Practices_Long[[#This Row],[JFSNAT ID]]&" Type",Collection19,0)),NA()) -> 0 | D31: =IFERROR(INDEX(CollectionRange,MATCH(Practices_Long[[#This Row],[File Name]],CollectionA,0),MATCH(Practices_Long[[#This Row],[JFSNAT ID]]&" Area Treated (ft^2)",Collection19,0))/43560,NA()) -> 0 | E31: =INDEX(CollectionRange,MATCH(Practices_Long[[#This Row],[File Name]],CollectionA,0),MATCH(Practices_Long[[#This Row],[JFSNAT ID]]&" Impervious (%)",Collection19,0))*Practices_Long[[#This Row],[Total Area Captured (acres)]] -> 0 | F31: =IFERROR(INDEX(CollectionRange,MATCH(Practices_Long[[#This Row],[File Name]],CollectionA,0),MATCH(Practices_Long[[#This Row],[JFSNAT ID]]&" Inflow TN (lbs/ac/yr)",Collection19,0)),0) -> 0 | G31: =IFERROR(INDEX(CollectionRange,MATCH(Practices_Long[[#This Row],[File Name]],CollectionA,0),MATCH(Practices_Long[[#This Row],[JFSNAT ID]]&" Outflow TN (lbs/ac/yr)",Collection19,0)),0) -> 0 | H31: =(Practices_Long[[#This Row],[BMP Inflow Load (lb/ac/yr)]]-Practices_Long[[#This Row],[BMP N Outflow Load (lb/ac/yr)]])*Practices_Long[[#This Row],[Total Area Captured (acres)]] -> 0 | I31: =IFERROR(INDEX(CollectionRange,MATCH(Practices_Long[[#This Row],[File Name]],CollectionA,0),MATCH(Practices_Long[[#This Row],[JFSNAT ID]]&" Inflow TP (lbs/ac/yr)",Collection19,0)),0) -> 0 | J31: =IFERROR(INDEX(CollectionRange,MATCH(Practices_Long[[#This Row],[File Name]],CollectionA,0),MATCH(Practices_Long[[#This Row],[JFSNAT ID]]&" Outflow TP (lbs/ac/yr)",Collection19,0)),0) -> 0 | K31: =(Practices_Long[[#This Row],[BMP P Inflow Load (lb/ac/yr)]]-Practices_Long[[#This Row],[BMP P Outflow Load (lb/ac/yr)2]])*Practices_Long[[#This Row],[Total Area Captured (acres)]] -> 0 | L31: =INDEX(CollectionRange,MATCH(Practices_Long[[#This Row],[File Name]],CollectionA,0),MATCH("Latitude",Collection19,0)) -> 35.8032 | M31: =INDEX(CollectionRange,MATCH(Practices_Long[[#This Row],[File Name]],CollectionA,0),MATCH("Longitude",Collection19,0)) -> 78.5661 | N31: =OFFSET('Data Collection'!$A$20,Practices_Long[[#This Row],[Offset]],3) -> Test Site 1 Wet Pond | O31: =OFFSET('Data Collection'!$A$20,Practices_Long[[#This Row],[Offset]],0) -> SNAP Version 4.0 Wet Pond.xlsm | P31: =OFFSET('Data Collection'!$EL$20,Practices_Long[[#This Row],[Offset]],0) -> Wake | Q31: =OFFSET('Data Collection'!$EL$20,Practices_Long[[#This Row],[Offset]],1) -> Falls Zone Direct | R31: =IF(Practices_Long[[#This Row],[Practice Type]]=0,0,IF(Practices_Long[[#This Row],[Practice Type]]="--",0,1)) -> 0 | S31: =IF(OFFSET(Practices_Long[[#This Row],[Count]],-1,0)="Count",1,IF(S30=90,1,S30+1)) -> 24 | T31: =IF(OFFSET(Practices_Long[[#This Row],[Offset]],-1,0)="Offset",0,IF(S30=90,T30+1,T30)) -> 0
B32: =INDEX('Tab Lists'!$J$3:$K$92,MATCH(Practices_Long[[#This Row],[Count]],'Tab Lists'!$K$3:$K$92,0),1) -> Catchment 2 BMP 10 | C32: =IFERROR(INDEX(CollectionRange,MATCH(Practices_Long[[#This Row],[File Name]],CollectionA,0),MATCH(Practices_Long[[#This Row],[JFSNAT ID]]&" Type",Collection19,0)),NA()) -> 0 | D32: =IFERROR(INDEX(CollectionRange,MATCH(Practices_Long[[#This Row],[File Name]],CollectionA,0),MATCH(Practices_Long[[#This Row],[JFSNAT ID]]&" Area Treated (ft^2)",Collection19,0))/43560,NA()) -> 0 | E32: =INDEX(CollectionRange,MATCH(Practices_Long[[#This Row],[File Name]],CollectionA,0),MATCH(Practices_Long[[#This Row],[JFSNAT ID]]&" Impervious (%)",Collection19,0))*Practices_Long[[#This Row],[Total Area Captured (acres)]] -> 0 | F32: =IFERROR(INDEX(CollectionRange,MATCH(Practices_Long[[#This Row],[File Name]],CollectionA,0),MATCH(Practices_Long[[#This Row],[JFSNAT ID]]&" Inflow TN (lbs/ac/yr)",Collection19,0)),0) -> 0 | G32: =IFERROR(INDEX(CollectionRange,MATCH(Practices_Long[[#This Row],[File Name]],CollectionA,0),MATCH(Practices_Long[[#This Row],[JFSNAT ID]]&" Outflow TN (lbs/ac/yr)",Collection19,0)),0) -> 0 | H32: =(Practices_Long[[#This Row],[BMP Inflow Load (lb/ac/yr)]]-Practices_Long[[#This Row],[BMP N Outflow Load (lb/ac/yr)]])*Practices_Long[[#This Row],[Total Area Captured (acres)]] -> 0 | I32: =IFERROR(INDEX(CollectionRange,MATCH(Practices_Long[[#This Row],[File Name]],CollectionA,0),MATCH(Practices_Long[[#This Row],[JFSNAT ID]]&" Inflow TP (lbs/ac/yr)",Collection19,0)),0) -> 0 | J32: =IFERROR(INDEX(CollectionRange,MATCH(Practices_Long[[#This Row],[File Name]],CollectionA,0),MATCH(Practices_Long[[#This Row],[JFSNAT ID]]&" Outflow TP (lbs/ac/yr)",Collection19,0)),0) -> 0 | K32: =(Practices_Long[[#This Row],[BMP P Inflow Load (lb/ac/yr)]]-Practices_Long[[#This Row],[BMP P Outflow Load (lb/ac/yr)2]])*Practices_Long[[#This Row],[Total Area Captured (acres)]] -> 0 | L32: =INDEX(CollectionRange,MATCH(Practices_Long[[#This Row],[File Name]],CollectionA,0),MATCH("Latitude",Collection19,0)) -> 35.8032 | M32: =INDEX(CollectionRange,MATCH(Practices_Long[[#This Row],[File Name]],CollectionA,0),MATCH("Longitude",Collection19,0)) -> 78.5661 | N32: =OFFSET('Data Collection'!$A$20,Practices_Long[[#This Row],[Offset]],3) -> Test Site 1 Wet Pond | O32: =OFFSET('Data Collection'!$A$20,Practices_Long[[#This Row],[Offset]],0) -> SNAP Version 4.0 Wet Pond.xlsm | P32: =OFFSET('Data Collection'!$EL$20,Practices_Long[[#This Row],[Offset]],0) -> Wake | Q32: =OFFSET('Data Collection'!$EL$20,Practices_Long[[#This Row],[Offset]],1) -> Falls Zone Direct | R32: =IF(Practices_Long[[#This Row],[Practice Type]]=0,0,IF(Practices_Long[[#This Row],[Practice Type]]="--",0,1)) -> 0 | S32: =IF(OFFSET(Practices_Long[[#This Row],[Count]],-1,0)="Count",1,IF(S31=90,1,S31+1)) -> 25 | T32: =IF(OFFSET(Practices_Long[[#This Row],[Offset]],-1,0)="Offset",0,IF(S31=90,T31+1,T31)) -> 0
B33: =INDEX('Tab Lists'!$J$3:$K$92,MATCH(Practices_Long[[#This Row],[Count]],'Tab Lists'!$K$3:$K$92,0),1) -> Catchment 2 BMP 11 | C33: =IFERROR(INDEX(CollectionRange,MATCH(Practices_Long[[#This Row],[File Name]],CollectionA,0),MATCH(Practices_Long[[#This Row],[JFSNAT ID]]&" Type",Collection19,0)),NA()) -> 0 | D33: =IFERROR(INDEX(CollectionRange,MATCH(Practices_Long[[#This Row],[File Name]],CollectionA,0),MATCH(Practices_Long[[#This Row],[JFSNAT ID]]&" Area Treated (ft^2)",Collection19,0))/43560,NA()) -> 0 | E33: =INDEX(CollectionRange,MATCH(Practices_Long[[#This Row],[File Name]],CollectionA,0),MATCH(Practices_Long[[#This Row],[JFSNAT ID]]&" Impervious (%)",Collection19,0))*Practices_Long[[#This Row],[Total Area Captured (acres)]] -> 0 | F33: =IFERROR(INDEX(CollectionRange,MATCH(Practices_Long[[#This Row],[File Name]],CollectionA,0),MATCH(Practices_Long[[#This Row],[JFSNAT ID]]&" Inflow TN (lbs/ac/yr)",Collection19,0)),0) -> 0 | G33: =IFERROR(INDEX(CollectionRange,MATCH(Practices_Long[[#This Row],[File Name]],CollectionA,0),MATCH(Practices_Long[[#This Row],[JFSNAT ID]]&" Outflow TN (lbs/ac/yr)",Collection19,0)),0) -> 0 | H33: =(Practices_Long[[#This Row],[BMP Inflow Load (lb/ac/yr)]]-Practices_Long[[#This Row],[BMP N Outflow Load (lb/ac/yr)]])*Practices_Long[[#This Row],[Total Area Captured (acres)]] -> 0 | I33: =IFERROR(INDEX(CollectionRange,MATCH(Practices_Long[[#This Row],[File Name]],CollectionA,0),MATCH(Practices_Long[[#This Row],[JFSNAT ID]]&" Inflow TP (lbs/ac/yr)",Collection19,0)),0) -> 0 | J33: =IFERROR(INDEX(CollectionRange,MATCH(Practices_Long[[#This Row],[File Name]],CollectionA,0),MATCH(Practices_Long[[#This Row],[JFSNAT ID]]&" Outflow TP (lbs/ac/yr)",Collection19,0)),0) -> 0 | K33: =(Practices_Long[[#This Row],[BMP P Inflow Load (lb/ac/yr)]]-Practices_Long[[#This Row],[BMP P Outflow Load (lb/ac/yr)2]])*Practices_Long[[#This Row],[Total Area Captured (acres)]] -> 0 | L33: =INDEX(CollectionRange,MATCH(Practices_Long[[#This Row],[File Name]],CollectionA,0),MATCH("Latitude",Collection19,0)) -> 35.8032 | M33: =INDEX(CollectionRange,MATCH(Practices_Long[[#This Row],[File Name]],CollectionA,0),MATCH("Longitude",Collection19,0)) -> 78.5661 | N33: =OFFSET('Data Collection'!$A$20,Practices_Long[[#This Row],[Offset]],3) -> Test Site 1 Wet Pond | O33: =OFFSET('Data Collection'!$A$20,Practices_Long[[#This Row],[Offset]],0) -> SNAP Version 4.0 Wet Pond.xlsm | P33: =OFFSET('Data Collection'!$EL$20,Practices_Long[[#This Row],[Offset]],0) -> Wake | Q33: =OFFSET('Data Collection'!$EL$20,Practices_Long[[#This Row],[Offset]],1) -> Falls Zone Direct | R33: =IF(Practices_Long[[#This Row],[Practice Type]]=0,0,IF(Practices_Long[[#This Row],[Practice Type]]="--",0,1)) -> 0 | S33: =IF(OFFSET(Practices_Long[[#This Row],[Count]],-1,0)="Count",1,IF(S32=90,1,S32+1)) -> 26 | T33: =IF(OFFSET(Practices_Long[[#This Row],[Offset]],-1,0)="Offset",0,IF(S32=90,T32+1,T32)) -> 0
B34: =INDEX('Tab Lists'!$J$3:$K$92,MATCH(Practices_Long[[#This Row],[Count]],'Tab Lists'!$K$3:$K$92,0),1) -> Catchment 2 BMP 12 | C34: =IFERROR(INDEX(CollectionRange,MATCH(Practices_Long[[#This Row],[File Name]],CollectionA,0),MATCH(Practices_Long[[#This Row],[JFSNAT ID]]&" Type",Collection19,0)),NA()) -> 0 | D34: =IFERROR(INDEX(CollectionRange,MATCH(Practices_Long[[#This Row],[File Name]],CollectionA,0),MATCH(Practices_Long[[#This Row],[JFSNAT ID]]&" Area Treated (ft^2)",Collection19,0))/43560,NA()) -> 0 | E34: =INDEX(CollectionRange,MATCH(Practices_Long[[#This Row],[File Name]],CollectionA,0),MATCH(Practices_Long[[#This Row],[JFSNAT ID]]&" Impervious (%)",Collection19,0))*Practices_Long[[#This Row],[Total Area Captured (acres)]] -> 0 | F34: =IFERROR(INDEX(CollectionRange,MATCH(Practices_Long[[#This Row],[File Name]],CollectionA,0),MATCH(Practices_Long[[#This Row],[JFSNAT ID]]&" Inflow TN (lbs/ac/yr)",Collection19,0)),0) -> 0 | G34: =IFERROR(INDEX(CollectionRange,MATCH(Practices_Long[[#This Row],[File Name]],CollectionA,0),MATCH(Practices_Long[[#This Row],[JFSNAT ID]]&" Outflow TN (lbs/ac/yr)",Collection19,0)),0) -> 0 | H34: =(Practices_Long[[#This Row],[BMP Inflow Load (lb/ac/yr)]]-Practices_Long[[#This Row],[BMP N Outflow Load (lb/ac/yr)]])*Practices_Long[[#This Row],[Total Area Captured (acres)]] -> 0 | I34: =IFERROR(INDEX(CollectionRange,MATCH(Practices_Long[[#This Row],[File Name]],CollectionA,0),MATCH(Practices_Long[[#This Row],[JFSNAT ID]]&" Inflow TP (lbs/ac/yr)",Collection19,0)),0) -> 0 | J34: =IFERROR(INDEX(CollectionRange,MATCH(Practices_Long[[#This Row],[File Name]],CollectionA,0),MATCH(Practices_Long[[#This Row],[JFSNAT ID]]&" Outflow TP (lbs/ac/yr)",Collection19,0)),0) -> 0 | K34: =(Practices_Long[[#This Row],[BMP P Inflow Load (lb/ac/yr)]]-Practices_Long[[#This Row],[BMP P Outflow Load (lb/ac/yr)2]])*Practices_Long[[#This Row],[Total Area Captured (acres)]] -> 0 | L34: =INDEX(CollectionRange,MATCH(Practices_Long[[#This Row],[File Name]],CollectionA,0),MATCH("Latitude",Collection19,0)) -> 35.8032 | M34: =INDEX(CollectionRange,MATCH(Practices_Long[[#This Row],[File Name]],CollectionA,0),MATCH("Longitude",Collection19,0)) -> 78.5661 | N34: =OFFSET('Data Collection'!$A$20,Practices_Long[[#This Row],[Offset]],3) -> Test Site 1 Wet Pond | O34: =OFFSET('Data Collection'!$A$20,Practices_Long[[#This Row],[Offset]],0) -> SNAP Version 4.0 Wet Pond.xlsm | P34: =OFFSET('Data Collection'!$EL$20,Practices_Long[[#This Row],[Offset]],0) -> Wake | Q34: =OFFSET('Data Collection'!$EL$20,Practices_Long[[#This Row],[Offset]],1) -> Falls Zone Direct | R34: =IF(Practices_Long[[#This Row],[Practice Type]]=0,0,IF(Practices_Long[[#This Row],[Practice Type]]="--",0,1)) -> 0 | S34: =IF(OFFSET(Practices_Long[[#This Row],[Count]],-1,0)="Count",1,IF(S33=90,1,S33+1)) -> 27 | T34: =IF(OFFSET(Practices_Long[[#This Row],[Offset]],-1,0)="Offset",0,IF(S33=90,T33+1,T33)) -> 0
B35: =INDEX('Tab Lists'!$J$3:$K$92,MATCH(Practices_Long[[#This Row],[Count]],'Tab Lists'!$K$3:$K$92,0),1) -> Catchment 2 BMP 13 | C35: =IFERROR(INDEX(CollectionRange,MATCH(Practices_Long[[#This Row],[File Name]],CollectionA,0),MATCH(Practices_Long[[#This Row],[JFSNAT ID]]&" Type",Collection19,0)),NA()) -> 0 | D35: =IFERROR(INDEX(CollectionRange,MATCH(Practices_Long[[#This Row],[File Name]],CollectionA,0),MATCH(Practices_Long[[#This Row],[JFSNAT ID]]&" Area Treated (ft^2)",Collection19,0))/43560,NA()) -> 0 | E35: =INDEX(CollectionRange,MATCH(Practices_Long[[#This Row],[File Name]],CollectionA,0),MATCH(Practices_Long[[#This Row],[JFSNAT ID]]&" Impervious (%)",Collection19,0))*Practices_Long[[#This Row],[Total Area Captured (acres)]] -> 0 | F35: =IFERROR(INDEX(CollectionRange,MATCH(Practices_Long[[#This Row],[File Name]],CollectionA,0),MATCH(Practices_Long[[#This Row],[JFSNAT ID]]&" Inflow TN (lbs/ac/yr)",Collection19,0)),0) -> 0 | G35: =IFERROR(INDEX(CollectionRange,MATCH(Practices_Long[[#This Row],[File Name]],CollectionA,0),MATCH(Practices_Long[[#This Row],[JFSNAT ID]]&" Outflow TN (lbs/ac/yr)",Collection19,0)),0) -> 0 | H35: =(Practices_Long[[#This Row],[BMP Inflow Load (lb/ac/yr)]]-Practices_Long[[#This Row],[BMP N Outflow Load (lb/ac/yr)]])*Practices_Long[[#This Row],[Total Area Captured (acres)]] -> 0 | I35: =IFERROR(INDEX(CollectionRange,MATCH(Practices_Long[[#This Row],[File Name]],CollectionA,0),MATCH(Practices_Long[[#This Row],[JFSNAT ID]]&" Inflow TP (lbs/ac/yr)",Collection19,0)),0) -> 0 | J35: =IFERROR(INDEX(CollectionRange,MATCH(Practices_Long[[#This Row],[File Name]],CollectionA,0),MATCH(Practices_Long[[#This Row],[JFSNAT ID]]&" Outflow TP (lbs/ac/yr)",Collection19,0)),0) -> 0 | K35: =(Practices_Long[[#This Row],[BMP P Inflow Load (lb/ac/yr)]]-Practices_Long[[#This Row],[BMP P Outflow Load (lb/ac/yr)2]])*Practices_Long[[#This Row],[Total Area Captured (acres)]] -> 0 | L35: =INDEX(CollectionRange,MATCH(Practices_Long[[#This Row],[File Name]],CollectionA,0),MATCH("Latitude",Collection19,0)) -> 35.8032 | M35: =INDEX(CollectionRange,MATCH(Practices_Long[[#This Row],[File Name]],CollectionA,0),MATCH("Longitude",Collection19,0)) -> 78.5661 | N35: =OFFSET('Data Collection'!$A$20,Practices_Long[[#This Row],[Offset]],3) -> Test Site 1 Wet Pond | O35: =OFFSET('Data Collection'!$A$20,Practices_Long[[#This Row],[Offset]],0) -> SNAP Version 4.0 Wet Pond.xlsm | P35: =OFFSET('Data Collection'!$EL$20,Practices_Long[[#This Row],[Offset]],0) -> Wake | Q35: =OFFSET('Data Collection'!$EL$20,Practices_Long[[#This Row],[Offset]],1) -> Falls Zone Direct | R35: =IF(Practices_Long[[#This Row],[Practice Type]]=0,0,IF(Practices_Long[[#This Row],[Practice Type]]="--",0,1)) -> 0 | S35: =IF(OFFSET(Practices_Long[[#This Row],[Count]],-1,0)="Count",1,IF(S34=90,1,S34+1)) -> 28 | T35: =IF(OFFSET(Practices_Long[[#This Row],[Offset]],-1,0)="Offset",0,IF(S34=90,T34+1,T34)) -> 0
B36: =INDEX('Tab Lists'!$J$3:$K$92,MATCH(Practices_Long[[#This Row],[Count]],'Tab Lists'!$K$3:$K$92,0),1) -> Catchment 2 BMP 14 | C36: =IFERROR(INDEX(CollectionRange,MATCH(Practices_Long[[#This Row],[File Name]],CollectionA,0),MATCH(Practices_Long[[#This Row],[JFSNAT ID]]&" Type",Collection19,0)),NA()) -> 0 | D36: =IFERROR(INDEX(CollectionRange,MATCH(Practices_Long[[#This Row],[File Name]],CollectionA,0),MATCH(Practices_Long[[#This Row],[JFSNAT ID]]&" Area Treated (ft^2)",Collection19,0))/43560,NA()) -> 0 | E36: =INDEX(CollectionRange,MATCH(Practices_Long[[#This Row],[File Name]],CollectionA,0),MATCH(Practices_Long[[#This Row],[JFSNAT ID]]&" Impervious (%)",Collection19,0))*Practices_Long[[#This Row],[Total Area Captured (acres)]] -> 0 | F36: =IFERROR(INDEX(CollectionRange,MATCH(Practices_Long[[#This Row],[File Name]],CollectionA,0),MATCH(Practices_Long[[#This Row],[JFSNAT ID]]&" Inflow TN (lbs/ac/yr)",Collection19,0)),0) -> 0 | G36: =IFERROR(INDEX(CollectionRange,MATCH(Practices_Long[[#This Row],[File Name]],CollectionA,0),MATCH(Practices_Long[[#This Row],[JFSNAT ID]]&" Outflow TN (lbs/ac/yr)",Collection19,0)),0) -> 0 | H36: =(Practices_Long[[#This Row],[BMP Inflow Load (lb/ac/yr)]]-Practices_Long[[#This Row],[BMP N Outflow Load (lb/ac/yr)]])*Practices_Long[[#This Row],[Total Area Captured (acres)]] -> 0 | I36: =IFERROR(INDEX(CollectionRange,MATCH(Practices_Long[[#This Row],[File Name]],CollectionA,0),MATCH(Practices_Long[[#This Row],[JFSNAT ID]]&" Inflow TP (lbs/ac/yr)",Collection19,0)),0) -> 0 | J36: =IFERROR(INDEX(CollectionRange,MATCH(Practices_Long[[#This Row],[File Name]],CollectionA,0),MATCH(Practices_Long[[#This Row],[JFSNAT ID]]&" Outflow TP (lbs/ac/yr)",Collection19,0)),0) -> 0 | K36: =(Practices_Long[[#This Row],[BMP P Inflow Load (lb/ac/yr)]]-Practices_Long[[#This Row],[BMP P Outflow Load (lb/ac/yr)2]])*Practices_Long[[#This Row],[Total Area Captured (acres)]] -> 0 | L36: =INDEX(CollectionRange,MATCH(Practices_Long[[#This Row],[File Name]],CollectionA,0),MATCH("Latitude",Collection19,0)) -> 35.8032 | M36: =INDEX(CollectionRange,MATCH(Practices_Long[[#This Row],[File Name]],CollectionA,0),MATCH("Longitude",Collection19,0)) -> 78.5661 | N36: =OFFSET('Data Collection'!$A$20,Practices_Long[[#This Row],[Offset]],3) -> Test Site 1 Wet Pond | O36: =OFFSET('Data Collection'!$A$20,Practices_Long[[#This Row],[Offset]],0) -> SNAP Version 4.0 Wet Pond.xlsm | P36: =OFFSET('Data Collection'!$EL$20,Practices_Long[[#This Row],[Offset]],0) -> Wake | Q36: =OFFSET('Data Collection'!$EL$20,Practices_Long[[#This Row],[Offset]],1) -> Falls Zone Direct | R36: =IF(Practices_Long[[#This Row],[Practice Type]]=0,0,IF(Practices_Long[[#This Row],[Practice Type]]="--",0,1)) -> 0 | S36: =IF(OFFSET(Practices_Long[[#This Row],[Count]],-1,0)="Count",1,IF(S35=90,1,S35+1)) -> 29 | T36: =IF(OFFSET(Practices_Long[[#This Row],[Offset]],-1,0)="Offset",0,IF(S35=90,T35+1,T35)) -> 0
B37: =INDEX('Tab Lists'!$J$3:$K$92,MATCH(Practices_Long[[#This Row],[Count]],'Tab Lists'!$K$3:$K$92,0),1) -> Catchment 2 BMP 15 | C37: =IFERROR(INDEX(CollectionRange,MATCH(Practices_Long[[#This Row],[File Name]],CollectionA,0),MATCH(Practices_Long[[#This Row],[JFSNAT ID]]&" Type",Collection19,0)),NA()) -> 0 | D37: =IFERROR(INDEX(CollectionRange,MATCH(Practices_Long[[#This Row],[File Name]],CollectionA,0),MATCH(Practices_Long[[#This Row],[JFSNAT ID]]&" Area Treated (ft^2)",Collection19,0))/43560,NA()) -> 0 | E37: =INDEX(CollectionRange,MATCH(Practices_Long[[#This Row],[File Name]],CollectionA,0),MATCH(Practices_Long[[#This Row],[JFSNAT ID]]&" Impervious (%)",Collection19,0))*Practices_Long[[#This Row],[Total Area Captured (acres)]] -> 0 | F37: =IFERROR(INDEX(CollectionRange,MATCH(Practices_Long[[#This Row],[File Name]],CollectionA,0),MATCH(Practices_Long[[#This Row],[JFSNAT ID]]&" Inflow TN (lbs/ac/yr)",Collection19,0)),0) -> 0 | G37: =IFERROR(INDEX(CollectionRange,MATCH(Practices_Long[[#This Row],[File Name]],CollectionA,0),MATCH(Practices_Long[[#This Row],[JFSNAT ID]]&" Outflow TN (lbs/ac/yr)",Collection19,0)),0) -> 0 | H37: =(Practices_Long[[#This Row],[BMP Inflow Load (lb/ac/yr)]]-Practices_Long[[#This Row],[BMP N Outflow Load (lb/ac/yr)]])*Practices_Long[[#This Row],[Total Area Captured (acres)]] -> 0 | I37: =IFERROR(INDEX(CollectionRange,MATCH(Practices_Long[[#This Row],[File Name]],CollectionA,0),MATCH(Practices_Long[[#This Row],[JFSNAT ID]]&" Inflow TP (lbs/ac/yr)",Collection19,0)),0) -> 0 | J37: =IFERROR(INDEX(CollectionRange,MATCH(Practices_Long[[#This Row],[File Name]],CollectionA,0),MATCH(Practices_Long[[#This Row],[JFSNAT ID]]&" Outflow TP (lbs/ac/yr)",Collection19,0)),0) -> 0 | K37: =(Practices_Long[[#This Row],[BMP P Inflow Load (lb/ac/yr)]]-Practices_Long[[#This Row],[BMP P Outflow Load (lb/ac/yr)2]])*Practices_Long[[#This Row],[Total Area Captured (acres)]] -> 0 | L37: =INDEX(CollectionRange,MATCH(Practices_Long[[#This Row],[File Name]],CollectionA,0),MATCH("Latitude",Collection19,0)) -> 35.8032 | M37: =INDEX(CollectionRange,MATCH(Practices_Long[[#This Row],[File Name]],CollectionA,0),MATCH("Longitude",Collection19,0)) -> 78.5661 | N37: =OFFSET('Data Collection'!$A$20,Practices_Long[[#This Row],[Offset]],3) -> Test Site 1 Wet Pond | O37: =OFFSET('Data Collection'!$A$20,Practices_Long[[#This Row],[Offset]],0) -> SNAP Version 4.0 Wet Pond.xlsm | P37: =OFFSET('Data Collection'!$EL$20,Practices_Long[[#This Row],[Offset]],0) -> Wake | Q37: =OFFSET('Data Collection'!$EL$20,Practices_Long[[#This Row],[Offset]],1) -> Falls Zone Direct | R37: =IF(Practices_Long[[#This Row],[Practice Type]]=0,0,IF(Practices_Long[[#This Row],[Practice Type]]="--",0,1)) -> 0 | S37: =IF(OFFSET(Practices_Long[[#This Row],[Count]],-1,0)="Count",1,IF(S36=90,1,S36+1)) -> 30 | T37: =IF(OFFSET(Practices_Long[[#This Row],[Offset]],-1,0)="Offset",0,IF(S36=90,T36+1,T36)) -> 0
B38: =INDEX('Tab Lists'!$J$3:$K$92,MATCH(Practices_Long[[#This Row],[Count]],'Tab Lists'!$K$3:$K$92,0),1) -> Catchment 3 BMP 1 | C38: =IFERROR(INDEX(CollectionRange,MATCH(Practices_Long[[#This Row],[File Name]],CollectionA,0),MATCH(Practices_Long[[#This Row],[JFSNAT ID]]&" Type",Collection19,0)),NA()) -> 0 | D38: =IFERROR(INDEX(CollectionRange,MATCH(Practices_Long[[#This Row],[File Name]],CollectionA,0),MATCH(Practices_Long[[#This Row],[JFSNAT ID]]&" Area Treated (ft^2)",Collection19,0))/43560,NA()) -> 0 | E38: =INDEX(CollectionRange,MATCH(Practices_Long[[#This Row],[File Name]],CollectionA,0),MATCH(Practices_Long[[#This Row],[JFSNAT ID]]&" Impervious (%)",Collection19,0))*Practices_Long[[#This Row],[Total Area Captured (acres)]] -> 0 | F38: =IFERROR(INDEX(CollectionRange,MATCH(Practices_Long[[#This Row],[File Name]],CollectionA,0),MATCH(Practices_Long[[#This Row],[JFSNAT ID]]&" Inflow TN (lbs/ac/yr)",Collection19,0)),0) -> 0 | G38: =IFERROR(INDEX(CollectionRange,MATCH(Practices_Long[[#This Row],[File Name]],CollectionA,0),MATCH(Practices_Long[[#This Row],[JFSNAT ID]]&" Outflow TN (lbs/ac/yr)",Collection19,0)),0) -> 0 | H38: =(Practices_Long[[#This Row],[BMP Inflow Load (lb/ac/yr)]]-Practices_Long[[#This Row],[BMP N Outflow Load (lb/ac/yr)]])*Practices_Long[[#This Row],[Total Area Captured (acres)]] -> 0 | I38: =IFERROR(INDEX(CollectionRange,MATCH(Practices_Long[[#This Row],[File Name]],CollectionA,0),MATCH(Practices_Long[[#This Row],[JFSNAT ID]]&" Inflow TP (lbs/ac/yr)",Collection19,0)),0) -> 0 | J38: =IFERROR(INDEX(CollectionRange,MATCH(Practices_Long[[#This Row],[File Name]],CollectionA,0),MATCH(Practices_Long[[#This Row],[JFSNAT ID]]&" Outflow TP (lbs/ac/yr)",Collection19,0)),0) -> 0 | K38: =(Practices_Long[[#This Row],[BMP P Inflow Load (lb/ac/yr)]]-Practices_Long[[#This Row],[BMP P Outflow Load (lb/ac/yr)2]])*Practices_Long[[#This Row],[Total Area Captured (acres)]] -> 0 | L38: =INDEX(CollectionRange,MATCH(Practices_Long[[#This Row],[File Name]],CollectionA,0),MATCH("Latitude",Collection19,0)) -> 35.8032 | M38: =INDEX(CollectionRange,MATCH(Practices_Long[[#This Row],[File Name]],CollectionA,0),MATCH("Longitude",Collection19,0)) -> 78.5661 | N38: =OFFSET('Data Collection'!$A$20,Practices_Long[[#This Row],[Offset]],3) -> Test Site 1 Wet Pond | O38: =OFFSET('Data Collection'!$A$20,Practices_Long[[#This Row],[Offset]],0) -> SNAP Version 4.0 Wet Pond.xlsm | P38: =OFFSET('Data Collection'!$EL$20,Practices_Long[[#This Row],[Offset]],0) -> Wake | Q38: =OFFSET('Data Collection'!$EL$20,Practices_Long[[#This Row],[Offset]],1) -> Falls Zone Direct | R38: =IF(Practices_Long[[#This Row],[Practice Type]]=0,0,IF(Practices_Long[[#This Row],[Practice Type]]="--",0,1)) -> 0 | S38: =IF(OFFSET(Practices_Long[[#This Row],[Count]],-1,0)="Count",1,IF(S37=90,1,S37+1)) -> 31 | T38: =IF(OFFSET(Practices_Long[[#This Row],[Offset]],-1,0)="Offset",0,IF(S37=90,T37+1,T37)) -> 0
B39: =INDEX('Tab Lists'!$J$3:$K$92,MATCH(Practices_Long[[#This Row],[Count]],'Tab Lists'!$K$3:$K$92,0),1) -> Catchment 3 BMP 2 | C39: =IFERROR(INDEX(CollectionRange,MATCH(Practices_Long[[#This Row],[File Name]],CollectionA,0),MATCH(Practices_Long[[#This Row],[JFSNAT ID]]&" Type",Collection19,0)),NA()) -> 0 | D39: =IFERROR(INDEX(CollectionRange,MATCH(Practices_Long[[#This Row],[File Name]],CollectionA,0),MATCH(Practices_Long[[#This Row],[JFSNAT ID]]&" Area Treated (ft^2)",Collection19,0))/43560,NA()) -> 0 | E39: =INDEX(CollectionRange,MATCH(Practices_Long[[#This Row],[File Name]],CollectionA,0),MATCH(Practices_Long[[#This Row],[JFSNAT ID]]&" Impervious (%)",Collection19,0))*Practices_Long[[#This Row],[Total Area Captured (acres)]] -> 0 | F39: =IFERROR(INDEX(CollectionRange,MATCH(Practices_Long[[#This Row],[File Name]],CollectionA,0),MATCH(Practices_Long[[#This Row],[JFSNAT ID]]&" Inflow TN (lbs/ac/yr)",Collection19,0)),0) -> 0 | G39: =IFERROR(INDEX(CollectionRange,MATCH(Practices_Long[[#This Row],[File Name]],CollectionA,0),MATCH(Practices_Long[[#This Row],[JFSNAT ID]]&" Outflow TN (lbs/ac/yr)",Collection19,0)),0) -> 0 | H39: =(Practices_Long[[#This Row],[BMP Inflow Load (lb/ac/yr)]]-Practices_Long[[#This Row],[BMP N Outflow Load (lb/ac/yr)]])*Practices_Long[[#This Row],[Total Area Captured (acres)]] -> 0 | I39: =IFERROR(INDEX(CollectionRange,MATCH(Practices_Long[[#This Row],[File Name]],CollectionA,0),MATCH(Practices_Long[[#This Row],[JFSNAT ID]]&" Inflow TP (lbs/ac/yr)",Collection19,0)),0) -> 0 | J39: =IFERROR(INDEX(CollectionRange,MATCH(Practices_Long[[#This Row],[File Name]],CollectionA,0),MATCH(Practices_Long[[#This Row],[JFSNAT ID]]&" Outflow TP (lbs/ac/yr)",Collection19,0)),0) -> 0 | K39: =(Practices_Long[[#This Row],[BMP P Inflow Load (lb/ac/yr)]]-Practices_Long[[#This Row],[BMP P Outflow Load (lb/ac/yr)2]])*Practices_Long[[#This Row],[Total Area Captured (acres)]] -> 0 | L39: =INDEX(CollectionRange,MATCH(Practices_Long[[#This Row],[File Name]],CollectionA,0),MATCH("Latitude",Collection19,0)) -> 35.8032 | M39: =INDEX(CollectionRange,MATCH(Practices_Long[[#This Row],[File Name]],CollectionA,0),MATCH("Longitude",Collection19,0)) -> 78.5661 | N39: =OFFSET('Data Collection'!$A$20,Practices_Long[[#This Row],[Offset]],3) -> Test Site 1 Wet Pond | O39: =OFFSET('Data Collection'!$A$20,Practices_Long[[#This Row],[Offset]],0) -> SNAP Version 4.0 Wet Pond.xlsm | P39: =OFFSET('Data Collection'!$EL$20,Practices_Long[[#This Row],[Offset]],0) -> Wake | Q39: =OFFSET('Data Collection'!$EL$20,Practices_Long[[#This Row],[Offset]],1) -> Falls Zone Direct | R39: =IF(Practices_Long[[#This Row],[Practice Type]]=0,0,IF(Practices_Long[[#This Row],[Practice Type]]="--",0,1)) -> 0 | S39: =IF(OFFSET(Practices_Long[[#This Row],[Count]],-1,0)="Count",1,IF(S38=90,1,S38+1)) -> 32 | T39: =IF(OFFSET(Practices_Long[[#This Row],[Offset]],-1,0)="Offset",0,IF(S38=90,T38+1,T38)) -> 0
B40: =INDEX('Tab Lists'!$J$3:$K$92,MATCH(Practices_Long[[#This Row],[Count]],'Tab Lists'!$K$3:$K$92,0),1) -> Catchment 3 BMP 3 | C40: =IFERROR(INDEX(CollectionRange,MATCH(Practices_Long[[#This Row],[File Name]],CollectionA,0),MATCH(Practices_Long[[#This Row],[JFSNAT ID]]&" Type",Collection19,0)),NA()) -> 0 | D40: =IFERROR(INDEX(CollectionRange,MATCH(Practices_Long[[#This Row],[File Name]],CollectionA,0),MATCH(Practices_Long[[#This Row],[JFSNAT ID]]&" Area Treated (ft^2)",Collection19,0))/43560,NA()) -> 0 | E40: =INDEX(CollectionRange,MATCH(Practices_Long[[#This Row],[File Name]],CollectionA,0),MATCH(Practices_Long[[#This Row],[JFSNAT ID]]&" Impervious (%)",Collection19,0))*Practices_Long[[#This Row],[Total Area Captured (acres)]] -> 0 | F40: =IFERROR(INDEX(CollectionRange,MATCH(Practices_Long[[#This Row],[File Name]],CollectionA,0),MATCH(Practices_Long[[#This Row],[JFSNAT ID]]&" Inflow TN (lbs/ac/yr)",Collection19,0)),0) -> 0 | G40: =IFERROR(INDEX(CollectionRange,MATCH(Practices_Long[[#This Row],[File Name]],CollectionA,0),MATCH(Practices_Long[[#This Row],[JFSNAT ID]]&" Outflow TN (lbs/ac/yr)",Collection19,0)),0) -> 0 | H40: =(Practices_Long[[#This Row],[BMP Inflow Load (lb/ac/yr)]]-Practices_Long[[#This Row],[BMP N Outflow Load (lb/ac/yr)]])*Practices_Long[[#This Row],[Total Area Captured (acres)]] -> 0 | I40: =IFERROR(INDEX(CollectionRange,MATCH(Practices_Long[[#This Row],[File Name]],CollectionA,0),MATCH(Practices_Long[[#This Row],[JFSNAT ID]]&" Inflow TP (lbs/ac/yr)",Collection19,0)),0) -> 0 | J40: =IFERROR(INDEX(CollectionRange,MATCH(Practices_Long[[#This Row],[File Name]],CollectionA,0),MATCH(Practices_Long[[#This Row],[JFSNAT ID]]&" Outflow TP (lbs/ac/yr)",Collection19,0)),0) -> 0 | K40: =(Practices_Long[[#This Row],[BMP P Inflow Load (lb/ac/yr)]]-Practices_Long[[#This Row],[BMP P Outflow Load (lb/ac/yr)2]])*Practices_Long[[#This Row],[Total Area Captured (acres)]] -> 0 | L40: =INDEX(CollectionRange,MATCH(Practices_Long[[#This Row],[File Name]],CollectionA,0),MATCH("Latitude",Collection19,0)) -> 35.8032 | M40: =INDEX(CollectionRange,MATCH(Practices_Long[[#This Row],[File Name]],CollectionA,0),MATCH("Longitude",Collection19,0)) -> 78.5661 | N40: =OFFSET('Data Collection'!$A$20,Practices_Long[[#This Row],[Offset]],3) -> Test Site 1 Wet Pond | O40: =OFFSET('Data Collection'!$A$20,Practices_Long[[#This Row],[Offset]],0) -> SNAP Version 4.0 Wet Pond.xlsm | P40: =OFFSET('Data Collection'!$EL$20,Practices_Long[[#This Row],[Offset]],0) -> Wake | Q40: =OFFSET('Data Collection'!$EL$20,Practices_Long[[#This Row],[Offset]],1) -> Falls Zone Direct | R40: =IF(Practices_Long[[#This Row],[Practice Type]]=0,0,IF(Practices_Long[[#This Row],[Practice Type]]="--",0,1)) -> 0 | S40: =IF(OFFSET(Practices_Long[[#This Row],[Count]],-1,0)="Count",1,IF(S39=90,1,S39+1)) -> 33 | T40: =IF(OFFSET(Practices_Long[[#This Row],[Offset]],-1,0)="Offset",0,IF(S39=90,T39+1,T39)) -> 0
B41: =INDEX('Tab Lists'!$J$3:$K$92,MATCH(Practices_Long[[#This Row],[Count]],'Tab Lists'!$K$3:$K$92,0),1) -> Catchment 3 BMP 4 | C41: =IFERROR(INDEX(CollectionRange,MATCH(Practices_Long[[#This Row],[File Name]],CollectionA,0),MATCH(Practices_Long[[#This Row],[JFSNAT ID]]&" Type",Collection19,0)),NA()) -> 0 | D41: =IFERROR(INDEX(CollectionRange,MATCH(Practices_Long[[#This Row],[File Name]],CollectionA,0),MATCH(Practices_Long[[#This Row],[JFSNAT ID]]&" Area Treated (ft^2)",Collection19,0))/43560,NA()) -> 0 | E41: =INDEX(CollectionRange,MATCH(Practices_Long[[#This Row],[File Name]],CollectionA,0),MATCH(Practices_Long[[#This Row],[JFSNAT ID]]&" Impervious (%)",Collection19,0))*Practices_Long[[#This Row],[Total Area Captured (acres)]] -> 0 | F41: =IFERROR(INDEX(CollectionRange,MATCH(Practices_Long[[#This Row],[File Name]],CollectionA,0),MATCH(Practices_Long[[#This Row],[JFSNAT ID]]&" Inflow TN (lbs/ac/yr)",Collection19,0)),0) -> 0 | G41: =IFERROR(INDEX(CollectionRange,MATCH(Practices_Long[[#This Row],[File Name]],CollectionA,0),MATCH(Practices_Long[[#This Row],[JFSNAT ID]]&" Outflow TN (lbs/ac/yr)",Collection19,0)),0) -> 0 | H41: =(Practices_Long[[#This Row],[BMP Inflow Load (lb/ac/yr)]]-Practices_Long[[#This Row],[BMP N Outflow Load (lb/ac/yr)]])*Practices_Long[[#This Row],[Total Area Captured (acres)]] -> 0 | I41: =IFERROR(INDEX(CollectionRange,MATCH(Practices_Long[[#This Row],[File Name]],CollectionA,0),MATCH(Practices_Long[[#This Row],[JFSNAT ID]]&" Inflow TP (lbs/ac/yr)",Collection19,0)),0) -> 0 | J41: =IFERROR(INDEX(CollectionRange,MATCH(Practices_Long[[#This Row],[File Name]],CollectionA,0),MATCH(Practices_Long[[#This Row],[JFSNAT ID]]&" Outflow TP (lbs/ac/yr)",Collection19,0)),0) -> 0 | K41: =(Practices_Long[[#This Row],[BMP P Inflow Load (lb/ac/yr)]]-Practices_Long[[#This Row],[BMP P Outflow Load (lb/ac/yr)2]])*Practices_Long[[#This Row],[Total Area Captured (acres)]] -> 0 | L41: =INDEX(CollectionRange,MATCH(Practices_Long[[#This Row],[File Name]],CollectionA,0),MATCH("Latitude",Collection19,0)) -> 35.8032 | M41: =INDEX(CollectionRange,MATCH(Practices_Long[[#This Row],[File Name]],CollectionA,0),MATCH("Longitude",Collection19,0)) -> 78.5661 | N41: =OFFSET('Data Collection'!$A$20,Practices_Long[[#This Row],[Offset]],3) -> Test Site 1 Wet Pond | O41: =OFFSET('Data Collection'!$A$20,Practices_Long[[#This Row],[Offset]],0) -> SNAP Version 4.0 Wet Pond.xlsm | P41: =OFFSET('Data Collection'!$EL$20,Practices_Long[[#This Row],[Offset]],0) -> Wake | Q41: =OFFSET('Data Collection'!$EL$20,Practices_Long[[#This Row],[Offset]],1) -> Falls Zone Direct | R41: =IF(Practices_Long[[#This Row],[Practice Type]]=0,0,IF(Practices_Long[[#This Row],[Practice Type]]="--",0,1)) -> 0 | S41: =IF(OFFSET(Practices_Long[[#This Row],[Count]],-1,0)="Count",1,IF(S40=90,1,S40+1)) -> 34 | T41: =IF(OFFSET(Practices_Long[[#This Row],[Offset]],-1,0)="Offset",0,IF(S40=90,T40+1,T40)) -> 0
B42: =INDEX('Tab Lists'!$J$3:$K$92,MATCH(Practices_Long[[#This Row],[Count]],'Tab Lists'!$K$3:$K$92,0),1) -> Catchment 3 BMP 5 | C42: =IFERROR(INDEX(CollectionRange,MATCH(Practices_Long[[#This Row],[File Name]],CollectionA,0),MATCH(Practices_Long[[#This Row],[JFSNAT ID]]&" Type",Collection19,0)),NA()) -> 0 | D42: =IFERROR(INDEX(CollectionRange,MATCH(Practices_Long[[#This Row],[File Name]],CollectionA,0),MATCH(Practices_Long[[#This Row],[JFSNAT ID]]&" Area Treated (ft^2)",Collection19,0))/43560,NA()) -> 0 | E42: =INDEX(CollectionRange,MATCH(Practices_Long[[#This Row],[File Name]],CollectionA,0),MATCH(Practices_Long[[#This Row],[JFSNAT ID]]&" Impervious (%)",Collection19,0))*Practices_Long[[#This Row],[Total Area Captured (acres)]] -> 0 | F42: =IFERROR(INDEX(CollectionRange,MATCH(Practices_Long[[#This Row],[File Name]],CollectionA,0),MATCH(Practices_Long[[#This Row],[JFSNAT ID]]&" Inflow TN (lbs/ac/yr)",Collection19,0)),0) -> 0 | G42: =IFERROR(INDEX(CollectionRange,MATCH(Practices_Long[[#This Row],[File Name]],CollectionA,0),MATCH(Practices_Long[[#This Row],[JFSNAT ID]]&" Outflow TN (lbs/ac/yr)",Collection19,0)),0) -> 0 | H42: =(Practices_Long[[#This Row],[BMP Inflow Load (lb/ac/yr)]]-Practices_Long[[#This Row],[BMP N Outflow Load (lb/ac/yr)]])*Practices_Long[[#This Row],[Total Area Captured (acres)]] -> 0 | I42: =IFERROR(INDEX(CollectionRange,MATCH(Practices_Long[[#This Row],[File Name]],CollectionA,0),MATCH(Practices_Long[[#This Row],[JFSNAT ID]]&" Inflow TP (lbs/ac/yr)",Collection19,0)),0) -> 0 | J42: =IFERROR(INDEX(CollectionRange,MATCH(Practices_Long[[#This Row],[File Name]],CollectionA,0),MATCH(Practices_Long[[#This Row],[JFSNAT ID]]&" Outflow TP (lbs/ac/yr)",Collection19,0)),0) -> 0 | K42: =(Practices_Long[[#This Row],[BMP P Inflow Load (lb/ac/yr)]]-Practices_Long[[#This Row],[BMP P Outflow Load (lb/ac/yr)2]])*Practices_Long[[#This Row],[Total Area Captured (acres)]] -> 0 | L42: =INDEX(CollectionRange,MATCH(Practices_Long[[#This Row],[File Name]],CollectionA,0),MATCH("Latitude",Collection19,0)) -> 35.8032 | M42: =INDEX(CollectionRange,MATCH(Practices_Long[[#This Row],[File Name]],CollectionA,0),MATCH("Longitude",Collection19,0)) -> 78.5661 | N42: =OFFSET('Data Collection'!$A$20,Practices_Long[[#This Row],[Offset]],3) -> Test Site 1 Wet Pond | O42: =OFFSET('Data Collection'!$A$20,Practices_Long[[#This Row],[Offset]],0) -> SNAP Version 4.0 Wet Pond.xlsm | P42: =OFFSET('Data Collection'!$EL$20,Practices_Long[[#This Row],[Offset]],0) -> Wake | Q42: =OFFSET('Data Collection'!$EL$20,Practices_Long[[#This Row],[Offset]],1) -> Falls Zone Direct | R42: =IF(Practices_Long[[#This Row],[Practice Type]]=0,0,IF(Practices_Long[[#This Row],[Practice Type]]="--",0,1)) -> 0 | S42: =IF(OFFSET(Practices_Long[[#This Row],[Count]],-1,0)="Count",1,IF(S41=90,1,S41+1)) -> 35 | T42: =IF(OFFSET(Practices_Long[[#This Row],[Offset]],-1,0)="Offset",0,IF(S41=90,T41+1,T41)) -> 0
B43: =INDEX('Tab Lists'!$J$3:$K$92,MATCH(Practices_Long[[#This Row],[Count]],'Tab Lists'!$K$3:$K$92,0),1) -> Catchment 3 BMP 6 | C43: =IFERROR(INDEX(CollectionRange,MATCH(Practices_Long[[#This Row],[File Name]],CollectionA,0),MATCH(Practices_Long[[#This Row],[JFSNAT ID]]&" Type",Collection19,0)),NA()) -> 0 | D43: =IFERROR(INDEX(CollectionRange,MATCH(Practices_Long[[#This Row],[File Name]],CollectionA,0),MATCH(Practices_Long[[#This Row],[JFSNAT ID]]&" Area Treated (ft^2)",Collection19,0))/43560,NA()) -> 0 | E43: =INDEX(CollectionRange,MATCH(Practices_Long[[#This Row],[File Name]],CollectionA,0),MATCH(Practices_Long[[#This Row],[JFSNAT ID]]&" Impervious (%)",Collection19,0))*Practices_Long[[#This Row],[Total Area Captured (acres)]] -> 0 | F43: =IFERROR(INDEX(CollectionRange,MATCH(Practices_Long[[#This Row],[File Name]],CollectionA,0),MATCH(Practices_Long[[#This Row],[JFSNAT ID]]&" Inflow TN (lbs/ac/yr)",Collection19,0)),0) -> 0 | G43: =IFERROR(INDEX(CollectionRange,MATCH(Practices_Long[[#This Row],[File Name]],CollectionA,0),MATCH(Practices_Long[[#This Row],[JFSNAT ID]]&" Outflow TN (lbs/ac/yr)",Collection19,0)),0) -> 0 | H43: =(Practices_Long[[#This Row],[BMP Inflow Load (lb/ac/yr)]]-Practices_Long[[#This Row],[BMP N Outflow Load (lb/ac/yr)]])*Practices_Long[[#This Row],[Total Area Captured (acres)]] -> 0 | I43: =IFERROR(INDEX(CollectionRange,MATCH(Practices_Long[[#This Row],[File Name]],CollectionA,0),MATCH(Practices_Long[[#This Row],[JFSNAT ID]]&" Inflow TP (lbs/ac/yr)",Collection19,0)),0) -> 0 | J43: =IFERROR(INDEX(CollectionRange,MATCH(Practices_Long[[#This Row],[File Name]],CollectionA,0),MATCH(Practices_Long[[#This Row],[JFSNAT ID]]&" Outflow TP (lbs/ac/yr)",Collection19,0)),0) -> 0 | K43: =(Practices_Long[[#This Row],[BMP P Inflow Load (lb/ac/yr)]]-Practices_Long[[#This Row],[BMP P Outflow Load (lb/ac/yr)2]])*Practices_Long[[#This Row],[Total Area Captured (acres)]] -> 0 | L43: =INDEX(CollectionRange,MATCH(Practices_Long[[#This Row],[File Name]],CollectionA,0),MATCH("Latitude",Collection19,0)) -> 35.8032 | M43: =INDEX(CollectionRange,MATCH(Practices_Long[[#This Row],[File Name]],CollectionA,0),MATCH("Longitude",Collection19,0)) -> 78.5661 | N43: =OFFSET('Data Collection'!$A$20,Practices_Long[[#This Row],[Offset]],3) -> Test Site 1 Wet Pond | O43: =OFFSET('Data Collection'!$A$20,Practices_Long[[#This Row],[Offset]],0) -> SNAP Version 4.0 Wet Pond.xlsm | P43: =OFFSET('Data Collection'!$EL$20,Practices_Long[[#This Row],[Offset]],0) -> Wake | Q43: =OFFSET('Data Collection'!$EL$20,Practices_Long[[#This Row],[Offset]],1) -> Falls Zone Direct | R43: =IF(Practices_Long[[#This Row],[Practice Type]]=0,0,IF(Practices_Long[[#This Row],[Practice Type]]="--",0,1)) -> 0 | S43: =IF(OFFSET(Practices_Long[[#This Row],[Count]],-1,0)="Count",1,IF(S42=90,1,S42+1)) -> 36 | T43: =IF(OFFSET(Practices_Long[[#This Row],[Offset]],-1,0)="Offset",0,IF(S42=90,T42+1,T42)) -> 0
B44: =INDEX('Tab Lists'!$J$3:$K$92,MATCH(Practices_Long[[#This Row],[Count]],'Tab Lists'!$K$3:$K$92,0),1) -> Catchment 3 BMP 7 | C44: =IFERROR(INDEX(CollectionRange,MATCH(Practices_Long[[#This Row],[File Name]],CollectionA,0),MATCH(Practices_Long[[#This Row],[JFSNAT ID]]&" Type",Collection19,0)),NA()) -> 0 | D44: =IFERROR(INDEX(CollectionRange,MATCH(Practices_Long[[#This Row],[File Name]],CollectionA,0),MATCH(Practices_Long[[#This Row],[JFSNAT ID]]&" Area Treated (ft^2)",Collection19,0))/43560,NA()) -> 0 | E44: =INDEX(CollectionRange,MATCH(Practices_Long[[#This Row],[File Name]],CollectionA,0),MATCH(Practices_Long[[#This Row],[JFSNAT ID]]&" Impervious (%)",Collection19,0))*Practices_Long[[#This Row],[Total Area Captured (acres)]] -> 0 | F44: =IFERROR(INDEX(CollectionRange,MATCH(Practices_Long[[#This Row],[File Name]],CollectionA,0),MATCH(Practices_Long[[#This Row],[JFSNAT ID]]&" Inflow TN (lbs/ac/yr)",Collection19,0)),0) -> 0 | G44: =IFERROR(INDEX(CollectionRange,MATCH(Practices_Long[[#This Row],[File Name]],CollectionA,0),MATCH(Practices_Long[[#This Row],[JFSNAT ID]]&" Outflow TN (lbs/ac/yr)",Collection19,0)),0) -> 0 | H44: =(Practices_Long[[#This Row],[BMP Inflow Load (lb/ac/yr)]]-Practices_Long[[#This Row],[BMP N Outflow Load (lb/ac/yr)]])*Practices_Long[[#This Row],[Total Area Captured (acres)]] -> 0 | I44: =IFERROR(INDEX(CollectionRange,MATCH(Practices_Long[[#This Row],[File Name]],CollectionA,0),MATCH(Practices_Long[[#This Row],[JFSNAT ID]]&" Inflow TP (lbs/ac/yr)",Collection19,0)),0) -> 0 | J44: =IFERROR(INDEX(CollectionRange,MATCH(Practices_Long[[#This Row],[File Name]],CollectionA,0),MATCH(Practices_Long[[#This Row],[JFSNAT ID]]&" Outflow TP (lbs/ac/yr)",Collection19,0)),0) -> 0 | K44: =(Practices_Long[[#This Row],[BMP P Inflow Load (lb/ac/yr)]]-Practices_Long[[#This Row],[BMP P Outflow Load (lb/ac/yr)2]])*Practices_Long[[#This Row],[Total Area Captured (acres)]] -> 0 | L44: =INDEX(CollectionRange,MATCH(Practices_Long[[#This Row],[File Name]],CollectionA,0),MATCH("Latitude",Collection19,0)) -> 35.8032 | M44: =INDEX(CollectionRange,MATCH(Practices_Long[[#This Row],[File Name]],CollectionA,0),MATCH("Longitude",Collection19,0)) -> 78.5661 | N44: =OFFSET('Data Collection'!$A$20,Practices_Long[[#This Row],[Offset]],3) -> Test Site 1 Wet Pond | O44: =OFFSET('Data Collection'!$A$20,Practices_Long[[#This Row],[Offset]],0) -> SNAP Version 4.0 Wet Pond.xlsm | P44: =OFFSET('Data Collection'!$EL$20,Practices_Long[[#This Row],[Offset]],0) -> Wake | Q44: =OFFSET('Data Collection'!$EL$20,Practices_Long[[#This Row],[Offset]],1) -> Falls Zone Direct | R44: =IF(Practices_Long[[#This Row],[Practice Type]]=0,0,IF(Practices_Long[[#This Row],[Practice Type]]="--",0,1)) -> 0 | S44: =IF(OFFSET(Practices_Long[[#This Row],[Count]],-1,0)="Count",1,IF(S43=90,1,S43+1)) -> 37 | T44: =IF(OFFSET(Practices_Long[[#This Row],[Offset]],-1,0)="Offset",0,IF(S43=90,T43+1,T43)) -> 0
B45: =INDEX('Tab Lists'!$J$3:$K$92,MATCH(Practices_Long[[#This Row],[Count]],'Tab Lists'!$K$3:$K$92,0),1) -> Catchment 3 BMP 8 | C45: =IFERROR(INDEX(CollectionRange,MATCH(Practices_Long[[#This Row],[File Name]],CollectionA,0),MATCH(Practices_Long[[#This Row],[JFSNAT ID]]&" Type",Collection19,0)),NA()) -> 0 | D45: =IFERROR(INDEX(CollectionRange,MATCH(Practices_Long[[#This Row],[File Name]],CollectionA,0),MATCH(Practices_Long[[#This Row],[JFSNAT ID]]&" Area Treated (ft^2)",Collection19,0))/43560,NA()) -> 0 | E45: =INDEX(CollectionRange,MATCH(Practices_Long[[#This Row],[File Name]],CollectionA,0),MATCH(Practices_Long[[#This Row],[JFSNAT ID]]&" Impervious (%)",Collection19,0))*Practices_Long[[#This Row],[Total Area Captured (acres)]] -> 0 | F45: =IFERROR(INDEX(CollectionRange,MATCH(Practices_Long[[#This Row],[File Name]],CollectionA,0),MATCH(Practices_Long[[#This Row],[JFSNAT ID]]&" Inflow TN (lbs/ac/yr)",Collection19,0)),0) -> 0 | G45: =IFERROR(INDEX(CollectionRange,MATCH(Practices_Long[[#This Row],[File Name]],CollectionA,0),MATCH(Practices_Long[[#This Row],[JFSNAT ID]]&" Outflow TN (lbs/ac/yr)",Collection19,0)),0) -> 0 | H45: =(Practices_Long[[#This Row],[BMP Inflow Load (lb/ac/yr)]]-Practices_Long[[#This Row],[BMP N Outflow Load (lb/ac/yr)]])*Practices_Long[[#This Row],[Total Area Captured (acres)]] -> 0 | I45: =IFERROR(INDEX(CollectionRange,MATCH(Practices_Long[[#This Row],[File Name]],CollectionA,0),MATCH(Practices_Long[[#This Row],[JFSNAT ID]]&" Inflow TP (lbs/ac/yr)",Collection19,0)),0) -> 0 | J45: =IFERROR(INDEX(CollectionRange,MATCH(Practices_Long[[#This Row],[File Name]],CollectionA,0),MATCH(Practices_Long[[#This Row],[JFSNAT ID]]&" Outflow TP (lbs/ac/yr)",Collection19,0)),0) -> 0 | K45: =(Practices_Long[[#This Row],[BMP P Inflow Load (lb/ac/yr)]]-Practices_Long[[#This Row],[BMP P Outflow Load (lb/ac/yr)2]])*Practices_Long[[#This Row],[Total Area Captured (acres)]] -> 0 | L45: =INDEX(CollectionRange,MATCH(Practices_Long[[#This Row],[File Name]],CollectionA,0),MATCH("Latitude",Collection19,0)) -> 35.8032 | M45: =INDEX(CollectionRange,MATCH(Practices_Long[[#This Row],[File Name]],CollectionA,0),MATCH("Longitude",Collection19,0)) -> 78.5661 | N45: =OFFSET('Data Collection'!$A$20,Practices_Long[[#This Row],[Offset]],3) -> Test Site 1 Wet Pond | O45: =OFFSET('Data Collection'!$A$20,Practices_Long[[#This Row],[Offset]],0) -> SNAP Version 4.0 Wet Pond.xlsm | P45: =OFFSET('Data Collection'!$EL$20,Practices_Long[[#This Row],[Offset]],0) -> Wake | Q45: =OFFSET('Data Collection'!$EL$20,Practices_Long[[#This Row],[Offset]],1) -> Falls Zone Direct | R45: =IF(Practices_Long[[#This Row],[Practice Type]]=0,0,IF(Practices_Long[[#This Row],[Practice Type]]="--",0,1)) -> 0 | S45: =IF(OFFSET(Practices_Long[[#This Row],[Count]],-1,0)="Count",1,IF(S44=90,1,S44+1)) -> 38 | T45: =IF(OFFSET(Practices_Long[[#This Row],[Offset]],-1,0)="Offset",0,IF(S44=90,T44+1,T44)) -> 0
B46: =INDEX('Tab Lists'!$J$3:$K$92,MATCH(Practices_Long[[#This Row],[Count]],'Tab Lists'!$K$3:$K$92,0),1) -> Catchment 3 BMP 9 | C46: =IFERROR(INDEX(CollectionRange,MATCH(Practices_Long[[#This Row],[File Name]],CollectionA,0),MATCH(Practices_Long[[#This Row],[JFSNAT ID]]&" Type",Collection19,0)),NA()) -> 0 | D46: =IFERROR(INDEX(CollectionRange,MATCH(Practices_Long[[#This Row],[File Name]],CollectionA,0),MATCH(Practices_Long[[#This Row],[JFSNAT ID]]&" Area Treated (ft^2)",Collection19,0))/43560,NA()) -> 0 | E46: =INDEX(CollectionRange,MATCH(Practices_Long[[#This Row],[File Name]],CollectionA,0),MATCH(Practices_Long[[#This Row],[JFSNAT ID]]&" Impervious (%)",Collection19,0))*Practices_Long[[#This Row],[Total Area Captured (acres)]] -> 0 | F46: =IFERROR(INDEX(CollectionRange,MATCH(Practices_Long[[#This Row],[File Name]],CollectionA,0),MATCH(Practices_Long[[#This Row],[JFSNAT ID]]&" Inflow TN (lbs/ac/yr)",Collection19,0)),0) -> 0 | G46: =IFERROR(INDEX(CollectionRange,MATCH(Practices_Long[[#This Row],[File Name]],CollectionA,0),MATCH(Practices_Long[[#This Row],[JFSNAT ID]]&" Outflow TN (lbs/ac/yr)",Collection19,0)),0) -> 0 | H46: =(Practices_Long[[#This Row],[BMP Inflow Load (lb/ac/yr)]]-Practices_Long[[#This Row],[BMP N Outflow Load (lb/ac/yr)]])*Practices_Long[[#This Row],[Total Area Captured (acres)]] -> 0 | I46: =IFERROR(INDEX(CollectionRange,MATCH(Practices_Long[[#This Row],[File Name]],CollectionA,0),MATCH(Practices_Long[[#This Row],[JFSNAT ID]]&" Inflow TP (lbs/ac/yr)",Collection19,0)),0) -> 0 | J46: =IFERROR(INDEX(CollectionRange,MATCH(Practices_Long[[#This Row],[File Name]],CollectionA,0),MATCH(Practices_Long[[#This Row],[JFSNAT ID]]&" Outflow TP (lbs/ac/yr)",Collection19,0)),0) -> 0 | K46: =(Practices_Long[[#This Row],[BMP P Inflow Load (lb/ac/yr)]]-Practices_Long[[#This Row],[BMP P Outflow Load (lb/ac/yr)2]])*Practices_Long[[#This Row],[Total Area Captured (acres)]] -> 0 | L46: =INDEX(CollectionRange,MATCH(Practices_Long[[#This Row],[File Name]],CollectionA,0),MATCH("Latitude",Collection19,0)) -> 35.8032 | M46: =INDEX(CollectionRange,MATCH(Practices_Long[[#This Row],[File Name]],CollectionA,0),MATCH("Longitude",Collection19,0)) -> 78.5661 | N46: =OFFSET('Data Collection'!$A$20,Practices_Long[[#This Row],[Offset]],3) -> Test Site 1 Wet Pond | O46: =OFFSET('Data Collection'!$A$20,Practices_Long[[#This Row],[Offset]],0) -> SNAP Version 4.0 Wet Pond.xlsm | P46: =OFFSET('Data Collection'!$EL$20,Practices_Long[[#This Row],[Offset]],0) -> Wake | Q46: =OFFSET('Data Collection'!$EL$20,Practices_Long[[#This Row],[Offset]],1) -> Falls Zone Direct | R46: =IF(Practices_Long[[#This Row],[Practice Type]]=0,0,IF(Practices_Long[[#This Row],[Practice Type]]="--",0,1)) -> 0 | S46: =IF(OFFSET(Practices_Long[[#This Row],[Count]],-1,0)="Count",1,IF(S45=90,1,S45+1)) -> 39 | T46: =IF(OFFSET(Practices_Long[[#This Row],[Offset]],-1,0)="Offset",0,IF(S45=90,T45+1,T45)) -> 0
